Workbook

Sheet 0.Краткое содержание
A1: 0. Краткое содержание
A3: I. | B3: Ссылки | C3: Автор
B5: Общие положения
B6: 1. Резюме проекта
B7: 2. Техническая характеристика проекта
B8: 3. Входные данные - Общие положения
B9: Плановые данные
B10: 4. Входные данные - Плановые капитальные вложения
B11: 5. Расчетные данные - Амортизация (план)
B12: 6. Входные данные - Плановые доходы
B13: 7. Входные данные - Плановые расходы
B14: 8. Расчетные данные - Плановый отчет о движении денежных средств
B15: 9. Расчетные данные - Ключевые показатели эффективности
B16: 10. Расчетные данные - Плановые финансовые показатели
B17: Выходная отчетность
B18: 11. Выходные данные - Заключение по плановым показателям
B19: 12. Анализ чувствительности
B20: 13.Риски проекта
B21: 14. Методика ПМ
A24: II. | B24: Обозначения по листам | H24: III. Обозначения по ячейкам
E26: Плановые данные | J26: Заголовок
E28: Фактические данные | J28: Входные данные
E30: План-Факт Анализ | J30: Расчетные данные
E32: Прогнозные данные | J32: Варьируемые данные
E34: Выходная отчетность | J34: Выходные данные
A36: IV. | B36: Подход
A38: 1) | B38: Формула дисконтирования
C42: Где:
C43: PV – стоимость будущих денежных потоков в настоящее время
C44: CF – будущие денежные потоки
C45: r - ставка дисконтирования
C46: n - число лет или срок службы проекта
A47: 2) Формула чистой привиденной стоимости (NPV)
C50: Где:
C51: PV – стоимость будущих денежных потоков в настоящее время
C52: IO – стоимость капитальных вложений по инвестиционному проекту
A53: 3) Формула индекса прибыльности (PI)
B56: Где:
B57: PV – стоимость будущих денежных потоков в настоящее время
B58: IO – стоимость капитальные вложения по инвестиционному проекту
A59: 4) Формула внутренней нормы доходности (IRR)
B63: Где:
B64: CF – будущие денежные потоки
B65: IO – стоимость капитальных вложений по инвестиционному проекту
B66: IRR – внутренняя ставка доходности
A67: 5) Формула модифицированной внутренней нормы доходности (MIRR)
B71: Где:
B72: CF – будущие денежные потоки
B73: IO – стоимость капитальных вложений по инвестиционному проекту
B74: r – ставка реинвестирования
B75: n – кол-во периодов
B76: t – период, в котором ожидается денежный поток
A77: 6) Формула экспоненциального сглаживания
B78: St+1 = [αYt + (1 - α)] x Pt+1
B79: Где,
B80: St+1 - прогноз
B81: Pt+1– плановые показатели периода
B82: Yt – фактические показатели периода t / плановые показатели периода t
B83: α =Alpha (Alpha – значение между 0-1)
A85: V. Использование весов при прогнозе методом экспоненциального сглаживания
B86: Данная модель необходима для прогноза будущего денежного потока на основании исторических расхождений плановых и фактических данных. Вес на исторические значения равный 30% используется при незначительных колебаниях между плановыми и фактическими значениями. Вес на исторические значения равный 50% используется при средних колебаниях между плановыми и фактическими значениями. Вес на исторические значения равный 70% используется при значительных колебаниях между плановыми и фактическими значениями.
B91: Справочник:
B93: Стратегическое направление
B94: Оператов инфраструктры дата-центров | C94: Реализация Долины ЦОДов - формирование инфраструктурного кластера коммерческих дата-центров для привлечения глобальных облачных операторов, гиперскейлеров, BigTech и ИИ-компаний
B95: Трансформация и маштабирование core-телеком бизнеса | C95: Инициативы расширения телеком инфраструктуры: • Строительство оптики до СНП; • Модернизация сетей, замена медных на оптические сети и строительство новых оптических сетей; • AmazonLEO, Каспи ВОЛС и др. • Реализация коммерческих синергий с Кселл
B96: Цифровой бизнес | C96: Разработка и масштабирование : • Вычислительной мощности, ИИ инфраструктуры, разворачивание GPU серверов в действующих ЦОД; • Цифровых продуктов, включающих ИИ инструменты и продукты, с фокусом на повышения эффективности корпоративных функций Группы и Фонда; • Реализация части Национальной системы видеонаблюдения Коммерциализация и монетизация ИИ инфраструктуры и ИИ-продуктов на внешнем рынке
B99: Инициатива
A101: ДРБ | B101: 1.1. Расширение сети ШПД за счет строительства сети в новых жилых массивах (захвата новых квадратов) и перевода абонентов с меди на оптику.
A102: ДРБ | B102: 1.2. Утилизация свободных портов в сегменте МЖС городов/ Обеспечения 100% охвата технической возможности подключения в городах Алматы, Астана, Шымкент.
A103: ДРБ | B103: 1.3. Развитие VAS-продуктов/Расширение линейки услуг B2C
A104: ДРБ | B104: 1.4. Развитие цифрового сервиса TV+/Развитие собственного развлекательного контента
A105: ДКБ | B105: 2.1. Рост локального и международного операторского бизнеса B2O
A106: ДКБ | B106: 2.2. Активное развитие новых услуг на сегменте B2Х
A107: ДКБ | B107: 2.3. Развитие сети ВОЛС до клиентов B2X
A108: ДКБ | B108: 2.4. Строительство каналов до БС мобильных операторов в рамках развертывания сети 5G
A109: ДКБ | B109: 2.5. Расширение международных транзитных узлов/ Создание собственной сетевой инфраструктуры до Европы через РФ
A110: ДЦБ | B110: 3.1. Развитие услуг ИКТ | E110: 3.1. Развитие услуг ИКТ 3.2. Развитие цифровых бизнесов 3.3. Развитие продуктов внутренних и внешних искусственного интеллекта 3.4. Развитие вычислительных мощностей для ИИ-решений 3.5. Развитие корпоративных ИТ систем 3.6. Модернизация средств защиты информационной безопасности* 3.7. Обеспечение информационной безопасности* 3.8. Модернизация ИТ инфраструктуры* 3.9. Автоматизация/цифровизация процессов Фин ОЦО*
A111: ДЦБ | B111: 3.2. Развитие цифровых бизнесов
A112: ДЦБ | B112: 3.3. Развитие продуктов внутренних и внешних искусственного интеллекта
A113: ДЦБ | B113: 3.4. Развитие вычислительных мощностей для ИИ-решений
A114: ДЦБ | B114: 3.5. Развитие корпоративных ИТ систем
A115: ДЦБ | B115: 3.6. Модернизация средств защиты информационной безопасности*
A116: ДЦБ | B116: 3.7. Обеспечение информационной безопасности*
A117: ДЦБ | B117: 3.8. Модернизация ИТ инфраструктуры*
A118: ДЦБ | B118: 3.9. Автоматизация/цифровизация процессов Фин ОЦО*
A119: ОДС | B119: 4.1. Модернизация инфраструктуры сети, сетей доступа по технологии GPON | E119: 4.1. Модернизация инфраструктуры сети, сетей доступа по технологии GPON 4.2. Переключение B2C абонентов с xDSL на GPON (SWAP, Тазарту) 4.3. Реализация направления облачных узлов связи TelcoCloud*
A120: ОДС | B120: 4.2. Переключение B2C абонентов с xDSL на GPON (SWAP, Тазарту)
A121: ОДС | B121: 4.3. Реализация направления облачных узлов связи TelcoCloud*
A122: ДУП | B122: 5.1. Реализация крупных проектов: СОИ, инфраструктура ИИ, стратегический комплексный план (СКП), наземная инфраструктура Amazon Kuiper, инфраструктура НСВМ | E122: 5.1. Поддержание и обеспечение бизнеса (АХД, транспорт и т.д.)
A123: ДУП | B123: 5.2. Развитие сетевой инфраструктуры (мобильный и фиксированный 5G)
A124: СФ | B124: 6. Поддержание и обеспечение бизнеса (АХД, транспорт и т.д.) | E124: 6.1. Повышение уровня производственной безопасности
A125: ДПБ | B125: 7. Повышение уровня производственной безопасности | E125: 7.1. Поддержание и обеспечение бизнеса, цифровизация бизнес-процессов и сервисов СФ

Sheet 1.Резюме проекта
A1: Вернуться назад <= | D1: Контроль правильности заполнения
L2: 2020
A3: 1. Резюме проекта | E3: Check | L3: 2021
L4: 2022
A5: Полное наименование проекта | L5: 2023
A6: Номер САЭБП | C6: Заполняется инициатором после предварительных экспертиз | L6: 2024
A7: Место реализации | C7: Филиал, населенные пункты | L7: 2025
A8: Срок начала реализации | C8: 2027 | D8: =IF(C8=0,"ОБЯЗАТЕЛЬНО ДЛЯ КОРРЕКТНОГО ЗАПОЛНЕНИЯ","ОК") -> ОК | L8: 2026
A9: Срок завершения реализации | L9: 2027
A10: Спонсор | C10: ФИО, позиция | L10: 2028
A11: Заказчик | C11: ФИО, позиция | L11: 2029
A12: Инициатор | C12: ФИО, позиция | L12: 2030
A13: Категория проекта | D13: =IF(C13=0,"ВЫБЕРИТЕ КАТЕГОРИЮ ПРОЕКТА","ОК") -> ВЫБЕРИТЕ КАТЕГОРИЮ ПРОЕКТА | L13: 2031
A14: Вид проекта | D14: =IF(ISERROR(VLOOKUP(C14,INDEX($G$18:$K$19,,MATCH(C13,$G$17:$K$17,0)),1,0))=FALSE(),"ОК","ВЫБЕРИТЕ КОРРЕКТНЫЙ ВИД ПРОЕКТА") -> ВЫБЕРИТЕ КОРРЕКТНЫЙ ВИД ПРОЕКТА | L14: 2032
A15: Стратегическое направление | D15: =IF(C15=0,"ДЕТАЛИЗАЦИЯ НА ЛИСТЕ '0.Краткое содержание'!","ОК") -> ДЕТАЛИЗАЦИЯ НА ЛИСТЕ '0.Краткое содержание'! | L15: 2033
A16: Инициатива | D16: =IF(C16=0,"ДЕТАЛИЗАЦИЯ НА ЛИСТЕ '0.Краткое содержание'!","ОК") -> ДЕТАЛИЗАЦИЯ НА ЛИСТЕ '0.Краткое содержание'! | G16: Категория проекта | L16: 2034
A17: Цели проекта | C17: Желаемый результат деятельности, достигаемый в итоге успешного осуществления проекта в заданных условиях его выполнения. Основной целью проекта может быть, например, расширение номенклатуры предоставляемых услуг, улучшение качества услуг связи, увеличение доходов Общества. Цель должна быть конкретной, выраженной количественными показателями, такими как объемы продаж, доли рынка и прибыль, которые Общество планирует получить в будущем. | G17: Основной бизнес | H17: Новый бизнес | I17: Оптимизация затрат/Повышение качества | J17: LTO | K17: Вспомогательные инвестиции | L17: 2035
A18: Задачи | C18: Здесь необходимо перечислить задачи, решение которых приведет к достижению цели проекта. | F18: Вид проекта | G18: Новый доход | H18: Новый доход | I18: Экономия расходов | J18: Нет | K18: Нет | L18: 2036
A19: ППС проекта | B19: Оборудование и активы (земля, ПО и т.д.) | C19: ='4.БКВ'!C22+'4.БКВ'!C28 -> 512,524 | E19: =C19-'2.3.Спецификации по этапам'!D187 -> 0 | G19: Риск потери доходов | L19: 2037
B20: СМР и ПР | C20: ='4.БКВ'!C27 -> 287,546 | E20: =C20-'2.3.Спецификации по этапам'!E187 -> 0 | L20: 2038
B21: Всего | C21: =SUM(C19:C20) -> 800,070 | E21: =C21-'2.3.Спецификации по этапам'!H187 -> 0 | L21: 2039
A22: Капитальные затраты 1 этапа | B22: Оборудование и активы (земля, ПО и т.д.) | C22: ='4.БКВ'!AW22+'4.БКВ'!AW28 -> 315,797 | L22: 2040
B23: СМР и ПР | C23: ='4.БКВ'!AW27 -> 287,546 | L23: 2041
B24: Всего | C24: =SUM(C22:C23) -> 603,342 | L24: 2042
A25: Капитальные затраты 2 этапа | B25: Оборудование и активы (земля, ПО и т.д.) | C25: ='4.БКВ'!AX22+'4.БКВ'!AX28 -> 196,728 | D25: =IF(C25>0,"","СКРОЙТЕ, НО НЕ УДАЛЯЙТЕ СТРОКУ") ->  | L25: 2043
B26: СМР и ПР | C26: ='4.БКВ'!AX27 -> 0 | D26: =IF(C26>0,"","СКРОЙТЕ, НО НЕ УДАЛЯЙТЕ СТРОКУ") -> СКРОЙТЕ, НО НЕ УДАЛЯЙТЕ СТРОКУ | L26: 2044
B27: Всего | C27: =SUM(C25:C26) -> 196,728 | L27: 2045
A28: Капитальные затраты 3 этапа | B28: Оборудование и активы (земля, ПО и т.д.) | C28: ='4.БКВ'!AY22+'4.БКВ'!AY28 -> 0 | D28: СКРОЙТЕ, НО НЕ УДАЛЯЙТЕ СТРОКУ | L28: 2046
B29: СМР и ПР | C29: ='4.БКВ'!AY27 -> 0 | D29: СКРОЙТЕ, НО НЕ УДАЛЯЙТЕ СТРОКУ
B30: Всего | C30: =SUM(C28:C29) -> 0 | D30: СКРОЙТЕ, НО НЕ УДАЛЯЙТЕ СТРОКУ
A31: Капитальные затраты 4 этапа | B31: Оборудование и активы (земля, ПО и т.д.) | C31: ='4.БКВ'!AZ22+'4.БКВ'!AZ28 -> 0 | D31: СКРОЙТЕ, НО НЕ УДАЛЯЙТЕ СТРОКУ
B32: СМР и ПР | C32: ='4.БКВ'!AZ27 -> 0 | D32: СКРОЙТЕ, НО НЕ УДАЛЯЙТЕ СТРОКУ
B33: Всего | C33: =SUM(C31:C32) -> 0 | D33: СКРОЙТЕ, НО НЕ УДАЛЯЙТЕ СТРОКУ
A34: Капитальные затраты 5 этапа | B34: Оборудование и активы (земля, ПО и т.д.) | C34: ='4.БКВ'!BA22+'4.БКВ'!BA28 -> 0 | D34: СКРОЙТЕ, НО НЕ УДАЛЯЙТЕ СТРОКУ
B35: СМР и ПР | C35: ='4.БКВ'!BA27 -> 0 | D35: СКРОЙТЕ, НО НЕ УДАЛЯЙТЕ СТРОКУ
B36: Всего | C36: =SUM(C34:C35) -> 0 | D36: СКРОЙТЕ, НО НЕ УДАЛЯЙТЕ СТРОКУ
A37: Капитальные затраты 6-11 этапов | B37: Оборудование и активы (земля, ПО и т.д.) | C37: =C19-C22-C25-C28-C31-C34 -> 0
B38: СМР и ПР | C38: =C20-C23-C26-C29-C32-C35 -> 0 | D38: СКРОЙТЕ, НО НЕ УДАЛЯЙТЕ СТРОКУ
B39: Всего | C39: =SUM(C37:C38) -> 0
A40: Краткое описание приобретаемых средств (ввод мощности, ВОЛС и т.д.) | D40: =IF(C40="","ЗАПОЛНИТЕ ПОЛЕ","") -> ЗАПОЛНИТЕ ПОЛЕ
A41: Операционные затраты | C41: ='7.Расходы'!BH156 -> 1,102,240 | D41: =IF(C41="","ЗАПОЛНИТЕ ПОЛЕ","") ->  | E41: =C41-'7.Расходы'!BH156 -> 0
A42: Открытый спрос | B42: Телефония | C42: вставьте ссылку на лист "2.2 Описание НП" | D42: =IF(C42="вставьте ссылку на лист ""2.2 Описание НП""","УДАЛИТЕ ТЕКСТ ЕСЛИ НЕТ ИНФОРМАЦИИ","") -> УДАЛИТЕ ТЕКСТ ЕСЛИ НЕТ ИНФОРМАЦИИ
B43: ШПД | C43: вставьте ссылку на лист "2.2 Описание НП" | D43: =IF(C43="вставьте ссылку на лист ""2.2 Описание НП""","УДАЛИТЕ ТЕКСТ ЕСЛИ НЕТ ИНФОРМАЦИИ","") -> УДАЛИТЕ ТЕКСТ ЕСЛИ НЕТ ИНФОРМАЦИИ
B44: Прочее | C44: вставьте ссылку на лист "2.2 Описание НП" | D44: =IF(C44="вставьте ссылку на лист ""2.2 Описание НП""","УДАЛИТЕ ТЕКСТ ЕСЛИ НЕТ ИНФОРМАЦИИ","") -> УДАЛИТЕ ТЕКСТ ЕСЛИ НЕТ ИНФОРМАЦИИ
A45: Количество новых подключений | B45: Телефония | C45: вставьте ссылку на лист "9 КПЭ" | D45: =IF(C45="вставьте ссылку на лист ""9 КПЭ""","УДАЛИТЕ ТЕКСТ ЕСЛИ НЕТ ИНФОРМАЦИИ","") -> УДАЛИТЕ ТЕКСТ ЕСЛИ НЕТ ИНФОРМАЦИИ
B46: ШПД | C46: вставьте ссылку на лист "9 КПЭ" | D46: =IF(C46="вставьте ссылку на лист ""9 КПЭ""","УДАЛИТЕ ТЕКСТ ЕСЛИ НЕТ ИНФОРМАЦИИ","") -> УДАЛИТЕ ТЕКСТ ЕСЛИ НЕТ ИНФОРМАЦИИ
B47: Прочее | C47: вставьте ссылку на лист "9 КПЭ" | D47: =IF(C47="вставьте ссылку на лист ""9 КПЭ""","УДАЛИТЕ ТЕКСТ ЕСЛИ НЕТ ИНФОРМАЦИИ","") -> УДАЛИТЕ ТЕКСТ ЕСЛИ НЕТ ИНФОРМАЦИИ
A48: Доходы проекта | B48: Телефония | C48: вставьте ссылку на лист "6. Доходы" | D48: =IF(C48="вставьте ссылку на лист ""6. Доходы""","УДАЛИТЕ ТЕКСТ ЕСЛИ НЕТ ИНФОРМАЦИИ","") -> УДАЛИТЕ ТЕКСТ ЕСЛИ НЕТ ИНФОРМАЦИИ | E48: =SUM(C48:C50)-'6. Доходы'!GJ9 -> -668,350
B49: ШПД | C49: вставьте ссылку на лист "6. Доходы" | D49: =IF(C49="вставьте ссылку на лист ""6. Доходы""","УДАЛИТЕ ТЕКСТ ЕСЛИ НЕТ ИНФОРМАЦИИ","") -> УДАЛИТЕ ТЕКСТ ЕСЛИ НЕТ ИНФОРМАЦИИ
B50: Прочее (указать) | C50: вставьте ссылку на лист "6. Доходы" | D50: =IF(C50="вставьте ссылку на лист ""6. Доходы""","УДАЛИТЕ ТЕКСТ ЕСЛИ НЕТ ИНФОРМАЦИИ","") -> УДАЛИТЕ ТЕКСТ ЕСЛИ НЕТ ИНФОРМАЦИИ
A51: Финансовые показатели | B51: NPV | C51: ='10.Фин.пок-ли'!D51 -> (369,868)
B52: IRR | C52: ='10.Фин.пок-ли'!D54 -> 12.75%
B53: PI | C53: ='10.Фин.пок-ли'!D53 -> 0.14
B54: PBP | C54: ='10.Фин.пок-ли'!D56 -> 0.00
B55: DPBP | C55: ='10.Фин.пок-ли'!D57 -> 0.00

Sheet 2.1.Текущее состояние
A1: Вернуться назад <=
A3: 2.1. Текущее состояние сети
A5: Предпосылки инициации проекта | C5: В этом разделе необходимо подробно описать: - дефицит в услугах связи в виде отсутствия портовой или линейной емкости; - моральный и физический износ оборудования. В этом случае необходимо приложить «Дефектный Акт», утверждённый Главным техническим директором, а также привести статистические данные по качеству работы оборудования (количество неисправного оборудования, количество записей о повреждении, характер повреждений и другие статистические данные); - потребность в новых видах услуг.
A6: Текущее состояние | C6: В этом разделе необходимо подробно описать существующую ситуацию в рамках которой предлагается реализация проекта, используемое оборудование, привести существующие схемы организации связи и услуг.
A8: Техническое решение
A10: Основное техническое решение по проекту | C10: В этом разделе необходимо подробно описать технические решения, применяемые в проекте, с разбивкой по этапам.
A11: Оборудование и работы, сопутствующие реализации проекта | C11: В этой части бизнес плана необходимо подробно описать технические решения, применяемые в проекте, привести схемы организации связи, описать работы, сопутствующие реализации данного проекта с перечислением выполнения всех задач по проекту, таких как подготовка помещений, модернизация ЭПУ, ремонт или строительство антенномачтовых сооружений при строительстве ЦРРЛ или организации радиодоступа
A12: Расширение информационных систем (при необходимости) | C12: В этом разделе необходимо перечислить задачи по необходимому расширению и доработке информационных систем OSS/BSS
A14: Альтернативное техническое решение
A16: Альтернативное техническое решение по проекту | C16: В этом разделе необходимо подробно описать альернативное технические решения, с разбивкой по этапам.
A17: Оборудование и работы, сопутствующие реализации проекта | C17: В этом разделе необходимо перечислить все задачи, выполняемые по альтернативному проекту: подготовка помещений, модернизация ЭПУ и климатехники, ремонт или строительство антенномачтовых сооружений при строительстве ЦРРЛ и т.д.
A18: Расширение информационных систем (при необходимости) | C18: В этом разделе необходимо перечислить задачи по необходимому расширению и доработке информационных систем OSS/BSS по альтернативному решению

Sheet 2.2 Описание НП
A1: Вернуться назад <=
A3: Описание Инвестиционного проекта
A5: Наименование показателей | B5: Всего по всем объектам | C5: Объекты, включенные в Инвестиционный план
A7: Состояние объектов на текущий момент
A8: Проникновение по услугам Телефония на 100 домохозяйств | B8: =AVERAGE(C8:V8) -> 0% | C8: =IF(C13=0,0,(C20+C71)/C13) -> 0% | D8: 0% | E8: 0% | F8: 0% | G8: 0% | H8: 0% | I8: 0% | J8: 0% | K8: 0% | L8: 0% | M8: 0% | N8: 0% | O8: 0% | P8: 0% | Q8: 0% | R8: 0% | S8: 0% | T8: 0% | U8: 0% | V8: 0%
A9: Проникновение по услугам ШПД на 100 домохозяйств | B9: =AVERAGE(C9:V9) -> 0% | C9: =IF(C13=0,0,(C41+C89)/C13) -> 0% | D9: 0% | E9: 0% | F9: 0% | G9: 0% | H9: 0% | I9: 0% | J9: 0% | K9: 0% | L9: 0% | M9: 0% | N9: 0% | O9: 0% | P9: 0% | Q9: 0% | R9: 0% | S9: 0% | T9: 0% | U9: 0% | V9: 0%
A10: Проникновение по Прочим услугам на 100 домохозяйств | B10: =AVERAGE(C10:V10) -> 0% | C10: =IF(C13=0,0,(C60+C107)/C13) -> 0% | D10: 0% | E10: 0% | F10: 0% | G10: 0% | H10: 0% | I10: 0% | J10: 0% | K10: 0% | L10: 0% | M10: 0% | N10: 0% | O10: 0% | P10: 0% | Q10: 0% | R10: 0% | S10: 0% | T10: 0% | U10: 0% | V10: 0%
A12: Внешняя среда проекта
A13: Количество домохозяйств | B13: =SUM(C13:V13) -> 0
A14: Количество населения района | B14: =SUM(C14:V14) -> 0
A15: Количество активных юридических лиц | B15: =SUM(C15:V15) -> 0
A17: Внутреняя среда проекта
A18: Телефония
A19: Монтированная абонентская емкость, ном | B19: =SUM(C19:V19) -> 0
A20: Задействованная емкость (число ФЛ+технологические телефоны), ном. | B20: =SUM(C20:V20) -> 0 | C20: =C21+C26 -> 0 | D20: 0 | E20: 0 | F20: 0 | G20: 0 | H20: 0 | I20: 0 | J20: 0 | K20: 0 | L20: 0 | M20: 0 | N20: 0 | O20: 0 | P20: 0 | Q20: 0 | R20: 0 | S20: 0 | T20: 0 | U20: 0 | V20: 0
A21: Число ФЛ, ном. | B21: =SUM(B22:B25) -> 0 | C21: 0 | D21: 0 | E21: 0 | F21: 0 | G21: 0 | H21: 0 | I21: 0 | J21: 0 | K21: 0 | L21: 0 | M21: 0 | N21: 0 | O21: 0 | P21: 0 | Q21: 0 | R21: 0 | S21: 0 | T21: 0 | U21: 0 | V21: 0
A22: Сегмент B2C | B22: =SUM(C22:V22) -> 0
A23: Сегмент B2B | B23: 0
A24: Сегмент B2G | B24: 0
A25: Сегмент B2O | B25: 0
A26: Технологические** | B26: 0
A27: Свободная абонентская емкость, ном | B27: 0 | C27: =C19-C20 -> 0 | D27: 0 | E27: 0 | F27: 0 | G27: 0 | H27: 0 | I27: 0 | J27: 0 | K27: 0 | L27: 0 | M27: 0 | N27: 0 | O27: 0 | P27: 0 | Q27: 0 | R27: 0 | S27: 0 | T27: 0 | U27: 0 | V27: 0
A28: Наличие неудовлетворенного спроса
A29: Число неудовлетворенных заявлений | B29: =SUM(B30:B33) -> 0 | C29: =SUM(C30:C33) -> 0 | D29: =SUM(D30:D33) -> 0 | E29: =SUM(E30:E33) -> 0 | F29: 0 | G29: 0 | H29: 0 | I29: 0 | J29: 0 | K29: 0 | L29: =SUM(L30:L33) -> 0 | M29: =SUM(M30:M33) -> 0 | N29: =SUM(N30:N33) -> 0 | O29: =SUM(O30:O33) -> 0 | P29: =SUM(P30:P33) -> 0 | Q29: 0 | R29: 0 | S29: 0 | T29: 0 | U29: 0 | V29: 0
A30: Сегмент B2C | B30: =SUM(C30:V30) -> 0
A31: Сегмент B2B | B31: =SUM(C31:V31) -> 0
A32: Сегмент B2G | B32: =SUM(C32:V32) -> 0
A33: Сегмент B2O | B33: =SUM(C33:V33) -> 0
A35: ШПД
A36: Монтированная абонентская емкость, ном | B36: =SUM(C36:V36) -> 0
A37: *в том числе ADSL | B37: 0
A38: *в том числе FTTH | B38: 0
A39: *в том числе (при необходимости указать) | B39: 0
A40: *в том числе (при необходимости указать) | B40: 0
A41: Задействованная емкость, ном. | B41: 0
A42: *в том числе ADSL | B42: 0
A43: *в том числе FTTH | B43: 0
A44: *в том числе (при необходимости указать) | B44: 0
A45: *в том числе (при необходимости указать) | B45: 0
A46: Свободная абонентская емкость, ном | B46: 0 | C46: =C36-C41 -> 0 | D46: =D36-D41 -> 0 | E46: 0 | F46: 0 | G46: 0 | H46: 0 | I46: 0 | J46: 0 | K46: 0 | L46: 0 | M46: 0 | N46: 0 | O46: 0 | P46: 0 | Q46: 0 | R46: 0 | S46: 0 | T46: 0 | U46: 0 | V46: 0
A47: *в том числе ADSL | B47: =SUM(C47:V47) -> 0 | C47: =C37-C42 -> 0 | D47: =D37-D42 -> 0 | E47: 0 | F47: 0 | G47: 0 | H47: 0 | I47: 0 | J47: 0 | K47: 0 | L47: 0 | M47: 0 | N47: 0 | O47: 0 | P47: 0 | Q47: 0 | R47: 0 | S47: 0 | T47: 0 | U47: 0 | V47: 0
A48: *в том числе FTTH | B48: =SUM(C48:V48) -> 0 | C48: =C38-C43 -> 0 | D48: 0 | E48: 0 | F48: 0 | G48: 0 | H48: 0 | I48: 0 | J48: 0 | K48: 0 | L48: 0 | M48: 0 | N48: 0 | O48: 0 | P48: 0 | Q48: 0 | R48: 0 | S48: 0 | T48: 0 | U48: 0 | V48: 0
A49: *в том числе (при необходимости указать) | B49: =SUM(C49:V49) -> 0 | C49: =C39-C44 -> 0 | D49: 0 | E49: 0 | F49: 0 | G49: 0 | H49: 0 | I49: 0 | J49: 0 | K49: 0 | L49: 0 | M49: 0 | N49: 0 | O49: 0 | P49: 0 | Q49: 0 | R49: 0 | S49: 0 | T49: 0 | U49: 0 | V49: 0
A50: *в том числе (при необходимости указать) | B50: =SUM(C50:V50) -> 0 | C50: =C40-C45 -> 0 | D50: 0 | E50: 0 | F50: 0 | G50: 0 | H50: 0 | I50: 0 | J50: 0 | K50: 0 | L50: 0 | M50: 0 | N50: 0 | O50: 0 | P50: 0 | Q50: 0 | R50: 0 | S50: 0 | T50: 0 | U50: 0 | V50: 0
A51: Наличие неудовлетворенного спроса
A52: Экспертная оценка спроса | B52: =SUM(C52:V52) -> 0 | C52: =SUM(C53:C56) -> 0 | D52: =SUM(D53:D56) -> 0 | E52: 0 | F52: 0 | G52: 0 | H52: 0 | I52: 0 | J52: 0 | K52: 0 | L52: =SUM(L53:L56) -> 0 | M52: =SUM(M53:M56) -> 0 | N52: =SUM(N53:N56) -> 0 | O52: =SUM(O53:O56) -> 0 | P52: =SUM(P53:P56) -> 0 | Q52: 0 | R52: 0 | S52: 0 | T52: 0 | U52: 0 | V52: 0
A53: Сегмент B2C | B53: =SUM(C53:V53) -> 0
A54: Сегмент B2B | B54: =SUM(C54:V54) -> 0
A55: Сегмент B2G | B55: =SUM(C55:V55) -> 0
A56: Сегмент B2O | B56: =SUM(C56:V56) -> 0
A58: Прочее
A59: Монтированная абонентская емкость, ном | B59: =SUM(C59:V59) -> 0
A60: Задействованная емкость, ном. | B60: =SUM(C60:V60) -> 0
A61: Свободная абонентская емкость, ном | B61: =SUM(C61:V61) -> 0 | C61: =C59-C60 -> 0 | D61: 0 | E61: 0 | F61: 0 | G61: 0 | H61: 0 | I61: 0 | J61: 0 | K61: 0 | L61: 0 | M61: 0 | N61: 0 | O61: 0 | P61: 0 | Q61: 0 | R61: 0 | S61: 0 | T61: 0 | U61: 0 | V61: 0
A62: Наличие неудовлетворенного спроса
A63: Экспертная оценка спроса | B63: =SUM(C63:V63) -> 0 | C63: =SUM(C64:C67) -> 0 | D63: =SUM(D64:D67) -> 0 | E63: 0 | F63: 0 | G63: 0 | H63: 0 | I63: 0 | J63: 0 | K63: 0 | L63: =SUM(L64:L67) -> 0 | M63: =SUM(M64:M67) -> 0 | N63: =SUM(N64:N67) -> 0 | O63: =SUM(O64:O67) -> 0 | P63: =SUM(P64:P67) -> 0 | Q63: 0 | R63: 0 | S63: 0 | T63: 0 | U63: 0 | V63: 0
A64: Сегмент B2C | B64: =SUM(C64:V64) -> 0
A65: Сегмент B2B | B65: =SUM(C65:V65) -> 0
A66: Сегмент B2G | B66: =SUM(C66:V66) -> 0
A67: Сегмент B2O | B67: =SUM(C67:V67) -> 0
A69: Конкурентная среда
A70: Телефония, кол. абонентов
A71: Количество абонентов у конкурентов | B71: =SUM(C71:V71) -> 0 | C71: =SUM(C72:C87) -> 0 | D71: =SUM(D72:D87) -> 0 | E71: 0 | F71: 0 | G71: 0 | H71: 0 | I71: 0 | J71: 0 | K71: 0 | L71: 0 | M71: 0 | N71: 0 | O71: 0 | P71: 0 | Q71: 0 | R71: 0 | S71: 0 | T71: 0 | U71: 0 | V71: 0
A72: Конкурент ___________________ | B72: =SUM(B74:B81) -> 0
A73: Конкурент ___________________ | B73: =SUM(C73:V73) -> 0
A74: Конкурент ___________________ | B74: =SUM(C74:V74) -> 0
A75: Конкурент ___________________ | B75: 0
A76: Конкурент ___________________ | B76: 0
A77: Конкурент ___________________ | B77: 0
A78: Конкурент ___________________ | B78: 0
A79: Конкурент ___________________ | B79: 0
A80: Конкурент ___________________ | B80: 0
A81: Конкурент ___________________ | B81: 0
A82: Конкурент ___________________ | B82: 0
A83: Конкурент ___________________ | B83: 0
A84: Конкурент ___________________ | B84: 0
A85: Конкурент ___________________ | B85: 0
A86: Конкурент ___________________ | B86: 0
A87: Конкурент ___________________ | B87: =SUM(B95:B101) -> 0
A88: ШПД, кол. абонентов
A89: Количество абонентов у конкурентов | B89: =SUM(C89:V89) -> 0 | C89: =SUM(C90:C105) -> 0 | D89: 0 | E89: 0 | F89: 0 | G89: 0 | H89: 0 | I89: 0 | J89: 0 | K89: 0 | L89: 0 | M89: 0 | N89: 0 | O89: 0 | P89: 0 | Q89: 0 | R89: 0 | S89: 0 | T89: 0 | U89: 0 | V89: 0
A90: Конкурент ___________________ | B90: =SUM(B92:B99) -> 0
A91: Конкурент ___________________ | B91: =SUM(C91:V91) -> 0
A92: Конкурент ___________________ | B92: =SUM(C92:V92) -> 0
A93: Конкурент ___________________ | B93: 0
A94: Конкурент ___________________ | B94: 0
A95: Конкурент ___________________ | B95: 0
A96: Конкурент ___________________ | B96: 0
A97: Конкурент ___________________ | B97: 0
A98: Конкурент ___________________ | B98: 0
A99: Конкурент ___________________ | B99: 0
A100: Конкурент ___________________ | B100: 0
A101: Конкурент ___________________ | B101: 0
A102: Конкурент ___________________ | B102: 0
A103: Конкурент ___________________ | B103: 0
A104: Конкурент ___________________ | B104: 0
A105: Конкурент ___________________ | B105: =SUM(B113:B119) -> 0
A106: Прочие, кол. абонентов
A107: Количество абонентов у конкурентов | B107: =SUM(C107:V107) -> 0 | C107: =SUM(C108:C123) -> 0 | D107: 0 | E107: 0 | F107: 0 | G107: 0 | H107: 0 | I107: 0 | J107: 0 | K107: 0 | L107: 0 | M107: 0 | N107: 0 | O107: 0 | P107: 0 | Q107: 0 | R107: 0 | S107: 0 | T107: 0 | U107: 0 | V107: 0
A108: Конкурент ___________________ | B108: =SUM(B110:B117) -> 0
A109: Конкурент ___________________ | B109: =SUM(C109:V109) -> 0
A110: Конкурент ___________________ | B110: =SUM(C110:V110) -> 0
A111: Конкурент ___________________ | B111: 0
A112: Конкурент ___________________ | B112: 0
A113: Конкурент ___________________ | B113: 0
A114: Конкурент ___________________ | B114: 0
A115: Конкурент ___________________ | B115: 0
A116: Конкурент ___________________ | B116: 0
A117: Конкурент ___________________ | B117: 0
A118: Конкурент ___________________ | B118: 0
A119: Конкурент ___________________ | B119: 0
A120: Конкурент ___________________ | B120: 0
A121: Конкурент ___________________ | B121: 0
A122: Конкурент ___________________ | B122: 0
A123: Конкурент ___________________ | B123: =SUM(B130:B136) -> 0

Sheet 2.3.Спецификации по этапам
A1: Вернуться назад <= | E1: Курс USD
D2: 460 | E2: 2026
D3: 480 | E3: 2027
D4: 480 | E4: 2028
D5: 480 | E5: 2029
D6: 480 | E6: 2030
A7: 2.3. Спецификации по этапам основного технического решения | L7: НЕОБХОДИМО ВЫБИРАТЬ СРОКИ ИЗ ВЫПАДАЮЩЕГО СПИСКА. НЕЛЬЗЯ ВБИВАТЬ ВРУЧНУЮ.НЕ ВЫБИРАТЬ СРОК СЛУЖБЫ ДЛЯ ЗАТРАТ ДТК И РАСЧЕТ ДУП(УПРАВЛЕНИЕ ПРОЕКТОМ,АВТОРСКИЙ,ТЕХНИЧЕСКИЙ НАДЗОР)
A9: ="1 этап "&'1.Резюме проекта'!$C$8 -> 1 этап 2027
A10: Наименование | B10: Описание | C10: Методика расчета* | D10: Цена за ед., тыс. тг., без НДС | E10: Расчетное Кол-во | F10: Остатки (ТМЗ). Приложить заключение | G10: Количество к закупке | H10: Цена, тыс. тг., без НДС | I10: Цена, $, без НДС | J10: Рекомендуемая цена | K10: Разница | L10: Cрок службы | M10: Квартал освоения | N10: Способ закупки ("Центр" - доставка до филиалов через ДТК, начисляется 0,3% ДТК, "Децентр" - участие ДТК в доставке непредусмотрено)
A11: Оборудование и Нематериальные активы (ПО, лицензии и т.д.)
A12: Модуль SFP GPON Class B+ | B12: Для подключения OLT к PON (нисходящий интерфейс) 16 SFP на плату | C12: =16*10 -> 160 | D12: ='2.3.2.2 Оборудование'!E10/1000 -> 102.00 | E12: 160.00 | G12: =E12 -> 160.00 | H12: =D12*E12 -> 16,320.00 | I12: =(H12*1000)/$D$4 -> 34,000.00 | J12: =D12 -> 102.00 | K12: =J12-D12 -> 0 | L12: Оборудование, ПО и лицензии (срок службы 10 лет) | M12: Год 1 4 квартал | N12: Центр
A13: Плата на 16 портов GPON | B13: расчет количества плат=328 абонентов /(16 портов * 32 абонента на 1 порт) | C13: =(16*32)*10 -> 5120.0 | D13: ='2.3.2.2 Оборудование'!E8/1000 -> 8,850.00 | E13: 10.00 | G13: =E13 -> 10.00 | H13: =D13*E13 -> 88,500.00 | I13: =(H13*1000)/$D$4 -> 184,375.00 | J13: =D13 -> 8,850.00 | K13: =J13-D13 -> 0 | L13: Оборудование, ПО и лицензии (срок службы 10 лет) | M13: Год 1 4 квартал | N13: Центр
A14: ONT (4*GE +FXS+WiF 802.11 b/g/n/ac; 2,4/5 ГГЦ, двухдиапазонные ). | B14: Оптический Сетевой Терминал для домашних клиентов с 4*GE +FXS+WiFi включая лицензии (RTU per subcriber) | D14: ='2.3.2.2 Оборудование'!E23/1000 -> 37.96 | E14: 5,167.00 | G14: =E14 -> 5,167.00 | H14: =D14*E14 -> 196,139.32 | I14: =(H14*1000)/$D$4 -> 408,623.58 | J14: =D14 -> 37.96 | K14: =J14-D14 -> 0 | L14: Оборудование и лицензии (срок службы 5 лет) | M14: Год 1 4 квартал | N14: Центр
A15: Земля | B15: Участок для строительства | L15: Земля | M15: Год 1 4 квартал | N15: Децентр
A16: Норматив расчета расходов ДТК на растаможивание и доставку оборудования до складов филиалов | C16: 0.3% | D16: =SUMIF(N12:N14,"Центр",H12:H15) -> 300,959.32 | H16: =D16*C16 -> 902.88 | I16: =(H16*1000)/$D$4 -> 1,881.00
A17: Расходы ДУП | H17: ='2.3.6 нормативы ДУП'!I4 -> 13,934.42 | L17: Оборудование, ПО и лицензии (срок службы 10 лет) | M17: Год 1 4 квартал | N17: Децентр
A18: Итого по оборудованию | H18: =SUM(H12:H16,H17) -> 315,796.61 | I18: =SUM(I12:I16) -> 628,879.58
A19: СМР
F20: не применимо | I20: =(H20*1000)/$D$4 -> 0 | K20: =J20-D20 -> 0 | L20: СМРиПР (сетей) (25 лет) | M20: Год 1 4 квартал | N20: Децентр
A21: СМР | D21: 52.62 | E21: 5,167.00 | H21: =D21*E21 -> 271,910.88 | I21: =(H21*1000)/$D$4 -> 566,481.01 | J21: 52.62 | K21: =J21-D21 -> 0 | L21: СМРиПР (капремонт и стр-во складов и зданий) (50 лет) | M21: Год 1 3 квартал | N21: Децентр
F22: не применимо | I22: =(H22*1000)/$D$4 -> 0 | K22: =J22-D22 -> 0 | L22: СМРиПР (сетей) (25 лет) | M22: Год 1 2 квартал | N22: Децентр
A23: Норматив расчета расходов ДТК по СМР (если применимо) | C23: 0.3% | D23: =SUMIF(N20:N22,"Центр",H20:H22) -> 0 | H23: =D23*C23 -> 0 | I23: =(H23*1000)/$D$4 -> 0
A24: Расходы ДУП | H24: ='2.3.6 нормативы ДУП'!J4 -> 15,634.88 | I24: =(H24*1000)/$D$4 -> 32,572.66 | L24: СМРиПР (сетей) (25 лет) | M24: Год 1 4 квартал | N24: Децентр
A25: Итого по СМР | H25: =SUM(H20:H23,H24) -> 287,545.76 | I25: =SUM(I20:I23) -> 566,481.01
A26: Итого по этапу | H26: =H25+H18 -> 603,342.37 | I26: =I25+I18 -> 1,195,360.59
A28: ="2 этап "&'1.Резюме проекта'!$C$8+1 -> 2 этап 2028
A29: Наименование | B29: Описание | C29: Методика расчета | D29: Цена за ед., тыс. тг., без НДС | E29: Расчетное Кол-во | F29: Остатки (ТМЗ). Приложить заключение | G29: Количество к закупке | H29: Цена, тыс. тг., без НДС | I29: Цена, $, без НДС | J29: Рекомендуемая цена | K29: Разница | L29: Cрок службы | M29: Квартал освоения | N29: Способ закупки
A30: Оборудование и Нематериальные активы (ПО, лицензии и т.д.)
I31: =(H31*1000)/$D$4 -> 0 | K31: =J31-D31 -> 0 | L31: Оборудование и лицензии (срок службы 5 лет) | M31: Год 2 2 квартал | N31: Центр
A32: ONT (4*GE +FXS+WiF 802.11 b/g/n/ac; 2,4/5 ГГЦ, двухдиапазонные ). | B32: Оптический Сетевой Терминал для домашних клиентов с 4*GE +FXS+WiFi включая лицензии (RTU per subcriber) | D32: ='2.3.2.2 Оборудование'!E23/1000 -> 37.96 | E32: 5,167.00 | G32: =E32 -> 5,167.00 | H32: =D32*E32 -> 196,139.32 | I32: =(H32*1000)/$D$4 -> 408,623.58 | J32: =D32 -> 37.96 | K32: =J32-D32 -> 0 | L32: Оборудование, ПО и лицензии (срок службы 7 лет) | M32: Год 2 3 квартал | N32: Центр
A33: Норматив расчета расходов ДТК на растаможивание и доставку оборудования до складов филиалов | C33: 0.3% | D33: =SUMIF(N31:N32,"Центр",H31:H32) -> 196,139.32 | H33: =D33*C33 -> 588.42 | I33: =(H33*1000)/$D$4 -> 1,225.87
A34: Расходы ДУП | H34: ='2.3.6 нормативы ДУП'!I5 -> 0 | L34: Оборудование, ПО и лицензии (срок службы 10 лет) | M34: Год 2 3 квартал | N34: Децентр
A35: Итого по оборудованию | H35: =SUM(H31:H33,H34) -> 196,727.74 | I35: =SUM(I31:I33) -> 409,849.45
A36: СМР
A37: СМР | D37: 0 | E37: =E32 -> 5,167.00 | H37: =D37*E37 -> 0 | I37: =(H37*1000)/$D$4 -> 0 | J37: 52.62 | K37: =J37-D37 -> 52.62 | L37: СМРиПР (по оборудованию) (10 лет) | M37: Год 2 3 квартал | N37: Децентр
F38: не применимо | I38: =(H38*1000)/$D$4 -> 0 | K38: =J38-D38 -> 0 | L38: СМРиПР (стр-во сооружений и мачт) (20 лет) | M38: Год 2 3 квартал | N38: Децентр
F39: не применимо | I39: =(H39*1000)/$D$4 -> 0 | K39: =J39-D39 -> 0 | L39: СМРиПР (сетей) (25 лет) | M39: Год 2 4 квартал | N39: Децентр
A40: Норматив расчета расходов ДТК по СМР (если применимо) | C40: 0.3% | D40: =SUMIF(N37:N39,"Центр",H37:H39) -> 0 | H40: =D40*C40 -> 0 | I40: =(H40*1000)/$D$4 -> 0
A41: Расходы ДУП | H41: ='2.3.6 нормативы ДУП'!J5 -> 0 | L41: СМРиПР (сетей) (25 лет) | M41: Год 2 4 квартал | N41: Децентр
A42: Итого по СМР | H42: =SUM(H37:H40,H41) -> 0 | I42: =SUM(I37:I40) -> 0
A43: Итого по этапу | H43: =H42+H35 -> 196,727.74 | I43: =I42+I35 -> 409,849.45
A45: ="3 этап "&'1.Резюме проекта'!$C$8+3 -> 3 этап 2030
A46: Наименование | B46: Описание | C46: Методика расчета* | D46: Цена за ед., тыс. тг., без НДС | E46: Расчетное Кол-во | F46: Остатки (ТМЗ). Приложить заключение | G46: Количество к закупке | H46: Цена, тыс. тг., без НДС | I46: Цена, $, без НДС | J46: Рекомендуемая цена | K46: Разница | L46: Cрок службы | M46: Квартал освоения | N46: Способ закупки
A47: Оборудование и Нематериальные активы (ПО, лицензии и т.д.)
I48: =(H48*1000)/$D$4 -> 0 | K48: =J48-D48 -> 0 | L48: Оборудование и лицензии (срок службы 3 года) | M48: Год 3 2 квартал | N48: Центр
I49: =(H49*1000)/$D$4 -> 0 | K49: =J49-D49 -> 0 | L49: Оборудование и лицензии (срок службы 5 лет) | M49: Год 3 3 квартал | N49: Центр
A50: ONT (4*GE +FXS+WiF 802.11 b/g/n/ac; 2,4/5 ГГЦ, двухдиапазонные ). | B50: Оптический Сетевой Терминал для домашних клиентов с 4*GE +FXS+WiFi включая лицензии (RTU per subcriber) | D50: 0 | E50: 5,167.00 | G50: =E50 -> 5,167.00 | H50: =D50*E50 -> 0 | I50: =(H50*1000)/$D$4 -> 0 | J50: =D50 -> 0 | K50: =J50-D50 -> 0 | L50: Оборудование, ПО и лицензии (срок службы 7 лет) | M50: Год 3 3 квартал | N50: Центр
A51: Норматив расчета расходов ДТК на растаможивание и доставку оборудования до складов филиалов | C51: 0.3% | D51: =SUMIF(N48:N50,"Центр",H48:H50) -> 0 | H51: =D51*C51 -> 0 | I51: =(H51*1000)/$D$4 -> 0
A52: Расходы ДУП | L52: Оборудование, ПО и лицензии (срок службы 10 лет) | M52: Год 3 3 квартал | N52: Децентр
A53: Итого по оборудованию | H53: =SUM(H48:H51,H52) -> 0 | I53: =SUM(I48:I51) -> 0
A54: СМР
F55: не применимо | I55: =(H55*1000)/$D$4 -> 0 | K55: =J55-D55 -> 0 | L55: СМРиПР (по оборудованию) (10 лет) | M55: Год 3 2 квартал | N55: Центр
F56: не применимо | I56: =(H56*1000)/$D$4 -> 0 | K56: =J56-D56 -> 0 | L56: СМРиПР (стр-во сооружений и мачт) (20 лет) | M56: Год 3 3 квартал | N56: Центр
F57: не применимо | I57: =(H57*1000)/$D$4 -> 0 | K57: =J57-D57 -> 0 | L57: СМРиПР (стр-во зданий и сетей) (25 лет) | M57: Год 3 4 квартал | N57: Центр
A58: Норматив расчета расходов ДТК по СМР (если применимо) | C58: 0.3% | D58: =SUMIF(N55:N57,"Центр",H55:H57) -> 0 | H58: =D58*C58 -> 0 | I58: =(H58*1000)/$D$4 -> 0
A59: Расходы ДУП | L59: СМРиПР (сетей) (25 лет) | M59: Год 3 4 квартал | N59: Децентр
A60: Итого по СМР | H60: =SUM(H55:H58,H59) -> 0 | I60: =SUM(I55:I58) -> 0
A61: Итого по этапу | H61: =H60+H53 -> 0 | I61: =I60+I53 -> 0
A63: ="4 этап "&'1.Резюме проекта'!$C$8+4 -> 4 этап 2031
A64: Наименование | B64: Описание | C64: Методика расчета* | D64: Цена за ед., тыс. тг., без НДС | E64: Расчетное Кол-во | F64: Остатки (ТМЗ). Приложить заключение | G64: Количество к закупке | H64: Цена, тыс. тг., без НДС | I64: Цена, $, без НДС | J64: Рекомендуемая цена | K64: Разница | L64: Cрок службы | M64: Квартал освоения | N64: Способ закупки
A65: Оборудование и Нематериальные активы (ПО, лицензии и т.д.)
I66: =(H66*1000)/$D$4 -> 0 | K66: =J66-D66 -> 0 | L66: Оборудование и лицензии (срок службы 5 лет) | M66: Год 4 1 квартал | N66: Центр
I67: =(H67*1000)/$D$4 -> 0 | K67: =J67-D67 -> 0 | L67: Оборудование и лицензии (срок службы 5 лет) | M67: Год 4 3 квартал | N67: Центр
I68: =(H68*1000)/$D$4 -> 0 | K68: =J68-D68 -> 0 | L68: Оборудование и лицензии (срок службы 5 лет) | M68: Год 4 4 квартал | N68: Центр
A69: Норматив расчета расходов ДТК на растаможивание и доставку оборудования до складов филиалов | C69: 0.3% | D69: =SUMIF(N66:N68,"Центр",H66:H68) -> 0 | H69: =D69*C69 -> 0 | I69: =(H69*1000)/$D$4 -> 0
A70: Итого по оборудованию | H70: =SUM(H66:H69) -> 0 | I70: =SUM(I66:I69) -> 0
A71: СМР
F72: не применимо | I72: =(H72*1000)/$D$4 -> 0 | K72: =J72-D72 -> 0 | L72: СМРиПР (сетей) (25 лет) | M72: Год 4 1 квартал | N72: Центр
F73: не применимо | I73: =(H73*1000)/$D$4 -> 0 | K73: =J73-D73 -> 0 | L73: СМРиПР (сетей) (25 лет) | M73: Год 4 3 квартал | N73: Центр
F74: не применимо | I74: =(H74*1000)/$D$4 -> 0 | K74: =J74-D74 -> 0 | L74: СМРиПР (сетей) (25 лет) | M74: Год 4 4 квартал | N74: Центр
A75: Норматив расчета расходов ДТК по СМР (если применимо) | C75: 0.3% | D75: =SUMIF(N72:N74,"Центр",H72:H74) -> 0 | H75: =D75*C75 -> 0 | I75: =(H75*1000)/$D$4 -> 0
A76: Итого по СМР | H76: =SUM(H72:H75) -> 0 | I76: =SUM(I72:I75) -> 0
A77: Итого по этапу | H77: =H76+H70 -> 0 | I77: =I76+I70 -> 0
A79: ="5 этап "&'1.Резюме проекта'!$C$8+5 -> 5 этап 2032
A80: Наименование | B80: Описание | C80: Методика расчета* | D80: Цена за ед., тыс. тг., без НДС | E80: Расчетное Кол-во | F80: Остатки (ТМЗ). Приложить заключение | G80: Количество к закупке | H80: Цена, тыс. тг., без НДС | I80: Цена, $, без НДС | J80: Рекомендуемая цена | K80: Разница | L80: Cрок службы | M80: Квартал освоения | N80: Способ закупки
A81: Оборудование и Нематериальные активы (ПО, лицензии и т.д.)
I82: =(H82*1000)/$D$4 -> 0 | K82: =J82-D82 -> 0 | L82: Оборудование и лицензии (срок службы 5 лет) | M82: Год 5 2 квартал | N82: Центр
I83: =(H83*1000)/$D$4 -> 0 | K83: =J83-D83 -> 0 | L83: Оборудование и лицензии (срок службы 5 лет) | M83: Год 5 3 квартал | N83: Центр
I84: =(H84*1000)/$D$4 -> 0 | K84: =J84-D84 -> 0 | L84: Оборудование и лицензии (срок службы 5 лет) | M84: Год 5 4 квартал | N84: Центр
A85: Норматив расчета расходов ДТК на растаможивание и доставку оборудования до складов филиалов | C85: 0.3% | D85: =SUMIF(N82:N84,"Центр",H82:H84) -> 0 | H85: =D85*C85 -> 0 | I85: =(H85*1000)/$D$4 -> 0
A86: Итого по оборудованию | H86: =SUM(H82:H85) -> 0 | I86: =SUM(I82:I85) -> 0
A87: СМР
I88: =(H88*1000)/$D$4 -> 0 | K88: =J88-D88 -> 0 | L88: СМРиПР (сетей) (25 лет) | M88: Год 5 2 квартал | N88: Центр
F89: не применимо | I89: =(H89*1000)/$D$4 -> 0 | K89: =J89-D89 -> 0 | L89: СМРиПР (сетей) (25 лет) | M89: Год 5 3 квартал | N89: Центр
F90: не применимо | I90: =(H90*1000)/$D$4 -> 0 | K90: =J90-D90 -> 0 | L90: СМРиПР (сетей) (25 лет) | M90: Год 5 4 квартал | N90: Центр
A91: Норматив расчета расходов ДТК по СМР (если применимо) | C91: 0.3% | D91: =SUMIF(N88:N90,"Центр",H88:H90) -> 0 | H91: =D91*C91 -> 0 | I91: =(H91*1000)/$D$4 -> 0
A92: Итого по СМР | H92: =SUM(H88:H91) -> 0 | I92: =SUM(I88:I91) -> 0
A93: Итого по этапу | H93: =H92+H86 -> 0 | I93: =I92+I86 -> 0
A95: ="6 этап "&'1.Резюме проекта'!$C$8+6 -> 6 этап 2033
A96: Наименование | B96: Описание | C96: Методика расчета* | D96: Цена за ед., тыс. тг., без НДС | E96: Расчетное Кол-во | F96: Остатки (ТМЗ). Приложить заключение | G96: Количество к закупке | H96: Цена, тыс. тг., без НДС | I96: Цена, $, без НДС | J96: Рекомендуемая цена | K96: Разница | L96: Cрок службы | M96: Квартал освоения | N96: Способ закупки
A97: Оборудование и Нематериальные активы (ПО, лицензии и т.д.)
I98: =(H98*1000)/$D$4 -> 0 | K98: =J98-D98 -> 0 | L98: Оборудование и лицензии (срок службы 5 лет) | M98: Год 6 2 квартал | N98: Центр
I99: =(H99*1000)/$D$4 -> 0 | K99: =J99-D99 -> 0 | L99: Оборудование и лицензии (срок службы 5 лет) | M99: Год 6 3 квартал | N99: Центр
I100: =(H100*1000)/$D$4 -> 0 | K100: =J100-D100 -> 0 | L100: Оборудование и лицензии (срок службы 5 лет) | M100: Год 6 4 квартал | N100: Центр
A101: Норматив расчета расходов ДТК на растаможивание и доставку оборудования до складов филиалов | C101: 0.3% | D101: =SUMIF(N98:N100,"Центр",H98:H100) -> 0 | H101: =D101*C101 -> 0 | I101: =(H101*1000)/$D$4 -> 0
A102: Итого по оборудованию | H102: =SUM(H98:H101) -> 0 | I102: =SUM(I98:I101) -> 0
A103: СМР
I104: =(H104*1000)/$D$4 -> 0 | K104: =J104-D104 -> 0 | L104: СМРиПР (сетей) (25 лет) | M104: Год 6 2 квартал | N104: Центр
F105: не применимо | I105: =(H105*1000)/$D$4 -> 0 | K105: =J105-D105 -> 0 | L105: СМРиПР (сетей) (25 лет) | M105: Год 6 3 квартал | N105: Центр
F106: не применимо | I106: =(H106*1000)/$D$4 -> 0 | K106: =J106-D106 -> 0 | L106: СМРиПР (сетей) (25 лет) | M106: Год 6 4 квартал | N106: Центр
A107: Норматив расчета расходов ДТК по СМР (если применимо) | C107: 0.3% | D107: =SUMIF(N104:N106,"Центр",H104:H106) -> 0 | H107: =D107*C107 -> 0 | I107: =(H107*1000)/$D$4 -> 0
A108: Итого по СМР | H108: =SUM(H104:H107) -> 0 | I108: =SUM(I104:I107) -> 0
A109: Итого по этапу | H109: =H108+H102 -> 0 | I109: =I108+I102 -> 0
A111: ="7 этап "&'1.Резюме проекта'!$C$8+7 -> 7 этап 2034
A112: Наименование | B112: Описание | C112: Методика расчета* | D112: Цена за ед., тыс. тг., без НДС | E112: Расчетное Кол-во | F112: Остатки (ТМЗ). Приложить заключение | G112: Количество к закупке | H112: Цена, тыс. тг., без НДС | I112: Цена, $, без НДС | J112: Рекомендуемая цена | K112: Разница | L112: Cрок службы | M112: Квартал освоения | N112: Способ закупки
A113: Оборудование и Нематериальные активы (ПО, лицензии и т.д.)
I114: =(H114*1000)/$D$4 -> 0 | K114: =J114-D114 -> 0 | L114: Оборудование и лицензии (срок службы 5 лет) | M114: Год 7 2 квартал | N114: Центр
I115: =(H115*1000)/$D$4 -> 0 | K115: =J115-D115 -> 0 | L115: Оборудование и лицензии (срок службы 5 лет) | M115: Год 7 3 квартал | N115: Центр
I116: =(H116*1000)/$D$4 -> 0 | K116: =J116-D116 -> 0 | L116: Оборудование и лицензии (срок службы 5 лет) | M116: Год 7 4 квартал | N116: Центр
A117: Норматив расчета расходов ДТК на растаможивание и доставку оборудования до складов филиалов | C117: 0.3% | D117: =SUMIF(N114:N116,"Центр",H114:H116) -> 0 | H117: =D117*C117 -> 0 | I117: =(H117*1000)/$D$4 -> 0
A118: Итого по оборудованию | H118: =SUM(H114:H117) -> 0 | I118: =SUM(I114:I117) -> 0
A119: СМР
I120: =(H120*1000)/$D$4 -> 0 | K120: =J120-D120 -> 0 | L120: СМРиПР (сетей) (25 лет) | M120: Год 7 2 квартал | N120: Центр
F121: не применимо | I121: =(H121*1000)/$D$4 -> 0 | K121: =J121-D121 -> 0 | L121: СМРиПР (сетей) (25 лет) | M121: Год 7 3 квартал | N121: Центр
F122: не применимо | I122: =(H122*1000)/$D$4 -> 0 | K122: =J122-D122 -> 0 | L122: СМРиПР (сетей) (25 лет) | M122: Год 7 4 квартал | N122: Центр
A123: Норматив расчета расходов ДТК по СМР (если применимо) | C123: 0.3% | D123: =SUMIF(N120:N122,"Центр",H120:H122) -> 0 | H123: =D123*C123 -> 0 | I123: =(H123*1000)/$D$4 -> 0
A124: Итого по СМР | H124: =SUM(H120:H123) -> 0 | I124: =SUM(I120:I123) -> 0
A125: Итого по этапу | H125: =H124+H118 -> 0 | I125: =I124+I118 -> 0
A127: ="8 этап "&'1.Резюме проекта'!$C$8+8 -> 8 этап 2035
A128: Наименование | B128: Описание | C128: Методика расчета* | D128: Цена за ед., тыс. тг., без НДС | E128: Расчетное Кол-во | F128: Остатки (ТМЗ). Приложить заключение | G128: Количество к закупке | H128: Цена, тыс. тг., без НДС | I128: Цена, $, без НДС | J128: Рекомендуемая цена | K128: Разница | L128: Cрок службы | M128: Квартал освоения | N128: Способ закупки
A129: Оборудование и Нематериальные активы (ПО, лицензии и т.д.)
I130: =(H130*1000)/$D$4 -> 0 | K130: =J130-D130 -> 0 | L130: Оборудование и лицензии (срок службы 5 лет) | M130: Год 8 2 квартал | N130: Центр
I131: =(H131*1000)/$D$4 -> 0 | K131: =J131-D131 -> 0 | L131: Оборудование и лицензии (срок службы 5 лет) | M131: Год 8 3 квартал | N131: Центр
I132: =(H132*1000)/$D$4 -> 0 | K132: =J132-D132 -> 0 | L132: Оборудование и лицензии (срок службы 5 лет) | M132: Год 8 4 квартал | N132: Центр
A133: Норматив расчета расходов ДТК на растаможивание и доставку оборудования до складов филиалов | C133: 0.3% | D133: =SUMIF(N130:N132,"Центр",H130:H132) -> 0 | H133: =D133*C133 -> 0 | I133: =(H133*1000)/$D$4 -> 0
A134: Итого по оборудованию | H134: =SUM(H130:H133) -> 0 | I134: =SUM(I130:I133) -> 0
A135: СМР
I136: =(H136*1000)/$D$4 -> 0 | K136: =J136-D136 -> 0 | L136: СМРиПР (сетей) (25 лет) | M136: Год 8 2 квартал | N136: Центр
F137: не применимо | I137: =(H137*1000)/$D$4 -> 0 | K137: =J137-D137 -> 0 | L137: СМРиПР (сетей) (25 лет) | M137: Год 8 3 квартал | N137: Центр
F138: не применимо | I138: =(H138*1000)/$D$4 -> 0 | K138: =J138-D138 -> 0 | L138: СМРиПР (сетей) (25 лет) | M138: Год 8 4 квартал | N138: Центр
A139: Норматив расчета расходов ДТК по СМР (если применимо) | C139: 0.3% | D139: =SUMIF(N136:N138,"Центр",H136:H138) -> 0 | H139: =D139*C139 -> 0 | I139: =(H139*1000)/$D$4 -> 0
A140: Итого по СМР | H140: =SUM(H136:H139) -> 0 | I140: =SUM(I136:I139) -> 0
A141: Итого по этапу | H141: =H140+H134 -> 0 | I141: =I140+I134 -> 0
A143: ="9 этап "&'1.Резюме проекта'!$C$8+9 -> 9 этап 2036
A144: Наименование | B144: Описание | C144: Методика расчета* | D144: Цена за ед., тыс. тг., без НДС | E144: Расчетное Кол-во | F144: Остатки (ТМЗ). Приложить заключение | G144: Количество к закупке | H144: Цена, тыс. тг., без НДС | I144: Цена, $, без НДС | J144: Рекомендуемая цена | K144: Разница | L144: Cрок службы | M144: Квартал освоения | N144: Способ закупки
A145: Оборудование и Нематериальные активы (ПО, лицензии и т.д.)
I146: =(H146*1000)/$D$4 -> 0 | K146: =J146-D146 -> 0 | L146: Оборудование и лицензии (срок службы 5 лет) | M146: Год 9 1 квартал | N146: Центр
I147: =(H147*1000)/$D$4 -> 0 | K147: =J147-D147 -> 0 | L147: Оборудование и лицензии (срок службы 5 лет) | M147: Год 9 3 квартал | N147: Центр
I148: =(H148*1000)/$D$4 -> 0 | K148: =J148-D148 -> 0 | L148: Оборудование и лицензии (срок службы 5 лет) | M148: Год 9 4 квартал | N148: Центр
A149: Норматив расчета расходов ДТК на растаможивание и доставку оборудования до складов филиалов | C149: 0.3% | D149: =SUMIF(N146:N148,"Центр",H146:H148) -> 0 | H149: =D149*C149 -> 0 | I149: =(H149*1000)/$D$4 -> 0
A150: Итого по оборудованию | H150: =SUM(H146:H149) -> 0 | I150: =SUM(I146:I149) -> 0
A151: СМР
I152: =(H152*1000)/$D$4 -> 0 | K152: =J152-D152 -> 0 | L152: СМРиПР (сетей) (25 лет) | M152: Год 9 2 квартал | N152: Центр
F153: не применимо | I153: =(H153*1000)/$D$4 -> 0 | K153: =J153-D153 -> 0 | L153: СМРиПР (сетей) (25 лет) | M153: Год 9 3 квартал | N153: Центр
F154: не применимо | I154: =(H154*1000)/$D$4 -> 0 | K154: =J154-D154 -> 0 | L154: СМРиПР (сетей) (25 лет) | M154: Год 9 4 квартал | N154: Центр
A155: Норматив расчета расходов ДТК по СМР (если применимо) | C155: 0.3% | D155: =SUMIF(N152:N154,"Центр",H152:H154) -> 0 | H155: =D155*C155 -> 0 | I155: =(H155*1000)/$D$4 -> 0
A156: Итого по СМР | H156: =SUM(H152:H155) -> 0 | I156: =SUM(I152:I155) -> 0
A157: Итого по этапу | H157: =H156+H150 -> 0 | I157: =I156+I150 -> 0
A159: ="10 этап "&'1.Резюме проекта'!$C$8+10 -> 10 этап 2037
A160: Наименование | B160: Описание | C160: Методика расчета* | D160: Цена за ед., тыс. тг., без НДС | E160: Расчетное Кол-во | F160: Остатки (ТМЗ). Приложить заключение | G160: Количество к закупке | H160: Цена, тыс. тг., без НДС | I160: Цена, $, без НДС | J160: Рекомендуемая цена | K160: Разница | L160: Cрок службы | M160: Квартал освоения | N160: Способ закупки
A161: Оборудование и Нематериальные активы (ПО, лицензии и т.д.)
I162: =(H162*1000)/$D$4 -> 0 | K162: =J162-D162 -> 0 | L162: Оборудование и лицензии (срок службы 5 лет) | M162: Год 10 2 квартал | N162: Центр
I163: =(H163*1000)/$D$4 -> 0 | K163: =J163-D163 -> 0 | L163: Оборудование и лицензии (срок службы 5 лет) | M163: Год 10 3 квартал | N163: Центр
I164: =(H164*1000)/$D$4 -> 0 | K164: =J164-D164 -> 0 | L164: Оборудование и лицензии (срок службы 5 лет) | M164: Год 10 4 квартал | N164: Центр
C165: 0.3% | D165: =SUMIF(N162:N164,"Центр",H162:H164) -> 0 | H165: =D165*C165 -> 0 | I165: =(H165*1000)/$D$4 -> 0
A166: Итого по оборудованию | H166: =SUM(H162:H165) -> 0 | I166: =SUM(I162:I165) -> 0
A167: СМР
I168: =(H168*1000)/$D$4 -> 0 | K168: =J168-D168 -> 0 | L168: СМРиПР (сетей) (25 лет) | M168: Год 10 2 квартал | N168: Центр
F169: не применимо | I169: =(H169*1000)/$D$4 -> 0 | K169: =J169-D169 -> 0 | L169: СМРиПР (сетей) (25 лет) | M169: Год 10 3 квартал | N169: Центр
F170: не применимо | I170: =(H170*1000)/$D$4 -> 0 | K170: =J170-D170 -> 0 | L170: СМРиПР (сетей) (25 лет) | M170: Год 10 4 квартал | N170: Центр
A171: Норматив расчета расходов ДТК по СМР (если применимо) | C171: 0.3% | D171: =SUMIF(N168:N170,"Центр",H168:H170) -> 0 | H171: =D171*C171 -> 0 | I171: =(H171*1000)/$D$4 -> 0
A172: Итого по СМР | H172: =SUM(H168:H171) -> 0 | I172: =SUM(I168:I171) -> 0
A173: Итого по этапу | H173: =H172+H166 -> 0 | I173: =I172+I166 -> 0
A175: Свод инвестиций
A176: Этапы | D176: Оборудование, в тыс. тенге, без НДС | E176: СМР, в тыс. тенге, без НДС | H176: Полная стоимость проекта, в тыс. тенге, без НДС
A177: =A9 -> 1 этап 2027 | D177: =H18 -> 315,796.61 | E177: =H25 -> 287,545.76 | H177: =SUM(D177:E177) -> 603,342.37
A178: =A28 -> 2 этап 2028 | D178: =IFERROR(H35,0) -> 196,727.74 | E178: =IFERROR(H42,0) -> 0 | H178: =SUM(D178:E178) -> 196,727.74
A179: =A45 -> 3 этап 2030 | D179: =IFERROR(H53,0) -> 0 | E179: =IFERROR(H60,0) -> 0 | H179: 0
A180: =A63 -> 4 этап 2031 | D180: =IFERROR(H70,0) -> 0 | E180: =H76 -> 0 | H180: 0
A181: =A79 -> 5 этап 2032 | D181: =H86 -> 0 | E181: =H92 -> 0 | H181: 0
A182: =A95 -> 6 этап 2033 | D182: =H102 -> 0 | E182: =H108 -> 0 | H182: 0
A183: =A111 -> 7 этап 2034 | D183: =H118 -> 0 | E183: =H124 -> 0 | H183: 0
A184: =A127 -> 8 этап 2035 | D184: =H134 -> 0 | E184: =H140 -> 0 | H184: 0
A185: =A143 -> 9 этап 2036 | D185: =D150 -> 0 | E185: =D156 -> 0 | H185: 0
A186: =A159 -> 10 этап 2037 | D186: =D166 -> 0 | E186: =D172 -> 0 | H186: 0
A187: Итого | D187: =SUM(D177:D186) -> 512,524.35 | E187: =SUM(E177:E186) -> 287,545.76 | H187: =SUM(H177:H186) -> 800,070.11
A190: * показывать расчеты с указанием ссылок на соответствующие ячейки. Например, как получилась кол-во 19 шт абонентских плат = (9 585 абонентов / (16 портов * 32 абонента на 1 порт)). Касательно кол-ва абонентов от общего кол-ва квартир указать какой применяется подход и почему. Например, 70% от общего кол-ва квартир - 9 585 чел. (13 693 квартир * 70% с соответствующими пояснениями). Исходя из имеющегося опыта и информации, получаемой в рамках мониторинга проектов какова, фактическая доля подключенных абонентов от общего кол-ва квартир. Кроме того, необходимо учитывать текущую ситуацию (включая эпидемиологическую) в стране и актуальные курсы валют, доведенные АО «Самрук-Казына».

Sheet 2.3.1 КОФ
A1: АО "Казахтелеком" | K1: Приложение к Приказу АО "Казахтелеком"
K2: от "___"_________2024 года №_____
A4: Классификатор основных фондов АО "Казахтелеком"
A6: Финансовая группа | B6: Срок службы | C6: Налоговая группа | D6: Нормы амортизации (%) | E6: Раздел | F6: Подраздел | G6: Группа | H6: Класс | I6: Вид | J6: Подвид | K6: Наименование | L6: Ссылки на соответствующие коды классификаторов
L7: КС | M7: КПВЭД
E8: 100.000000 | K8: Материальные основные фонды (основные средства)
F9: 110.000000 | K9: Земля
G10: 111.000000 | K10: Земли сельскохозяйственного назначения
G11: 112.000000 | K11: Земли лесного фонда
G12: 113.000000 | K12: Застроенная земля и связанные с этим виды земли
G13: 114.000000 | K13: Земля для целей отдыха
G14: 115.000000 | K14: Прочая земля
F15: 120.000000 | K15: Здания | L15: 1
G16: 121.000000 | K16: Жилые здания | L16: 11 | M16: 41.00.10
A17: 0101 | B17: 50 | C17: I | D17: 10 | H17: 121.100000 | K17: Индивидуальные дома (одноквартирные дома) | L17: 111
H18: 121.400000 | K18: Иные жилые здания и другие строения, пригодные для проживания
A19: 0101 | B19: 50 | C19: I | D19: 10 | J19: 121.400000.01 | K19: Монтерский дом
A20: 0101 | B20: 50 | C20: I | D20: 10 | J20: 121.400000.02 | K20: Служебные квартиры
G21: 122.000000 | K21: Нежилые здания | L21: 12 | M21: 41.00.20
H22: 122.100000 | K22: Промышленные здания и склады | L22: 125
A23: 0101 | B23: 50 | C23: I | D23: 10 | H23: 122.110000 | K23: Промышленные здания | L23: 1251
H24: 122.120000 | K24: Резервуары, силосы и склады | L24: 1252
A25: 0101 | B25: 20 | C25: I | D25: 10 | H25: 122.125000 | K25: Резервуары, цистерны и аналогичные емкости из черных металлов или алюминия
H26: 122.700000 | K26: Офисные здания | L26: 122
A27: 0101 | B27: 50 | C27: I | D27: 10 | H27: 122.710000 | K27: Здания административные универсальные
H28: 122.800000 | K28: Здания транспорта, связи и коммуникаций | L28: 124
A29: 0101 | B29: 50 | C29: I | D29: 10 | J29: 122.800000.01 | K29: Здание переговорного пункта
A30: 0101 | B30: 50 | C30: I | D30: 10 | J30: 122.800000.02 | K30: Сервис-бюро
A31: 0101 | B31: 50 | C31: I | D31: 10 | J31: 122.800000.03 | K31: Административные здания
A32: 0101 | B32: 50 | C32: I | D32: 10 | J32: 122.800000.04 | K32: Прочие здания
H33: 122.810000 | K33: Здания коммуникаций, станции, терминалы и вспомогательные строения | L33: 1241
A34: 0101 | B34: 50 | C34: I | D34: 10 | J34: 122.810000.01 | K34: Здание дизельной
A35: 0101 | B35: 50 | C35: I | D35: 10 | J35: 122.810000.02 | K35: Здание котельной
A36: 0101 | B36: 50 | C36: I | D36: 10 | J36: 122.810000.03 | K36: Здание мастерской
A37: 0101 | B37: 50 | C37: I | D37: 10 | H37: 122.812000 | K37: Радиовещательные станции
A38: 0101 | B38: 50 | C38: I | D38: 10 | H38: 122.813000 | K38: Спутниковые наземные станции
H39: 122.814000 | K39: Здания АТС
A40: 0101 | B40: 50 | C40: I | D40: 10 | J40: 122.814000.01 | K40: Здания АТС
A41: 0101 | B41: 20 | C41: I | D41: 10 | J41: 122.814000.02 | K41: Контейнер под АТС
A42: 0101 | B42: 20 | C42: I | D42: 10 | J42: 122.814000.03 | K42: Контейнер под телекоммуникационное оборудование
A43: 0101 | B43: 20 | C43: I | D43: 10 | J43: 122.814000.04 | K43: Контейнер под ДГА
H44: 122.820000 | K44: Гаражные здания | L44: 1242
A45: 0101 | B45: 50 | C45: I | D45: 10 | H45: 122.821000 | K45: Гаражи для автомобилей
A46: 0101 | B46: 50 | C46: I | D46: 10 | H46: 122.822000 | K46: Автостоянки
A47: 0101 | B47: 20 | C47: I | D47: 10 | H47: 122.823000 | K47: Гаражи металлические
H48: 122.900000 | K48: Прочие нежилые здания
H49: 122.940000 | K49: Другие здания, не классифицированные где-либо | L49: 1274
A50: 0101 | B50: 50 | C50: I | D50: 10 | J50: 122.940000.01 | K50: Проходная
A51: 0101 | B51: 50 | C51: I | D51: 10 | J51: 122.940000.02 | K51: Навес
A52: 0101 | B52: 50 | C52: I | D52: 10 | J52: 122.940000.03 | K52: Туалет
A53: 0101 | B53: 50 | C53: I | D53: 10 | J53: 122.940000.04 | K53: Пристройка
A54: 0101 | B54: 50 | C54: I | D54: 10 | J54: 122.940000.05 | K54: Бомбоубежище
A55: 0101 | B55: 50 | C55: I | D55: 10 | J55: 122.940000.06 | K55: Склады
F56: 130.000000 | K56: Сооружения
G57: 131.000000 | K57: Передаточные устройства
H58: 131.100000 | K58: Магистральные трубопроводы, линии связи и энергетические (кабельные) линии | M58: 42.2
A59: 0301 | B59: 25 | C59: IV | D59: 15 | H59: 131.130000 | K59: Магистральные линии связи (телевидение, радио, телеграф, телефон и прочие линии)
A60: 0301 | B60: 25 | C60: IV | D60: 15 | H60: 131.140000 | K60: Энергетические (кабельные) линии большой протяженностью
H61: 131.200000 | K61: Местные трубопроводы и кабели; вспомогательные сооружения | L61: 2212
A62: 0302 | B62: 20 | C62: IV | D62: 15 | H62: 131.210000 | K62: Местные линии газоснабжения | L62: 2221
A63: 0302 | B63: 20 | C63: IV | D63: 15 | H63: 131.220000 | K63: Местные трубопроводы для водоснабжения | L63: 2222
A64: 0303 | B64: 25 | C64: IV | D64: 15 | H64: 131.230000 | K64: Канализационные сети | L64: 2223
H65: 131.240000 | K65: Линии электропередач и связи | L65: 2224
A66: 0301 | B66: 25 | C66: IV | D66: 15 | J66: 131.240000.01 | K66: Устройства и линии связи
A67: 0301 | B67: 25 | C67: IV | D67: 15 | J67: 131.240000.02 | K67: Кабельные линии радиофикации
A68: 0301 | B68: 25 | C68: IV | D68: 15 | J68: 131.240000.03 | K68: Оптико-волоконные линии связи, прочее САБД
A69: 0301 | B69: 25 | C69: IV | D69: 15 | J69: 131.240000.04 | K69: Оптико-волоконные линии связи, прочее - местных МСС
A70: 0301 | B70: 25 | C70: IV | D70: 15 | J70: 131.240000.05 | K70: Оптико-волоконные линии связи, прочее - ВЗ
A71: 0301 | B71: 25 | C71: IV | D71: 15 | J71: 131.240000.06 | K71: Оптико-волоконные линии связи, прочее - МГ
A72: 0301 | B72: 25 | C72: IV | D72: 15 | J72: 131.240000.07 | K72: Оптико-волоконные линии связи, прочее - МН
A73: 0301 | B73: 25 | C73: IV | D73: 15 | J73: 131.240000.08 | K73: Воздушные линии связи - САБД
A74: 0301 | B74: 25 | C74: IV | D74: 15 | J74: 131.240000.09 | K74: Воздушные линии связи - местная МСС
A75: 0301 | B75: 25 | C75: IV | D75: 15 | J75: 131.240000.10 | K75: Воздушные линии связи - ВЗ
A76: 0301 | B76: 25 | C76: IV | D76: 15 | J76: 131.240000.11 | K76: Медные кабельные линии связи - САБД
A77: 0301 | B77: 25 | C77: IV | D77: 15 | J77: 131.240000.12 | K77: Медные кабельные линии связи - местная МСС
A78: 0301 | B78: 25 | C78: IV | D78: 15 | J78: 131.240000.13 | K78: Медные кабельные линии связи - ВЗ
A79: 0301 | B79: 25 | C79: IV | D79: 15 | J79: 131.240000.14 | K79: Воздушные линии электропередач напряжением выше 1кВ
A80: 0301 | B80: 25 | C80: IV | D80: 15 | J80: 131.240000.15 | K80: Воздушные линии электропередач напряжением выше 0.4кВ
A81: 0301 | B81: 25 | C81: IV | D81: 15 | J81: 131.240000.16 | K81: Кабельные линии электропередач напряжением выше 1кВ
A82: 0301 | B82: 25 | C82: IV | D82: 15 | J82: 131.240000.17 | K82: Кабельные линии электропередач напряжением выше 0.4 кВ
A83: 0301 | B83: 25 | C83: IV | D83: 15 | J83: 131.240000.18 | K83: Оптико-волоконные линии связи, абонентский участок оптической сети GPON
G84: 132.000000 | K84: Другие объекты гражданского строительства
H85: 132.420000 | K85: Сооружения энергетических установок, электростанций
A86: 0216 | B86: 20 | C86: I | D86: 10 | J86: 132.420013 | K86: Ветровые электростанции
A87: 0216 | B87: 20 | C87: I | D87: 10 | J87: 132.420014 | K87: Солнечные электростанции
H88: 132.440000 | K88: Прочие производственные сооружения
A89: 0216 | B89: 20 | C89: I | D89: 10 | J89: 132.440000.01 | K89: Благоустройство
A90: 0216 | B90: 20 | C90: I | D90: 10 | J90: 132.440000.02 | K90: Ограждение
A91: 0216 | B91: 20 | C91: I | D91: 10 | J91: 132.440000.03 | K91: Эстакада
A92: 0216 | B92: 20 | C92: I | D92: 10 | J92: 132.440000.04 | K92: Башня
A93: 0216 | B93: 20 | C93: I | D93: 10 | J93: 132.440000.05 | K93: Мачта
A94: 0216 | B94: 20 | C94: I | D94: 10 | J94: 132.440000.06 | K94: Радиобашни, радиомачты и мачты РРЛ
A95: 0216 | B95: 10 | C95: I | D95: 10 | J95: 132.440000.07 | K95: Будки охраны и шлагбаумы регулируемые
A96: 0216 | B96: 20 | C96: I | D96: 10 | J96: 132.440000.08 | K96: Телефонная канализация
H97: 132.500000 | K97: Сооружения спортивные и мест отдыха | L97: 241 | M97: 42.99.12
A98: 0216 | B98: 20 | C98: I | D98: 10 | H98: 132.510000 | K98: Спортивные площадки | L98: 2411
A99: 0216 | B99: 20 | C99: I | D99: 10 | H99: 132.520000 | K99: Прочие сооружения для спорта и отдыха | L99: 2412
H100: 132.600000 | K100: Сооружения по охране окружающей среды
A101: 0216 | B101: 20 | C101: I | D101: 10 | H101: 132.610000 | K101: Сооружения, установки и другое оборудование, предназначенные для охраны окружающей среды
A102: 0216 | B102: 20 | C102: I | D102: 10 | H102: 132.627000 | K102: Дымососы (вентиляторы), дымовые трубы, системы вентиляции и кондиционирования, газопылеулавливающий аппарат
A103: 0216 | B103: 20 | C103: I | D103: 10 | H103: 132.700000 | K103: Прочие объекты гражданского строительства | L103: 242 | M103: 42.99.19
F104: 140.000000 | K104: Машины и оборудование
G105: 141.000000 | K105: Транспортные средства и оборудование
H106: 141.290000 | K106: Автомобили, прицепы и полуприцепы | M106: 29
H107: 141.291000 | K107: Автомобили | M107: 29.10
H108: 141.291020 | K108: Автомобили легковые пассажирские | M108: 29.10.2
A109: 0704 | B109: 7 | C109: II | D109: 25 | I109: 141.291021 | K109: Автомобили новые с двигателями внутреннего сгорания с искровым зажиганием (карбюраторными), с объемом цилиндра не более 1500 куб. см | M109: 29.10.21
A110: 0704 | B110: 7 | C110: II | D110: 25 | I110: 141.291022 | K110: Автомобили легковые новые с карбюраторным двигателем внутреннего сгорания, с объемом цилиндра свыше 1500 куб. см. | M110: 29.10.22
A111: 0704 | B111: 7 | C111: II | D111: 25 | I111: 141.291023 | K111: Автомобили легковые новые с дизельными или полудизельными двигателями внутреннего сгорания | M111: 29.10.23
A112: 0704 | B112: 7 | C112: II | D112: 25 | I112: 141.291024 | K112: Автомобили легковые специальные | M112: 29.10.24
A113: 0704 | B113: 7 | C113: II | D113: 25 | I113: 141.291025 | K113: Автомобили легковые новые с инжекторным двигателем внутреннего сгорания, с объемом цилиндра свыше 1500 куб.см". | M113: 29.10.25
A114: 0704 | B114: 7 | C114: II | D114: 25 | I114: 141.291026 | K114: Автомобили легковые новые с инжекторным двигателем внутреннего сгорания, с объемом цилиндра не более 1500 куб.см". | M114: 29.10.26
A115: 0703 | B115: 10 | C115: II | D115: 25 | H115: 141.291030 | K115: Автомобили для перевозки десяти или более человек | M115: 29.10.30
H116: 141.291040 | K116: Автомобили грузовые | M116: 29.10.40
A117: 0703 | B117: 10 | C117: II | D117: 25 | I117: 141.291041 | K117: Автомобили грузовые новые с дизельными или полудизельными двигателями внутреннего сгорания | M117: 29.10.41
A118: 0703 | B118: 10 | C118: II | D118: 25 | I118: 141.291042 | K118: Автомобили грузовые новые с карбюраторными двигателями внутреннего сгорания | M118: 29.10.42
A119: 0703 | B119: 10 | C119: II | D119: 25 | I119: 141.291043 | K119: Тягачи дорожные | M119: 29.10.43
A120: 0703 | B120: 10 | C120: II | D120: 25 | I120: 141.291044 | K120: Шасси с двигателями для автотранспортных средств | M120: 29.10.44
A121: 0703 | B121: 10 | C121: II | D121: 25 | I121: 141.291045 | K121: Автомобили грузовые новые с инжекторным двигателем внутреннего сгорания | M121: 29.10.45
H122: 141.291050 | K122: Автомобили специальные и специализированные | M122: 29.10.5
A123: 0703 | B123: 10 | C123: II | D123: 25 | I123: 141.291051 | K123: Автокраны | M123: 29.10.51
A124: 0703 | B124: 10 | C124: II | D124: 25 | I124: 141.291052 | K124: Автомобили специальные (снегоходы; автомобили для перевозки игроков в гольф - гольфокарты и аналогичные, оснащенные двигателями) | M124: 29.10.52
A125: 0703 | B125: 10 | C125: II | D125: 25 | I125: 141.291059 | K125: Автомобили специализированные (пожарные, санитарные, аварийно-технические и прочие) | M125: 29.10.59
H126: 141.292000 | K126: Кузова автомобильные; прицепы и полуприцепы | M126: 29.20
A127: 0708 | B127: 5 | C127: II | D127: 25 | I127: 141.292010 | K127: Кузова автомобильные | M127: 29.20.10
H128: 141.292020 | K128: Прицепы и полуприцепы; контейнеры | M128: 29.20.20
A129: 0708 | B129: 5 | C129: II | D129: 25 | I129: 141.292021 | K129: Контейнеры, специально предназначенные для перевозки грузов одним или несколькими видами транспорта | M129: 29.20.21
A130: 0708 | B130: 5 | C130: II | D130: 25 | I130: 141.292022 | K130: Прицепы и полуприцепы для жилья или туризма | M130: 29.20.22
A131: 0708 | B131: 5 | C131: II | D131: 25 | I131: 141.292023 | K131: Прицепы и полуприцепы автомобильные | M131: 29.20.23
H132: 141.300000 | K132: Оборудование транспортное прочее | M132: 30
H133: 141.309000 | K133: Оборудование транспортное, не включенное в другие группировки | M133: 30.9
H134: 141.309100 | K134: Мотоциклы | M134: 30.91
H135: 141.309110 | K135: Мотоциклы и коляски мотоциклетные | M135: 30.91.10
A136: 0708 | B136: 5 | C136: II | D136: 25 | I136: 141.309111 | K136: Мотоциклы и мопеды с поршневым двигателем внутреннего сгорания с объемом цилиндра не более 50 куб. см | M136: 30.91.11
A137: 0708 | B137: 5 | C137: II | D137: 25 | I137: 141.309112 | K137: Мотоциклы с поршневым двигателем внутреннего сгорания с объемом цилиндров свыше 50 куб. см | M137: 30.91.12
A138: 0708 | B138: 5 | C138: II | D138: 25 | I138: 141.309113 | K138: Мотоциклы прочие, коляски мотоциклетные | M138: 30.91.13
H139: 141.309200 | K139: Велосипеды и коляски инвалидные | M139: 30.92
A140: 0708 | B140: 3 | C140: II | D140: 25 | I140: 141.309210 | K140: Велосипеды без двигателей прочие | M140: 30.92.10
A141: 0708 | B141: 3 | C141: II | D141: 25 | I141: 141.309220 | K141: Коляски инвалидные, исключая их части и принадлежности | M141: 30.92.20
A142: 0708 | B142: 3 | C142: II | D142: 25 | I142: 141.309230 | K142: Части и принадлежности велосипедов без двигателей, и инвалидных колясок | M142: 30.92.30
A143: 0708 | B143: 3 | C143: II | D143: 25 | I143: 141.309910 | K143: Оборудование транспортное прочее, не включенное в другие группировки | M143: 30.99.10
G144: 142.000000 | K144: Прочие машины и оборудование
H145: 142.281200 | K145: Оборудование гидравлическое силовое | M145: 28.12
H146: 142.281210 | K146: Оборудование гидравлическое силовое, кроме частей | M146: 28.12.1
A147: 0611 | B147: 10 | C147: II | D147: 25 | I147: 142.281211 | K147: Двигатели и установки силовые гидравлические и пневматические линейного действия (цилиндры) | M147: 28.12.11
A148: 0611 | B148: 10 | C148: II | D148: 25 | I148: 142.281212 | K148: Двигатели гидравлические и пневматические вращающиеся | M148: 28.12.12
H149: 142.281310 | K149: Насосы для перекачки жидкостей; подъемники жидкостей | M149: 28.13.1
A150: 0611 | B150: 10 | C150: II | D150: 25 | I150: 142.281311 | K150: Насосы для перекачки жидкостей | M150: 28.13.11
A151: 0611 | B151: 10 | C151: II | D151: 25 | I151: 142.281312 | K151: Насосы поршневые объемные возвратно-поступательные для перекачки жидкостей, кроме бетона | M151: 28.13.12
A152: 0611 | B152: 10 | C152: II | D152: 25 | I152: 142.281313 | K152: Насосы ротационные объемные для перекачки жидкостей | M152: 28.13.13
A153: 0611 | B153: 10 | C153: II | D153: 25 | I153: 142.281314 | K153: Насосы центробежные для перекачки жидкостей; насосы прочие | M153: 28.13.14
H154: 142.281320 | K154: Насосы воздушные или вакуумные; компрессоры воздушные или газовые прочие | M154: 28.13.2
A155: 0611 | B155: 10 | C155: II | D155: 25 | I155: 142.281321 | K155: Насосы вакуумные | M155: 28.13.21
A156: 0611 | B156: 3 | C156: II | D156: 25 | I156: 142.281322 | K156: Насосы воздушные ручные или ножные | M156: 28.13.22
A157: 0603 | B157: 7 | C157: II | D157: 25 | I157: 142.281323 | K157: Компрессоры для холодильного оборудования | M157: 28.13.23
A158: 0603 | B158: 7 | C158: II | D158: 25 | I158: 142.281324 | K158: Компрессоры воздушные, установленные на колесных шасси для буксировки, производительностью более 2 куб.м/мин | M158: 28.13.24
A159: 0603 | B159: 7 | C159: II | D159: 25 | I159: 142.281325 | K159: Турбокомпрессоры | M159: 28.13.25
A160: 0603 | B160: 7 | C160: II | D160: 25 | I160: 142.281326 | K160: Компрессоры поршневые | M160: 28.13.26
A161: 0603 | B161: 7 | C161: II | D161: 25 | I161: 142.281327 | K161: Компрессоры центробежные объемные одновальные или многовальные | M161: 28.13.27
I162: 142.281328 | K162: Компрессоры прочие | M162: 28.13.28
A163: 0603 | B163: 7 | C163: II | D163: 25 | J163: 142.281328.01 | K163: Устр. для содерж. каб. под избыт. давл. КСУ_дегидраторы
H164: 142.282000 | K164: Оборудование общего назначения прочее | M164: 28.2
H165: 142.282100 | K165: Печи и горелки печные | M165: 28.21
A166: 0401 | B166: 10 | C166: II | D166: 25 | I166: 142.282111 | K166: Горелки печные; топки механические и решетки колосниковые; устройства механические для удаления золы и устройства аналогичные | M166: 28.21.11
A167: 0401 | B167: 10 | C167: II | D167: 25 | I167: 142.282112 | K167: Печи и камеры промышленные или лабораторные, включая печи для сжигания отходов неэлектрические (кроме печей хлебопекарных) | M167: 28.21.12
A168: 0401 | B168: 10 | C168: II | D168: 25 | I168: 142.282113 | K168: Печи и камеры промышленные или лабораторные электрические; оборудование нагревательное индукционное или диэлектрическое | M168: 28.21.13
H169: 142.282200 | K169: Оборудование подъемно-транспортное | M169: 28.22.1
A170: 0606 | B170: 10 | C170: II | D170: 25 | I170: 142.282211 | K170: Тали и подъемники, не включенные в другие группировки | M170: 28.22.11
A171: 0606 | B171: 10 | C171: II | D171: 25 | I171: 142.282212 | K171: Лебедки установок шахтных подъемных надшахтного размещения; лебедки специальные для работы под землей; лебедки прочие и кабестаны | M171: 28.22.12
A172: 0606 | B172: 10 | C172: II | D172: 25 | I172: 142.282213 | K172: Домкраты; механизмы для поднятия транспортных средств | M172: 28.22.13
A173: 0606 | B173: 10 | C173: II | D173: 25 | I173: 142.282214 | K173: Деррик-краны; краны подъемные; фермы подъемные подвижные, транспортеры стоечные и автомобили-мастерские с краном подъемным | M173: 28.22.14
A174: 0606 | B174: 10 | C174: II | D174: 25 | I174: 142.282215 | K174: Автопогрузчики с вилочными захватами, погрузчики прочие; тракторы для использования на перронах железнодорожных станций | M174: 28.22.15
A175: 0606 | B175: 10 | C175: II | D175: 25 | I175: 142.282216 | K175: Лифты, подъемники скиповые, эскалаторы и дорожки пешеходные движущиеся | M175: 28.22.16
A176: 0606 | B176: 10 | C176: II | D176: 25 | I176: 142.282217 | K176: Подъемники пневматические и прочие и конвейеры непрерывного действия для товаров или материалов | M176: 28.22.17
A177: 0606 | B177: 10 | C177: II | D177: 25 | I177: 142.282218 | K177: Оборудование подъемно-транспортное, погрузочное или разгрузочное прочее | M177: 28.22.18
H178: 142.282300 | K178: Оборудование и техника офисные (кроме компьютеров и периферийного оборудования) | M178: 28.23
H179: 142.282310 | K179: Машины пишущие, машины для обработки текста, машины вычислительные | M179: 28.23.1
A180: 0611 | B180: 3 | C180: II | D180: 25 | I180: 142.282311 | K180: Машины пишущие и машины для обработки текста | M180: 28.23.11
A181: 0611 | B181: 3 | C181: II | D181: 25 | I181: 142.282312 | K181: Карманные машины записи, воспроизведения и визуального представления данных с функциями калькулятора | M181: 28.23.12
A182: 0611 | B182: 3 | C182: II | D182: 25 | I182: 142.282313 | K182: Машины бухгалтерские, аппараты кассовые, аппараты для франкирования отправлений почтовых, машины билетные и машины аналогичные с устройствами счетными прочие | M182: 28.23.13
H183: 142.282320 | K183: Оборудование офисное и его части | M183: 28.23.2
I184: 142.282321 | K184: Машины фотокопировальные с системой оптической или типа контактного и аппараты термокопировальные | M184: 28.23.21
A185: 0905 | B185: 5 | C185: II | D185: 25 | J185: 142.282321.01 | K185: Сканеры
A186: 0905 | B186: 5 | C186: II | D186: 25 | J186: 142.282321.02 | K186: Копировальные машины
A187: 0611 | B187: 3 | C187: II | D187: 25 | I187: 142.282322 | K187: Машины для печати офсетной листовые офисные | M187: 28.23.22
A188: 0611 | B188: 3 | C188: II | D188: 25 | I188: 142.282323 | K188: Оборудование офисное прочее | M188: 28.23.23
H189: 142.282400 | K189: Инструменты ручные электромеханические и пневматические | M189: 28.24
A190: 0611 | B190: 3 | C190: II | D190: 25 | I190: 142.282411 | K190: Инструменты электромеханические ручные со встроенным электродвигателем | M190: 28.24.11
A191: 0611 | B191: 3 | C191: II | D191: 25 | I191: 142.282412 | K191: Инструменты ручные пневматические с двигателем встроенным неэлектрическим прочие | M191: 28.24.12
H192: 142.282500 | K192: Оборудование холодильное и вентиляционное промышленное | M192: 28.25
H193: 142.282510 | K193: Устройства теплообменные; оборудование холодильное и оборудование для кондиционирования воздуха | M193: 28.25.1
A194: 0401 | B194: 10 | C194: II | D194: 25 | I194: 142.282511 | K194: Устройства теплообменные и машины для сжижения воздуха или газов прочих | M194: 28.25.11
I195: 142.282512 | K195: Оборудование для кондиционирования воздуха | M195: 28.25.12
A196: 0401 | B196: 10 | C196: II | D196: 25 | J196: 142.282512.01 | K196: Климатехника технологическая
A197: 0401 | B197: 5 | C197: II | D197: 25 | J197: 142.282512.02 | K197: Бытовые климатехнические устройства (кондиционеры)
A198: 0401 | B198: 10 | C198: II | D198: 25 | I198: 142.282513 | K198: Оборудование холодильное и морозильное и насосы тепловые (кроме оборудования бытового) | M198: 28.25.13
A199: 0401 | B199: 10 | C199: II | D199: 25 | I199: 142.282514 | K199: Оборудование и аппараты для фильтрования или очистки газов, не включенные в другие группировки | M199: 28.25.14
A200: 0401 | B200: 10 | C200: II | D200: 25 | I200: 142.282520 | K200: Вентиляторы, кроме настольных, напольных, настенных, оконных, потолочных или кровельных | M200: 28.25.20
H201: 142.282900 | K201: Оборудование общего назначения прочее, не включенное в другие группировки | M201: 28.29
A202: 0611 | B202: 5 | C202: II | D202: 25 | J202: 142.282900.01 | K202: Системы пожарно-охранной сигнализации (системы автоматической газово-пожарной сигнализации, тревожно-охранной сигнализации, технической защиты)
... 437 more rows

Sheet 2.3.2.1 Маркет цена
D1: в тенге без НДС | L1: в тенге без НДС | S1: в тенге без НДС | Z1: в тенге без НДС
B2: № | C2: Наименование | D2: Средняя маркетинговая цена | H2: Поставщик 1 | O2: Поставщик 2 | V2: Поставщик 3
D3: Цена за единицу | E3: Требуемое кол-во | F3: Общая цена | H3: Наименование | I3: №, дата КП (комм. пред-е) | J3: Кол-во | K3: Цена за ед. без НДС | L3: Общая цена | M3: Файл в виде значка* | O3: Наименование | P3: №, дата КП (комм. пред-е) | Q3: Кол-во | R3: Цена за ед. без НДС | S3: Общая цена | T3: Файл в виде значка* | V3: Наименование | W3: №, дата КП (комм. пред-е) | X3: Кол-во | Y3: Цена за ед. без НДС | Z3: Общая цена | AA3: Файл в виде значка*
B4: 1 | C4: Клиентские маршрутизаторы | D4: =(K4+R4+Y4)/3 -> 0 | F4: =D4*E4 -> 0 | L4: =J4*K4 -> 0 | S4: =Q4*R4 -> 0 | Z4: =X4*Y4 -> 0
B5: 2 | C5: Коммутаторы доступа (клиентские) | D5: =(K5+R5+Y5)/3 -> 0 | F5: =D5*E5 -> 0 | L5: =J5*K5 -> 0 | S5: =Q5*R5 -> 0 | Z5: =X5*Y5 -> 0
B6: 3 | C6: Медиаконверторы | D6: =(K6+R6+Y6)/3 -> 0 | F6: =D6*E6 -> 0 | L6: =J6*K6 -> 0 | S6: =Q6*R6 -> 0 | Z6: =X6*Y6 -> 0
B7: 4 | C7: Модуль GE SFP, шт. | D7: =(K7+R7+Y7)/3 -> 0 | F7: =D7*E7 -> 0 | L7: =J7*K7 -> 0 | S7: =Q7*R7 -> 0 | Z7: =X7*Y7 -> 0
B13: * Пошаговая инструкция: - Кликните мышкой по нужной ячейке, куда хотите поместить файл. - Перейдите на вкладку «Вставка» на верхней панели управления. - В правой части панели найдите блок «Текст» и нажмите кнопку «Объект». - В открывшемся окне перейдите на вкладку создание «Из файла». - Нажмите кнопку «Обзор...» и выберите нужный файл на компьютере и нажмите "Вставить". - Установите галочку «В виде значка», чтобы документ отображался компактной иконкой поверх ячейки, а не занимал всю область. - Нажмите «OK».

Sheet 2.3.2.2 Оборудование
A2: Тип технологического оборудования | B2: Наименование оборудования | C2: ед. изм. | D2: Технические характеристики | E2: Рекомендованная стоимость в тенге без НДС, тенге | F2: Примечание
A3: FTTH
A4: Расширение станционного оборудования GPON (Huawei Technologies, Calix, Nokia)
A5: GPON | B5: Оптический мультиплексор OLT без стойки | C5: шт. | D5: Шасси OLT однополочный | E5: 4,268,000
B6: плата контроля (включая ПО и лицензии на PON порты, на 1/10 порты)) | C6: шт. | E6: 4,382,340
B7: Карта сетевых интерфейсов 2*10GE/4*10GE | C7: шт. | E7: 3,759,866
B8: Плата на 16 портов GPON (включает ПО и все необходимые лицензии) | C8: шт. | D8: абонентская плата | E8: 8,850,000
B9: Модуль SFP GPON Class С+ | C9: шт. | E9: 192,000
B10: Модуль SFP GPON Class B+ | C10: шт. | E10: 102,000 | F10: Для подключения OLT к PON (нисходящий интерфейс)
B11: Модуль 10 GE XFP XFP модуль 10GE (10км) | C11: шт. | E11: 482,939 | F11: для подключения OLT к оборудованию BNG (up-link)
B12: Модуль 10 GE XFP XFP модуль 10GE (40-80 км) | C12: шт. | E12: 1,012,187
B13: Модуль 1GE SFP, 10Km | C13: шт. | E13: 201,465
A14: Абонентское оборудование XGS PON (для гг. Алматы, Астана,, Костанай, Петропавловск, Карагандинский ДЭСД)
A15: GPON | B15: Мультисервисная платформа абонентского доступа | D15: для установки 2 плат | E15: 1,052,700.00
B16: Плата управления и агрегирования | E16: 7,741,580.00
B17: Сервисная карта Multi-PON (RTU) | D17: абонентская плата | E17: 16,650,000.00
B18: Соединительный кабель CDFP 4 x 100GE QSFP28 | E18: 453,750.00
B19: Модуль GPON SFP OIM, Class B+, 20Km | E19: 181,500.00
B20: Модуль 10GE SFP+ | E20: 826,684.10
B21: Модуль 1GE SFP, 10Km | E21: 201,465.00
A23: GPON ONT | B23: ONT (4*GE +FXS+WiF 802.11 b/g/n/ac; 2,4/5 ГГЦ, двухдиапазонные). Производители Nokia, Calix. Huawei Technologies | C23: шт. | D23: Оптический Сетевой Терминал для домашних клиентов с 4*GE +FXS+WiFi включая лицензии (RTU per subcriber) | E23: 37,960 | F23: данные ONT включают все вида лицензий Triple Play, также стандарт WiFI b/g/n/ac
A24: разное
A25: Дополнительное оборудование | B25: Стойка телекоммуникационная для установки шасси OLT | D25: размер 800*800 (42/47U) | E25: 800,000
B26: патч-корд между OLT и ODF | E26: 8,620 | F26: Длины определяются при обследовании площадок
B27: ODF | D27: оптический кросс на 1344 порта | E27: 12,000,000 | F27: включает: Стойка оптическая телекоммуникационная высокой плотности 19", Оптическая сплайс-панель на 16 портов SC/APC, Поперечная плата кабельного ввод, Оптическая корзина ODR на 12 слото мест
D28: оптический кросс на 512 порта | E28: 8,200,000
A29: NGN
A30: SSW NGN | B30: SIP-T, SIP (NGN (Genband/Ribbon) | C30: шт. | D30: услуги по конвертации H.248 в SIP | E30: 4,000 | F30: конвертация лицензий H.248 в абонентские порты SIP
A31: ПД
A32: МСПД | B32: ПД (Juniper ) | C32: шт. | D32: MX960 Premium Bundle with redundant components, DC Power / Шасси MX960-PREMIUM3-DC +3xSCBE3-MX-BB + 2xRE-S-X6-64G-LT-BB + JUNOS-LTD-64 | E32: 45,734,204.30
C33: шт. | D33: 12x QSFP+/QSFP28 multirate port line card, includes full scale L2/L2.5 features,reduced scale L3,up to 2M routes in FIB,up to 6M routes in RIB, and up to 32 L3VPN instances per card.4 ports out of 12 support QSFP 28. Optics sold separately. / Карта расширения для МХ480/960 портовая емкость 12 портов 10/40/100 GigabitEthernet, пропускная способность 480 Gbps | E33: 72,956,400.00
C34: шт. | D34: QSFP28, 100GBASE-LR4, SMF 10 km, Standard Temperature (0 through 70 DEGREE C), Duplex LC connector / Оптический трансивер 100 GigabitEthernet, QSFP, SM, до 10 км | E34: 1,808,400.00
C35: шт. | D35: QSFP+, 4x10GBASE-LR for Switching Platforms, SMF 10 km, Standard Temperature (0 through 70 DEGREE C), MPO-12 APC connector / Оптический трансивер 4х10 GigabitEthernet, QSFP, SM, до 10 км | E35: 543,400.00
C36: шт. | D36: MX960 Filter tray for high-capacity fantray, Spare / Запасной блок вентиляторов увеличенной мощности для МХ960 | E36: 1,176,120.00
C37: шт. | D37: MX960 Filter tray for high-capacity fantray, Spare / Запасной блок фильтра для вентиляторов увеличенной мощности для МХ960 | E37: 605,880.00
C38: шт. | D38: Коммутатор Juniper EX4400-48f | E38: 7480000
B39: Huawei Technologies | D39: ATN 910-C | E39: 4507800 | F39: маршрутизатор
A40: DWDM
A41: DWDM | B41: Лямбда 1*100 Гб расширение DWDM для ЦОД (Infinera) | C41: шт. | D41: Канал 100 Гб точка-точка | E41: 37,096,147.00 | F41: Ориентировочная стоимость выведена на основе заключенных Договоров, с учетом текущего курса доллара (реальная стоимость в отдельно взятом проекте может отличаться как в меньшую, так и в большую сторону в связи с различными причинами влияющими на расчетную стоимость: длина участка, состояние линии и станционной части, количество организуемых каналов, параметры клиентских интерфейсов, требования к оптическим усилителям, к резервированию и т.д., необходимость наличия ЗИПа, потребность в обучении)
B42: Лямбда 1*100 Гб магистральная сеть DWDM расширение (Huawei) | C42: шт. | D42: Канал 100 Гб точка-точка | E42: 78,283,332.60
B43: Лямбда 1*10 Гб зоновая сеть DWDM расширение | C43: шт. | D43: Канал 10 Гб точка-точка | E43: 21,032,000.00
B44: Лямбда 1*10 Гб зоновая сеть DWDM модернизация | C44: шт. | D44: Канал 10 Гб точка-точка | E44: 54,298,200.00

Sheet 2.3.3 СМР
A2: Анализ средней стоимости затрат на 1 задействованный порт по объектам Модернизации и строительства сетей телекоммуникаций АО "Казахтелеком" на 2027 год
A5: № п/п | B5: Наименование | C5: Стоимость затрат на 1 порт в тенге с НДС | D5: Стоимость затрат на 1 порт в тенге без НДС
A6: 1 | B6: Строительство в Многоквартирных жилых комплексах | C6: 58,939.46 | D6: 52,624.52
A7: 2 | B7: Строительство в частном секторе ВЛС | C7: 160,028.83 | D7: 142,882.88
A8: 3 | B8: Строительство в частном секторе кабельный ввод | C8: 284,744.24 | D8: 254,235.93
A11: Примечание: 1. Учтены проекты 2023года с пересчетом на 2024г 2. В расчетах не учтены затраты на инжиниринговые услуги (авторский надзор, управление проектом, технический надзор).

Sheet 2.3.4.1 Норма расчета 1т.- ДРБ
E2: Приложение 1
E3: к Распоряжению АО "Казахтелеком"
E4: № 267 от 13.11.2025.
B7: Нормы расчета кабельной продукции, материалов и монтажных работ для одной точки подключения/переключения к услугам широкополосного доступа по технологии FTTH на розничном сегмента В2С
A10: № п/п | B10: Наименование | C10: Ед-ца изм. | D10: норматив | E10: Цена за ед-цу****** | F10: Всего
E11: тыс.тенге | F11: тыс.тенге
B12: Установки по технологии FTTH
A13: 1 | C13: Кабельный ввод
A14: 1.1 | B14: Кабельная продукция
B15: Оптический патчкорд с гибким волокном G.657A * | C15: шт | D15: 1 | E15: 4.7 | F15: =D15*E15 -> 4.7
A16: 1.2 | B16: Запчасти, комплектующие и пр.
B17: Коннектор оптический SC/APC ** | C17: шт | D17: 2 | E17: 0.4 | F17: 0.8
B18: Розетка абонентская оптическая | C18: шт | D18: 1 | E18: 0.3 | F18: 0.28
B19: Канал кабельный 15*10 | C19: м | D19: 20.0 | E19: 0.054 | F19: =D19*E19 -> 1.08
B20: Прочее *** | E20: 0.7 | F20: 0.7
B21: Всего | F21: =F15+F17+F18+F20+F19 -> 7.56
A22: 2 | C22: Воздушный ввод
A23: 2.1 | B23: Кабельная продукция
B24: Кабель оптический (тип ОВ G-657 А) с самонесущим тросом***** | C24: м | D24: 100 | E24: 0.183 | F24: =100*0.183 -> 18.30 | G24: средняя стоимость Drop -кабель, патчкорд внешний и патчкорд внешний навивной
B25: Внешний оптический патчкорд с гибким волокном G.657A | C25: шт | D25: 1 | E25: 18.1 | F25: 18.10
A26: 2.2 | B26: Запчасти, комплектующие и пр.
B27: Коннектор оптический SC/APC** | C27: шт | D27: 2 | E27: 0.4 | F27: 0.8
B28: Коробка проходная распределительная | C28: шт | D28: 1 | E28: 1.19 | F28: 1.19
B29: Розетка абонентская оптическая | C29: шт | D29: 1 | E29: 0.3 | F29: 0.3
B30: Подвесы | C30: шт | D30: 4 | E30: =0.347 -> 0.35 | F30: =E30*D30 -> 1.39
B31: Всего | F31: =18.2+F27+F28+F29+F30 -> 21.86
B33: Монтажные работы*******
A34: 3. | C34: Кабельный ввод | E34: Воздушный ввод
C35: тенге | E35: тенге
B36: Стоимость работ на одну точку подключения**** | C36: 7,006 | E36: 10,933
A37: * - | B37: патчкорд максимальной длины 50 м (возможно применение нескольких патчкордов разных длин)
A38: ** - | B38: в случае разделения патчкорда длиной 50 м на разные длины
A39: *** - | B39: входят комплектующие к кабель-каналам, поворотники, хвостовики, шурупы и т.п.
A40: **** - | B40: для двух работников, без учета налогов
A41: *****- | B41: входит использование drop - кабеля
A42: ******- | B42: предельные расценки по кабельной продукции и материалам на одну точку подключения/переключения услуг
A43: ******* - | B43: стоимость монтажных работ для капитализации и отражения в расходах будущих периодов на одну точку подключения/переключения услуг

Sheet 2.3.4.2 Норма расчет 1т.- ДКБ
D2: Приложение 2
D3: к Распоряжению АО "Казахтелеком"
D4: № 267 от 13.11.2025.
A7: Нормы расчета кабельной продукции, материалов и монтажных работ для одной точки подключения/переключения к услугам широкополосного доступа по технологии FTTH на корпоративном сегменте В2В, В2G, B2O
A10: № п/п | B10: Наименование | C10: Ед-ца изм. | D10: норматив | E10: Цена за ед-цу**** | F10: Всего
E11: тыс.тенге | F11: тыс.тенге
B12: Установки базового ресурса по технологии FTTH
A13: 1 | C13: Кабельный ввод
A14: 1.1 | B14: Кабельная продукция
B15: Оптический патчкорд с гибким волокном G.657A * | C15: шт | D15: 2 | E15: 5.1 | F15: =D15*E15 -> 10.3
A16: 1.2 | B16: Запчасти, комплектующие и пр.
B17: Розетка абонентская оптическая | C17: шт | D17: 1 | E17: 0.4 | F17: =D17*E17 -> 0.4
B18: Прочее ** | F18: 7.00
B19: Всего | F19: =F15+F17+F18 -> 17.65
A20: 2 | C20: Воздушный ввод
A21: 2.1 | B21: Кабельная продукция
B22: Внешний оптический патчкорд с гибким волокном G.657A | C22: шт | D22: 1 | E22: 21 | F22: =E22*D22 -> 21.4
B23: Оптический патчкорд с гибким волокном G.657A * | C23: шт | D23: 1 | E23: 2.7 | F23: =E23*D23 -> 2.7
A24: 2.2 | B24: Запчасти, комплектующие и пр.
B25: ПРК | C25: шт | D25: 1 | E25: 2.0 | F25: =D25*E25 -> 2.0
B26: Розетка абонентская оптическая | C26: шт | D26: 1 | E26: 0.4 | F26: =D26*E26 -> 0.4
B27: Подвесы | C27: шт | D27: 8 | E27: 1.0 | F27: =D27*E27 -> 8.0
B28: Крюки, хомуты, консоль столбовая | C28: шт | D28: 5 | E28: 1.0 | F28: =D28*E28 -> 5.0
B29: Прочее ** | C29: шт | F29: 3.3
B30: Всего | F30: =SUM(F22:F29) -> 42.7
B31: Монтажные работы*****
A32: 3. | C32: Кабельный ввод | E32: Воздушный ввод
C33: тенге | E33: тенге
B34: Стоимость работ на одну точку подключения*** | C34: 9,472 | E34: 10,524
A35: * - | B35: патчкорд максимальной длины 50 м (возможно применение нескольких патчкордов разных длин)
A36: ** - | B36: входят кабель-каналы, комплектующие к кабель-каналам, поворотники, хвостовики, шурупы и т.п.
A37: *** - | B37: для двух работников, без учета налогов
A38: **** - | B38: предельные расценки по кабельной продукции и материалам на одну точку подключения/переключения услуг
A39: ***** - | B39: стоимость монтажных работ для капитализации и отражения в расходах будущих периодов на одну точку подключения/переключения услуг

Sheet 2.3.5. Уд. Capex и ЗИП
A1: Статья | B1: Удельная стоимость на 1 порт ШПД, в тыс. тенге
A2: Расширение МСПД | B2: 19.92
A3: Расширение магистрального DWDM | B3: 18.52
A4: Расширение BSS * | B4: 3.37
A5: Расширение OSS * | B5: 5.18
A8: Необходимо принять следующие подходы при планировании количества устройств ONT в бизнес-планах филиалов:
A9: 1) в первые 3 года проекта не планировать ЗИП для устройств ONT, в связи с обязательством поставщиков по замене устройств ONT в течение гарантийного срока (3 года);
A10: 2) с 4-й по 10-й год проекта планировать ЗИП для устройств ONT в объеме 3,23% ежегодно от количества устройств ONT, планируемых в бизнес-плане. Суммарно на 10 лет в бизнес-плане
A11: должен быть предусмотрен ЗИП в объеме 22,58% от количества устройств ONT, планируемых в бизнес-плане;
A13: * В случае принятия положительного решения о реализации проекта «Комплексный бизнес-план по цифровизации» дополнительное финансирование на расширение корпоративных систем не потребуется.

Sheet 2.3.6 нормативы ДУП
A2: Этап | B2: Инвестиции без затрат ДТК, ДУП (2.3.Спецификации по этапам) | E2: Расчет затрат ДУП | H2: Затраты ДУП
B3: Всего | C3: Оборудование | D3: СМР | E3: затраты УП | F3: тех.надзор | G3: авторский надзор | H3: всего ДУП, 2024 год | I3: Оборудование | J3: СМР
A4: 1 этап | B4: =C4+D4 -> 572,870 | C4: =SUM('[24]2.3.Спецификации по этапам'!H12:H15) -> 300,959 | D4: =SUM('[24]2.3.Спецификации по этапам'!H21) -> 271,911 | E4: =IF(($C4+$D4)<=$A$18,($C4+$D4)*C$18%,IF(($C4+$D4)<=$A$19,($C4+$D4)*C$19%,IF(($C4+$D4)<=$A$20,($C4+$D4)*C$20%,IF(($C4+$D4)<=$A$21,($C4+$D4)*C$21%,IF(($C4+$D4)<=$A$22,($C4+$D4)*C$22%,IF(($C4+$D4)<=$A$23,($C4+$D4)*C$23%,IF(($C4+$D4)<=$A$24,($C4+$D4)*C$24%,IF(($C4+$D4)<=$A$25,($C4+$D4)*C$25%,IF(($C4+$D4)<=$A$26,($C4+$D4)*C$26%,IF(($C4+$D4)<=$A$27,($C4+$D4)*C$27%,IF(($C4+$D4)<=$A$28,($C4+$D4)*C$28%,106975.2+((($C4+$D4))-$A$28)*0.09%))))))))))) -> 7,963 | F4: =IF(($C4+$D4)<=$A$18,($C4+$D4)*D$18%,IF(($C4+$D4)<=$A$19,($C4+$D4)*D$19%,IF(($C4+$D4)<=$A$20,($C4+$D4)*D$20%,IF(($C4+$D4)<=$A$21,($C4+$D4)*D$21%,IF(($C4+$D4)<=$A$22,($C4+$D4)*D$22%,IF(($C4+$D4)<=$A$23,($C4+$D4)*D$23%,IF(($C4+$D4)<=$A$24,($C4+$D4)*D$24%,IF(($C4+$D4)<=$A$25,($C4+$D4)*D$25%,IF(($C4+$D4)<=$A$26,($C4+$D4)*D$26%,IF(($C4+$D4)<=$A$27,($C4+$D4)*D$27%,IF(($C4+$D4)<=$A$28,($C4+$D4)*D$28%,248994+((($C4+$D4))-$A$28)*0.22%))))))))))) -> 18,561 | G4: =IF($D4<=$A$18,$D4*E$18%,IF($D4<=$A$19,$D4*E$19%,IF($D4<=$A$20,$D4*E$20%,IF($D4<=$A$21,$D4*E$21%,IF($D4<=$A$22,$D4*E$22%,IF($D4<=$A$23,$D4*E$23%,IF($D4<=$A$24,$D4*E$24%,IF($D4<=$A$25,$D4*E$25%,IF($D4<=$A$26,$D4*E$26%,IF($D4<=$A$27,$D4*E$27%,IF($D4<=$A$28,$D4*E$28%,86686.8+(($D4)-$A$28)*0.11%))))))))))) -> 3,045 | H4: =E4+F4+G4 -> 29,569 | I4: =IF(($C4+$D4)=0,0,($E4+$F4)*$C4/($C4+$D4)) -> 13,934 | J4: =IF(($C4+$D4)=0,$G4,($E4+$F4)*$D4/($C4+$D4)+$G4) -> 15,635
A5: 2 этап | B5: =C5+D5 -> 0 | E5: =IF(($C5+$D5)<=$A$18,($C5+$D5)*C$18%, IF(($C5+$D5)<=$A$19,($C5+$D5)*C$19%, IF(($C5+$D5)<=$A$20,($C5+$D5)*C$20%, IF(($C5+$D5)<=$A$21,($C5+$D5)*C$21%, IF(($C5+$D5)<=$A$22,($C5+$D5)*C$22%, IF(($C5+$D5)<=$A$23,($C5+$D5)*C$23%, IF(($C5+$D5)<=$A$24,($C5+$D5)*C$24%, IF(($C5+$D5)<=$A$25,($C5+$D5)*C$25%, IF(($C5+$D5)<=$A$26,($C5+$D54)*C$26%, IF(($C5+$D5)<=$A$27,($C5+$D5)*C$27%, IF(($C5+$D5)<=$A$28,($C5+$D5)*C$28%, 106975.2+(($C5+$D5)-$A$28)*0.09%))))))))))) -> 0 | F5: =IF(($C5+$D5)<=$A$18,($C5+$D5)*D$18%, IF(($C5+$D5)<=$A$19,($C5+$D5)*D$19%, IF(($C5+$D5)<=$A$20,($C5+$D5)*D$20%, IF(($C5+$D5)<=$A$21,($C5+$D5)*D$21%, IF(($C5+$D5)<=$A$22,($C5+$D5)*D$22%, IF(($C5+$D5)<=$A$23,($C5+$D5)*D$23%, IF(($C5+$D5)<=$A$24,($C5+$D5)*D$24%, IF(($C5+$D5)<=$A$25,($C5+$D5)*D$25%, IF(($C5+$D5)<=$A$26,($C5+$D54)*D$26%, IF(($C5+$D5)<=$A$27,($C5+$D5)*D$27%, IF(($C5+$D5)<=$A$28,($C5+$D5)*D$28%, 248994+(($C5+$D5)-$A$28)*0.22%))))))))))) -> 0 | G5: =IF(($C5+$D5)<=$A$18,($C5+$D5)*E$18%, IF(($C5+$D5)<=$A$19,($C5+$D5)*E$19%, IF(($C5+$D5)<=$A$20,($C5+$D5)*E$20%, IF(($C5+$D5)<=$A$21,($C5+$D5)*E$21%, IF(($C5+$D5)<=$A$22,($C5+$D5)*E$22%, IF(($C5+$D5)<=$A$23,($C5+$D5)*E$23%, IF(($C5+$D5)<=$A$24,($C5+$D5)*E$24%, IF(($C5+$D5)<=$A$25,($C5+$D5)*E$25%, IF(($C5+$D5)<=$A$26,($C5+$D54)*E$26%, IF(($C5+$D5)<=$A$27,($C5+$D5)*E$27%, IF(($C5+$D5)<=$A$28,($C5+$D5)*E$28%, 86686.8+(($C5+$D5)-$A$28)*0.11%))))))))))) -> 0 | H5: =E5+F5+G5 -> 0
A6: 3 этап | B6: =C6+D6 -> 0 | E6: =IF(($C6+$D6)<=$A$18,($C6+$D6)*C$18%, IF(($C6+$D6)<=$A$19,($C6+$D6)*C$19%, IF(($C6+$D6)<=$A$20,($C6+$D6)*C$20%, IF(($C6+$D6)<=$A$21,($C6+$D6)*C$21%, IF(($C6+$D6)<=$A$22,($C6+$D6)*C$22%, IF(($C6+$D6)<=$A$23,($C6+$D6)*C$23%, IF(($C6+$D6)<=$A$24,($C6+$D6)*C$24%, IF(($C6+$D6)<=$A$25,($C6+$D6)*C$25%, IF(($C6+$D6)<=$A$26,($C6+$D55)*C$26%, IF(($C6+$D6)<=$A$27,($C6+$D6)*C$27%, IF(($C6+$D6)<=$A$28,($C6+$D6)*C$28%, 106975.2+(($C6+$D6)-$A$28)*0.09%))))))))))) -> 0 | F6: =IF(($C6+$D6)<=$A$18,($C6+$D6)*D$18%, IF(($C6+$D6)<=$A$19,($C6+$D6)*D$19%, IF(($C6+$D6)<=$A$20,($C6+$D6)*D$20%, IF(($C6+$D6)<=$A$21,($C6+$D6)*D$21%, IF(($C6+$D6)<=$A$22,($C6+$D6)*D$22%, IF(($C6+$D6)<=$A$23,($C6+$D6)*D$23%, IF(($C6+$D6)<=$A$24,($C6+$D6)*D$24%, IF(($C6+$D6)<=$A$25,($C6+$D6)*D$25%, IF(($C6+$D6)<=$A$26,($C6+$D55)*D$26%, IF(($C6+$D6)<=$A$27,($C6+$D6)*D$27%, IF(($C6+$D6)<=$A$28,($C6+$D6)*D$28%, 248994+(($C6+$D6)-$A$28)*0.22%))))))))))) -> 0 | G6: =IF(($C6+$D6)<=$A$18,($C6+$D6)*E$18%, IF(($C6+$D6)<=$A$19,($C6+$D6)*E$19%, IF(($C6+$D6)<=$A$20,($C6+$D6)*E$20%, IF(($C6+$D6)<=$A$21,($C6+$D6)*E$21%, IF(($C6+$D6)<=$A$22,($C6+$D6)*E$22%, IF(($C6+$D6)<=$A$23,($C6+$D6)*E$23%, IF(($C6+$D6)<=$A$24,($C6+$D6)*E$24%, IF(($C6+$D6)<=$A$25,($C6+$D6)*E$25%, IF(($C6+$D6)<=$A$26,($C6+$D55)*E$26%, IF(($C6+$D6)<=$A$27,($C6+$D6)*E$27%, IF(($C6+$D6)<=$A$28,($C6+$D6)*E$28%, 86686.8+(($C6+$D6)-$A$28)*0.11%))))))))))) -> 0 | H6: =E6+F6+G6 -> 0
A7: 4 этап | B7: =C7+D7 -> 0 | E7: =IF(($C7+$D7)<=$A$18,($C7+$D7)*C$18%, IF(($C7+$D7)<=$A$19,($C7+$D7)*C$19%, IF(($C7+$D7)<=$A$20,($C7+$D7)*C$20%, IF(($C7+$D7)<=$A$21,($C7+$D7)*C$21%, IF(($C7+$D7)<=$A$22,($C7+$D7)*C$22%, IF(($C7+$D7)<=$A$23,($C7+$D7)*C$23%, IF(($C7+$D7)<=$A$24,($C7+$D7)*C$24%, IF(($C7+$D7)<=$A$25,($C7+$D7)*C$25%, IF(($C7+$D7)<=$A$26,($C7+$D56)*C$26%, IF(($C7+$D7)<=$A$27,($C7+$D7)*C$27%, IF(($C7+$D7)<=$A$28,($C7+$D7)*C$28%, 106975.2+(($C7+$D7)-$A$28)*0.09%))))))))))) -> 0 | F7: =IF(($C7+$D7)<=$A$18,($C7+$D7)*D$18%, IF(($C7+$D7)<=$A$19,($C7+$D7)*D$19%, IF(($C7+$D7)<=$A$20,($C7+$D7)*D$20%, IF(($C7+$D7)<=$A$21,($C7+$D7)*D$21%, IF(($C7+$D7)<=$A$22,($C7+$D7)*D$22%, IF(($C7+$D7)<=$A$23,($C7+$D7)*D$23%, IF(($C7+$D7)<=$A$24,($C7+$D7)*D$24%, IF(($C7+$D7)<=$A$25,($C7+$D7)*D$25%, IF(($C7+$D7)<=$A$26,($C7+$D56)*D$26%, IF(($C7+$D7)<=$A$27,($C7+$D7)*D$27%, IF(($C7+$D7)<=$A$28,($C7+$D7)*D$28%, 248994+(($C7+$D7)-$A$28)*0.22%))))))))))) -> 0 | G7: =IF(($C7+$D7)<=$A$18,($C7+$D7)*E$18%, IF(($C7+$D7)<=$A$19,($C7+$D7)*E$19%, IF(($C7+$D7)<=$A$20,($C7+$D7)*E$20%, IF(($C7+$D7)<=$A$21,($C7+$D7)*E$21%, IF(($C7+$D7)<=$A$22,($C7+$D7)*E$22%, IF(($C7+$D7)<=$A$23,($C7+$D7)*E$23%, IF(($C7+$D7)<=$A$24,($C7+$D7)*E$24%, IF(($C7+$D7)<=$A$25,($C7+$D7)*E$25%, IF(($C7+$D7)<=$A$26,($C7+$D56)*E$26%, IF(($C7+$D7)<=$A$27,($C7+$D7)*E$27%, IF(($C7+$D7)<=$A$28,($C7+$D7)*E$28%, 86686.8+(($C7+$D7)-$A$28)*0.11%))))))))))) -> 0 | H7: =E7+F7+G7 -> 0
A8: 5 этап | B8: =C8+D8 -> 0 | E8: =IF(($C8+$D8)<=$A$18,($C8+$D8)*C$18%, IF(($C8+$D8)<=$A$19,($C8+$D8)*C$19%, IF(($C8+$D8)<=$A$20,($C8+$D8)*C$20%, IF(($C8+$D8)<=$A$21,($C8+$D8)*C$21%, IF(($C8+$D8)<=$A$22,($C8+$D8)*C$22%, IF(($C8+$D8)<=$A$23,($C8+$D8)*C$23%, IF(($C8+$D8)<=$A$24,($C8+$D8)*C$24%, IF(($C8+$D8)<=$A$25,($C8+$D8)*C$25%, IF(($C8+$D8)<=$A$26,($C8+$D57)*C$26%, IF(($C8+$D8)<=$A$27,($C8+$D8)*C$27%, IF(($C8+$D8)<=$A$28,($C8+$D8)*C$28%, 106975.2+(($C8+$D8)-$A$28)*0.09%))))))))))) -> 0 | F8: =IF(($C8+$D8)<=$A$18,($C8+$D8)*D$18%, IF(($C8+$D8)<=$A$19,($C8+$D8)*D$19%, IF(($C8+$D8)<=$A$20,($C8+$D8)*D$20%, IF(($C8+$D8)<=$A$21,($C8+$D8)*D$21%, IF(($C8+$D8)<=$A$22,($C8+$D8)*D$22%, IF(($C8+$D8)<=$A$23,($C8+$D8)*D$23%, IF(($C8+$D8)<=$A$24,($C8+$D8)*D$24%, IF(($C8+$D8)<=$A$25,($C8+$D8)*D$25%, IF(($C8+$D8)<=$A$26,($C8+$D57)*D$26%, IF(($C8+$D8)<=$A$27,($C8+$D8)*D$27%, IF(($C8+$D8)<=$A$28,($C8+$D8)*D$28%, 248994+(($C8+$D8)-$A$28)*0.22%))))))))))) -> 0 | G8: =IF(($C8+$D8)<=$A$18,($C8+$D8)*E$18%, IF(($C8+$D8)<=$A$19,($C8+$D8)*E$19%, IF(($C8+$D8)<=$A$20,($C8+$D8)*E$20%, IF(($C8+$D8)<=$A$21,($C8+$D8)*E$21%, IF(($C8+$D8)<=$A$22,($C8+$D8)*E$22%, IF(($C8+$D8)<=$A$23,($C8+$D8)*E$23%, IF(($C8+$D8)<=$A$24,($C8+$D8)*E$24%, IF(($C8+$D8)<=$A$25,($C8+$D8)*E$25%, IF(($C8+$D8)<=$A$26,($C8+$D57)*E$26%, IF(($C8+$D8)<=$A$27,($C8+$D8)*E$27%, IF(($C8+$D8)<=$A$28,($C8+$D8)*E$28%, 86686.8+(($C8+$D8)-$A$28)*0.11%))))))))))) -> 0 | H8: =E8+F8+G8 -> 0
B16: Приказ № 207 от 08.08.2024 Затраты ДУП согласно методики формирования бюджета и распределения капитализируемых затрат (CAPEX)
B17: Стоимость строительства в уровне цен 2022 года, тысяч тенге | C17: на управление проектом | D17: на технический надзор | E17: на авторский надзор
A18: 954,000 | B18: до 954 000 | C18: 1.39 | D18: 3.24 | E18: 1.12
A19: 1,431,000 | B19: свыше 954 000 до 1 431 000 | C19: 1.25 | D19: 2.93 | E19: 1.01
A20: 1,844,400 | B20: свыше 1 431 000 до 1 844 400 | C20: 1.13 | D20: 2.64 | E20: 0.91
A21: 3,180,000 | B21: свыше 1 844 400 до 3 180 000 | C21: 1.02 | D21: 2.38 | E21: 0.82
A22: 4,134,000 | B22: свыше 3 180 000 до 4 134 000 | C22: 0.92 | D22: 2.15 | E22: 0.74
A23: 6,042,000 | B23: свыше 4 134 000 до 6 042 000 | C23: 0.83 | D23: 1.95 | E23: 0.67
A24: 8,204,400 | B24: свыше 6 042 000 до 8 204 400 | C24: 0.76 | D24: 1.77 | E24: 0.61
A25: 10,176,000 | B25: свыше 8 204 400 до 10 176 000 | C25: 0.7 | D25: 1.62 | E25: 0.56
A26: 12,243,000 | B26: свыше 10 176 000 до 12 243 000 | C26: 0.65 | D26: 1.51 | E26: 0.52
A27: 15,423,000 | B27: свыше 12 243 000 до 15 423 000 | C27: 0.61 | D27: 1.41 | E27: 0.49
A28: 18,444,000 | B28: свыше 15 423 000 до 18 444 000 | C28: 0.58 | D28: 1.35 | E28: 0.47
B31: Примечание:
B32: При стоимости строительства в уровне цен 2022 года свыше 18444000 тысяч тенге:
B33: норма расходов на управление проектом определяется в размере 106975,2 тысяч тенге и сверх того 0,09% от суммы, превышающей 18444000 тысяч тенге;
B34: норма расходов заказчика на технический надзор за строительством определяется в размере 248994 тысяч тенге и сверх того 0,22% от суммы, превышающей 18444000 тысяч тенге.
B35: норма расходов на авторский надзор определяется в размере 86686,8 тысяч тенге и сверх того 0,11% от суммы, превышающей 18444000 тысяч тенге

Sheet 2.4.Основные показатели проекта
A1: Вернуться назад <=
A3: 2.4. Основные показатели проекта
A5: Период реализации проекта ** | B5: Инвестиции | E5: Квартал | F5: Ввод мощности | U5: Для объектов по строительству ВОЛС | V5: Для объектов по строительству ЦРРЛ и CDMA
F6: POTS | I6: МСПД* | L6: DWDM** | O6: FTTx | R6: ADSL | S6: WI-FI | T6: Точки подключения***
B7: Всего | C7: Оборудование | D7: СМР | F7: Всего | G7: Переключение | H7: Развитие | I7: Всего | J7: Переключение | K7: Развитие | L7: Всего | M7: Переключение | N7: Развитие | O7: Всего | P7: Переключение | Q7: Развитие | U7: Протяженность, км | V7: Наименование участков | W7: Пролёты | X7: Базовые станции | Y7: Антенно-мачтовые сооружения, высота, м (строящиеся по проекту) | Z7: Контейнеры (устанавливаемые по проекту)
A8: I кв 1 года по IV кв n года
A9: 1 год | E9: I
E10: II
E11: III
E12: IV
A13: 2 год | E13: I
E14: II
E15: III
E16: IV
A17: n год | E17: I
E18: II
E19: III
E20: IV
A22: * - порты
A23: ** - каналы
A24: *** - заполняется если к предыдущим столбцам не применимо

Sheet 2.5.Этапы инвестирования
A1: Вернуться назад <=
A3: 2.5. Этапы инвестирования
A5: № | B5: Наименование этапа | C5: Длительность | D5: Дата начала | E5: Дата окончания
A6: 1 | B6: Принятие решения об инвестировании 1 этапа проекта, включенного в утвержденный СД БКВ на соответствующий год | D6: A
A7: 2 | B7: Формирование исходных данных к закупу | C7: 30 | D7: A | E7: A+30
A8: 3 | B8: Утверждение ТТ к конкурсу | C8: 30 дней | D8: A+30 | E8: A+60
A9: 4 | B9: Проведение конкурса | C9: 50 дней | D9: A+60 | E9: A+110
A10: 5 | B10: Заключение договора | C10: 15 дней | D10: A+110 | E10: A+125
A11: 6 | B11: Поставка и монтаж оборудования | C11: 45 дней | D11: A+125 | E11: A+170
A12: 7 | B12: Монтаж/Тестирование, Приемка | C12: 30 дней | D12: A+170 | E12: A+200
A14: * - даты должны быть в абсолютном выражении

Sheet 3.Входные данные
A1: Вернуться назад <= | G1: Кем заполняется
B2: ='0.Краткое содержание'!B8 -> 3. Входные данные - Общие положения
B4: Дата
B5: Текущая дата | E5: =TODAY() -> 2026-09-15
B6: Дата получения первых доходов (Начало эксплуатационного этапа) | E6: 2023
B7: Предоплата по инвестициям (выпадающий список: Да / Нет) | E7: Да | G7: Выбирается Инициатором из списка "Да/Нет"
B8: Период первоначальных капитальных вложений по факту | E8: 1
B9: Период первоначальных доходов по плану | E9: 1
B10: Период первоначальных доходов по факту | E10: 1
B11: Осуществление капитальных вложений (количество лет) по плану | E11: 10
B12: Осуществление капитальных вложений (количество лет) по факту | E12: 1
B13: Подразделения, предоставившие плановые показатели по проекту:
B14: По капитальным вложениям | G14: Заполняется Инициатором
B15: По доходам | G15: Заполняется Инициатором
B16: По расходам | G16: Заполняется Инициатором
B17: По срокам реализации | G17: Заполняется Инициатором
B18: Подразделения, предоставившие фактические показатели по проекту:
B19: По капитальным вложениям | G19: Заполняется Инициатором при наличии фактических данных (корректировка БП)
B20: По доходам | G20: Заполняется Инициатором при наличии фактических данных (корректировка БП)
B21: По расходам | G21: Заполняется Инициатором при наличии фактических данных (корректировка БП)
B22: По срокам реализации | G22: Заполняется Инициатором при наличии фактических данных (корректировка БП)
B23: Основные финансовые индикаторы
B24: Ставка дисконтирования (CoE + Risk Premium) | E24: =SUM(E25:E26) -> 17.50% | G24: Автоматический расчет
B25: Cost of Equity (CoE): | E25: 17.50% | G25: Заполняется ДПФ
B26: Risk Premium (Расчет в листе "премия за риск"): | E26: ='13.2 Премия за специфич риск'!F25 -> 0.00% | G26: Подтягивается с листа "13_а Премия за спец. Риск"
B28: Ставка реинвестирования | E28: 18% | G28: Заполняется ДПФ
B29: Валюта | E29: в тыс. тенге | G29: Заполняется ДПФ
B30: Процент сбора | E30: 98.3% | G30: Заполняется ДПФ
B31: НДС | E31: 16.0% | G31: Заполняется Инициатором
B32: Облагаются ли продаваемые услуги НДС? | E32: Да | G32: Заполняется Инициатором
B33: Подоходный налог (КПН) | E33: 20.0% | G33: Заполняется Инициатором
B34: Подлежит ли "Платежи за право предоставления м/г и м/н телефонной связи"? | E34: Да | G34: Заполняется Инициатором
B35: Вес на исторические показатели при прогнозировании методом экспоненциального сглаживания | E35: 30%
B36: Данные с финансовой отчетности производственного филиала
B37: Расходы на финансирование за год | C37: =IF(E6="","",YEAR(E6)) -> 1905
B38: Итоговая прибыль (итоговый убыток) за период | C38: =IF(E6="","",(YEAR(E6))-1) -> 1904
B39: Основные средства | C39: =IF(E6="","",(YEAR(E6))-2) -> 1903
B40: Основные средства | C40: =IF(E6="","",(YEAR(E6))-1) -> 1904
B41: Нематериальные активы | C41: =IF(E6="","",(YEAR(E6))-2) -> 1903
B42: Нематериальные активы | C42: =IF(E6="","",(YEAR(E6))-1) -> 1904
B43: Прочие долгосрочные активы | C43: =IF(E6="","",(YEAR(E6))-2) -> 1903
B44: Прочие долгосрочные активы | C44: =IF(E6="","",(YEAR(E6))-1) -> 1904
B45: Предоплата по инвестициям
C46: Нет | E46: 100% постоплата
C47: Да | E47: 15% | G47: Заполняется Инициатором
E48: 85% | G48: Заполняется Инициатором
B50: Ставка дисконтирования / | C50: реинвестирования | E50: Процент сбора
B51: 8% | C51: 13% | E51: 97.4%
B52: 9% | C52: 14% | E52: 97.5%
B53: 10% | C53: 15% | E53: 97.6%
B54: 11% | C54: 16% | E54: 97.7%
B55: 12% | C55: 17% | E55: 97.8%
B56: 13% | C56: 18% | E56: 97.9%
B57: 14% | C57: 19% | E57: 98.0%
B58: 15% | C58: 20% | E58: 98.1%
B59: 16% | C59: 21% | E59: 98.2%
B60: 17% | C60: 22% | E60: 98.3%
B61: 18% | C61: 23% | E61: 98.4%
B62: 19% | C62: 24% | E62: 98.5%
B63: 20% | C63: 25% | E63: 98.6%
B64: 21% | C64: 26% | E64: 98.7%
B65: 22% | C65: 27% | E65: 98.8%
B66: 23% | C66: 28% | E66: 98.9%
B67: 24% | C67: 29% | E67: 99.0%
B68: 25% | C68: 30% | E68: 99.1%
E69: 99.2%
E70: 99.3%
E71: 99.4%
E72: 99.5%
E73: 99.6%
E74: 99.7%
E75: 99.8%
E76: 99.9%
E77: 100.0%

Sheet 4.БКВ
A1: Вернуться назад <= | E1: оборудование | F1: СМР | G1: Земля
A2: ='0.Краткое содержание'!B10 -> 4. Входные данные - Плановые капитальные вложения | C2: Норматив по расходам ДТК | D2: Центр | E2: 0.30% | F2: 0.00% | G2: 0.00%
D3: Децентр | E3: 0.00% | F3: 0.00% | G3: 0.00%
A4: Наименование показателей | B4: Ед. измерения | C4: Полная проектная стоимость без дисконта | E4: Год 1 | I4: Год 2 | M4: Год 3 | Q4: Год 4 | U4: Год 5 | Y4: Год 6 | AC4: Год 7 | AG4: Год 8 | AK4: Год 9 | AO4: Год 10 | AS4: Год 11 | AW4: Итого за 1 год | AX4: Итого за 2 год | AY4: Итого за 3 год | AZ4: Итого за 4 год | BA4: Итого за 5 год | BB4: Итого за 6 год | BC4: Итого за 7 год | BD4: Итого за 8 год | BE4: Итого за 9 год | BF4: Итого за 10 год | BG4: Итого за 11 год | BH4: Итого
E5: ='1.Резюме проекта'!C8&"/1" -> 2027/1 | F5: =LEFT(E$5, LEN(E$5) -1)&"2" -> 2027/2 | G5: =LEFT(E$5, LEN(E$5) -1)&"3" -> 2027/3 | H5: =LEFT(E$5, LEN(E$5) -1)&"4" -> 2027/4 | I5: =(LEFT(E$5,LEN(E$5)-2)+1)&"/1" -> 2028/1 | J5: =(LEFT(F$5,LEN(F$5)-2)+1)&"/2" -> 2028/2 | K5: =(LEFT(G$5,LEN(G$5)-2)+1)&"/3" -> 2028/3 | L5: =(LEFT(H$5,LEN(H$5)-2)+1)&"/4" -> 2028/4 | M5: =(LEFT(I$5,LEN(I$5)-2)+1)&"/1" -> 2029/1 | N5: =(LEFT(J$5,LEN(J$5)-2)+1)&"/2" -> 2029/2 | O5: =(LEFT(K$5,LEN(K$5)-2)+1)&"/3" -> 2029/3 | P5: =(LEFT(L$5,LEN(L$5)-2)+1)&"/4" -> 2029/4 | Q5: =(LEFT(M$5,LEN(M$5)-2)+1)&"/1" -> 2030/1 | R5: =(LEFT(N$5,LEN(N$5)-2)+1)&"/2" -> 2030/2 | S5: =(LEFT(O$5,LEN(O$5)-2)+1)&"/3" -> 2030/3 | T5: =(LEFT(P$5,LEN(P$5)-2)+1)&"/4" -> 2030/4 | U5: =(LEFT(Q$5,LEN(Q$5)-2)+1)&"/1" -> 2031/1 | V5: =(LEFT(R$5,LEN(R$5)-2)+1)&"/2" -> 2031/2 | W5: =(LEFT(S$5,LEN(S$5)-2)+1)&"/3" -> 2031/3 | X5: =(LEFT(T$5,LEN(T$5)-2)+1)&"/4" -> 2031/4 | Y5: =(LEFT(U$5,LEN(U$5)-2)+1)&"/1" -> 2032/1 | Z5: =(LEFT(V$5,LEN(V$5)-2)+1)&"/2" -> 2032/2 | AA5: =(LEFT(W$5,LEN(W$5)-2)+1)&"/3" -> 2032/3 | AB5: =(LEFT(X$5,LEN(X$5)-2)+1)&"/4" -> 2032/4 | AC5: =(LEFT(Y$5,LEN(Y$5)-2)+1)&"/1" -> 2033/1 | AD5: =(LEFT(Z$5,LEN(Z$5)-2)+1)&"/2" -> 2033/2 | AE5: =(LEFT(AA$5,LEN(AA$5)-2)+1)&"/3" -> 2033/3 | AF5: =(LEFT(AB$5,LEN(AB$5)-2)+1)&"/4" -> 2033/4 | AG5: =(LEFT(AC$5,LEN(AC$5)-2)+1)&"/1" -> 2034/1 | AH5: =(LEFT(AD$5,LEN(AD$5)-2)+1)&"/2" -> 2034/2 | AI5: =(LEFT(AE$5,LEN(AE$5)-2)+1)&"/3" -> 2034/3 | AJ5: =(LEFT(AF$5,LEN(AF$5)-2)+1)&"/4" -> 2034/4 | AK5: =(LEFT(AG$5,LEN(AG$5)-2)+1)&"/1" -> 2035/1 | AL5: =(LEFT(AH$5,LEN(AH$5)-2)+1)&"/2" -> 2035/2 | AM5: =(LEFT(AI$5,LEN(AI$5)-2)+1)&"/3" -> 2035/3 | AN5: =(LEFT(AJ$5,LEN(AJ$5)-2)+1)&"/4" -> 2035/4 | AO5: =(LEFT(AK$5,LEN(AK$5)-2)+1)&"/1" -> 2036/1 | AP5: =(LEFT(AL$5,LEN(AL$5)-2)+1)&"/2" -> 2036/2 | AQ5: =(LEFT(AM$5,LEN(AM$5)-2)+1)&"/3" -> 2036/3 | AR5: =(LEFT(AN$5,LEN(AN$5)-2)+1)&"/4" -> 2036/4 | AS5: =(LEFT(AO$5,LEN(AO$5)-2)+1)&"/1" -> 2037/1 | AT5: =(LEFT(AP$5,LEN(AP$5)-2)+1)&"/2" -> 2037/2 | AU5: =(LEFT(AQ$5,LEN(AQ$5)-2)+1)&"/3" -> 2037/3 | AV5: =(LEFT(AR$5,LEN(AR$5)-2)+1)&"/4" -> 2037/4 | AW5: ='1.Резюме проекта'!C8 -> 2,027 | AX5: =AW5+1 -> 2,028 | AY5: =AX5+1 -> 2,029 | AZ5: 2,030 | BA5: 2,031 | BB5: 2,032 | BC5: 2,033 | BD5: 2,034 | BE5: 2,035 | BF5: 2,036 | BG5: 2,037
E6: 1 квартал | F6: 2 квартал | G6: 3 квартал | H6: 4 квартал | I6: 1 квартал | J6: 2 квартал | K6: 3 квартал | L6: 4 квартал | M6: 1 квартал | N6: 2 квартал | O6: 3 квартал | P6: 4 квартал | Q6: 1 квартал | R6: 2 квартал | S6: 3 квартал | T6: 4 квартал | U6: 1 квартал | V6: 2 квартал | W6: 3 квартал | X6: 4 квартал | Y6: 1 квартал | Z6: 2 квартал | AA6: 3 квартал | AB6: 4 квартал | AC6: 1 квартал | AD6: 2 квартал | AE6: 3 квартал | AF6: 4 квартал | AG6: 1 квартал | AH6: 2 квартал | AI6: 3 квартал | AJ6: 4 квартал | AK6: 1 квартал | AL6: 2 квартал | AM6: 3 квартал | AN6: 4 квартал | AO6: 1 квартал | AP6: 2 квартал | AQ6: 3 квартал | AR6: 4 квартал | AS6: 1 квартал | AT6: 2 квартал | AU6: 3 квартал | AV6: 4 квартал
A7: =A63 -> Лицензии (срок службы 1 год) | B7: ='3.Входные данные'!$E$29 -> в тыс. тенге | C7: =SUM(AW7:BG7) -> 0 | E7: =SUMIFS('2.3.Спецификации по этапам'!$H:$H,'2.3.Спецификации по этапам'!$L:$L,'4.БКВ'!$A7,'2.3.Спецификации по этапам'!$M:$M,'4.БКВ'!E$62,'2.3.Спецификации по этапам'!$N:$N,"Центр")*($E$2+100%)+SUMIFS('2.3.Спецификации по этапам'!$H:$H,'2.3.Спецификации по этапам'!$L:$L,'4.БКВ'!$A7,'2.3.Спецификации по этапам'!$M:$M,'4.БКВ'!E$62,'2.3.Спецификации по этапам'!$N:$N,"Децентр")*($E$3+100%) -> 0 | F7: =SUMIFS('2.3.Спецификации по этапам'!$H:$H,'2.3.Спецификации по этапам'!$L:$L,'4.БКВ'!$A7,'2.3.Спецификации по этапам'!$M:$M,'4.БКВ'!F$62,'2.3.Спецификации по этапам'!$N:$N,"Центр")*($E$2+100%)+SUMIFS('2.3.Спецификации по этапам'!$H:$H,'2.3.Спецификации по этапам'!$L:$L,'4.БКВ'!$A7,'2.3.Спецификации по этапам'!$M:$M,'4.БКВ'!F$62,'2.3.Спецификации по этапам'!$N:$N,"Децентр")*($E$3+100%) -> 0 | G7: =SUMIFS('2.3.Спецификации по этапам'!$H:$H,'2.3.Спецификации по этапам'!$L:$L,'4.БКВ'!$A7,'2.3.Спецификации по этапам'!$M:$M,'4.БКВ'!G$62,'2.3.Спецификации по этапам'!$N:$N,"Центр")*($E$2+100%)+SUMIFS('2.3.Спецификации по этапам'!$H:$H,'2.3.Спецификации по этапам'!$L:$L,'4.БКВ'!$A7,'2.3.Спецификации по этапам'!$M:$M,'4.БКВ'!G$62,'2.3.Спецификации по этапам'!$N:$N,"Децентр")*($E$3+100%) -> 0 | H7: =SUMIFS('2.3.Спецификации по этапам'!$H:$H,'2.3.Спецификации по этапам'!$L:$L,'4.БКВ'!$A7,'2.3.Спецификации по этапам'!$M:$M,'4.БКВ'!H$62,'2.3.Спецификации по этапам'!$N:$N,"Центр")*($E$2+100%)+SUMIFS('2.3.Спецификации по этапам'!$H:$H,'2.3.Спецификации по этапам'!$L:$L,'4.БКВ'!$A7,'2.3.Спецификации по этапам'!$M:$M,'4.БКВ'!H$62,'2.3.Спецификации по этапам'!$N:$N,"Децентр")*($E$3+100%) -> 0 | I7: =SUMIFS('2.3.Спецификации по этапам'!$H:$H,'2.3.Спецификации по этапам'!$L:$L,'4.БКВ'!$A7,'2.3.Спецификации по этапам'!$M:$M,'4.БКВ'!I$62,'2.3.Спецификации по этапам'!$N:$N,"Центр")*($E$2+100%)+SUMIFS('2.3.Спецификации по этапам'!$H:$H,'2.3.Спецификации по этапам'!$L:$L,'4.БКВ'!$A7,'2.3.Спецификации по этапам'!$M:$M,'4.БКВ'!I$62,'2.3.Спецификации по этапам'!$N:$N,"Децентр")*($E$3+100%) -> 0 | J7: =SUMIFS('2.3.Спецификации по этапам'!$H:$H,'2.3.Спецификации по этапам'!$L:$L,'4.БКВ'!$A7,'2.3.Спецификации по этапам'!$M:$M,'4.БКВ'!J$62,'2.3.Спецификации по этапам'!$N:$N,"Центр")*($E$2+100%)+SUMIFS('2.3.Спецификации по этапам'!$H:$H,'2.3.Спецификации по этапам'!$L:$L,'4.БКВ'!$A7,'2.3.Спецификации по этапам'!$M:$M,'4.БКВ'!J$62,'2.3.Спецификации по этапам'!$N:$N,"Децентр")*($E$3+100%) -> 0 | K7: =SUMIFS('2.3.Спецификации по этапам'!$H:$H,'2.3.Спецификации по этапам'!$L:$L,'4.БКВ'!$A7,'2.3.Спецификации по этапам'!$M:$M,'4.БКВ'!K$62,'2.3.Спецификации по этапам'!$N:$N,"Центр")*($E$2+100%)+SUMIFS('2.3.Спецификации по этапам'!$H:$H,'2.3.Спецификации по этапам'!$L:$L,'4.БКВ'!$A7,'2.3.Спецификации по этапам'!$M:$M,'4.БКВ'!K$62,'2.3.Спецификации по этапам'!$N:$N,"Децентр")*($E$3+100%) -> 0 | L7: =SUMIFS('2.3.Спецификации по этапам'!$H:$H,'2.3.Спецификации по этапам'!$L:$L,'4.БКВ'!$A7,'2.3.Спецификации по этапам'!$M:$M,'4.БКВ'!L$62,'2.3.Спецификации по этапам'!$N:$N,"Центр")*($E$2+100%)+SUMIFS('2.3.Спецификации по этапам'!$H:$H,'2.3.Спецификации по этапам'!$L:$L,'4.БКВ'!$A7,'2.3.Спецификации по этапам'!$M:$M,'4.БКВ'!L$62,'2.3.Спецификации по этапам'!$N:$N,"Децентр")*($E$3+100%) -> 0 | M7: =SUMIFS('2.3.Спецификации по этапам'!$H:$H,'2.3.Спецификации по этапам'!$L:$L,'4.БКВ'!$A7,'2.3.Спецификации по этапам'!$M:$M,'4.БКВ'!M$62,'2.3.Спецификации по этапам'!$N:$N,"Центр")*($E$2+100%)+SUMIFS('2.3.Спецификации по этапам'!$H:$H,'2.3.Спецификации по этапам'!$L:$L,'4.БКВ'!$A7,'2.3.Спецификации по этапам'!$M:$M,'4.БКВ'!M$62,'2.3.Спецификации по этапам'!$N:$N,"Децентр")*($E$3+100%) -> 0 | N7: =SUMIFS('2.3.Спецификации по этапам'!$H:$H,'2.3.Спецификации по этапам'!$L:$L,'4.БКВ'!$A7,'2.3.Спецификации по этапам'!$M:$M,'4.БКВ'!N$62,'2.3.Спецификации по этапам'!$N:$N,"Центр")*($E$2+100%)+SUMIFS('2.3.Спецификации по этапам'!$H:$H,'2.3.Спецификации по этапам'!$L:$L,'4.БКВ'!$A7,'2.3.Спецификации по этапам'!$M:$M,'4.БКВ'!N$62,'2.3.Спецификации по этапам'!$N:$N,"Децентр")*($E$3+100%) -> 0 | O7: =SUMIFS('2.3.Спецификации по этапам'!$H:$H,'2.3.Спецификации по этапам'!$L:$L,'4.БКВ'!$A7,'2.3.Спецификации по этапам'!$M:$M,'4.БКВ'!O$62,'2.3.Спецификации по этапам'!$N:$N,"Центр")*($E$2+100%)+SUMIFS('2.3.Спецификации по этапам'!$H:$H,'2.3.Спецификации по этапам'!$L:$L,'4.БКВ'!$A7,'2.3.Спецификации по этапам'!$M:$M,'4.БКВ'!O$62,'2.3.Спецификации по этапам'!$N:$N,"Децентр")*($E$3+100%) -> 0 | P7: =SUMIFS('2.3.Спецификации по этапам'!$H:$H,'2.3.Спецификации по этапам'!$L:$L,'4.БКВ'!$A7,'2.3.Спецификации по этапам'!$M:$M,'4.БКВ'!P$62,'2.3.Спецификации по этапам'!$N:$N,"Центр")*($E$2+100%)+SUMIFS('2.3.Спецификации по этапам'!$H:$H,'2.3.Спецификации по этапам'!$L:$L,'4.БКВ'!$A7,'2.3.Спецификации по этапам'!$M:$M,'4.БКВ'!P$62,'2.3.Спецификации по этапам'!$N:$N,"Децентр")*($E$3+100%) -> 0 | Q7: =SUMIFS('2.3.Спецификации по этапам'!$H:$H,'2.3.Спецификации по этапам'!$L:$L,'4.БКВ'!$A7,'2.3.Спецификации по этапам'!$M:$M,'4.БКВ'!Q$62,'2.3.Спецификации по этапам'!$N:$N,"Центр")*($E$2+100%)+SUMIFS('2.3.Спецификации по этапам'!$H:$H,'2.3.Спецификации по этапам'!$L:$L,'4.БКВ'!$A7,'2.3.Спецификации по этапам'!$M:$M,'4.БКВ'!Q$62,'2.3.Спецификации по этапам'!$N:$N,"Децентр")*($E$3+100%) -> 0 | R7: =SUMIFS('2.3.Спецификации по этапам'!$H:$H,'2.3.Спецификации по этапам'!$L:$L,'4.БКВ'!$A7,'2.3.Спецификации по этапам'!$M:$M,'4.БКВ'!R$62,'2.3.Спецификации по этапам'!$N:$N,"Центр")*($E$2+100%)+SUMIFS('2.3.Спецификации по этапам'!$H:$H,'2.3.Спецификации по этапам'!$L:$L,'4.БКВ'!$A7,'2.3.Спецификации по этапам'!$M:$M,'4.БКВ'!R$62,'2.3.Спецификации по этапам'!$N:$N,"Децентр")*($E$3+100%) -> 0 | S7: =SUMIFS('2.3.Спецификации по этапам'!$H:$H,'2.3.Спецификации по этапам'!$L:$L,'4.БКВ'!$A7,'2.3.Спецификации по этапам'!$M:$M,'4.БКВ'!S$62,'2.3.Спецификации по этапам'!$N:$N,"Центр")*($E$2+100%)+SUMIFS('2.3.Спецификации по этапам'!$H:$H,'2.3.Спецификации по этапам'!$L:$L,'4.БКВ'!$A7,'2.3.Спецификации по этапам'!$M:$M,'4.БКВ'!S$62,'2.3.Спецификации по этапам'!$N:$N,"Децентр")*($E$3+100%) -> 0 | T7: =SUMIFS('2.3.Спецификации по этапам'!$H:$H,'2.3.Спецификации по этапам'!$L:$L,'4.БКВ'!$A7,'2.3.Спецификации по этапам'!$M:$M,'4.БКВ'!T$62,'2.3.Спецификации по этапам'!$N:$N,"Центр")*($E$2+100%)+SUMIFS('2.3.Спецификации по этапам'!$H:$H,'2.3.Спецификации по этапам'!$L:$L,'4.БКВ'!$A7,'2.3.Спецификации по этапам'!$M:$M,'4.БКВ'!T$62,'2.3.Спецификации по этапам'!$N:$N,"Децентр")*($E$3+100%) -> 0 | U7: =SUMIFS('2.3.Спецификации по этапам'!$H:$H,'2.3.Спецификации по этапам'!$L:$L,'4.БКВ'!$A7,'2.3.Спецификации по этапам'!$M:$M,'4.БКВ'!U$62,'2.3.Спецификации по этапам'!$N:$N,"Центр")*($E$2+100%)+SUMIFS('2.3.Спецификации по этапам'!$H:$H,'2.3.Спецификации по этапам'!$L:$L,'4.БКВ'!$A7,'2.3.Спецификации по этапам'!$M:$M,'4.БКВ'!U$62,'2.3.Спецификации по этапам'!$N:$N,"Децентр")*($E$3+100%) -> 0 | V7: =SUMIFS('2.3.Спецификации по этапам'!$H:$H,'2.3.Спецификации по этапам'!$L:$L,'4.БКВ'!$A7,'2.3.Спецификации по этапам'!$M:$M,'4.БКВ'!V$62,'2.3.Спецификации по этапам'!$N:$N,"Центр")*($E$2+100%)+SUMIFS('2.3.Спецификации по этапам'!$H:$H,'2.3.Спецификации по этапам'!$L:$L,'4.БКВ'!$A7,'2.3.Спецификации по этапам'!$M:$M,'4.БКВ'!V$62,'2.3.Спецификации по этапам'!$N:$N,"Децентр")*($E$3+100%) -> 0 | W7: =SUMIFS('2.3.Спецификации по этапам'!$H:$H,'2.3.Спецификации по этапам'!$L:$L,'4.БКВ'!$A7,'2.3.Спецификации по этапам'!$M:$M,'4.БКВ'!W$62,'2.3.Спецификации по этапам'!$N:$N,"Центр")*($E$2+100%)+SUMIFS('2.3.Спецификации по этапам'!$H:$H,'2.3.Спецификации по этапам'!$L:$L,'4.БКВ'!$A7,'2.3.Спецификации по этапам'!$M:$M,'4.БКВ'!W$62,'2.3.Спецификации по этапам'!$N:$N,"Децентр")*($E$3+100%) -> 0 | X7: =SUMIFS('2.3.Спецификации по этапам'!$H:$H,'2.3.Спецификации по этапам'!$L:$L,'4.БКВ'!$A7,'2.3.Спецификации по этапам'!$M:$M,'4.БКВ'!X$62,'2.3.Спецификации по этапам'!$N:$N,"Центр")*($E$2+100%)+SUMIFS('2.3.Спецификации по этапам'!$H:$H,'2.3.Спецификации по этапам'!$L:$L,'4.БКВ'!$A7,'2.3.Спецификации по этапам'!$M:$M,'4.БКВ'!X$62,'2.3.Спецификации по этапам'!$N:$N,"Децентр")*($E$3+100%) -> 0 | Y7: =SUMIFS('2.3.Спецификации по этапам'!$H:$H,'2.3.Спецификации по этапам'!$L:$L,'4.БКВ'!$A7,'2.3.Спецификации по этапам'!$M:$M,'4.БКВ'!Y$62,'2.3.Спецификации по этапам'!$N:$N,"Центр")*($E$2+100%)+SUMIFS('2.3.Спецификации по этапам'!$H:$H,'2.3.Спецификации по этапам'!$L:$L,'4.БКВ'!$A7,'2.3.Спецификации по этапам'!$M:$M,'4.БКВ'!Y$62,'2.3.Спецификации по этапам'!$N:$N,"Децентр")*($E$3+100%) -> 0 | Z7: =SUMIFS('2.3.Спецификации по этапам'!$H:$H,'2.3.Спецификации по этапам'!$L:$L,'4.БКВ'!$A7,'2.3.Спецификации по этапам'!$M:$M,'4.БКВ'!Z$62,'2.3.Спецификации по этапам'!$N:$N,"Центр")*($E$2+100%)+SUMIFS('2.3.Спецификации по этапам'!$H:$H,'2.3.Спецификации по этапам'!$L:$L,'4.БКВ'!$A7,'2.3.Спецификации по этапам'!$M:$M,'4.БКВ'!Z$62,'2.3.Спецификации по этапам'!$N:$N,"Децентр")*($E$3+100%) -> 0 | AA7: =SUMIFS('2.3.Спецификации по этапам'!$H:$H,'2.3.Спецификации по этапам'!$L:$L,'4.БКВ'!$A7,'2.3.Спецификации по этапам'!$M:$M,'4.БКВ'!AA$62,'2.3.Спецификации по этапам'!$N:$N,"Центр")*($E$2+100%)+SUMIFS('2.3.Спецификации по этапам'!$H:$H,'2.3.Спецификации по этапам'!$L:$L,'4.БКВ'!$A7,'2.3.Спецификации по этапам'!$M:$M,'4.БКВ'!AA$62,'2.3.Спецификации по этапам'!$N:$N,"Децентр")*($E$3+100%) -> 0 | AB7: =SUMIFS('2.3.Спецификации по этапам'!$H:$H,'2.3.Спецификации по этапам'!$L:$L,'4.БКВ'!$A7,'2.3.Спецификации по этапам'!$M:$M,'4.БКВ'!AB$62,'2.3.Спецификации по этапам'!$N:$N,"Центр")*($E$2+100%)+SUMIFS('2.3.Спецификации по этапам'!$H:$H,'2.3.Спецификации по этапам'!$L:$L,'4.БКВ'!$A7,'2.3.Спецификации по этапам'!$M:$M,'4.БКВ'!AB$62,'2.3.Спецификации по этапам'!$N:$N,"Децентр")*($E$3+100%) -> 0 | AC7: =SUMIFS('2.3.Спецификации по этапам'!$H:$H,'2.3.Спецификации по этапам'!$L:$L,'4.БКВ'!$A7,'2.3.Спецификации по этапам'!$M:$M,'4.БКВ'!AC$62,'2.3.Спецификации по этапам'!$N:$N,"Центр")*($E$2+100%)+SUMIFS('2.3.Спецификации по этапам'!$H:$H,'2.3.Спецификации по этапам'!$L:$L,'4.БКВ'!$A7,'2.3.Спецификации по этапам'!$M:$M,'4.БКВ'!AC$62,'2.3.Спецификации по этапам'!$N:$N,"Децентр")*($E$3+100%) -> 0 | AD7: =SUMIFS('2.3.Спецификации по этапам'!$H:$H,'2.3.Спецификации по этапам'!$L:$L,'4.БКВ'!$A7,'2.3.Спецификации по этапам'!$M:$M,'4.БКВ'!AD$62,'2.3.Спецификации по этапам'!$N:$N,"Центр")*($E$2+100%)+SUMIFS('2.3.Спецификации по этапам'!$H:$H,'2.3.Спецификации по этапам'!$L:$L,'4.БКВ'!$A7,'2.3.Спецификации по этапам'!$M:$M,'4.БКВ'!AD$62,'2.3.Спецификации по этапам'!$N:$N,"Децентр")*($E$3+100%) -> 0 | AE7: =SUMIFS('2.3.Спецификации по этапам'!$H:$H,'2.3.Спецификации по этапам'!$L:$L,'4.БКВ'!$A7,'2.3.Спецификации по этапам'!$M:$M,'4.БКВ'!AE$62,'2.3.Спецификации по этапам'!$N:$N,"Центр")*($E$2+100%)+SUMIFS('2.3.Спецификации по этапам'!$H:$H,'2.3.Спецификации по этапам'!$L:$L,'4.БКВ'!$A7,'2.3.Спецификации по этапам'!$M:$M,'4.БКВ'!AE$62,'2.3.Спецификации по этапам'!$N:$N,"Децентр")*($E$3+100%) -> 0 | AF7: =SUMIFS('2.3.Спецификации по этапам'!$H:$H,'2.3.Спецификации по этапам'!$L:$L,'4.БКВ'!$A7,'2.3.Спецификации по этапам'!$M:$M,'4.БКВ'!AF$62,'2.3.Спецификации по этапам'!$N:$N,"Центр")*($E$2+100%)+SUMIFS('2.3.Спецификации по этапам'!$H:$H,'2.3.Спецификации по этапам'!$L:$L,'4.БКВ'!$A7,'2.3.Спецификации по этапам'!$M:$M,'4.БКВ'!AF$62,'2.3.Спецификации по этапам'!$N:$N,"Децентр")*($E$3+100%) -> 0 | AG7: =SUMIFS('2.3.Спецификации по этапам'!$H:$H,'2.3.Спецификации по этапам'!$L:$L,'4.БКВ'!$A7,'2.3.Спецификации по этапам'!$M:$M,'4.БКВ'!AG$62,'2.3.Спецификации по этапам'!$N:$N,"Центр")*($E$2+100%)+SUMIFS('2.3.Спецификации по этапам'!$H:$H,'2.3.Спецификации по этапам'!$L:$L,'4.БКВ'!$A7,'2.3.Спецификации по этапам'!$M:$M,'4.БКВ'!AG$62,'2.3.Спецификации по этапам'!$N:$N,"Децентр")*($E$3+100%) -> 0 | AH7: =SUMIFS('2.3.Спецификации по этапам'!$H:$H,'2.3.Спецификации по этапам'!$L:$L,'4.БКВ'!$A7,'2.3.Спецификации по этапам'!$M:$M,'4.БКВ'!AH$62,'2.3.Спецификации по этапам'!$N:$N,"Центр")*($E$2+100%)+SUMIFS('2.3.Спецификации по этапам'!$H:$H,'2.3.Спецификации по этапам'!$L:$L,'4.БКВ'!$A7,'2.3.Спецификации по этапам'!$M:$M,'4.БКВ'!AH$62,'2.3.Спецификации по этапам'!$N:$N,"Децентр")*($E$3+100%) -> 0 | AI7: =SUMIFS('2.3.Спецификации по этапам'!$H:$H,'2.3.Спецификации по этапам'!$L:$L,'4.БКВ'!$A7,'2.3.Спецификации по этапам'!$M:$M,'4.БКВ'!AI$62,'2.3.Спецификации по этапам'!$N:$N,"Центр")*($E$2+100%)+SUMIFS('2.3.Спецификации по этапам'!$H:$H,'2.3.Спецификации по этапам'!$L:$L,'4.БКВ'!$A7,'2.3.Спецификации по этапам'!$M:$M,'4.БКВ'!AI$62,'2.3.Спецификации по этапам'!$N:$N,"Децентр")*($E$3+100%) -> 0 | AJ7: =SUMIFS('2.3.Спецификации по этапам'!$H:$H,'2.3.Спецификации по этапам'!$L:$L,'4.БКВ'!$A7,'2.3.Спецификации по этапам'!$M:$M,'4.БКВ'!AJ$62,'2.3.Спецификации по этапам'!$N:$N,"Центр")*($E$2+100%)+SUMIFS('2.3.Спецификации по этапам'!$H:$H,'2.3.Спецификации по этапам'!$L:$L,'4.БКВ'!$A7,'2.3.Спецификации по этапам'!$M:$M,'4.БКВ'!AJ$62,'2.3.Спецификации по этапам'!$N:$N,"Децентр")*($E$3+100%) -> 0 | AK7: =SUMIFS('2.3.Спецификации по этапам'!$H:$H,'2.3.Спецификации по этапам'!$L:$L,'4.БКВ'!$A7,'2.3.Спецификации по этапам'!$M:$M,'4.БКВ'!AK$62,'2.3.Спецификации по этапам'!$N:$N,"Центр")*($E$2+100%)+SUMIFS('2.3.Спецификации по этапам'!$H:$H,'2.3.Спецификации по этапам'!$L:$L,'4.БКВ'!$A7,'2.3.Спецификации по этапам'!$M:$M,'4.БКВ'!AK$62,'2.3.Спецификации по этапам'!$N:$N,"Децентр")*($E$3+100%) -> 0 | AL7: =SUMIFS('2.3.Спецификации по этапам'!$H:$H,'2.3.Спецификации по этапам'!$L:$L,'4.БКВ'!$A7,'2.3.Спецификации по этапам'!$M:$M,'4.БКВ'!AL$62,'2.3.Спецификации по этапам'!$N:$N,"Центр")*($E$2+100%)+SUMIFS('2.3.Спецификации по этапам'!$H:$H,'2.3.Спецификации по этапам'!$L:$L,'4.БКВ'!$A7,'2.3.Спецификации по этапам'!$M:$M,'4.БКВ'!AL$62,'2.3.Спецификации по этапам'!$N:$N,"Децентр")*($E$3+100%) -> 0 | AM7: =SUMIFS('2.3.Спецификации по этапам'!$H:$H,'2.3.Спецификации по этапам'!$L:$L,'4.БКВ'!$A7,'2.3.Спецификации по этапам'!$M:$M,'4.БКВ'!AM$62,'2.3.Спецификации по этапам'!$N:$N,"Центр")*($E$2+100%)+SUMIFS('2.3.Спецификации по этапам'!$H:$H,'2.3.Спецификации по этапам'!$L:$L,'4.БКВ'!$A7,'2.3.Спецификации по этапам'!$M:$M,'4.БКВ'!AM$62,'2.3.Спецификации по этапам'!$N:$N,"Децентр")*($E$3+100%) -> 0 | AN7: =SUMIFS('2.3.Спецификации по этапам'!$H:$H,'2.3.Спецификации по этапам'!$L:$L,'4.БКВ'!$A7,'2.3.Спецификации по этапам'!$M:$M,'4.БКВ'!AN$62,'2.3.Спецификации по этапам'!$N:$N,"Центр")*($E$2+100%)+SUMIFS('2.3.Спецификации по этапам'!$H:$H,'2.3.Спецификации по этапам'!$L:$L,'4.БКВ'!$A7,'2.3.Спецификации по этапам'!$M:$M,'4.БКВ'!AN$62,'2.3.Спецификации по этапам'!$N:$N,"Децентр")*($E$3+100%) -> 0 | AO7: =SUMIFS('2.3.Спецификации по этапам'!$H:$H,'2.3.Спецификации по этапам'!$L:$L,'4.БКВ'!$A7,'2.3.Спецификации по этапам'!$M:$M,'4.БКВ'!AO$62,'2.3.Спецификации по этапам'!$N:$N,"Центр")*($E$2+100%)+SUMIFS('2.3.Спецификации по этапам'!$H:$H,'2.3.Спецификации по этапам'!$L:$L,'4.БКВ'!$A7,'2.3.Спецификации по этапам'!$M:$M,'4.БКВ'!AO$62,'2.3.Спецификации по этапам'!$N:$N,"Децентр")*($E$3+100%) -> 0 | AP7: =SUMIFS('2.3.Спецификации по этапам'!$H:$H,'2.3.Спецификации по этапам'!$L:$L,'4.БКВ'!$A7,'2.3.Спецификации по этапам'!$M:$M,'4.БКВ'!AP$62,'2.3.Спецификации по этапам'!$N:$N,"Центр")*($E$2+100%)+SUMIFS('2.3.Спецификации по этапам'!$H:$H,'2.3.Спецификации по этапам'!$L:$L,'4.БКВ'!$A7,'2.3.Спецификации по этапам'!$M:$M,'4.БКВ'!AP$62,'2.3.Спецификации по этапам'!$N:$N,"Децентр")*($E$3+100%) -> 0 | AQ7: =SUMIFS('2.3.Спецификации по этапам'!$H:$H,'2.3.Спецификации по этапам'!$L:$L,'4.БКВ'!$A7,'2.3.Спецификации по этапам'!$M:$M,'4.БКВ'!AQ$62,'2.3.Спецификации по этапам'!$N:$N,"Центр")*($E$2+100%)+SUMIFS('2.3.Спецификации по этапам'!$H:$H,'2.3.Спецификации по этапам'!$L:$L,'4.БКВ'!$A7,'2.3.Спецификации по этапам'!$M:$M,'4.БКВ'!AQ$62,'2.3.Спецификации по этапам'!$N:$N,"Децентр")*($E$3+100%) -> 0 | AR7: =SUMIFS('2.3.Спецификации по этапам'!$H:$H,'2.3.Спецификации по этапам'!$L:$L,'4.БКВ'!$A7,'2.3.Спецификации по этапам'!$M:$M,'4.БКВ'!AR$62,'2.3.Спецификации по этапам'!$N:$N,"Центр")*($E$2+100%)+SUMIFS('2.3.Спецификации по этапам'!$H:$H,'2.3.Спецификации по этапам'!$L:$L,'4.БКВ'!$A7,'2.3.Спецификации по этапам'!$M:$M,'4.БКВ'!AR$62,'2.3.Спецификации по этапам'!$N:$N,"Децентр")*($E$3+100%) -> 0 | AS7: =SUMIFS('2.3.Спецификации по этапам'!$H:$H,'2.3.Спецификации по этапам'!$L:$L,'4.БКВ'!$A7,'2.3.Спецификации по этапам'!$M:$M,'4.БКВ'!AS$62,'2.3.Спецификации по этапам'!$N:$N,"Центр")*($E$2+100%)+SUMIFS('2.3.Спецификации по этапам'!$H:$H,'2.3.Спецификации по этапам'!$L:$L,'4.БКВ'!$A7,'2.3.Спецификации по этапам'!$M:$M,'4.БКВ'!AS$62,'2.3.Спецификации по этапам'!$N:$N,"Децентр")*($E$3+100%) -> 0 | AT7: =SUMIFS('2.3.Спецификации по этапам'!$H:$H,'2.3.Спецификации по этапам'!$L:$L,'4.БКВ'!$A7,'2.3.Спецификации по этапам'!$M:$M,'4.БКВ'!AT$62,'2.3.Спецификации по этапам'!$N:$N,"Центр")*($E$2+100%)+SUMIFS('2.3.Спецификации по этапам'!$H:$H,'2.3.Спецификации по этапам'!$L:$L,'4.БКВ'!$A7,'2.3.Спецификации по этапам'!$M:$M,'4.БКВ'!AT$62,'2.3.Спецификации по этапам'!$N:$N,"Децентр")*($E$3+100%) -> 0 | AU7: =SUMIFS('2.3.Спецификации по этапам'!$H:$H,'2.3.Спецификации по этапам'!$L:$L,'4.БКВ'!$A7,'2.3.Спецификации по этапам'!$M:$M,'4.БКВ'!AU$62,'2.3.Спецификации по этапам'!$N:$N,"Центр")*($E$2+100%)+SUMIFS('2.3.Спецификации по этапам'!$H:$H,'2.3.Спецификации по этапам'!$L:$L,'4.БКВ'!$A7,'2.3.Спецификации по этапам'!$M:$M,'4.БКВ'!AU$62,'2.3.Спецификации по этапам'!$N:$N,"Децентр")*($E$3+100%) -> 0 | AV7: =SUMIFS('2.3.Спецификации по этапам'!$H:$H,'2.3.Спецификации по этапам'!$L:$L,'4.БКВ'!$A7,'2.3.Спецификации по этапам'!$M:$M,'4.БКВ'!AV$62,'2.3.Спецификации по этапам'!$N:$N,"Центр")*($E$2+100%)+SUMIFS('2.3.Спецификации по этапам'!$H:$H,'2.3.Спецификации по этапам'!$L:$L,'4.БКВ'!$A7,'2.3.Спецификации по этапам'!$M:$M,'4.БКВ'!AV$62,'2.3.Спецификации по этапам'!$N:$N,"Децентр")*($E$3+100%) -> 0 | AW7: =SUM(E7:H7) -> 0 | AX7: =SUM(I7:L7) -> 0 | AY7: =SUM(M7:P7) -> 0 | AZ7: =SUM(Q7:T7) -> 0 | BA7: =SUM(U7:X7) -> 0 | BB7: =SUM(Y7:AB7) -> 0 | BC7: =SUM(AC7:AF7) -> 0 | BD7: =SUM(AG7:AJ7) -> 0 | BE7: =SUM(AK7:AN7) -> 0 | BF7: =SUM(AO7:AR7) -> 0 | BG7: =SUM(AS7:AV7) -> 0 | BH7: =SUM(AW7:BG7) -> 0
A8: =A64 -> Оборудование и лицензии (срок службы 2 года) | B8: ='3.Входные данные'!$E$29 -> в тыс. тенге | C8: =SUM(AW8:BG8) -> 0 | E8: =SUMIFS('2.3.Спецификации по этапам'!$H:$H,'2.3.Спецификации по этапам'!$L:$L,'4.БКВ'!$A8,'2.3.Спецификации по этапам'!$M:$M,'4.БКВ'!E$62,'2.3.Спецификации по этапам'!$N:$N,"Центр")*($E$2+100%)+SUMIFS('2.3.Спецификации по этапам'!$H:$H,'2.3.Спецификации по этапам'!$L:$L,'4.БКВ'!$A8,'2.3.Спецификации по этапам'!$M:$M,'4.БКВ'!E$62,'2.3.Спецификации по этапам'!$N:$N,"Децентр")*($E$3+100%) -> 0 | F8: =SUMIFS('2.3.Спецификации по этапам'!$H:$H,'2.3.Спецификации по этапам'!$L:$L,'4.БКВ'!$A8,'2.3.Спецификации по этапам'!$M:$M,'4.БКВ'!F$62,'2.3.Спецификации по этапам'!$N:$N,"Центр")*($E$2+100%)+SUMIFS('2.3.Спецификации по этапам'!$H:$H,'2.3.Спецификации по этапам'!$L:$L,'4.БКВ'!$A8,'2.3.Спецификации по этапам'!$M:$M,'4.БКВ'!F$62,'2.3.Спецификации по этапам'!$N:$N,"Децентр")*($E$3+100%) -> 0 | G8: =SUMIFS('2.3.Спецификации по этапам'!$H:$H,'2.3.Спецификации по этапам'!$L:$L,'4.БКВ'!$A8,'2.3.Спецификации по этапам'!$M:$M,'4.БКВ'!G$62,'2.3.Спецификации по этапам'!$N:$N,"Центр")*($E$2+100%)+SUMIFS('2.3.Спецификации по этапам'!$H:$H,'2.3.Спецификации по этапам'!$L:$L,'4.БКВ'!$A8,'2.3.Спецификации по этапам'!$M:$M,'4.БКВ'!G$62,'2.3.Спецификации по этапам'!$N:$N,"Децентр")*($E$3+100%) -> 0 | H8: =SUMIFS('2.3.Спецификации по этапам'!$H:$H,'2.3.Спецификации по этапам'!$L:$L,'4.БКВ'!$A8,'2.3.Спецификации по этапам'!$M:$M,'4.БКВ'!H$62,'2.3.Спецификации по этапам'!$N:$N,"Центр")*($E$2+100%)+SUMIFS('2.3.Спецификации по этапам'!$H:$H,'2.3.Спецификации по этапам'!$L:$L,'4.БКВ'!$A8,'2.3.Спецификации по этапам'!$M:$M,'4.БКВ'!H$62,'2.3.Спецификации по этапам'!$N:$N,"Децентр")*($E$3+100%) -> 0 | I8: =SUMIFS('2.3.Спецификации по этапам'!$H:$H,'2.3.Спецификации по этапам'!$L:$L,'4.БКВ'!$A8,'2.3.Спецификации по этапам'!$M:$M,'4.БКВ'!I$62,'2.3.Спецификации по этапам'!$N:$N,"Центр")*($E$2+100%)+SUMIFS('2.3.Спецификации по этапам'!$H:$H,'2.3.Спецификации по этапам'!$L:$L,'4.БКВ'!$A8,'2.3.Спецификации по этапам'!$M:$M,'4.БКВ'!I$62,'2.3.Спецификации по этапам'!$N:$N,"Децентр")*($E$3+100%) -> 0 | J8: =SUMIFS('2.3.Спецификации по этапам'!$H:$H,'2.3.Спецификации по этапам'!$L:$L,'4.БКВ'!$A8,'2.3.Спецификации по этапам'!$M:$M,'4.БКВ'!J$62,'2.3.Спецификации по этапам'!$N:$N,"Центр")*($E$2+100%)+SUMIFS('2.3.Спецификации по этапам'!$H:$H,'2.3.Спецификации по этапам'!$L:$L,'4.БКВ'!$A8,'2.3.Спецификации по этапам'!$M:$M,'4.БКВ'!J$62,'2.3.Спецификации по этапам'!$N:$N,"Децентр")*($E$3+100%) -> 0 | K8: =SUMIFS('2.3.Спецификации по этапам'!$H:$H,'2.3.Спецификации по этапам'!$L:$L,'4.БКВ'!$A8,'2.3.Спецификации по этапам'!$M:$M,'4.БКВ'!K$62,'2.3.Спецификации по этапам'!$N:$N,"Центр")*($E$2+100%)+SUMIFS('2.3.Спецификации по этапам'!$H:$H,'2.3.Спецификации по этапам'!$L:$L,'4.БКВ'!$A8,'2.3.Спецификации по этапам'!$M:$M,'4.БКВ'!K$62,'2.3.Спецификации по этапам'!$N:$N,"Децентр")*($E$3+100%) -> 0 | L8: =SUMIFS('2.3.Спецификации по этапам'!$H:$H,'2.3.Спецификации по этапам'!$L:$L,'4.БКВ'!$A8,'2.3.Спецификации по этапам'!$M:$M,'4.БКВ'!L$62,'2.3.Спецификации по этапам'!$N:$N,"Центр")*($E$2+100%)+SUMIFS('2.3.Спецификации по этапам'!$H:$H,'2.3.Спецификации по этапам'!$L:$L,'4.БКВ'!$A8,'2.3.Спецификации по этапам'!$M:$M,'4.БКВ'!L$62,'2.3.Спецификации по этапам'!$N:$N,"Децентр")*($E$3+100%) -> 0 | M8: =SUMIFS('2.3.Спецификации по этапам'!$H:$H,'2.3.Спецификации по этапам'!$L:$L,'4.БКВ'!$A8,'2.3.Спецификации по этапам'!$M:$M,'4.БКВ'!M$62,'2.3.Спецификации по этапам'!$N:$N,"Центр")*($E$2+100%)+SUMIFS('2.3.Спецификации по этапам'!$H:$H,'2.3.Спецификации по этапам'!$L:$L,'4.БКВ'!$A8,'2.3.Спецификации по этапам'!$M:$M,'4.БКВ'!M$62,'2.3.Спецификации по этапам'!$N:$N,"Децентр")*($E$3+100%) -> 0 | N8: =SUMIFS('2.3.Спецификации по этапам'!$H:$H,'2.3.Спецификации по этапам'!$L:$L,'4.БКВ'!$A8,'2.3.Спецификации по этапам'!$M:$M,'4.БКВ'!N$62,'2.3.Спецификации по этапам'!$N:$N,"Центр")*($E$2+100%)+SUMIFS('2.3.Спецификации по этапам'!$H:$H,'2.3.Спецификации по этапам'!$L:$L,'4.БКВ'!$A8,'2.3.Спецификации по этапам'!$M:$M,'4.БКВ'!N$62,'2.3.Спецификации по этапам'!$N:$N,"Децентр")*($E$3+100%) -> 0 | O8: =SUMIFS('2.3.Спецификации по этапам'!$H:$H,'2.3.Спецификации по этапам'!$L:$L,'4.БКВ'!$A8,'2.3.Спецификации по этапам'!$M:$M,'4.БКВ'!O$62,'2.3.Спецификации по этапам'!$N:$N,"Центр")*($E$2+100%)+SUMIFS('2.3.Спецификации по этапам'!$H:$H,'2.3.Спецификации по этапам'!$L:$L,'4.БКВ'!$A8,'2.3.Спецификации по этапам'!$M:$M,'4.БКВ'!O$62,'2.3.Спецификации по этапам'!$N:$N,"Децентр")*($E$3+100%) -> 0 | P8: =SUMIFS('2.3.Спецификации по этапам'!$H:$H,'2.3.Спецификации по этапам'!$L:$L,'4.БКВ'!$A8,'2.3.Спецификации по этапам'!$M:$M,'4.БКВ'!P$62,'2.3.Спецификации по этапам'!$N:$N,"Центр")*($E$2+100%)+SUMIFS('2.3.Спецификации по этапам'!$H:$H,'2.3.Спецификации по этапам'!$L:$L,'4.БКВ'!$A8,'2.3.Спецификации по этапам'!$M:$M,'4.БКВ'!P$62,'2.3.Спецификации по этапам'!$N:$N,"Децентр")*($E$3+100%) -> 0 | Q8: =SUMIFS('2.3.Спецификации по этапам'!$H:$H,'2.3.Спецификации по этапам'!$L:$L,'4.БКВ'!$A8,'2.3.Спецификации по этапам'!$M:$M,'4.БКВ'!Q$62,'2.3.Спецификации по этапам'!$N:$N,"Центр")*($E$2+100%)+SUMIFS('2.3.Спецификации по этапам'!$H:$H,'2.3.Спецификации по этапам'!$L:$L,'4.БКВ'!$A8,'2.3.Спецификации по этапам'!$M:$M,'4.БКВ'!Q$62,'2.3.Спецификации по этапам'!$N:$N,"Децентр")*($E$3+100%) -> 0 | R8: =SUMIFS('2.3.Спецификации по этапам'!$H:$H,'2.3.Спецификации по этапам'!$L:$L,'4.БКВ'!$A8,'2.3.Спецификации по этапам'!$M:$M,'4.БКВ'!R$62,'2.3.Спецификации по этапам'!$N:$N,"Центр")*($E$2+100%)+SUMIFS('2.3.Спецификации по этапам'!$H:$H,'2.3.Спецификации по этапам'!$L:$L,'4.БКВ'!$A8,'2.3.Спецификации по этапам'!$M:$M,'4.БКВ'!R$62,'2.3.Спецификации по этапам'!$N:$N,"Децентр")*($E$3+100%) -> 0 | S8: =SUMIFS('2.3.Спецификации по этапам'!$H:$H,'2.3.Спецификации по этапам'!$L:$L,'4.БКВ'!$A8,'2.3.Спецификации по этапам'!$M:$M,'4.БКВ'!S$62,'2.3.Спецификации по этапам'!$N:$N,"Центр")*($E$2+100%)+SUMIFS('2.3.Спецификации по этапам'!$H:$H,'2.3.Спецификации по этапам'!$L:$L,'4.БКВ'!$A8,'2.3.Спецификации по этапам'!$M:$M,'4.БКВ'!S$62,'2.3.Спецификации по этапам'!$N:$N,"Децентр")*($E$3+100%) -> 0 | T8: =SUMIFS('2.3.Спецификации по этапам'!$H:$H,'2.3.Спецификации по этапам'!$L:$L,'4.БКВ'!$A8,'2.3.Спецификации по этапам'!$M:$M,'4.БКВ'!T$62,'2.3.Спецификации по этапам'!$N:$N,"Центр")*($E$2+100%)+SUMIFS('2.3.Спецификации по этапам'!$H:$H,'2.3.Спецификации по этапам'!$L:$L,'4.БКВ'!$A8,'2.3.Спецификации по этапам'!$M:$M,'4.БКВ'!T$62,'2.3.Спецификации по этапам'!$N:$N,"Децентр")*($E$3+100%) -> 0 | U8: =SUMIFS('2.3.Спецификации по этапам'!$H:$H,'2.3.Спецификации по этапам'!$L:$L,'4.БКВ'!$A8,'2.3.Спецификации по этапам'!$M:$M,'4.БКВ'!U$62,'2.3.Спецификации по этапам'!$N:$N,"Центр")*($E$2+100%)+SUMIFS('2.3.Спецификации по этапам'!$H:$H,'2.3.Спецификации по этапам'!$L:$L,'4.БКВ'!$A8,'2.3.Спецификации по этапам'!$M:$M,'4.БКВ'!U$62,'2.3.Спецификации по этапам'!$N:$N,"Децентр")*($E$3+100%) -> 0 | V8: =SUMIFS('2.3.Спецификации по этапам'!$H:$H,'2.3.Спецификации по этапам'!$L:$L,'4.БКВ'!$A8,'2.3.Спецификации по этапам'!$M:$M,'4.БКВ'!V$62,'2.3.Спецификации по этапам'!$N:$N,"Центр")*($E$2+100%)+SUMIFS('2.3.Спецификации по этапам'!$H:$H,'2.3.Спецификации по этапам'!$L:$L,'4.БКВ'!$A8,'2.3.Спецификации по этапам'!$M:$M,'4.БКВ'!V$62,'2.3.Спецификации по этапам'!$N:$N,"Децентр")*($E$3+100%) -> 0 | W8: =SUMIFS('2.3.Спецификации по этапам'!$H:$H,'2.3.Спецификации по этапам'!$L:$L,'4.БКВ'!$A8,'2.3.Спецификации по этапам'!$M:$M,'4.БКВ'!W$62,'2.3.Спецификации по этапам'!$N:$N,"Центр")*($E$2+100%)+SUMIFS('2.3.Спецификации по этапам'!$H:$H,'2.3.Спецификации по этапам'!$L:$L,'4.БКВ'!$A8,'2.3.Спецификации по этапам'!$M:$M,'4.БКВ'!W$62,'2.3.Спецификации по этапам'!$N:$N,"Децентр")*($E$3+100%) -> 0 | X8: =SUMIFS('2.3.Спецификации по этапам'!$H:$H,'2.3.Спецификации по этапам'!$L:$L,'4.БКВ'!$A8,'2.3.Спецификации по этапам'!$M:$M,'4.БКВ'!X$62,'2.3.Спецификации по этапам'!$N:$N,"Центр")*($E$2+100%)+SUMIFS('2.3.Спецификации по этапам'!$H:$H,'2.3.Спецификации по этапам'!$L:$L,'4.БКВ'!$A8,'2.3.Спецификации по этапам'!$M:$M,'4.БКВ'!X$62,'2.3.Спецификации по этапам'!$N:$N,"Децентр")*($E$3+100%) -> 0 | Y8: =SUMIFS('2.3.Спецификации по этапам'!$H:$H,'2.3.Спецификации по этапам'!$L:$L,'4.БКВ'!$A8,'2.3.Спецификации по этапам'!$M:$M,'4.БКВ'!Y$62,'2.3.Спецификации по этапам'!$N:$N,"Центр")*($E$2+100%)+SUMIFS('2.3.Спецификации по этапам'!$H:$H,'2.3.Спецификации по этапам'!$L:$L,'4.БКВ'!$A8,'2.3.Спецификации по этапам'!$M:$M,'4.БКВ'!Y$62,'2.3.Спецификации по этапам'!$N:$N,"Децентр")*($E$3+100%) -> 0 | Z8: =SUMIFS('2.3.Спецификации по этапам'!$H:$H,'2.3.Спецификации по этапам'!$L:$L,'4.БКВ'!$A8,'2.3.Спецификации по этапам'!$M:$M,'4.БКВ'!Z$62,'2.3.Спецификации по этапам'!$N:$N,"Центр")*($E$2+100%)+SUMIFS('2.3.Спецификации по этапам'!$H:$H,'2.3.Спецификации по этапам'!$L:$L,'4.БКВ'!$A8,'2.3.Спецификации по этапам'!$M:$M,'4.БКВ'!Z$62,'2.3.Спецификации по этапам'!$N:$N,"Децентр")*($E$3+100%) -> 0 | AA8: =SUMIFS('2.3.Спецификации по этапам'!$H:$H,'2.3.Спецификации по этапам'!$L:$L,'4.БКВ'!$A8,'2.3.Спецификации по этапам'!$M:$M,'4.БКВ'!AA$62,'2.3.Спецификации по этапам'!$N:$N,"Центр")*($E$2+100%)+SUMIFS('2.3.Спецификации по этапам'!$H:$H,'2.3.Спецификации по этапам'!$L:$L,'4.БКВ'!$A8,'2.3.Спецификации по этапам'!$M:$M,'4.БКВ'!AA$62,'2.3.Спецификации по этапам'!$N:$N,"Децентр")*($E$3+100%) -> 0 | AB8: =SUMIFS('2.3.Спецификации по этапам'!$H:$H,'2.3.Спецификации по этапам'!$L:$L,'4.БКВ'!$A8,'2.3.Спецификации по этапам'!$M:$M,'4.БКВ'!AB$62,'2.3.Спецификации по этапам'!$N:$N,"Центр")*($E$2+100%)+SUMIFS('2.3.Спецификации по этапам'!$H:$H,'2.3.Спецификации по этапам'!$L:$L,'4.БКВ'!$A8,'2.3.Спецификации по этапам'!$M:$M,'4.БКВ'!AB$62,'2.3.Спецификации по этапам'!$N:$N,"Децентр")*($E$3+100%) -> 0 | AC8: =SUMIFS('2.3.Спецификации по этапам'!$H:$H,'2.3.Спецификации по этапам'!$L:$L,'4.БКВ'!$A8,'2.3.Спецификации по этапам'!$M:$M,'4.БКВ'!AC$62,'2.3.Спецификации по этапам'!$N:$N,"Центр")*($E$2+100%)+SUMIFS('2.3.Спецификации по этапам'!$H:$H,'2.3.Спецификации по этапам'!$L:$L,'4.БКВ'!$A8,'2.3.Спецификации по этапам'!$M:$M,'4.БКВ'!AC$62,'2.3.Спецификации по этапам'!$N:$N,"Децентр")*($E$3+100%) -> 0 | AD8: =SUMIFS('2.3.Спецификации по этапам'!$H:$H,'2.3.Спецификации по этапам'!$L:$L,'4.БКВ'!$A8,'2.3.Спецификации по этапам'!$M:$M,'4.БКВ'!AD$62,'2.3.Спецификации по этапам'!$N:$N,"Центр")*($E$2+100%)+SUMIFS('2.3.Спецификации по этапам'!$H:$H,'2.3.Спецификации по этапам'!$L:$L,'4.БКВ'!$A8,'2.3.Спецификации по этапам'!$M:$M,'4.БКВ'!AD$62,'2.3.Спецификации по этапам'!$N:$N,"Децентр")*($E$3+100%) -> 0 | AE8: =SUMIFS('2.3.Спецификации по этапам'!$H:$H,'2.3.Спецификации по этапам'!$L:$L,'4.БКВ'!$A8,'2.3.Спецификации по этапам'!$M:$M,'4.БКВ'!AE$62,'2.3.Спецификации по этапам'!$N:$N,"Центр")*($E$2+100%)+SUMIFS('2.3.Спецификации по этапам'!$H:$H,'2.3.Спецификации по этапам'!$L:$L,'4.БКВ'!$A8,'2.3.Спецификации по этапам'!$M:$M,'4.БКВ'!AE$62,'2.3.Спецификации по этапам'!$N:$N,"Децентр")*($E$3+100%) -> 0 | AF8: =SUMIFS('2.3.Спецификации по этапам'!$H:$H,'2.3.Спецификации по этапам'!$L:$L,'4.БКВ'!$A8,'2.3.Спецификации по этапам'!$M:$M,'4.БКВ'!AF$62,'2.3.Спецификации по этапам'!$N:$N,"Центр")*($E$2+100%)+SUMIFS('2.3.Спецификации по этапам'!$H:$H,'2.3.Спецификации по этапам'!$L:$L,'4.БКВ'!$A8,'2.3.Спецификации по этапам'!$M:$M,'4.БКВ'!AF$62,'2.3.Спецификации по этапам'!$N:$N,"Децентр")*($E$3+100%) -> 0 | AG8: =SUMIFS('2.3.Спецификации по этапам'!$H:$H,'2.3.Спецификации по этапам'!$L:$L,'4.БКВ'!$A8,'2.3.Спецификации по этапам'!$M:$M,'4.БКВ'!AG$62,'2.3.Спецификации по этапам'!$N:$N,"Центр")*($E$2+100%)+SUMIFS('2.3.Спецификации по этапам'!$H:$H,'2.3.Спецификации по этапам'!$L:$L,'4.БКВ'!$A8,'2.3.Спецификации по этапам'!$M:$M,'4.БКВ'!AG$62,'2.3.Спецификации по этапам'!$N:$N,"Децентр")*($E$3+100%) -> 0 | AH8: =SUMIFS('2.3.Спецификации по этапам'!$H:$H,'2.3.Спецификации по этапам'!$L:$L,'4.БКВ'!$A8,'2.3.Спецификации по этапам'!$M:$M,'4.БКВ'!AH$62,'2.3.Спецификации по этапам'!$N:$N,"Центр")*($E$2+100%)+SUMIFS('2.3.Спецификации по этапам'!$H:$H,'2.3.Спецификации по этапам'!$L:$L,'4.БКВ'!$A8,'2.3.Спецификации по этапам'!$M:$M,'4.БКВ'!AH$62,'2.3.Спецификации по этапам'!$N:$N,"Децентр")*($E$3+100%) -> 0 | AI8: =SUMIFS('2.3.Спецификации по этапам'!$H:$H,'2.3.Спецификации по этапам'!$L:$L,'4.БКВ'!$A8,'2.3.Спецификации по этапам'!$M:$M,'4.БКВ'!AI$62,'2.3.Спецификации по этапам'!$N:$N,"Центр")*($E$2+100%)+SUMIFS('2.3.Спецификации по этапам'!$H:$H,'2.3.Спецификации по этапам'!$L:$L,'4.БКВ'!$A8,'2.3.Спецификации по этапам'!$M:$M,'4.БКВ'!AI$62,'2.3.Спецификации по этапам'!$N:$N,"Децентр")*($E$3+100%) -> 0 | AJ8: =SUMIFS('2.3.Спецификации по этапам'!$H:$H,'2.3.Спецификации по этапам'!$L:$L,'4.БКВ'!$A8,'2.3.Спецификации по этапам'!$M:$M,'4.БКВ'!AJ$62,'2.3.Спецификации по этапам'!$N:$N,"Центр")*($E$2+100%)+SUMIFS('2.3.Спецификации по этапам'!$H:$H,'2.3.Спецификации по этапам'!$L:$L,'4.БКВ'!$A8,'2.3.Спецификации по этапам'!$M:$M,'4.БКВ'!AJ$62,'2.3.Спецификации по этапам'!$N:$N,"Децентр")*($E$3+100%) -> 0 | AK8: =SUMIFS('2.3.Спецификации по этапам'!$H:$H,'2.3.Спецификации по этапам'!$L:$L,'4.БКВ'!$A8,'2.3.Спецификации по этапам'!$M:$M,'4.БКВ'!AK$62,'2.3.Спецификации по этапам'!$N:$N,"Центр")*($E$2+100%)+SUMIFS('2.3.Спецификации по этапам'!$H:$H,'2.3.Спецификации по этапам'!$L:$L,'4.БКВ'!$A8,'2.3.Спецификации по этапам'!$M:$M,'4.БКВ'!AK$62,'2.3.Спецификации по этапам'!$N:$N,"Децентр")*($E$3+100%) -> 0 | AL8: =SUMIFS('2.3.Спецификации по этапам'!$H:$H,'2.3.Спецификации по этапам'!$L:$L,'4.БКВ'!$A8,'2.3.Спецификации по этапам'!$M:$M,'4.БКВ'!AL$62,'2.3.Спецификации по этапам'!$N:$N,"Центр")*($E$2+100%)+SUMIFS('2.3.Спецификации по этапам'!$H:$H,'2.3.Спецификации по этапам'!$L:$L,'4.БКВ'!$A8,'2.3.Спецификации по этапам'!$M:$M,'4.БКВ'!AL$62,'2.3.Спецификации по этапам'!$N:$N,"Децентр")*($E$3+100%) -> 0 | AM8: =SUMIFS('2.3.Спецификации по этапам'!$H:$H,'2.3.Спецификации по этапам'!$L:$L,'4.БКВ'!$A8,'2.3.Спецификации по этапам'!$M:$M,'4.БКВ'!AM$62,'2.3.Спецификации по этапам'!$N:$N,"Центр")*($E$2+100%)+SUMIFS('2.3.Спецификации по этапам'!$H:$H,'2.3.Спецификации по этапам'!$L:$L,'4.БКВ'!$A8,'2.3.Спецификации по этапам'!$M:$M,'4.БКВ'!AM$62,'2.3.Спецификации по этапам'!$N:$N,"Децентр")*($E$3+100%) -> 0 | AN8: =SUMIFS('2.3.Спецификации по этапам'!$H:$H,'2.3.Спецификации по этапам'!$L:$L,'4.БКВ'!$A8,'2.3.Спецификации по этапам'!$M:$M,'4.БКВ'!AN$62,'2.3.Спецификации по этапам'!$N:$N,"Центр")*($E$2+100%)+SUMIFS('2.3.Спецификации по этапам'!$H:$H,'2.3.Спецификации по этапам'!$L:$L,'4.БКВ'!$A8,'2.3.Спецификации по этапам'!$M:$M,'4.БКВ'!AN$62,'2.3.Спецификации по этапам'!$N:$N,"Децентр")*($E$3+100%) -> 0 | AO8: =SUMIFS('2.3.Спецификации по этапам'!$H:$H,'2.3.Спецификации по этапам'!$L:$L,'4.БКВ'!$A8,'2.3.Спецификации по этапам'!$M:$M,'4.БКВ'!AO$62,'2.3.Спецификации по этапам'!$N:$N,"Центр")*($E$2+100%)+SUMIFS('2.3.Спецификации по этапам'!$H:$H,'2.3.Спецификации по этапам'!$L:$L,'4.БКВ'!$A8,'2.3.Спецификации по этапам'!$M:$M,'4.БКВ'!AO$62,'2.3.Спецификации по этапам'!$N:$N,"Децентр")*($E$3+100%) -> 0 | AP8: =SUMIFS('2.3.Спецификации по этапам'!$H:$H,'2.3.Спецификации по этапам'!$L:$L,'4.БКВ'!$A8,'2.3.Спецификации по этапам'!$M:$M,'4.БКВ'!AP$62,'2.3.Спецификации по этапам'!$N:$N,"Центр")*($E$2+100%)+SUMIFS('2.3.Спецификации по этапам'!$H:$H,'2.3.Спецификации по этапам'!$L:$L,'4.БКВ'!$A8,'2.3.Спецификации по этапам'!$M:$M,'4.БКВ'!AP$62,'2.3.Спецификации по этапам'!$N:$N,"Децентр")*($E$3+100%) -> 0 | AQ8: =SUMIFS('2.3.Спецификации по этапам'!$H:$H,'2.3.Спецификации по этапам'!$L:$L,'4.БКВ'!$A8,'2.3.Спецификации по этапам'!$M:$M,'4.БКВ'!AQ$62,'2.3.Спецификации по этапам'!$N:$N,"Центр")*($E$2+100%)+SUMIFS('2.3.Спецификации по этапам'!$H:$H,'2.3.Спецификации по этапам'!$L:$L,'4.БКВ'!$A8,'2.3.Спецификации по этапам'!$M:$M,'4.БКВ'!AQ$62,'2.3.Спецификации по этапам'!$N:$N,"Децентр")*($E$3+100%) -> 0 | AR8: =SUMIFS('2.3.Спецификации по этапам'!$H:$H,'2.3.Спецификации по этапам'!$L:$L,'4.БКВ'!$A8,'2.3.Спецификации по этапам'!$M:$M,'4.БКВ'!AR$62,'2.3.Спецификации по этапам'!$N:$N,"Центр")*($E$2+100%)+SUMIFS('2.3.Спецификации по этапам'!$H:$H,'2.3.Спецификации по этапам'!$L:$L,'4.БКВ'!$A8,'2.3.Спецификации по этапам'!$M:$M,'4.БКВ'!AR$62,'2.3.Спецификации по этапам'!$N:$N,"Децентр")*($E$3+100%) -> 0 | AS8: =SUMIFS('2.3.Спецификации по этапам'!$H:$H,'2.3.Спецификации по этапам'!$L:$L,'4.БКВ'!$A8,'2.3.Спецификации по этапам'!$M:$M,'4.БКВ'!AS$62,'2.3.Спецификации по этапам'!$N:$N,"Центр")*($E$2+100%)+SUMIFS('2.3.Спецификации по этапам'!$H:$H,'2.3.Спецификации по этапам'!$L:$L,'4.БКВ'!$A8,'2.3.Спецификации по этапам'!$M:$M,'4.БКВ'!AS$62,'2.3.Спецификации по этапам'!$N:$N,"Децентр")*($E$3+100%) -> 0 | AT8: =SUMIFS('2.3.Спецификации по этапам'!$H:$H,'2.3.Спецификации по этапам'!$L:$L,'4.БКВ'!$A8,'2.3.Спецификации по этапам'!$M:$M,'4.БКВ'!AT$62,'2.3.Спецификации по этапам'!$N:$N,"Центр")*($E$2+100%)+SUMIFS('2.3.Спецификации по этапам'!$H:$H,'2.3.Спецификации по этапам'!$L:$L,'4.БКВ'!$A8,'2.3.Спецификации по этапам'!$M:$M,'4.БКВ'!AT$62,'2.3.Спецификации по этапам'!$N:$N,"Децентр")*($E$3+100%) -> 0 | AU8: =SUMIFS('2.3.Спецификации по этапам'!$H:$H,'2.3.Спецификации по этапам'!$L:$L,'4.БКВ'!$A8,'2.3.Спецификации по этапам'!$M:$M,'4.БКВ'!AU$62,'2.3.Спецификации по этапам'!$N:$N,"Центр")*($E$2+100%)+SUMIFS('2.3.Спецификации по этапам'!$H:$H,'2.3.Спецификации по этапам'!$L:$L,'4.БКВ'!$A8,'2.3.Спецификации по этапам'!$M:$M,'4.БКВ'!AU$62,'2.3.Спецификации по этапам'!$N:$N,"Децентр")*($E$3+100%) -> 0 | AV8: =SUMIFS('2.3.Спецификации по этапам'!$H:$H,'2.3.Спецификации по этапам'!$L:$L,'4.БКВ'!$A8,'2.3.Спецификации по этапам'!$M:$M,'4.БКВ'!AV$62,'2.3.Спецификации по этапам'!$N:$N,"Центр")*($E$2+100%)+SUMIFS('2.3.Спецификации по этапам'!$H:$H,'2.3.Спецификации по этапам'!$L:$L,'4.БКВ'!$A8,'2.3.Спецификации по этапам'!$M:$M,'4.БКВ'!AV$62,'2.3.Спецификации по этапам'!$N:$N,"Децентр")*($E$3+100%) -> 0 | AW8: =SUM(E8:H8) -> 0 | AX8: =SUM(I8:L8) -> 0 | AY8: =SUM(M8:P8) -> 0 | AZ8: =SUM(Q8:T8) -> 0 | BA8: =SUM(U8:X8) -> 0 | BB8: =SUM(Y8:AB8) -> 0 | BC8: =SUM(AC8:AF8) -> 0 | BD8: =SUM(AG8:AJ8) -> 0 | BE8: =SUM(AK8:AN8) -> 0 | BF8: =SUM(AO8:AR8) -> 0 | BG8: =SUM(AS8:AV8) -> 0 | BH8: =SUM(AW8:BG8) -> 0
A9: Оборудование и лицензии (срок службы 3 года) | B9: ='3.Входные данные'!$E$29 -> в тыс. тенге | C9: =SUM(AW9:BG9) -> 0 | E9: =SUMIFS('2.3.Спецификации по этапам'!$H:$H,'2.3.Спецификации по этапам'!$L:$L,'4.БКВ'!$A9,'2.3.Спецификации по этапам'!$M:$M,'4.БКВ'!E$62,'2.3.Спецификации по этапам'!$N:$N,"Центр")*($E$2+100%)+SUMIFS('2.3.Спецификации по этапам'!$H:$H,'2.3.Спецификации по этапам'!$L:$L,'4.БКВ'!$A9,'2.3.Спецификации по этапам'!$M:$M,'4.БКВ'!E$62,'2.3.Спецификации по этапам'!$N:$N,"Децентр")*($E$3+100%) -> 0 | F9: =SUMIFS('2.3.Спецификации по этапам'!$H:$H,'2.3.Спецификации по этапам'!$L:$L,'4.БКВ'!$A9,'2.3.Спецификации по этапам'!$M:$M,'4.БКВ'!F$62,'2.3.Спецификации по этапам'!$N:$N,"Центр")*($E$2+100%)+SUMIFS('2.3.Спецификации по этапам'!$H:$H,'2.3.Спецификации по этапам'!$L:$L,'4.БКВ'!$A9,'2.3.Спецификации по этапам'!$M:$M,'4.БКВ'!F$62,'2.3.Спецификации по этапам'!$N:$N,"Децентр")*($E$3+100%) -> 0 | G9: =SUMIFS('2.3.Спецификации по этапам'!$H:$H,'2.3.Спецификации по этапам'!$L:$L,'4.БКВ'!$A9,'2.3.Спецификации по этапам'!$M:$M,'4.БКВ'!G$62,'2.3.Спецификации по этапам'!$N:$N,"Центр")*($E$2+100%)+SUMIFS('2.3.Спецификации по этапам'!$H:$H,'2.3.Спецификации по этапам'!$L:$L,'4.БКВ'!$A9,'2.3.Спецификации по этапам'!$M:$M,'4.БКВ'!G$62,'2.3.Спецификации по этапам'!$N:$N,"Децентр")*($E$3+100%) -> 0 | H9: =SUMIFS('2.3.Спецификации по этапам'!$H:$H,'2.3.Спецификации по этапам'!$L:$L,'4.БКВ'!$A9,'2.3.Спецификации по этапам'!$M:$M,'4.БКВ'!H$62,'2.3.Спецификации по этапам'!$N:$N,"Центр")*($E$2+100%)+SUMIFS('2.3.Спецификации по этапам'!$H:$H,'2.3.Спецификации по этапам'!$L:$L,'4.БКВ'!$A9,'2.3.Спецификации по этапам'!$M:$M,'4.БКВ'!H$62,'2.3.Спецификации по этапам'!$N:$N,"Децентр")*($E$3+100%) -> 0 | I9: =SUMIFS('2.3.Спецификации по этапам'!$H:$H,'2.3.Спецификации по этапам'!$L:$L,'4.БКВ'!$A9,'2.3.Спецификации по этапам'!$M:$M,'4.БКВ'!I$62,'2.3.Спецификации по этапам'!$N:$N,"Центр")*($E$2+100%)+SUMIFS('2.3.Спецификации по этапам'!$H:$H,'2.3.Спецификации по этапам'!$L:$L,'4.БКВ'!$A9,'2.3.Спецификации по этапам'!$M:$M,'4.БКВ'!I$62,'2.3.Спецификации по этапам'!$N:$N,"Децентр")*($E$3+100%) -> 0 | J9: =SUMIFS('2.3.Спецификации по этапам'!$H:$H,'2.3.Спецификации по этапам'!$L:$L,'4.БКВ'!$A9,'2.3.Спецификации по этапам'!$M:$M,'4.БКВ'!J$62,'2.3.Спецификации по этапам'!$N:$N,"Центр")*($E$2+100%)+SUMIFS('2.3.Спецификации по этапам'!$H:$H,'2.3.Спецификации по этапам'!$L:$L,'4.БКВ'!$A9,'2.3.Спецификации по этапам'!$M:$M,'4.БКВ'!J$62,'2.3.Спецификации по этапам'!$N:$N,"Децентр")*($E$3+100%) -> 0 | K9: =SUMIFS('2.3.Спецификации по этапам'!$H:$H,'2.3.Спецификации по этапам'!$L:$L,'4.БКВ'!$A9,'2.3.Спецификации по этапам'!$M:$M,'4.БКВ'!K$62,'2.3.Спецификации по этапам'!$N:$N,"Центр")*($E$2+100%)+SUMIFS('2.3.Спецификации по этапам'!$H:$H,'2.3.Спецификации по этапам'!$L:$L,'4.БКВ'!$A9,'2.3.Спецификации по этапам'!$M:$M,'4.БКВ'!K$62,'2.3.Спецификации по этапам'!$N:$N,"Децентр")*($E$3+100%) -> 0 | L9: =SUMIFS('2.3.Спецификации по этапам'!$H:$H,'2.3.Спецификации по этапам'!$L:$L,'4.БКВ'!$A9,'2.3.Спецификации по этапам'!$M:$M,'4.БКВ'!L$62,'2.3.Спецификации по этапам'!$N:$N,"Центр")*($E$2+100%)+SUMIFS('2.3.Спецификации по этапам'!$H:$H,'2.3.Спецификации по этапам'!$L:$L,'4.БКВ'!$A9,'2.3.Спецификации по этапам'!$M:$M,'4.БКВ'!L$62,'2.3.Спецификации по этапам'!$N:$N,"Децентр")*($E$3+100%) -> 0 | M9: =SUMIFS('2.3.Спецификации по этапам'!$H:$H,'2.3.Спецификации по этапам'!$L:$L,'4.БКВ'!$A9,'2.3.Спецификации по этапам'!$M:$M,'4.БКВ'!M$62,'2.3.Спецификации по этапам'!$N:$N,"Центр")*($E$2+100%)+SUMIFS('2.3.Спецификации по этапам'!$H:$H,'2.3.Спецификации по этапам'!$L:$L,'4.БКВ'!$A9,'2.3.Спецификации по этапам'!$M:$M,'4.БКВ'!M$62,'2.3.Спецификации по этапам'!$N:$N,"Децентр")*($E$3+100%) -> 0 | N9: =SUMIFS('2.3.Спецификации по этапам'!$H:$H,'2.3.Спецификации по этапам'!$L:$L,'4.БКВ'!$A9,'2.3.Спецификации по этапам'!$M:$M,'4.БКВ'!N$62,'2.3.Спецификации по этапам'!$N:$N,"Центр")*($E$2+100%)+SUMIFS('2.3.Спецификации по этапам'!$H:$H,'2.3.Спецификации по этапам'!$L:$L,'4.БКВ'!$A9,'2.3.Спецификации по этапам'!$M:$M,'4.БКВ'!N$62,'2.3.Спецификации по этапам'!$N:$N,"Децентр")*($E$3+100%) -> 0 | O9: =SUMIFS('2.3.Спецификации по этапам'!$H:$H,'2.3.Спецификации по этапам'!$L:$L,'4.БКВ'!$A9,'2.3.Спецификации по этапам'!$M:$M,'4.БКВ'!O$62,'2.3.Спецификации по этапам'!$N:$N,"Центр")*($E$2+100%)+SUMIFS('2.3.Спецификации по этапам'!$H:$H,'2.3.Спецификации по этапам'!$L:$L,'4.БКВ'!$A9,'2.3.Спецификации по этапам'!$M:$M,'4.БКВ'!O$62,'2.3.Спецификации по этапам'!$N:$N,"Децентр")*($E$3+100%) -> 0 | P9: =SUMIFS('2.3.Спецификации по этапам'!$H:$H,'2.3.Спецификации по этапам'!$L:$L,'4.БКВ'!$A9,'2.3.Спецификации по этапам'!$M:$M,'4.БКВ'!P$62,'2.3.Спецификации по этапам'!$N:$N,"Центр")*($E$2+100%)+SUMIFS('2.3.Спецификации по этапам'!$H:$H,'2.3.Спецификации по этапам'!$L:$L,'4.БКВ'!$A9,'2.3.Спецификации по этапам'!$M:$M,'4.БКВ'!P$62,'2.3.Спецификации по этапам'!$N:$N,"Децентр")*($E$3+100%) -> 0 | Q9: =SUMIFS('2.3.Спецификации по этапам'!$H:$H,'2.3.Спецификации по этапам'!$L:$L,'4.БКВ'!$A9,'2.3.Спецификации по этапам'!$M:$M,'4.БКВ'!Q$62,'2.3.Спецификации по этапам'!$N:$N,"Центр")*($E$2+100%)+SUMIFS('2.3.Спецификации по этапам'!$H:$H,'2.3.Спецификации по этапам'!$L:$L,'4.БКВ'!$A9,'2.3.Спецификации по этапам'!$M:$M,'4.БКВ'!Q$62,'2.3.Спецификации по этапам'!$N:$N,"Децентр")*($E$3+100%) -> 0 | R9: =SUMIFS('2.3.Спецификации по этапам'!$H:$H,'2.3.Спецификации по этапам'!$L:$L,'4.БКВ'!$A9,'2.3.Спецификации по этапам'!$M:$M,'4.БКВ'!R$62,'2.3.Спецификации по этапам'!$N:$N,"Центр")*($E$2+100%)+SUMIFS('2.3.Спецификации по этапам'!$H:$H,'2.3.Спецификации по этапам'!$L:$L,'4.БКВ'!$A9,'2.3.Спецификации по этапам'!$M:$M,'4.БКВ'!R$62,'2.3.Спецификации по этапам'!$N:$N,"Децентр")*($E$3+100%) -> 0 | S9: =SUMIFS('2.3.Спецификации по этапам'!$H:$H,'2.3.Спецификации по этапам'!$L:$L,'4.БКВ'!$A9,'2.3.Спецификации по этапам'!$M:$M,'4.БКВ'!S$62,'2.3.Спецификации по этапам'!$N:$N,"Центр")*($E$2+100%)+SUMIFS('2.3.Спецификации по этапам'!$H:$H,'2.3.Спецификации по этапам'!$L:$L,'4.БКВ'!$A9,'2.3.Спецификации по этапам'!$M:$M,'4.БКВ'!S$62,'2.3.Спецификации по этапам'!$N:$N,"Децентр")*($E$3+100%) -> 0 | T9: =SUMIFS('2.3.Спецификации по этапам'!$H:$H,'2.3.Спецификации по этапам'!$L:$L,'4.БКВ'!$A9,'2.3.Спецификации по этапам'!$M:$M,'4.БКВ'!T$62,'2.3.Спецификации по этапам'!$N:$N,"Центр")*($E$2+100%)+SUMIFS('2.3.Спецификации по этапам'!$H:$H,'2.3.Спецификации по этапам'!$L:$L,'4.БКВ'!$A9,'2.3.Спецификации по этапам'!$M:$M,'4.БКВ'!T$62,'2.3.Спецификации по этапам'!$N:$N,"Децентр")*($E$3+100%) -> 0 | U9: =SUMIFS('2.3.Спецификации по этапам'!$H:$H,'2.3.Спецификации по этапам'!$L:$L,'4.БКВ'!$A9,'2.3.Спецификации по этапам'!$M:$M,'4.БКВ'!U$62,'2.3.Спецификации по этапам'!$N:$N,"Центр")*($E$2+100%)+SUMIFS('2.3.Спецификации по этапам'!$H:$H,'2.3.Спецификации по этапам'!$L:$L,'4.БКВ'!$A9,'2.3.Спецификации по этапам'!$M:$M,'4.БКВ'!U$62,'2.3.Спецификации по этапам'!$N:$N,"Децентр")*($E$3+100%) -> 0 | V9: =SUMIFS('2.3.Спецификации по этапам'!$H:$H,'2.3.Спецификации по этапам'!$L:$L,'4.БКВ'!$A9,'2.3.Спецификации по этапам'!$M:$M,'4.БКВ'!V$62,'2.3.Спецификации по этапам'!$N:$N,"Центр")*($E$2+100%)+SUMIFS('2.3.Спецификации по этапам'!$H:$H,'2.3.Спецификации по этапам'!$L:$L,'4.БКВ'!$A9,'2.3.Спецификации по этапам'!$M:$M,'4.БКВ'!V$62,'2.3.Спецификации по этапам'!$N:$N,"Децентр")*($E$3+100%) -> 0 | W9: =SUMIFS('2.3.Спецификации по этапам'!$H:$H,'2.3.Спецификации по этапам'!$L:$L,'4.БКВ'!$A9,'2.3.Спецификации по этапам'!$M:$M,'4.БКВ'!W$62,'2.3.Спецификации по этапам'!$N:$N,"Центр")*($E$2+100%)+SUMIFS('2.3.Спецификации по этапам'!$H:$H,'2.3.Спецификации по этапам'!$L:$L,'4.БКВ'!$A9,'2.3.Спецификации по этапам'!$M:$M,'4.БКВ'!W$62,'2.3.Спецификации по этапам'!$N:$N,"Децентр")*($E$3+100%) -> 0 | X9: =SUMIFS('2.3.Спецификации по этапам'!$H:$H,'2.3.Спецификации по этапам'!$L:$L,'4.БКВ'!$A9,'2.3.Спецификации по этапам'!$M:$M,'4.БКВ'!X$62,'2.3.Спецификации по этапам'!$N:$N,"Центр")*($E$2+100%)+SUMIFS('2.3.Спецификации по этапам'!$H:$H,'2.3.Спецификации по этапам'!$L:$L,'4.БКВ'!$A9,'2.3.Спецификации по этапам'!$M:$M,'4.БКВ'!X$62,'2.3.Спецификации по этапам'!$N:$N,"Децентр")*($E$3+100%) -> 0 | Y9: =SUMIFS('2.3.Спецификации по этапам'!$H:$H,'2.3.Спецификации по этапам'!$L:$L,'4.БКВ'!$A9,'2.3.Спецификации по этапам'!$M:$M,'4.БКВ'!Y$62,'2.3.Спецификации по этапам'!$N:$N,"Центр")*($E$2+100%)+SUMIFS('2.3.Спецификации по этапам'!$H:$H,'2.3.Спецификации по этапам'!$L:$L,'4.БКВ'!$A9,'2.3.Спецификации по этапам'!$M:$M,'4.БКВ'!Y$62,'2.3.Спецификации по этапам'!$N:$N,"Децентр")*($E$3+100%) -> 0 | Z9: =SUMIFS('2.3.Спецификации по этапам'!$H:$H,'2.3.Спецификации по этапам'!$L:$L,'4.БКВ'!$A9,'2.3.Спецификации по этапам'!$M:$M,'4.БКВ'!Z$62,'2.3.Спецификации по этапам'!$N:$N,"Центр")*($E$2+100%)+SUMIFS('2.3.Спецификации по этапам'!$H:$H,'2.3.Спецификации по этапам'!$L:$L,'4.БКВ'!$A9,'2.3.Спецификации по этапам'!$M:$M,'4.БКВ'!Z$62,'2.3.Спецификации по этапам'!$N:$N,"Децентр")*($E$3+100%) -> 0 | AA9: =SUMIFS('2.3.Спецификации по этапам'!$H:$H,'2.3.Спецификации по этапам'!$L:$L,'4.БКВ'!$A9,'2.3.Спецификации по этапам'!$M:$M,'4.БКВ'!AA$62,'2.3.Спецификации по этапам'!$N:$N,"Центр")*($E$2+100%)+SUMIFS('2.3.Спецификации по этапам'!$H:$H,'2.3.Спецификации по этапам'!$L:$L,'4.БКВ'!$A9,'2.3.Спецификации по этапам'!$M:$M,'4.БКВ'!AA$62,'2.3.Спецификации по этапам'!$N:$N,"Децентр")*($E$3+100%) -> 0 | AB9: =SUMIFS('2.3.Спецификации по этапам'!$H:$H,'2.3.Спецификации по этапам'!$L:$L,'4.БКВ'!$A9,'2.3.Спецификации по этапам'!$M:$M,'4.БКВ'!AB$62,'2.3.Спецификации по этапам'!$N:$N,"Центр")*($E$2+100%)+SUMIFS('2.3.Спецификации по этапам'!$H:$H,'2.3.Спецификации по этапам'!$L:$L,'4.БКВ'!$A9,'2.3.Спецификации по этапам'!$M:$M,'4.БКВ'!AB$62,'2.3.Спецификации по этапам'!$N:$N,"Децентр")*($E$3+100%) -> 0 | AC9: =SUMIFS('2.3.Спецификации по этапам'!$H:$H,'2.3.Спецификации по этапам'!$L:$L,'4.БКВ'!$A9,'2.3.Спецификации по этапам'!$M:$M,'4.БКВ'!AC$62,'2.3.Спецификации по этапам'!$N:$N,"Центр")*($E$2+100%)+SUMIFS('2.3.Спецификации по этапам'!$H:$H,'2.3.Спецификации по этапам'!$L:$L,'4.БКВ'!$A9,'2.3.Спецификации по этапам'!$M:$M,'4.БКВ'!AC$62,'2.3.Спецификации по этапам'!$N:$N,"Децентр")*($E$3+100%) -> 0 | AD9: =SUMIFS('2.3.Спецификации по этапам'!$H:$H,'2.3.Спецификации по этапам'!$L:$L,'4.БКВ'!$A9,'2.3.Спецификации по этапам'!$M:$M,'4.БКВ'!AD$62,'2.3.Спецификации по этапам'!$N:$N,"Центр")*($E$2+100%)+SUMIFS('2.3.Спецификации по этапам'!$H:$H,'2.3.Спецификации по этапам'!$L:$L,'4.БКВ'!$A9,'2.3.Спецификации по этапам'!$M:$M,'4.БКВ'!AD$62,'2.3.Спецификации по этапам'!$N:$N,"Децентр")*($E$3+100%) -> 0 | AE9: =SUMIFS('2.3.Спецификации по этапам'!$H:$H,'2.3.Спецификации по этапам'!$L:$L,'4.БКВ'!$A9,'2.3.Спецификации по этапам'!$M:$M,'4.БКВ'!AE$62,'2.3.Спецификации по этапам'!$N:$N,"Центр")*($E$2+100%)+SUMIFS('2.3.Спецификации по этапам'!$H:$H,'2.3.Спецификации по этапам'!$L:$L,'4.БКВ'!$A9,'2.3.Спецификации по этапам'!$M:$M,'4.БКВ'!AE$62,'2.3.Спецификации по этапам'!$N:$N,"Децентр")*($E$3+100%) -> 0 | AF9: =SUMIFS('2.3.Спецификации по этапам'!$H:$H,'2.3.Спецификации по этапам'!$L:$L,'4.БКВ'!$A9,'2.3.Спецификации по этапам'!$M:$M,'4.БКВ'!AF$62,'2.3.Спецификации по этапам'!$N:$N,"Центр")*($E$2+100%)+SUMIFS('2.3.Спецификации по этапам'!$H:$H,'2.3.Спецификации по этапам'!$L:$L,'4.БКВ'!$A9,'2.3.Спецификации по этапам'!$M:$M,'4.БКВ'!AF$62,'2.3.Спецификации по этапам'!$N:$N,"Децентр")*($E$3+100%) -> 0 | AG9: =SUMIFS('2.3.Спецификации по этапам'!$H:$H,'2.3.Спецификации по этапам'!$L:$L,'4.БКВ'!$A9,'2.3.Спецификации по этапам'!$M:$M,'4.БКВ'!AG$62,'2.3.Спецификации по этапам'!$N:$N,"Центр")*($E$2+100%)+SUMIFS('2.3.Спецификации по этапам'!$H:$H,'2.3.Спецификации по этапам'!$L:$L,'4.БКВ'!$A9,'2.3.Спецификации по этапам'!$M:$M,'4.БКВ'!AG$62,'2.3.Спецификации по этапам'!$N:$N,"Децентр")*($E$3+100%) -> 0 | AH9: =SUMIFS('2.3.Спецификации по этапам'!$H:$H,'2.3.Спецификации по этапам'!$L:$L,'4.БКВ'!$A9,'2.3.Спецификации по этапам'!$M:$M,'4.БКВ'!AH$62,'2.3.Спецификации по этапам'!$N:$N,"Центр")*($E$2+100%)+SUMIFS('2.3.Спецификации по этапам'!$H:$H,'2.3.Спецификации по этапам'!$L:$L,'4.БКВ'!$A9,'2.3.Спецификации по этапам'!$M:$M,'4.БКВ'!AH$62,'2.3.Спецификации по этапам'!$N:$N,"Децентр")*($E$3+100%) -> 0 | AI9: =SUMIFS('2.3.Спецификации по этапам'!$H:$H,'2.3.Спецификации по этапам'!$L:$L,'4.БКВ'!$A9,'2.3.Спецификации по этапам'!$M:$M,'4.БКВ'!AI$62,'2.3.Спецификации по этапам'!$N:$N,"Центр")*($E$2+100%)+SUMIFS('2.3.Спецификации по этапам'!$H:$H,'2.3.Спецификации по этапам'!$L:$L,'4.БКВ'!$A9,'2.3.Спецификации по этапам'!$M:$M,'4.БКВ'!AI$62,'2.3.Спецификации по этапам'!$N:$N,"Децентр")*($E$3+100%) -> 0 | AJ9: =SUMIFS('2.3.Спецификации по этапам'!$H:$H,'2.3.Спецификации по этапам'!$L:$L,'4.БКВ'!$A9,'2.3.Спецификации по этапам'!$M:$M,'4.БКВ'!AJ$62,'2.3.Спецификации по этапам'!$N:$N,"Центр")*($E$2+100%)+SUMIFS('2.3.Спецификации по этапам'!$H:$H,'2.3.Спецификации по этапам'!$L:$L,'4.БКВ'!$A9,'2.3.Спецификации по этапам'!$M:$M,'4.БКВ'!AJ$62,'2.3.Спецификации по этапам'!$N:$N,"Децентр")*($E$3+100%) -> 0 | AK9: =SUMIFS('2.3.Спецификации по этапам'!$H:$H,'2.3.Спецификации по этапам'!$L:$L,'4.БКВ'!$A9,'2.3.Спецификации по этапам'!$M:$M,'4.БКВ'!AK$62,'2.3.Спецификации по этапам'!$N:$N,"Центр")*($E$2+100%)+SUMIFS('2.3.Спецификации по этапам'!$H:$H,'2.3.Спецификации по этапам'!$L:$L,'4.БКВ'!$A9,'2.3.Спецификации по этапам'!$M:$M,'4.БКВ'!AK$62,'2.3.Спецификации по этапам'!$N:$N,"Децентр")*($E$3+100%) -> 0 | AL9: =SUMIFS('2.3.Спецификации по этапам'!$H:$H,'2.3.Спецификации по этапам'!$L:$L,'4.БКВ'!$A9,'2.3.Спецификации по этапам'!$M:$M,'4.БКВ'!AL$62,'2.3.Спецификации по этапам'!$N:$N,"Центр")*($E$2+100%)+SUMIFS('2.3.Спецификации по этапам'!$H:$H,'2.3.Спецификации по этапам'!$L:$L,'4.БКВ'!$A9,'2.3.Спецификации по этапам'!$M:$M,'4.БКВ'!AL$62,'2.3.Спецификации по этапам'!$N:$N,"Децентр")*($E$3+100%) -> 0 | AM9: =SUMIFS('2.3.Спецификации по этапам'!$H:$H,'2.3.Спецификации по этапам'!$L:$L,'4.БКВ'!$A9,'2.3.Спецификации по этапам'!$M:$M,'4.БКВ'!AM$62,'2.3.Спецификации по этапам'!$N:$N,"Центр")*($E$2+100%)+SUMIFS('2.3.Спецификации по этапам'!$H:$H,'2.3.Спецификации по этапам'!$L:$L,'4.БКВ'!$A9,'2.3.Спецификации по этапам'!$M:$M,'4.БКВ'!AM$62,'2.3.Спецификации по этапам'!$N:$N,"Децентр")*($E$3+100%) -> 0 | AN9: =SUMIFS('2.3.Спецификации по этапам'!$H:$H,'2.3.Спецификации по этапам'!$L:$L,'4.БКВ'!$A9,'2.3.Спецификации по этапам'!$M:$M,'4.БКВ'!AN$62,'2.3.Спецификации по этапам'!$N:$N,"Центр")*($E$2+100%)+SUMIFS('2.3.Спецификации по этапам'!$H:$H,'2.3.Спецификации по этапам'!$L:$L,'4.БКВ'!$A9,'2.3.Спецификации по этапам'!$M:$M,'4.БКВ'!AN$62,'2.3.Спецификации по этапам'!$N:$N,"Децентр")*($E$3+100%) -> 0 | AO9: =SUMIFS('2.3.Спецификации по этапам'!$H:$H,'2.3.Спецификации по этапам'!$L:$L,'4.БКВ'!$A9,'2.3.Спецификации по этапам'!$M:$M,'4.БКВ'!AO$62,'2.3.Спецификации по этапам'!$N:$N,"Центр")*($E$2+100%)+SUMIFS('2.3.Спецификации по этапам'!$H:$H,'2.3.Спецификации по этапам'!$L:$L,'4.БКВ'!$A9,'2.3.Спецификации по этапам'!$M:$M,'4.БКВ'!AO$62,'2.3.Спецификации по этапам'!$N:$N,"Децентр")*($E$3+100%) -> 0 | AP9: =SUMIFS('2.3.Спецификации по этапам'!$H:$H,'2.3.Спецификации по этапам'!$L:$L,'4.БКВ'!$A9,'2.3.Спецификации по этапам'!$M:$M,'4.БКВ'!AP$62,'2.3.Спецификации по этапам'!$N:$N,"Центр")*($E$2+100%)+SUMIFS('2.3.Спецификации по этапам'!$H:$H,'2.3.Спецификации по этапам'!$L:$L,'4.БКВ'!$A9,'2.3.Спецификации по этапам'!$M:$M,'4.БКВ'!AP$62,'2.3.Спецификации по этапам'!$N:$N,"Децентр")*($E$3+100%) -> 0 | AQ9: =SUMIFS('2.3.Спецификации по этапам'!$H:$H,'2.3.Спецификации по этапам'!$L:$L,'4.БКВ'!$A9,'2.3.Спецификации по этапам'!$M:$M,'4.БКВ'!AQ$62,'2.3.Спецификации по этапам'!$N:$N,"Центр")*($E$2+100%)+SUMIFS('2.3.Спецификации по этапам'!$H:$H,'2.3.Спецификации по этапам'!$L:$L,'4.БКВ'!$A9,'2.3.Спецификации по этапам'!$M:$M,'4.БКВ'!AQ$62,'2.3.Спецификации по этапам'!$N:$N,"Децентр")*($E$3+100%) -> 0 | AR9: =SUMIFS('2.3.Спецификации по этапам'!$H:$H,'2.3.Спецификации по этапам'!$L:$L,'4.БКВ'!$A9,'2.3.Спецификации по этапам'!$M:$M,'4.БКВ'!AR$62,'2.3.Спецификации по этапам'!$N:$N,"Центр")*($E$2+100%)+SUMIFS('2.3.Спецификации по этапам'!$H:$H,'2.3.Спецификации по этапам'!$L:$L,'4.БКВ'!$A9,'2.3.Спецификации по этапам'!$M:$M,'4.БКВ'!AR$62,'2.3.Спецификации по этапам'!$N:$N,"Децентр")*($E$3+100%) -> 0 | AS9: =SUMIFS('2.3.Спецификации по этапам'!$H:$H,'2.3.Спецификации по этапам'!$L:$L,'4.БКВ'!$A9,'2.3.Спецификации по этапам'!$M:$M,'4.БКВ'!AS$62,'2.3.Спецификации по этапам'!$N:$N,"Центр")*($E$2+100%)+SUMIFS('2.3.Спецификации по этапам'!$H:$H,'2.3.Спецификации по этапам'!$L:$L,'4.БКВ'!$A9,'2.3.Спецификации по этапам'!$M:$M,'4.БКВ'!AS$62,'2.3.Спецификации по этапам'!$N:$N,"Децентр")*($E$3+100%) -> 0 | AT9: =SUMIFS('2.3.Спецификации по этапам'!$H:$H,'2.3.Спецификации по этапам'!$L:$L,'4.БКВ'!$A9,'2.3.Спецификации по этапам'!$M:$M,'4.БКВ'!AT$62,'2.3.Спецификации по этапам'!$N:$N,"Центр")*($E$2+100%)+SUMIFS('2.3.Спецификации по этапам'!$H:$H,'2.3.Спецификации по этапам'!$L:$L,'4.БКВ'!$A9,'2.3.Спецификации по этапам'!$M:$M,'4.БКВ'!AT$62,'2.3.Спецификации по этапам'!$N:$N,"Децентр")*($E$3+100%) -> 0 | AU9: =SUMIFS('2.3.Спецификации по этапам'!$H:$H,'2.3.Спецификации по этапам'!$L:$L,'4.БКВ'!$A9,'2.3.Спецификации по этапам'!$M:$M,'4.БКВ'!AU$62,'2.3.Спецификации по этапам'!$N:$N,"Центр")*($E$2+100%)+SUMIFS('2.3.Спецификации по этапам'!$H:$H,'2.3.Спецификации по этапам'!$L:$L,'4.БКВ'!$A9,'2.3.Спецификации по этапам'!$M:$M,'4.БКВ'!AU$62,'2.3.Спецификации по этапам'!$N:$N,"Децентр")*($E$3+100%) -> 0 | AV9: =SUMIFS('2.3.Спецификации по этапам'!$H:$H,'2.3.Спецификации по этапам'!$L:$L,'4.БКВ'!$A9,'2.3.Спецификации по этапам'!$M:$M,'4.БКВ'!AV$62,'2.3.Спецификации по этапам'!$N:$N,"Центр")*($E$2+100%)+SUMIFS('2.3.Спецификации по этапам'!$H:$H,'2.3.Спецификации по этапам'!$L:$L,'4.БКВ'!$A9,'2.3.Спецификации по этапам'!$M:$M,'4.БКВ'!AV$62,'2.3.Спецификации по этапам'!$N:$N,"Децентр")*($E$3+100%) -> 0 | AW9: =SUM(E9:H9) -> 0 | AX9: =SUM(I9:L9) -> 0 | AY9: =SUM(M9:P9) -> 0 | AZ9: =SUM(Q9:T9) -> 0 | BA9: =SUM(U9:X9) -> 0 | BB9: =SUM(Y9:AB9) -> 0 | BC9: =SUM(AC9:AF9) -> 0 | BD9: =SUM(AG9:AJ9) -> 0 | BE9: =SUM(AK9:AN9) -> 0 | BF9: =SUM(AO9:AR9) -> 0 | BG9: =SUM(AS9:AV9) -> 0 | BH9: =SUM(AW9:BG9) -> 0
A10: Лицензии (срок службы 4 года) | B10: ='3.Входные данные'!$E$29 -> в тыс. тенге | C10: =SUM(AW10:BG10) -> 0 | E10: =SUMIFS('2.3.Спецификации по этапам'!$H:$H,'2.3.Спецификации по этапам'!$L:$L,'4.БКВ'!$A10,'2.3.Спецификации по этапам'!$M:$M,'4.БКВ'!E$62,'2.3.Спецификации по этапам'!$N:$N,"Центр")*($E$2+100%)+SUMIFS('2.3.Спецификации по этапам'!$H:$H,'2.3.Спецификации по этапам'!$L:$L,'4.БКВ'!$A10,'2.3.Спецификации по этапам'!$M:$M,'4.БКВ'!E$62,'2.3.Спецификации по этапам'!$N:$N,"Децентр")*($E$3+100%) -> 0 | F10: =SUMIFS('2.3.Спецификации по этапам'!$H:$H,'2.3.Спецификации по этапам'!$L:$L,'4.БКВ'!$A10,'2.3.Спецификации по этапам'!$M:$M,'4.БКВ'!F$62,'2.3.Спецификации по этапам'!$N:$N,"Центр")*($E$2+100%)+SUMIFS('2.3.Спецификации по этапам'!$H:$H,'2.3.Спецификации по этапам'!$L:$L,'4.БКВ'!$A10,'2.3.Спецификации по этапам'!$M:$M,'4.БКВ'!F$62,'2.3.Спецификации по этапам'!$N:$N,"Децентр")*($E$3+100%) -> 0 | G10: =SUMIFS('2.3.Спецификации по этапам'!$H:$H,'2.3.Спецификации по этапам'!$L:$L,'4.БКВ'!$A10,'2.3.Спецификации по этапам'!$M:$M,'4.БКВ'!G$62,'2.3.Спецификации по этапам'!$N:$N,"Центр")*($E$2+100%)+SUMIFS('2.3.Спецификации по этапам'!$H:$H,'2.3.Спецификации по этапам'!$L:$L,'4.БКВ'!$A10,'2.3.Спецификации по этапам'!$M:$M,'4.БКВ'!G$62,'2.3.Спецификации по этапам'!$N:$N,"Децентр")*($E$3+100%) -> 0 | H10: =SUMIFS('2.3.Спецификации по этапам'!$H:$H,'2.3.Спецификации по этапам'!$L:$L,'4.БКВ'!$A10,'2.3.Спецификации по этапам'!$M:$M,'4.БКВ'!H$62,'2.3.Спецификации по этапам'!$N:$N,"Центр")*($E$2+100%)+SUMIFS('2.3.Спецификации по этапам'!$H:$H,'2.3.Спецификации по этапам'!$L:$L,'4.БКВ'!$A10,'2.3.Спецификации по этапам'!$M:$M,'4.БКВ'!H$62,'2.3.Спецификации по этапам'!$N:$N,"Децентр")*($E$3+100%) -> 0 | I10: =SUMIFS('2.3.Спецификации по этапам'!$H:$H,'2.3.Спецификации по этапам'!$L:$L,'4.БКВ'!$A10,'2.3.Спецификации по этапам'!$M:$M,'4.БКВ'!I$62,'2.3.Спецификации по этапам'!$N:$N,"Центр")*($E$2+100%)+SUMIFS('2.3.Спецификации по этапам'!$H:$H,'2.3.Спецификации по этапам'!$L:$L,'4.БКВ'!$A10,'2.3.Спецификации по этапам'!$M:$M,'4.БКВ'!I$62,'2.3.Спецификации по этапам'!$N:$N,"Децентр")*($E$3+100%) -> 0 | J10: =SUMIFS('2.3.Спецификации по этапам'!$H:$H,'2.3.Спецификации по этапам'!$L:$L,'4.БКВ'!$A10,'2.3.Спецификации по этапам'!$M:$M,'4.БКВ'!J$62,'2.3.Спецификации по этапам'!$N:$N,"Центр")*($E$2+100%)+SUMIFS('2.3.Спецификации по этапам'!$H:$H,'2.3.Спецификации по этапам'!$L:$L,'4.БКВ'!$A10,'2.3.Спецификации по этапам'!$M:$M,'4.БКВ'!J$62,'2.3.Спецификации по этапам'!$N:$N,"Децентр")*($E$3+100%) -> 0 | K10: =SUMIFS('2.3.Спецификации по этапам'!$H:$H,'2.3.Спецификации по этапам'!$L:$L,'4.БКВ'!$A10,'2.3.Спецификации по этапам'!$M:$M,'4.БКВ'!K$62,'2.3.Спецификации по этапам'!$N:$N,"Центр")*($E$2+100%)+SUMIFS('2.3.Спецификации по этапам'!$H:$H,'2.3.Спецификации по этапам'!$L:$L,'4.БКВ'!$A10,'2.3.Спецификации по этапам'!$M:$M,'4.БКВ'!K$62,'2.3.Спецификации по этапам'!$N:$N,"Децентр")*($E$3+100%) -> 0 | L10: =SUMIFS('2.3.Спецификации по этапам'!$H:$H,'2.3.Спецификации по этапам'!$L:$L,'4.БКВ'!$A10,'2.3.Спецификации по этапам'!$M:$M,'4.БКВ'!L$62,'2.3.Спецификации по этапам'!$N:$N,"Центр")*($E$2+100%)+SUMIFS('2.3.Спецификации по этапам'!$H:$H,'2.3.Спецификации по этапам'!$L:$L,'4.БКВ'!$A10,'2.3.Спецификации по этапам'!$M:$M,'4.БКВ'!L$62,'2.3.Спецификации по этапам'!$N:$N,"Децентр")*($E$3+100%) -> 0 | M10: =SUMIFS('2.3.Спецификации по этапам'!$H:$H,'2.3.Спецификации по этапам'!$L:$L,'4.БКВ'!$A10,'2.3.Спецификации по этапам'!$M:$M,'4.БКВ'!M$62,'2.3.Спецификации по этапам'!$N:$N,"Центр")*($E$2+100%)+SUMIFS('2.3.Спецификации по этапам'!$H:$H,'2.3.Спецификации по этапам'!$L:$L,'4.БКВ'!$A10,'2.3.Спецификации по этапам'!$M:$M,'4.БКВ'!M$62,'2.3.Спецификации по этапам'!$N:$N,"Децентр")*($E$3+100%) -> 0 | N10: =SUMIFS('2.3.Спецификации по этапам'!$H:$H,'2.3.Спецификации по этапам'!$L:$L,'4.БКВ'!$A10,'2.3.Спецификации по этапам'!$M:$M,'4.БКВ'!N$62,'2.3.Спецификации по этапам'!$N:$N,"Центр")*($E$2+100%)+SUMIFS('2.3.Спецификации по этапам'!$H:$H,'2.3.Спецификации по этапам'!$L:$L,'4.БКВ'!$A10,'2.3.Спецификации по этапам'!$M:$M,'4.БКВ'!N$62,'2.3.Спецификации по этапам'!$N:$N,"Децентр")*($E$3+100%) -> 0 | O10: =SUMIFS('2.3.Спецификации по этапам'!$H:$H,'2.3.Спецификации по этапам'!$L:$L,'4.БКВ'!$A10,'2.3.Спецификации по этапам'!$M:$M,'4.БКВ'!O$62,'2.3.Спецификации по этапам'!$N:$N,"Центр")*($E$2+100%)+SUMIFS('2.3.Спецификации по этапам'!$H:$H,'2.3.Спецификации по этапам'!$L:$L,'4.БКВ'!$A10,'2.3.Спецификации по этапам'!$M:$M,'4.БКВ'!O$62,'2.3.Спецификации по этапам'!$N:$N,"Децентр")*($E$3+100%) -> 0 | P10: =SUMIFS('2.3.Спецификации по этапам'!$H:$H,'2.3.Спецификации по этапам'!$L:$L,'4.БКВ'!$A10,'2.3.Спецификации по этапам'!$M:$M,'4.БКВ'!P$62,'2.3.Спецификации по этапам'!$N:$N,"Центр")*($E$2+100%)+SUMIFS('2.3.Спецификации по этапам'!$H:$H,'2.3.Спецификации по этапам'!$L:$L,'4.БКВ'!$A10,'2.3.Спецификации по этапам'!$M:$M,'4.БКВ'!P$62,'2.3.Спецификации по этапам'!$N:$N,"Децентр")*($E$3+100%) -> 0 | Q10: =SUMIFS('2.3.Спецификации по этапам'!$H:$H,'2.3.Спецификации по этапам'!$L:$L,'4.БКВ'!$A10,'2.3.Спецификации по этапам'!$M:$M,'4.БКВ'!Q$62,'2.3.Спецификации по этапам'!$N:$N,"Центр")*($E$2+100%)+SUMIFS('2.3.Спецификации по этапам'!$H:$H,'2.3.Спецификации по этапам'!$L:$L,'4.БКВ'!$A10,'2.3.Спецификации по этапам'!$M:$M,'4.БКВ'!Q$62,'2.3.Спецификации по этапам'!$N:$N,"Децентр")*($E$3+100%) -> 0 | R10: =SUMIFS('2.3.Спецификации по этапам'!$H:$H,'2.3.Спецификации по этапам'!$L:$L,'4.БКВ'!$A10,'2.3.Спецификации по этапам'!$M:$M,'4.БКВ'!R$62,'2.3.Спецификации по этапам'!$N:$N,"Центр")*($E$2+100%)+SUMIFS('2.3.Спецификации по этапам'!$H:$H,'2.3.Спецификации по этапам'!$L:$L,'4.БКВ'!$A10,'2.3.Спецификации по этапам'!$M:$M,'4.БКВ'!R$62,'2.3.Спецификации по этапам'!$N:$N,"Децентр")*($E$3+100%) -> 0 | S10: =SUMIFS('2.3.Спецификации по этапам'!$H:$H,'2.3.Спецификации по этапам'!$L:$L,'4.БКВ'!$A10,'2.3.Спецификации по этапам'!$M:$M,'4.БКВ'!S$62,'2.3.Спецификации по этапам'!$N:$N,"Центр")*($E$2+100%)+SUMIFS('2.3.Спецификации по этапам'!$H:$H,'2.3.Спецификации по этапам'!$L:$L,'4.БКВ'!$A10,'2.3.Спецификации по этапам'!$M:$M,'4.БКВ'!S$62,'2.3.Спецификации по этапам'!$N:$N,"Децентр")*($E$3+100%) -> 0 | T10: =SUMIFS('2.3.Спецификации по этапам'!$H:$H,'2.3.Спецификации по этапам'!$L:$L,'4.БКВ'!$A10,'2.3.Спецификации по этапам'!$M:$M,'4.БКВ'!T$62,'2.3.Спецификации по этапам'!$N:$N,"Центр")*($E$2+100%)+SUMIFS('2.3.Спецификации по этапам'!$H:$H,'2.3.Спецификации по этапам'!$L:$L,'4.БКВ'!$A10,'2.3.Спецификации по этапам'!$M:$M,'4.БКВ'!T$62,'2.3.Спецификации по этапам'!$N:$N,"Децентр")*($E$3+100%) -> 0 | U10: =SUMIFS('2.3.Спецификации по этапам'!$H:$H,'2.3.Спецификации по этапам'!$L:$L,'4.БКВ'!$A10,'2.3.Спецификации по этапам'!$M:$M,'4.БКВ'!U$62,'2.3.Спецификации по этапам'!$N:$N,"Центр")*($E$2+100%)+SUMIFS('2.3.Спецификации по этапам'!$H:$H,'2.3.Спецификации по этапам'!$L:$L,'4.БКВ'!$A10,'2.3.Спецификации по этапам'!$M:$M,'4.БКВ'!U$62,'2.3.Спецификации по этапам'!$N:$N,"Децентр")*($E$3+100%) -> 0 | V10: =SUMIFS('2.3.Спецификации по этапам'!$H:$H,'2.3.Спецификации по этапам'!$L:$L,'4.БКВ'!$A10,'2.3.Спецификации по этапам'!$M:$M,'4.БКВ'!V$62,'2.3.Спецификации по этапам'!$N:$N,"Центр")*($E$2+100%)+SUMIFS('2.3.Спецификации по этапам'!$H:$H,'2.3.Спецификации по этапам'!$L:$L,'4.БКВ'!$A10,'2.3.Спецификации по этапам'!$M:$M,'4.БКВ'!V$62,'2.3.Спецификации по этапам'!$N:$N,"Децентр")*($E$3+100%) -> 0 | W10: =SUMIFS('2.3.Спецификации по этапам'!$H:$H,'2.3.Спецификации по этапам'!$L:$L,'4.БКВ'!$A10,'2.3.Спецификации по этапам'!$M:$M,'4.БКВ'!W$62,'2.3.Спецификации по этапам'!$N:$N,"Центр")*($E$2+100%)+SUMIFS('2.3.Спецификации по этапам'!$H:$H,'2.3.Спецификации по этапам'!$L:$L,'4.БКВ'!$A10,'2.3.Спецификации по этапам'!$M:$M,'4.БКВ'!W$62,'2.3.Спецификации по этапам'!$N:$N,"Децентр")*($E$3+100%) -> 0 | X10: =SUMIFS('2.3.Спецификации по этапам'!$H:$H,'2.3.Спецификации по этапам'!$L:$L,'4.БКВ'!$A10,'2.3.Спецификации по этапам'!$M:$M,'4.БКВ'!X$62,'2.3.Спецификации по этапам'!$N:$N,"Центр")*($E$2+100%)+SUMIFS('2.3.Спецификации по этапам'!$H:$H,'2.3.Спецификации по этапам'!$L:$L,'4.БКВ'!$A10,'2.3.Спецификации по этапам'!$M:$M,'4.БКВ'!X$62,'2.3.Спецификации по этапам'!$N:$N,"Децентр")*($E$3+100%) -> 0 | Y10: =SUMIFS('2.3.Спецификации по этапам'!$H:$H,'2.3.Спецификации по этапам'!$L:$L,'4.БКВ'!$A10,'2.3.Спецификации по этапам'!$M:$M,'4.БКВ'!Y$62,'2.3.Спецификации по этапам'!$N:$N,"Центр")*($E$2+100%)+SUMIFS('2.3.Спецификации по этапам'!$H:$H,'2.3.Спецификации по этапам'!$L:$L,'4.БКВ'!$A10,'2.3.Спецификации по этапам'!$M:$M,'4.БКВ'!Y$62,'2.3.Спецификации по этапам'!$N:$N,"Децентр")*($E$3+100%) -> 0 | Z10: =SUMIFS('2.3.Спецификации по этапам'!$H:$H,'2.3.Спецификации по этапам'!$L:$L,'4.БКВ'!$A10,'2.3.Спецификации по этапам'!$M:$M,'4.БКВ'!Z$62,'2.3.Спецификации по этапам'!$N:$N,"Центр")*($E$2+100%)+SUMIFS('2.3.Спецификации по этапам'!$H:$H,'2.3.Спецификации по этапам'!$L:$L,'4.БКВ'!$A10,'2.3.Спецификации по этапам'!$M:$M,'4.БКВ'!Z$62,'2.3.Спецификации по этапам'!$N:$N,"Децентр")*($E$3+100%) -> 0 | AA10: =SUMIFS('2.3.Спецификации по этапам'!$H:$H,'2.3.Спецификации по этапам'!$L:$L,'4.БКВ'!$A10,'2.3.Спецификации по этапам'!$M:$M,'4.БКВ'!AA$62,'2.3.Спецификации по этапам'!$N:$N,"Центр")*($E$2+100%)+SUMIFS('2.3.Спецификации по этапам'!$H:$H,'2.3.Спецификации по этапам'!$L:$L,'4.БКВ'!$A10,'2.3.Спецификации по этапам'!$M:$M,'4.БКВ'!AA$62,'2.3.Спецификации по этапам'!$N:$N,"Децентр")*($E$3+100%) -> 0 | AB10: =SUMIFS('2.3.Спецификации по этапам'!$H:$H,'2.3.Спецификации по этапам'!$L:$L,'4.БКВ'!$A10,'2.3.Спецификации по этапам'!$M:$M,'4.БКВ'!AB$62,'2.3.Спецификации по этапам'!$N:$N,"Центр")*($E$2+100%)+SUMIFS('2.3.Спецификации по этапам'!$H:$H,'2.3.Спецификации по этапам'!$L:$L,'4.БКВ'!$A10,'2.3.Спецификации по этапам'!$M:$M,'4.БКВ'!AB$62,'2.3.Спецификации по этапам'!$N:$N,"Децентр")*($E$3+100%) -> 0 | AC10: =SUMIFS('2.3.Спецификации по этапам'!$H:$H,'2.3.Спецификации по этапам'!$L:$L,'4.БКВ'!$A10,'2.3.Спецификации по этапам'!$M:$M,'4.БКВ'!AC$62,'2.3.Спецификации по этапам'!$N:$N,"Центр")*($E$2+100%)+SUMIFS('2.3.Спецификации по этапам'!$H:$H,'2.3.Спецификации по этапам'!$L:$L,'4.БКВ'!$A10,'2.3.Спецификации по этапам'!$M:$M,'4.БКВ'!AC$62,'2.3.Спецификации по этапам'!$N:$N,"Децентр")*($E$3+100%) -> 0 | AD10: =SUMIFS('2.3.Спецификации по этапам'!$H:$H,'2.3.Спецификации по этапам'!$L:$L,'4.БКВ'!$A10,'2.3.Спецификации по этапам'!$M:$M,'4.БКВ'!AD$62,'2.3.Спецификации по этапам'!$N:$N,"Центр")*($E$2+100%)+SUMIFS('2.3.Спецификации по этапам'!$H:$H,'2.3.Спецификации по этапам'!$L:$L,'4.БКВ'!$A10,'2.3.Спецификации по этапам'!$M:$M,'4.БКВ'!AD$62,'2.3.Спецификации по этапам'!$N:$N,"Децентр")*($E$3+100%) -> 0 | AE10: =SUMIFS('2.3.Спецификации по этапам'!$H:$H,'2.3.Спецификации по этапам'!$L:$L,'4.БКВ'!$A10,'2.3.Спецификации по этапам'!$M:$M,'4.БКВ'!AE$62,'2.3.Спецификации по этапам'!$N:$N,"Центр")*($E$2+100%)+SUMIFS('2.3.Спецификации по этапам'!$H:$H,'2.3.Спецификации по этапам'!$L:$L,'4.БКВ'!$A10,'2.3.Спецификации по этапам'!$M:$M,'4.БКВ'!AE$62,'2.3.Спецификации по этапам'!$N:$N,"Децентр")*($E$3+100%) -> 0 | AF10: =SUMIFS('2.3.Спецификации по этапам'!$H:$H,'2.3.Спецификации по этапам'!$L:$L,'4.БКВ'!$A10,'2.3.Спецификации по этапам'!$M:$M,'4.БКВ'!AF$62,'2.3.Спецификации по этапам'!$N:$N,"Центр")*($E$2+100%)+SUMIFS('2.3.Спецификации по этапам'!$H:$H,'2.3.Спецификации по этапам'!$L:$L,'4.БКВ'!$A10,'2.3.Спецификации по этапам'!$M:$M,'4.БКВ'!AF$62,'2.3.Спецификации по этапам'!$N:$N,"Децентр")*($E$3+100%) -> 0 | AG10: =SUMIFS('2.3.Спецификации по этапам'!$H:$H,'2.3.Спецификации по этапам'!$L:$L,'4.БКВ'!$A10,'2.3.Спецификации по этапам'!$M:$M,'4.БКВ'!AG$62,'2.3.Спецификации по этапам'!$N:$N,"Центр")*($E$2+100%)+SUMIFS('2.3.Спецификации по этапам'!$H:$H,'2.3.Спецификации по этапам'!$L:$L,'4.БКВ'!$A10,'2.3.Спецификации по этапам'!$M:$M,'4.БКВ'!AG$62,'2.3.Спецификации по этапам'!$N:$N,"Децентр")*($E$3+100%) -> 0 | AH10: =SUMIFS('2.3.Спецификации по этапам'!$H:$H,'2.3.Спецификации по этапам'!$L:$L,'4.БКВ'!$A10,'2.3.Спецификации по этапам'!$M:$M,'4.БКВ'!AH$62,'2.3.Спецификации по этапам'!$N:$N,"Центр")*($E$2+100%)+SUMIFS('2.3.Спецификации по этапам'!$H:$H,'2.3.Спецификации по этапам'!$L:$L,'4.БКВ'!$A10,'2.3.Спецификации по этапам'!$M:$M,'4.БКВ'!AH$62,'2.3.Спецификации по этапам'!$N:$N,"Децентр")*($E$3+100%) -> 0 | AI10: =SUMIFS('2.3.Спецификации по этапам'!$H:$H,'2.3.Спецификации по этапам'!$L:$L,'4.БКВ'!$A10,'2.3.Спецификации по этапам'!$M:$M,'4.БКВ'!AI$62,'2.3.Спецификации по этапам'!$N:$N,"Центр")*($E$2+100%)+SUMIFS('2.3.Спецификации по этапам'!$H:$H,'2.3.Спецификации по этапам'!$L:$L,'4.БКВ'!$A10,'2.3.Спецификации по этапам'!$M:$M,'4.БКВ'!AI$62,'2.3.Спецификации по этапам'!$N:$N,"Децентр")*($E$3+100%) -> 0 | AJ10: =SUMIFS('2.3.Спецификации по этапам'!$H:$H,'2.3.Спецификации по этапам'!$L:$L,'4.БКВ'!$A10,'2.3.Спецификации по этапам'!$M:$M,'4.БКВ'!AJ$62,'2.3.Спецификации по этапам'!$N:$N,"Центр")*($E$2+100%)+SUMIFS('2.3.Спецификации по этапам'!$H:$H,'2.3.Спецификации по этапам'!$L:$L,'4.БКВ'!$A10,'2.3.Спецификации по этапам'!$M:$M,'4.БКВ'!AJ$62,'2.3.Спецификации по этапам'!$N:$N,"Децентр")*($E$3+100%) -> 0 | AK10: =SUMIFS('2.3.Спецификации по этапам'!$H:$H,'2.3.Спецификации по этапам'!$L:$L,'4.БКВ'!$A10,'2.3.Спецификации по этапам'!$M:$M,'4.БКВ'!AK$62,'2.3.Спецификации по этапам'!$N:$N,"Центр")*($E$2+100%)+SUMIFS('2.3.Спецификации по этапам'!$H:$H,'2.3.Спецификации по этапам'!$L:$L,'4.БКВ'!$A10,'2.3.Спецификации по этапам'!$M:$M,'4.БКВ'!AK$62,'2.3.Спецификации по этапам'!$N:$N,"Децентр")*($E$3+100%) -> 0 | AL10: =SUMIFS('2.3.Спецификации по этапам'!$H:$H,'2.3.Спецификации по этапам'!$L:$L,'4.БКВ'!$A10,'2.3.Спецификации по этапам'!$M:$M,'4.БКВ'!AL$62,'2.3.Спецификации по этапам'!$N:$N,"Центр")*($E$2+100%)+SUMIFS('2.3.Спецификации по этапам'!$H:$H,'2.3.Спецификации по этапам'!$L:$L,'4.БКВ'!$A10,'2.3.Спецификации по этапам'!$M:$M,'4.БКВ'!AL$62,'2.3.Спецификации по этапам'!$N:$N,"Децентр")*($E$3+100%) -> 0 | AM10: =SUMIFS('2.3.Спецификации по этапам'!$H:$H,'2.3.Спецификации по этапам'!$L:$L,'4.БКВ'!$A10,'2.3.Спецификации по этапам'!$M:$M,'4.БКВ'!AM$62,'2.3.Спецификации по этапам'!$N:$N,"Центр")*($E$2+100%)+SUMIFS('2.3.Спецификации по этапам'!$H:$H,'2.3.Спецификации по этапам'!$L:$L,'4.БКВ'!$A10,'2.3.Спецификации по этапам'!$M:$M,'4.БКВ'!AM$62,'2.3.Спецификации по этапам'!$N:$N,"Децентр")*($E$3+100%) -> 0 | AN10: =SUMIFS('2.3.Спецификации по этапам'!$H:$H,'2.3.Спецификации по этапам'!$L:$L,'4.БКВ'!$A10,'2.3.Спецификации по этапам'!$M:$M,'4.БКВ'!AN$62,'2.3.Спецификации по этапам'!$N:$N,"Центр")*($E$2+100%)+SUMIFS('2.3.Спецификации по этапам'!$H:$H,'2.3.Спецификации по этапам'!$L:$L,'4.БКВ'!$A10,'2.3.Спецификации по этапам'!$M:$M,'4.БКВ'!AN$62,'2.3.Спецификации по этапам'!$N:$N,"Децентр")*($E$3+100%) -> 0 | AO10: =SUMIFS('2.3.Спецификации по этапам'!$H:$H,'2.3.Спецификации по этапам'!$L:$L,'4.БКВ'!$A10,'2.3.Спецификации по этапам'!$M:$M,'4.БКВ'!AO$62,'2.3.Спецификации по этапам'!$N:$N,"Центр")*($E$2+100%)+SUMIFS('2.3.Спецификации по этапам'!$H:$H,'2.3.Спецификации по этапам'!$L:$L,'4.БКВ'!$A10,'2.3.Спецификации по этапам'!$M:$M,'4.БКВ'!AO$62,'2.3.Спецификации по этапам'!$N:$N,"Децентр")*($E$3+100%) -> 0 | AP10: =SUMIFS('2.3.Спецификации по этапам'!$H:$H,'2.3.Спецификации по этапам'!$L:$L,'4.БКВ'!$A10,'2.3.Спецификации по этапам'!$M:$M,'4.БКВ'!AP$62,'2.3.Спецификации по этапам'!$N:$N,"Центр")*($E$2+100%)+SUMIFS('2.3.Спецификации по этапам'!$H:$H,'2.3.Спецификации по этапам'!$L:$L,'4.БКВ'!$A10,'2.3.Спецификации по этапам'!$M:$M,'4.БКВ'!AP$62,'2.3.Спецификации по этапам'!$N:$N,"Децентр")*($E$3+100%) -> 0 | AQ10: =SUMIFS('2.3.Спецификации по этапам'!$H:$H,'2.3.Спецификации по этапам'!$L:$L,'4.БКВ'!$A10,'2.3.Спецификации по этапам'!$M:$M,'4.БКВ'!AQ$62,'2.3.Спецификации по этапам'!$N:$N,"Центр")*($E$2+100%)+SUMIFS('2.3.Спецификации по этапам'!$H:$H,'2.3.Спецификации по этапам'!$L:$L,'4.БКВ'!$A10,'2.3.Спецификации по этапам'!$M:$M,'4.БКВ'!AQ$62,'2.3.Спецификации по этапам'!$N:$N,"Децентр")*($E$3+100%) -> 0 | AR10: =SUMIFS('2.3.Спецификации по этапам'!$H:$H,'2.3.Спецификации по этапам'!$L:$L,'4.БКВ'!$A10,'2.3.Спецификации по этапам'!$M:$M,'4.БКВ'!AR$62,'2.3.Спецификации по этапам'!$N:$N,"Центр")*($E$2+100%)+SUMIFS('2.3.Спецификации по этапам'!$H:$H,'2.3.Спецификации по этапам'!$L:$L,'4.БКВ'!$A10,'2.3.Спецификации по этапам'!$M:$M,'4.БКВ'!AR$62,'2.3.Спецификации по этапам'!$N:$N,"Децентр")*($E$3+100%) -> 0 | AS10: =SUMIFS('2.3.Спецификации по этапам'!$H:$H,'2.3.Спецификации по этапам'!$L:$L,'4.БКВ'!$A10,'2.3.Спецификации по этапам'!$M:$M,'4.БКВ'!AS$62,'2.3.Спецификации по этапам'!$N:$N,"Центр")*($E$2+100%)+SUMIFS('2.3.Спецификации по этапам'!$H:$H,'2.3.Спецификации по этапам'!$L:$L,'4.БКВ'!$A10,'2.3.Спецификации по этапам'!$M:$M,'4.БКВ'!AS$62,'2.3.Спецификации по этапам'!$N:$N,"Децентр")*($E$3+100%) -> 0 | AT10: =SUMIFS('2.3.Спецификации по этапам'!$H:$H,'2.3.Спецификации по этапам'!$L:$L,'4.БКВ'!$A10,'2.3.Спецификации по этапам'!$M:$M,'4.БКВ'!AT$62,'2.3.Спецификации по этапам'!$N:$N,"Центр")*($E$2+100%)+SUMIFS('2.3.Спецификации по этапам'!$H:$H,'2.3.Спецификации по этапам'!$L:$L,'4.БКВ'!$A10,'2.3.Спецификации по этапам'!$M:$M,'4.БКВ'!AT$62,'2.3.Спецификации по этапам'!$N:$N,"Децентр")*($E$3+100%) -> 0 | AU10: =SUMIFS('2.3.Спецификации по этапам'!$H:$H,'2.3.Спецификации по этапам'!$L:$L,'4.БКВ'!$A10,'2.3.Спецификации по этапам'!$M:$M,'4.БКВ'!AU$62,'2.3.Спецификации по этапам'!$N:$N,"Центр")*($E$2+100%)+SUMIFS('2.3.Спецификации по этапам'!$H:$H,'2.3.Спецификации по этапам'!$L:$L,'4.БКВ'!$A10,'2.3.Спецификации по этапам'!$M:$M,'4.БКВ'!AU$62,'2.3.Спецификации по этапам'!$N:$N,"Децентр")*($E$3+100%) -> 0 | AV10: =SUMIFS('2.3.Спецификации по этапам'!$H:$H,'2.3.Спецификации по этапам'!$L:$L,'4.БКВ'!$A10,'2.3.Спецификации по этапам'!$M:$M,'4.БКВ'!AV$62,'2.3.Спецификации по этапам'!$N:$N,"Центр")*($E$2+100%)+SUMIFS('2.3.Спецификации по этапам'!$H:$H,'2.3.Спецификации по этапам'!$L:$L,'4.БКВ'!$A10,'2.3.Спецификации по этапам'!$M:$M,'4.БКВ'!AV$62,'2.3.Спецификации по этапам'!$N:$N,"Децентр")*($E$3+100%) -> 0 | AW10: =SUM(E10:H10) -> 0 | AX10: =SUM(I10:L10) -> 0 | AY10: =SUM(M10:P10) -> 0 | AZ10: =SUM(Q10:T10) -> 0 | BA10: =SUM(U10:X10) -> 0 | BB10: =SUM(Y10:AB10) -> 0 | BC10: =SUM(AC10:AF10) -> 0 | BD10: =SUM(AG10:AJ10) -> 0 | BE10: =SUM(AK10:AN10) -> 0 | BF10: =SUM(AO10:AR10) -> 0 | BG10: =SUM(AS10:AV10) -> 0 | BH10: =SUM(AW10:BG10) -> 0
A11: Оборудование и лицензии (срок службы 5 лет) | B11: ='3.Входные данные'!$E$29 -> в тыс. тенге | C11: 196,728 | E11: =SUMIFS('2.3.Спецификации по этапам'!$H:$H,'2.3.Спецификации по этапам'!$L:$L,'4.БКВ'!$A11,'2.3.Спецификации по этапам'!$M:$M,'4.БКВ'!E$62,'2.3.Спецификации по этапам'!$N:$N,"Центр")*($E$2+100%)+SUMIFS('2.3.Спецификации по этапам'!$H:$H,'2.3.Спецификации по этапам'!$L:$L,'4.БКВ'!$A11,'2.3.Спецификации по этапам'!$M:$M,'4.БКВ'!E$62,'2.3.Спецификации по этапам'!$N:$N,"Децентр")*($E$3+100%) -> 0 | F11: =SUMIFS('2.3.Спецификации по этапам'!$H:$H,'2.3.Спецификации по этапам'!$L:$L,'4.БКВ'!$A11,'2.3.Спецификации по этапам'!$M:$M,'4.БКВ'!F$62,'2.3.Спецификации по этапам'!$N:$N,"Центр")*($E$2+100%)+SUMIFS('2.3.Спецификации по этапам'!$H:$H,'2.3.Спецификации по этапам'!$L:$L,'4.БКВ'!$A11,'2.3.Спецификации по этапам'!$M:$M,'4.БКВ'!F$62,'2.3.Спецификации по этапам'!$N:$N,"Децентр")*($E$3+100%) -> 0 | G11: =SUMIFS('2.3.Спецификации по этапам'!$H:$H,'2.3.Спецификации по этапам'!$L:$L,'4.БКВ'!$A11,'2.3.Спецификации по этапам'!$M:$M,'4.БКВ'!G$62,'2.3.Спецификации по этапам'!$N:$N,"Центр")*($E$2+100%)+SUMIFS('2.3.Спецификации по этапам'!$H:$H,'2.3.Спецификации по этапам'!$L:$L,'4.БКВ'!$A11,'2.3.Спецификации по этапам'!$M:$M,'4.БКВ'!G$62,'2.3.Спецификации по этапам'!$N:$N,"Децентр")*($E$3+100%) -> 0 | H11: =SUMIFS('2.3.Спецификации по этапам'!$H:$H,'2.3.Спецификации по этапам'!$L:$L,'4.БКВ'!$A11,'2.3.Спецификации по этапам'!$M:$M,'4.БКВ'!H$62,'2.3.Спецификации по этапам'!$N:$N,"Центр")*($E$2+100%)+SUMIFS('2.3.Спецификации по этапам'!$H:$H,'2.3.Спецификации по этапам'!$L:$L,'4.БКВ'!$A11,'2.3.Спецификации по этапам'!$M:$M,'4.БКВ'!H$62,'2.3.Спецификации по этапам'!$N:$N,"Децентр")*($E$3+100%) -> 196,728 | I11: =SUMIFS('2.3.Спецификации по этапам'!$H:$H,'2.3.Спецификации по этапам'!$L:$L,'4.БКВ'!$A11,'2.3.Спецификации по этапам'!$M:$M,'4.БКВ'!I$62,'2.3.Спецификации по этапам'!$N:$N,"Центр")*($E$2+100%)+SUMIFS('2.3.Спецификации по этапам'!$H:$H,'2.3.Спецификации по этапам'!$L:$L,'4.БКВ'!$A11,'2.3.Спецификации по этапам'!$M:$M,'4.БКВ'!I$62,'2.3.Спецификации по этапам'!$N:$N,"Децентр")*($E$3+100%) -> 0 | J11: =SUMIFS('2.3.Спецификации по этапам'!$H:$H,'2.3.Спецификации по этапам'!$L:$L,'4.БКВ'!$A11,'2.3.Спецификации по этапам'!$M:$M,'4.БКВ'!J$62,'2.3.Спецификации по этапам'!$N:$N,"Центр")*($E$2+100%)+SUMIFS('2.3.Спецификации по этапам'!$H:$H,'2.3.Спецификации по этапам'!$L:$L,'4.БКВ'!$A11,'2.3.Спецификации по этапам'!$M:$M,'4.БКВ'!J$62,'2.3.Спецификации по этапам'!$N:$N,"Децентр")*($E$3+100%) -> 0 | K11: =SUMIFS('2.3.Спецификации по этапам'!$H:$H,'2.3.Спецификации по этапам'!$L:$L,'4.БКВ'!$A11,'2.3.Спецификации по этапам'!$M:$M,'4.БКВ'!K$62,'2.3.Спецификации по этапам'!$N:$N,"Центр")*($E$2+100%)+SUMIFS('2.3.Спецификации по этапам'!$H:$H,'2.3.Спецификации по этапам'!$L:$L,'4.БКВ'!$A11,'2.3.Спецификации по этапам'!$M:$M,'4.БКВ'!K$62,'2.3.Спецификации по этапам'!$N:$N,"Децентр")*($E$3+100%) -> 0 | L11: =SUMIFS('2.3.Спецификации по этапам'!$H:$H,'2.3.Спецификации по этапам'!$L:$L,'4.БКВ'!$A11,'2.3.Спецификации по этапам'!$M:$M,'4.БКВ'!L$62,'2.3.Спецификации по этапам'!$N:$N,"Центр")*($E$2+100%)+SUMIFS('2.3.Спецификации по этапам'!$H:$H,'2.3.Спецификации по этапам'!$L:$L,'4.БКВ'!$A11,'2.3.Спецификации по этапам'!$M:$M,'4.БКВ'!L$62,'2.3.Спецификации по этапам'!$N:$N,"Децентр")*($E$3+100%) -> 0 | M11: =SUMIFS('2.3.Спецификации по этапам'!$H:$H,'2.3.Спецификации по этапам'!$L:$L,'4.БКВ'!$A11,'2.3.Спецификации по этапам'!$M:$M,'4.БКВ'!M$62,'2.3.Спецификации по этапам'!$N:$N,"Центр")*($E$2+100%)+SUMIFS('2.3.Спецификации по этапам'!$H:$H,'2.3.Спецификации по этапам'!$L:$L,'4.БКВ'!$A11,'2.3.Спецификации по этапам'!$M:$M,'4.БКВ'!M$62,'2.3.Спецификации по этапам'!$N:$N,"Децентр")*($E$3+100%) -> 0 | N11: =SUMIFS('2.3.Спецификации по этапам'!$H:$H,'2.3.Спецификации по этапам'!$L:$L,'4.БКВ'!$A11,'2.3.Спецификации по этапам'!$M:$M,'4.БКВ'!N$62,'2.3.Спецификации по этапам'!$N:$N,"Центр")*($E$2+100%)+SUMIFS('2.3.Спецификации по этапам'!$H:$H,'2.3.Спецификации по этапам'!$L:$L,'4.БКВ'!$A11,'2.3.Спецификации по этапам'!$M:$M,'4.БКВ'!N$62,'2.3.Спецификации по этапам'!$N:$N,"Децентр")*($E$3+100%) -> 0 | O11: =SUMIFS('2.3.Спецификации по этапам'!$H:$H,'2.3.Спецификации по этапам'!$L:$L,'4.БКВ'!$A11,'2.3.Спецификации по этапам'!$M:$M,'4.БКВ'!O$62,'2.3.Спецификации по этапам'!$N:$N,"Центр")*($E$2+100%)+SUMIFS('2.3.Спецификации по этапам'!$H:$H,'2.3.Спецификации по этапам'!$L:$L,'4.БКВ'!$A11,'2.3.Спецификации по этапам'!$M:$M,'4.БКВ'!O$62,'2.3.Спецификации по этапам'!$N:$N,"Децентр")*($E$3+100%) -> 0 | P11: =SUMIFS('2.3.Спецификации по этапам'!$H:$H,'2.3.Спецификации по этапам'!$L:$L,'4.БКВ'!$A11,'2.3.Спецификации по этапам'!$M:$M,'4.БКВ'!P$62,'2.3.Спецификации по этапам'!$N:$N,"Центр")*($E$2+100%)+SUMIFS('2.3.Спецификации по этапам'!$H:$H,'2.3.Спецификации по этапам'!$L:$L,'4.БКВ'!$A11,'2.3.Спецификации по этапам'!$M:$M,'4.БКВ'!P$62,'2.3.Спецификации по этапам'!$N:$N,"Децентр")*($E$3+100%) -> 0 | Q11: =SUMIFS('2.3.Спецификации по этапам'!$H:$H,'2.3.Спецификации по этапам'!$L:$L,'4.БКВ'!$A11,'2.3.Спецификации по этапам'!$M:$M,'4.БКВ'!Q$62,'2.3.Спецификации по этапам'!$N:$N,"Центр")*($E$2+100%)+SUMIFS('2.3.Спецификации по этапам'!$H:$H,'2.3.Спецификации по этапам'!$L:$L,'4.БКВ'!$A11,'2.3.Спецификации по этапам'!$M:$M,'4.БКВ'!Q$62,'2.3.Спецификации по этапам'!$N:$N,"Децентр")*($E$3+100%) -> 0 | R11: =SUMIFS('2.3.Спецификации по этапам'!$H:$H,'2.3.Спецификации по этапам'!$L:$L,'4.БКВ'!$A11,'2.3.Спецификации по этапам'!$M:$M,'4.БКВ'!R$62,'2.3.Спецификации по этапам'!$N:$N,"Центр")*($E$2+100%)+SUMIFS('2.3.Спецификации по этапам'!$H:$H,'2.3.Спецификации по этапам'!$L:$L,'4.БКВ'!$A11,'2.3.Спецификации по этапам'!$M:$M,'4.БКВ'!R$62,'2.3.Спецификации по этапам'!$N:$N,"Децентр")*($E$3+100%) -> 0 | S11: =SUMIFS('2.3.Спецификации по этапам'!$H:$H,'2.3.Спецификации по этапам'!$L:$L,'4.БКВ'!$A11,'2.3.Спецификации по этапам'!$M:$M,'4.БКВ'!S$62,'2.3.Спецификации по этапам'!$N:$N,"Центр")*($E$2+100%)+SUMIFS('2.3.Спецификации по этапам'!$H:$H,'2.3.Спецификации по этапам'!$L:$L,'4.БКВ'!$A11,'2.3.Спецификации по этапам'!$M:$M,'4.БКВ'!S$62,'2.3.Спецификации по этапам'!$N:$N,"Децентр")*($E$3+100%) -> 0 | T11: =SUMIFS('2.3.Спецификации по этапам'!$H:$H,'2.3.Спецификации по этапам'!$L:$L,'4.БКВ'!$A11,'2.3.Спецификации по этапам'!$M:$M,'4.БКВ'!T$62,'2.3.Спецификации по этапам'!$N:$N,"Центр")*($E$2+100%)+SUMIFS('2.3.Спецификации по этапам'!$H:$H,'2.3.Спецификации по этапам'!$L:$L,'4.БКВ'!$A11,'2.3.Спецификации по этапам'!$M:$M,'4.БКВ'!T$62,'2.3.Спецификации по этапам'!$N:$N,"Децентр")*($E$3+100%) -> 0 | U11: =SUMIFS('2.3.Спецификации по этапам'!$H:$H,'2.3.Спецификации по этапам'!$L:$L,'4.БКВ'!$A11,'2.3.Спецификации по этапам'!$M:$M,'4.БКВ'!U$62,'2.3.Спецификации по этапам'!$N:$N,"Центр")*($E$2+100%)+SUMIFS('2.3.Спецификации по этапам'!$H:$H,'2.3.Спецификации по этапам'!$L:$L,'4.БКВ'!$A11,'2.3.Спецификации по этапам'!$M:$M,'4.БКВ'!U$62,'2.3.Спецификации по этапам'!$N:$N,"Децентр")*($E$3+100%) -> 0 | V11: =SUMIFS('2.3.Спецификации по этапам'!$H:$H,'2.3.Спецификации по этапам'!$L:$L,'4.БКВ'!$A11,'2.3.Спецификации по этапам'!$M:$M,'4.БКВ'!V$62,'2.3.Спецификации по этапам'!$N:$N,"Центр")*($E$2+100%)+SUMIFS('2.3.Спецификации по этапам'!$H:$H,'2.3.Спецификации по этапам'!$L:$L,'4.БКВ'!$A11,'2.3.Спецификации по этапам'!$M:$M,'4.БКВ'!V$62,'2.3.Спецификации по этапам'!$N:$N,"Децентр")*($E$3+100%) -> 0 | W11: =SUMIFS('2.3.Спецификации по этапам'!$H:$H,'2.3.Спецификации по этапам'!$L:$L,'4.БКВ'!$A11,'2.3.Спецификации по этапам'!$M:$M,'4.БКВ'!W$62,'2.3.Спецификации по этапам'!$N:$N,"Центр")*($E$2+100%)+SUMIFS('2.3.Спецификации по этапам'!$H:$H,'2.3.Спецификации по этапам'!$L:$L,'4.БКВ'!$A11,'2.3.Спецификации по этапам'!$M:$M,'4.БКВ'!W$62,'2.3.Спецификации по этапам'!$N:$N,"Децентр")*($E$3+100%) -> 0 | X11: =SUMIFS('2.3.Спецификации по этапам'!$H:$H,'2.3.Спецификации по этапам'!$L:$L,'4.БКВ'!$A11,'2.3.Спецификации по этапам'!$M:$M,'4.БКВ'!X$62,'2.3.Спецификации по этапам'!$N:$N,"Центр")*($E$2+100%)+SUMIFS('2.3.Спецификации по этапам'!$H:$H,'2.3.Спецификации по этапам'!$L:$L,'4.БКВ'!$A11,'2.3.Спецификации по этапам'!$M:$M,'4.БКВ'!X$62,'2.3.Спецификации по этапам'!$N:$N,"Децентр")*($E$3+100%) -> 0 | Y11: =SUMIFS('2.3.Спецификации по этапам'!$H:$H,'2.3.Спецификации по этапам'!$L:$L,'4.БКВ'!$A11,'2.3.Спецификации по этапам'!$M:$M,'4.БКВ'!Y$62,'2.3.Спецификации по этапам'!$N:$N,"Центр")*($E$2+100%)+SUMIFS('2.3.Спецификации по этапам'!$H:$H,'2.3.Спецификации по этапам'!$L:$L,'4.БКВ'!$A11,'2.3.Спецификации по этапам'!$M:$M,'4.БКВ'!Y$62,'2.3.Спецификации по этапам'!$N:$N,"Децентр")*($E$3+100%) -> 0 | Z11: =SUMIFS('2.3.Спецификации по этапам'!$H:$H,'2.3.Спецификации по этапам'!$L:$L,'4.БКВ'!$A11,'2.3.Спецификации по этапам'!$M:$M,'4.БКВ'!Z$62,'2.3.Спецификации по этапам'!$N:$N,"Центр")*($E$2+100%)+SUMIFS('2.3.Спецификации по этапам'!$H:$H,'2.3.Спецификации по этапам'!$L:$L,'4.БКВ'!$A11,'2.3.Спецификации по этапам'!$M:$M,'4.БКВ'!Z$62,'2.3.Спецификации по этапам'!$N:$N,"Децентр")*($E$3+100%) -> 0 | AA11: =SUMIFS('2.3.Спецификации по этапам'!$H:$H,'2.3.Спецификации по этапам'!$L:$L,'4.БКВ'!$A11,'2.3.Спецификации по этапам'!$M:$M,'4.БКВ'!AA$62,'2.3.Спецификации по этапам'!$N:$N,"Центр")*($E$2+100%)+SUMIFS('2.3.Спецификации по этапам'!$H:$H,'2.3.Спецификации по этапам'!$L:$L,'4.БКВ'!$A11,'2.3.Спецификации по этапам'!$M:$M,'4.БКВ'!AA$62,'2.3.Спецификации по этапам'!$N:$N,"Децентр")*($E$3+100%) -> 0 | AB11: =SUMIFS('2.3.Спецификации по этапам'!$H:$H,'2.3.Спецификации по этапам'!$L:$L,'4.БКВ'!$A11,'2.3.Спецификации по этапам'!$M:$M,'4.БКВ'!AB$62,'2.3.Спецификации по этапам'!$N:$N,"Центр")*($E$2+100%)+SUMIFS('2.3.Спецификации по этапам'!$H:$H,'2.3.Спецификации по этапам'!$L:$L,'4.БКВ'!$A11,'2.3.Спецификации по этапам'!$M:$M,'4.БКВ'!AB$62,'2.3.Спецификации по этапам'!$N:$N,"Децентр")*($E$3+100%) -> 0 | AC11: =SUMIFS('2.3.Спецификации по этапам'!$H:$H,'2.3.Спецификации по этапам'!$L:$L,'4.БКВ'!$A11,'2.3.Спецификации по этапам'!$M:$M,'4.БКВ'!AC$62,'2.3.Спецификации по этапам'!$N:$N,"Центр")*($E$2+100%)+SUMIFS('2.3.Спецификации по этапам'!$H:$H,'2.3.Спецификации по этапам'!$L:$L,'4.БКВ'!$A11,'2.3.Спецификации по этапам'!$M:$M,'4.БКВ'!AC$62,'2.3.Спецификации по этапам'!$N:$N,"Децентр")*($E$3+100%) -> 0 | AD11: =SUMIFS('2.3.Спецификации по этапам'!$H:$H,'2.3.Спецификации по этапам'!$L:$L,'4.БКВ'!$A11,'2.3.Спецификации по этапам'!$M:$M,'4.БКВ'!AD$62,'2.3.Спецификации по этапам'!$N:$N,"Центр")*($E$2+100%)+SUMIFS('2.3.Спецификации по этапам'!$H:$H,'2.3.Спецификации по этапам'!$L:$L,'4.БКВ'!$A11,'2.3.Спецификации по этапам'!$M:$M,'4.БКВ'!AD$62,'2.3.Спецификации по этапам'!$N:$N,"Децентр")*($E$3+100%) -> 0 | AE11: =SUMIFS('2.3.Спецификации по этапам'!$H:$H,'2.3.Спецификации по этапам'!$L:$L,'4.БКВ'!$A11,'2.3.Спецификации по этапам'!$M:$M,'4.БКВ'!AE$62,'2.3.Спецификации по этапам'!$N:$N,"Центр")*($E$2+100%)+SUMIFS('2.3.Спецификации по этапам'!$H:$H,'2.3.Спецификации по этапам'!$L:$L,'4.БКВ'!$A11,'2.3.Спецификации по этапам'!$M:$M,'4.БКВ'!AE$62,'2.3.Спецификации по этапам'!$N:$N,"Децентр")*($E$3+100%) -> 0 | AF11: =SUMIFS('2.3.Спецификации по этапам'!$H:$H,'2.3.Спецификации по этапам'!$L:$L,'4.БКВ'!$A11,'2.3.Спецификации по этапам'!$M:$M,'4.БКВ'!AF$62,'2.3.Спецификации по этапам'!$N:$N,"Центр")*($E$2+100%)+SUMIFS('2.3.Спецификации по этапам'!$H:$H,'2.3.Спецификации по этапам'!$L:$L,'4.БКВ'!$A11,'2.3.Спецификации по этапам'!$M:$M,'4.БКВ'!AF$62,'2.3.Спецификации по этапам'!$N:$N,"Децентр")*($E$3+100%) -> 0 | AG11: =SUMIFS('2.3.Спецификации по этапам'!$H:$H,'2.3.Спецификации по этапам'!$L:$L,'4.БКВ'!$A11,'2.3.Спецификации по этапам'!$M:$M,'4.БКВ'!AG$62,'2.3.Спецификации по этапам'!$N:$N,"Центр")*($E$2+100%)+SUMIFS('2.3.Спецификации по этапам'!$H:$H,'2.3.Спецификации по этапам'!$L:$L,'4.БКВ'!$A11,'2.3.Спецификации по этапам'!$M:$M,'4.БКВ'!AG$62,'2.3.Спецификации по этапам'!$N:$N,"Децентр")*($E$3+100%) -> 0 | AH11: =SUMIFS('2.3.Спецификации по этапам'!$H:$H,'2.3.Спецификации по этапам'!$L:$L,'4.БКВ'!$A11,'2.3.Спецификации по этапам'!$M:$M,'4.БКВ'!AH$62,'2.3.Спецификации по этапам'!$N:$N,"Центр")*($E$2+100%)+SUMIFS('2.3.Спецификации по этапам'!$H:$H,'2.3.Спецификации по этапам'!$L:$L,'4.БКВ'!$A11,'2.3.Спецификации по этапам'!$M:$M,'4.БКВ'!AH$62,'2.3.Спецификации по этапам'!$N:$N,"Децентр")*($E$3+100%) -> 0 | AI11: =SUMIFS('2.3.Спецификации по этапам'!$H:$H,'2.3.Спецификации по этапам'!$L:$L,'4.БКВ'!$A11,'2.3.Спецификации по этапам'!$M:$M,'4.БКВ'!AI$62,'2.3.Спецификации по этапам'!$N:$N,"Центр")*($E$2+100%)+SUMIFS('2.3.Спецификации по этапам'!$H:$H,'2.3.Спецификации по этапам'!$L:$L,'4.БКВ'!$A11,'2.3.Спецификации по этапам'!$M:$M,'4.БКВ'!AI$62,'2.3.Спецификации по этапам'!$N:$N,"Децентр")*($E$3+100%) -> 0 | AJ11: =SUMIFS('2.3.Спецификации по этапам'!$H:$H,'2.3.Спецификации по этапам'!$L:$L,'4.БКВ'!$A11,'2.3.Спецификации по этапам'!$M:$M,'4.БКВ'!AJ$62,'2.3.Спецификации по этапам'!$N:$N,"Центр")*($E$2+100%)+SUMIFS('2.3.Спецификации по этапам'!$H:$H,'2.3.Спецификации по этапам'!$L:$L,'4.БКВ'!$A11,'2.3.Спецификации по этапам'!$M:$M,'4.БКВ'!AJ$62,'2.3.Спецификации по этапам'!$N:$N,"Децентр")*($E$3+100%) -> 0 | AK11: =SUMIFS('2.3.Спецификации по этапам'!$H:$H,'2.3.Спецификации по этапам'!$L:$L,'4.БКВ'!$A11,'2.3.Спецификации по этапам'!$M:$M,'4.БКВ'!AK$62,'2.3.Спецификации по этапам'!$N:$N,"Центр")*($E$2+100%)+SUMIFS('2.3.Спецификации по этапам'!$H:$H,'2.3.Спецификации по этапам'!$L:$L,'4.БКВ'!$A11,'2.3.Спецификации по этапам'!$M:$M,'4.БКВ'!AK$62,'2.3.Спецификации по этапам'!$N:$N,"Децентр")*($E$3+100%) -> 0 | AL11: =SUMIFS('2.3.Спецификации по этапам'!$H:$H,'2.3.Спецификации по этапам'!$L:$L,'4.БКВ'!$A11,'2.3.Спецификации по этапам'!$M:$M,'4.БКВ'!AL$62,'2.3.Спецификации по этапам'!$N:$N,"Центр")*($E$2+100%)+SUMIFS('2.3.Спецификации по этапам'!$H:$H,'2.3.Спецификации по этапам'!$L:$L,'4.БКВ'!$A11,'2.3.Спецификации по этапам'!$M:$M,'4.БКВ'!AL$62,'2.3.Спецификации по этапам'!$N:$N,"Децентр")*($E$3+100%) -> 0 | AM11: =SUMIFS('2.3.Спецификации по этапам'!$H:$H,'2.3.Спецификации по этапам'!$L:$L,'4.БКВ'!$A11,'2.3.Спецификации по этапам'!$M:$M,'4.БКВ'!AM$62,'2.3.Спецификации по этапам'!$N:$N,"Центр")*($E$2+100%)+SUMIFS('2.3.Спецификации по этапам'!$H:$H,'2.3.Спецификации по этапам'!$L:$L,'4.БКВ'!$A11,'2.3.Спецификации по этапам'!$M:$M,'4.БКВ'!AM$62,'2.3.Спецификации по этапам'!$N:$N,"Децентр")*($E$3+100%) -> 0 | AN11: =SUMIFS('2.3.Спецификации по этапам'!$H:$H,'2.3.Спецификации по этапам'!$L:$L,'4.БКВ'!$A11,'2.3.Спецификации по этапам'!$M:$M,'4.БКВ'!AN$62,'2.3.Спецификации по этапам'!$N:$N,"Центр")*($E$2+100%)+SUMIFS('2.3.Спецификации по этапам'!$H:$H,'2.3.Спецификации по этапам'!$L:$L,'4.БКВ'!$A11,'2.3.Спецификации по этапам'!$M:$M,'4.БКВ'!AN$62,'2.3.Спецификации по этапам'!$N:$N,"Децентр")*($E$3+100%) -> 0 | AO11: =SUMIFS('2.3.Спецификации по этапам'!$H:$H,'2.3.Спецификации по этапам'!$L:$L,'4.БКВ'!$A11,'2.3.Спецификации по этапам'!$M:$M,'4.БКВ'!AO$62,'2.3.Спецификации по этапам'!$N:$N,"Центр")*($E$2+100%)+SUMIFS('2.3.Спецификации по этапам'!$H:$H,'2.3.Спецификации по этапам'!$L:$L,'4.БКВ'!$A11,'2.3.Спецификации по этапам'!$M:$M,'4.БКВ'!AO$62,'2.3.Спецификации по этапам'!$N:$N,"Децентр")*($E$3+100%) -> 0 | AP11: =SUMIFS('2.3.Спецификации по этапам'!$H:$H,'2.3.Спецификации по этапам'!$L:$L,'4.БКВ'!$A11,'2.3.Спецификации по этапам'!$M:$M,'4.БКВ'!AP$62,'2.3.Спецификации по этапам'!$N:$N,"Центр")*($E$2+100%)+SUMIFS('2.3.Спецификации по этапам'!$H:$H,'2.3.Спецификации по этапам'!$L:$L,'4.БКВ'!$A11,'2.3.Спецификации по этапам'!$M:$M,'4.БКВ'!AP$62,'2.3.Спецификации по этапам'!$N:$N,"Децентр")*($E$3+100%) -> 0 | AQ11: =SUMIFS('2.3.Спецификации по этапам'!$H:$H,'2.3.Спецификации по этапам'!$L:$L,'4.БКВ'!$A11,'2.3.Спецификации по этапам'!$M:$M,'4.БКВ'!AQ$62,'2.3.Спецификации по этапам'!$N:$N,"Центр")*($E$2+100%)+SUMIFS('2.3.Спецификации по этапам'!$H:$H,'2.3.Спецификации по этапам'!$L:$L,'4.БКВ'!$A11,'2.3.Спецификации по этапам'!$M:$M,'4.БКВ'!AQ$62,'2.3.Спецификации по этапам'!$N:$N,"Децентр")*($E$3+100%) -> 0 | AR11: =SUMIFS('2.3.Спецификации по этапам'!$H:$H,'2.3.Спецификации по этапам'!$L:$L,'4.БКВ'!$A11,'2.3.Спецификации по этапам'!$M:$M,'4.БКВ'!AR$62,'2.3.Спецификации по этапам'!$N:$N,"Центр")*($E$2+100%)+SUMIFS('2.3.Спецификации по этапам'!$H:$H,'2.3.Спецификации по этапам'!$L:$L,'4.БКВ'!$A11,'2.3.Спецификации по этапам'!$M:$M,'4.БКВ'!AR$62,'2.3.Спецификации по этапам'!$N:$N,"Децентр")*($E$3+100%) -> 0 | AS11: =SUMIFS('2.3.Спецификации по этапам'!$H:$H,'2.3.Спецификации по этапам'!$L:$L,'4.БКВ'!$A11,'2.3.Спецификации по этапам'!$M:$M,'4.БКВ'!AS$62,'2.3.Спецификации по этапам'!$N:$N,"Центр")*($E$2+100%)+SUMIFS('2.3.Спецификации по этапам'!$H:$H,'2.3.Спецификации по этапам'!$L:$L,'4.БКВ'!$A11,'2.3.Спецификации по этапам'!$M:$M,'4.БКВ'!AS$62,'2.3.Спецификации по этапам'!$N:$N,"Децентр")*($E$3+100%) -> 0 | AT11: =SUMIFS('2.3.Спецификации по этапам'!$H:$H,'2.3.Спецификации по этапам'!$L:$L,'4.БКВ'!$A11,'2.3.Спецификации по этапам'!$M:$M,'4.БКВ'!AT$62,'2.3.Спецификации по этапам'!$N:$N,"Центр")*($E$2+100%)+SUMIFS('2.3.Спецификации по этапам'!$H:$H,'2.3.Спецификации по этапам'!$L:$L,'4.БКВ'!$A11,'2.3.Спецификации по этапам'!$M:$M,'4.БКВ'!AT$62,'2.3.Спецификации по этапам'!$N:$N,"Децентр")*($E$3+100%) -> 0 | AU11: =SUMIFS('2.3.Спецификации по этапам'!$H:$H,'2.3.Спецификации по этапам'!$L:$L,'4.БКВ'!$A11,'2.3.Спецификации по этапам'!$M:$M,'4.БКВ'!AU$62,'2.3.Спецификации по этапам'!$N:$N,"Центр")*($E$2+100%)+SUMIFS('2.3.Спецификации по этапам'!$H:$H,'2.3.Спецификации по этапам'!$L:$L,'4.БКВ'!$A11,'2.3.Спецификации по этапам'!$M:$M,'4.БКВ'!AU$62,'2.3.Спецификации по этапам'!$N:$N,"Децентр")*($E$3+100%) -> 0 | AV11: =SUMIFS('2.3.Спецификации по этапам'!$H:$H,'2.3.Спецификации по этапам'!$L:$L,'4.БКВ'!$A11,'2.3.Спецификации по этапам'!$M:$M,'4.БКВ'!AV$62,'2.3.Спецификации по этапам'!$N:$N,"Центр")*($E$2+100%)+SUMIFS('2.3.Спецификации по этапам'!$H:$H,'2.3.Спецификации по этапам'!$L:$L,'4.БКВ'!$A11,'2.3.Спецификации по этапам'!$M:$M,'4.БКВ'!AV$62,'2.3.Спецификации по этапам'!$N:$N,"Децентр")*($E$3+100%) -> 0 | AW11: 196,728 | AX11: 0 | AY11: 0 | AZ11: 0 | BA11: 0 | BB11: 0 | BC11: 0 | BD11: 0 | BE11: 0 | BF11: 0 | BG11: 0 | BH11: 196,728
A12: Лицензии (срок службы 6 лет) | B12: ='3.Входные данные'!$E$29 -> в тыс. тенге | C12: 0 | E12: =SUMIFS('2.3.Спецификации по этапам'!$H:$H,'2.3.Спецификации по этапам'!$L:$L,'4.БКВ'!$A12,'2.3.Спецификации по этапам'!$M:$M,'4.БКВ'!E$62,'2.3.Спецификации по этапам'!$N:$N,"Центр")*($E$2+100%)+SUMIFS('2.3.Спецификации по этапам'!$H:$H,'2.3.Спецификации по этапам'!$L:$L,'4.БКВ'!$A12,'2.3.Спецификации по этапам'!$M:$M,'4.БКВ'!E$62,'2.3.Спецификации по этапам'!$N:$N,"Децентр")*($E$3+100%) -> 0 | F12: =SUMIFS('2.3.Спецификации по этапам'!$H:$H,'2.3.Спецификации по этапам'!$L:$L,'4.БКВ'!$A12,'2.3.Спецификации по этапам'!$M:$M,'4.БКВ'!F$62,'2.3.Спецификации по этапам'!$N:$N,"Центр")*($E$2+100%)+SUMIFS('2.3.Спецификации по этапам'!$H:$H,'2.3.Спецификации по этапам'!$L:$L,'4.БКВ'!$A12,'2.3.Спецификации по этапам'!$M:$M,'4.БКВ'!F$62,'2.3.Спецификации по этапам'!$N:$N,"Децентр")*($E$3+100%) -> 0 | G12: =SUMIFS('2.3.Спецификации по этапам'!$H:$H,'2.3.Спецификации по этапам'!$L:$L,'4.БКВ'!$A12,'2.3.Спецификации по этапам'!$M:$M,'4.БКВ'!G$62,'2.3.Спецификации по этапам'!$N:$N,"Центр")*($E$2+100%)+SUMIFS('2.3.Спецификации по этапам'!$H:$H,'2.3.Спецификации по этапам'!$L:$L,'4.БКВ'!$A12,'2.3.Спецификации по этапам'!$M:$M,'4.БКВ'!G$62,'2.3.Спецификации по этапам'!$N:$N,"Децентр")*($E$3+100%) -> 0 | H12: =SUMIFS('2.3.Спецификации по этапам'!$H:$H,'2.3.Спецификации по этапам'!$L:$L,'4.БКВ'!$A12,'2.3.Спецификации по этапам'!$M:$M,'4.БКВ'!H$62,'2.3.Спецификации по этапам'!$N:$N,"Центр")*($E$2+100%)+SUMIFS('2.3.Спецификации по этапам'!$H:$H,'2.3.Спецификации по этапам'!$L:$L,'4.БКВ'!$A12,'2.3.Спецификации по этапам'!$M:$M,'4.БКВ'!H$62,'2.3.Спецификации по этапам'!$N:$N,"Децентр")*($E$3+100%) -> 0 | I12: =SUMIFS('2.3.Спецификации по этапам'!$H:$H,'2.3.Спецификации по этапам'!$L:$L,'4.БКВ'!$A12,'2.3.Спецификации по этапам'!$M:$M,'4.БКВ'!I$62,'2.3.Спецификации по этапам'!$N:$N,"Центр")*($E$2+100%)+SUMIFS('2.3.Спецификации по этапам'!$H:$H,'2.3.Спецификации по этапам'!$L:$L,'4.БКВ'!$A12,'2.3.Спецификации по этапам'!$M:$M,'4.БКВ'!I$62,'2.3.Спецификации по этапам'!$N:$N,"Децентр")*($E$3+100%) -> 0 | J12: =SUMIFS('2.3.Спецификации по этапам'!$H:$H,'2.3.Спецификации по этапам'!$L:$L,'4.БКВ'!$A12,'2.3.Спецификации по этапам'!$M:$M,'4.БКВ'!J$62,'2.3.Спецификации по этапам'!$N:$N,"Центр")*($E$2+100%)+SUMIFS('2.3.Спецификации по этапам'!$H:$H,'2.3.Спецификации по этапам'!$L:$L,'4.БКВ'!$A12,'2.3.Спецификации по этапам'!$M:$M,'4.БКВ'!J$62,'2.3.Спецификации по этапам'!$N:$N,"Децентр")*($E$3+100%) -> 0 | K12: =SUMIFS('2.3.Спецификации по этапам'!$H:$H,'2.3.Спецификации по этапам'!$L:$L,'4.БКВ'!$A12,'2.3.Спецификации по этапам'!$M:$M,'4.БКВ'!K$62,'2.3.Спецификации по этапам'!$N:$N,"Центр")*($E$2+100%)+SUMIFS('2.3.Спецификации по этапам'!$H:$H,'2.3.Спецификации по этапам'!$L:$L,'4.БКВ'!$A12,'2.3.Спецификации по этапам'!$M:$M,'4.БКВ'!K$62,'2.3.Спецификации по этапам'!$N:$N,"Децентр")*($E$3+100%) -> 0 | L12: =SUMIFS('2.3.Спецификации по этапам'!$H:$H,'2.3.Спецификации по этапам'!$L:$L,'4.БКВ'!$A12,'2.3.Спецификации по этапам'!$M:$M,'4.БКВ'!L$62,'2.3.Спецификации по этапам'!$N:$N,"Центр")*($E$2+100%)+SUMIFS('2.3.Спецификации по этапам'!$H:$H,'2.3.Спецификации по этапам'!$L:$L,'4.БКВ'!$A12,'2.3.Спецификации по этапам'!$M:$M,'4.БКВ'!L$62,'2.3.Спецификации по этапам'!$N:$N,"Децентр")*($E$3+100%) -> 0 | M12: =SUMIFS('2.3.Спецификации по этапам'!$H:$H,'2.3.Спецификации по этапам'!$L:$L,'4.БКВ'!$A12,'2.3.Спецификации по этапам'!$M:$M,'4.БКВ'!M$62,'2.3.Спецификации по этапам'!$N:$N,"Центр")*($E$2+100%)+SUMIFS('2.3.Спецификации по этапам'!$H:$H,'2.3.Спецификации по этапам'!$L:$L,'4.БКВ'!$A12,'2.3.Спецификации по этапам'!$M:$M,'4.БКВ'!M$62,'2.3.Спецификации по этапам'!$N:$N,"Децентр")*($E$3+100%) -> 0 | N12: =SUMIFS('2.3.Спецификации по этапам'!$H:$H,'2.3.Спецификации по этапам'!$L:$L,'4.БКВ'!$A12,'2.3.Спецификации по этапам'!$M:$M,'4.БКВ'!N$62,'2.3.Спецификации по этапам'!$N:$N,"Центр")*($E$2+100%)+SUMIFS('2.3.Спецификации по этапам'!$H:$H,'2.3.Спецификации по этапам'!$L:$L,'4.БКВ'!$A12,'2.3.Спецификации по этапам'!$M:$M,'4.БКВ'!N$62,'2.3.Спецификации по этапам'!$N:$N,"Децентр")*($E$3+100%) -> 0 | O12: =SUMIFS('2.3.Спецификации по этапам'!$H:$H,'2.3.Спецификации по этапам'!$L:$L,'4.БКВ'!$A12,'2.3.Спецификации по этапам'!$M:$M,'4.БКВ'!O$62,'2.3.Спецификации по этапам'!$N:$N,"Центр")*($E$2+100%)+SUMIFS('2.3.Спецификации по этапам'!$H:$H,'2.3.Спецификации по этапам'!$L:$L,'4.БКВ'!$A12,'2.3.Спецификации по этапам'!$M:$M,'4.БКВ'!O$62,'2.3.Спецификации по этапам'!$N:$N,"Децентр")*($E$3+100%) -> 0 | P12: =SUMIFS('2.3.Спецификации по этапам'!$H:$H,'2.3.Спецификации по этапам'!$L:$L,'4.БКВ'!$A12,'2.3.Спецификации по этапам'!$M:$M,'4.БКВ'!P$62,'2.3.Спецификации по этапам'!$N:$N,"Центр")*($E$2+100%)+SUMIFS('2.3.Спецификации по этапам'!$H:$H,'2.3.Спецификации по этапам'!$L:$L,'4.БКВ'!$A12,'2.3.Спецификации по этапам'!$M:$M,'4.БКВ'!P$62,'2.3.Спецификации по этапам'!$N:$N,"Децентр")*($E$3+100%) -> 0 | Q12: =SUMIFS('2.3.Спецификации по этапам'!$H:$H,'2.3.Спецификации по этапам'!$L:$L,'4.БКВ'!$A12,'2.3.Спецификации по этапам'!$M:$M,'4.БКВ'!Q$62,'2.3.Спецификации по этапам'!$N:$N,"Центр")*($E$2+100%)+SUMIFS('2.3.Спецификации по этапам'!$H:$H,'2.3.Спецификации по этапам'!$L:$L,'4.БКВ'!$A12,'2.3.Спецификации по этапам'!$M:$M,'4.БКВ'!Q$62,'2.3.Спецификации по этапам'!$N:$N,"Децентр")*($E$3+100%) -> 0 | R12: =SUMIFS('2.3.Спецификации по этапам'!$H:$H,'2.3.Спецификации по этапам'!$L:$L,'4.БКВ'!$A12,'2.3.Спецификации по этапам'!$M:$M,'4.БКВ'!R$62,'2.3.Спецификации по этапам'!$N:$N,"Центр")*($E$2+100%)+SUMIFS('2.3.Спецификации по этапам'!$H:$H,'2.3.Спецификации по этапам'!$L:$L,'4.БКВ'!$A12,'2.3.Спецификации по этапам'!$M:$M,'4.БКВ'!R$62,'2.3.Спецификации по этапам'!$N:$N,"Децентр")*($E$3+100%) -> 0 | S12: =SUMIFS('2.3.Спецификации по этапам'!$H:$H,'2.3.Спецификации по этапам'!$L:$L,'4.БКВ'!$A12,'2.3.Спецификации по этапам'!$M:$M,'4.БКВ'!S$62,'2.3.Спецификации по этапам'!$N:$N,"Центр")*($E$2+100%)+SUMIFS('2.3.Спецификации по этапам'!$H:$H,'2.3.Спецификации по этапам'!$L:$L,'4.БКВ'!$A12,'2.3.Спецификации по этапам'!$M:$M,'4.БКВ'!S$62,'2.3.Спецификации по этапам'!$N:$N,"Децентр")*($E$3+100%) -> 0 | T12: =SUMIFS('2.3.Спецификации по этапам'!$H:$H,'2.3.Спецификации по этапам'!$L:$L,'4.БКВ'!$A12,'2.3.Спецификации по этапам'!$M:$M,'4.БКВ'!T$62,'2.3.Спецификации по этапам'!$N:$N,"Центр")*($E$2+100%)+SUMIFS('2.3.Спецификации по этапам'!$H:$H,'2.3.Спецификации по этапам'!$L:$L,'4.БКВ'!$A12,'2.3.Спецификации по этапам'!$M:$M,'4.БКВ'!T$62,'2.3.Спецификации по этапам'!$N:$N,"Децентр")*($E$3+100%) -> 0 | U12: =SUMIFS('2.3.Спецификации по этапам'!$H:$H,'2.3.Спецификации по этапам'!$L:$L,'4.БКВ'!$A12,'2.3.Спецификации по этапам'!$M:$M,'4.БКВ'!U$62,'2.3.Спецификации по этапам'!$N:$N,"Центр")*($E$2+100%)+SUMIFS('2.3.Спецификации по этапам'!$H:$H,'2.3.Спецификации по этапам'!$L:$L,'4.БКВ'!$A12,'2.3.Спецификации по этапам'!$M:$M,'4.БКВ'!U$62,'2.3.Спецификации по этапам'!$N:$N,"Децентр")*($E$3+100%) -> 0 | V12: =SUMIFS('2.3.Спецификации по этапам'!$H:$H,'2.3.Спецификации по этапам'!$L:$L,'4.БКВ'!$A12,'2.3.Спецификации по этапам'!$M:$M,'4.БКВ'!V$62,'2.3.Спецификации по этапам'!$N:$N,"Центр")*($E$2+100%)+SUMIFS('2.3.Спецификации по этапам'!$H:$H,'2.3.Спецификации по этапам'!$L:$L,'4.БКВ'!$A12,'2.3.Спецификации по этапам'!$M:$M,'4.БКВ'!V$62,'2.3.Спецификации по этапам'!$N:$N,"Децентр")*($E$3+100%) -> 0 | W12: =SUMIFS('2.3.Спецификации по этапам'!$H:$H,'2.3.Спецификации по этапам'!$L:$L,'4.БКВ'!$A12,'2.3.Спецификации по этапам'!$M:$M,'4.БКВ'!W$62,'2.3.Спецификации по этапам'!$N:$N,"Центр")*($E$2+100%)+SUMIFS('2.3.Спецификации по этапам'!$H:$H,'2.3.Спецификации по этапам'!$L:$L,'4.БКВ'!$A12,'2.3.Спецификации по этапам'!$M:$M,'4.БКВ'!W$62,'2.3.Спецификации по этапам'!$N:$N,"Децентр")*($E$3+100%) -> 0 | X12: =SUMIFS('2.3.Спецификации по этапам'!$H:$H,'2.3.Спецификации по этапам'!$L:$L,'4.БКВ'!$A12,'2.3.Спецификации по этапам'!$M:$M,'4.БКВ'!X$62,'2.3.Спецификации по этапам'!$N:$N,"Центр")*($E$2+100%)+SUMIFS('2.3.Спецификации по этапам'!$H:$H,'2.3.Спецификации по этапам'!$L:$L,'4.БКВ'!$A12,'2.3.Спецификации по этапам'!$M:$M,'4.БКВ'!X$62,'2.3.Спецификации по этапам'!$N:$N,"Децентр")*($E$3+100%) -> 0 | Y12: =SUMIFS('2.3.Спецификации по этапам'!$H:$H,'2.3.Спецификации по этапам'!$L:$L,'4.БКВ'!$A12,'2.3.Спецификации по этапам'!$M:$M,'4.БКВ'!Y$62,'2.3.Спецификации по этапам'!$N:$N,"Центр")*($E$2+100%)+SUMIFS('2.3.Спецификации по этапам'!$H:$H,'2.3.Спецификации по этапам'!$L:$L,'4.БКВ'!$A12,'2.3.Спецификации по этапам'!$M:$M,'4.БКВ'!Y$62,'2.3.Спецификации по этапам'!$N:$N,"Децентр")*($E$3+100%) -> 0 | Z12: =SUMIFS('2.3.Спецификации по этапам'!$H:$H,'2.3.Спецификации по этапам'!$L:$L,'4.БКВ'!$A12,'2.3.Спецификации по этапам'!$M:$M,'4.БКВ'!Z$62,'2.3.Спецификации по этапам'!$N:$N,"Центр")*($E$2+100%)+SUMIFS('2.3.Спецификации по этапам'!$H:$H,'2.3.Спецификации по этапам'!$L:$L,'4.БКВ'!$A12,'2.3.Спецификации по этапам'!$M:$M,'4.БКВ'!Z$62,'2.3.Спецификации по этапам'!$N:$N,"Децентр")*($E$3+100%) -> 0 | AA12: =SUMIFS('2.3.Спецификации по этапам'!$H:$H,'2.3.Спецификации по этапам'!$L:$L,'4.БКВ'!$A12,'2.3.Спецификации по этапам'!$M:$M,'4.БКВ'!AA$62,'2.3.Спецификации по этапам'!$N:$N,"Центр")*($E$2+100%)+SUMIFS('2.3.Спецификации по этапам'!$H:$H,'2.3.Спецификации по этапам'!$L:$L,'4.БКВ'!$A12,'2.3.Спецификации по этапам'!$M:$M,'4.БКВ'!AA$62,'2.3.Спецификации по этапам'!$N:$N,"Децентр")*($E$3+100%) -> 0 | AB12: =SUMIFS('2.3.Спецификации по этапам'!$H:$H,'2.3.Спецификации по этапам'!$L:$L,'4.БКВ'!$A12,'2.3.Спецификации по этапам'!$M:$M,'4.БКВ'!AB$62,'2.3.Спецификации по этапам'!$N:$N,"Центр")*($E$2+100%)+SUMIFS('2.3.Спецификации по этапам'!$H:$H,'2.3.Спецификации по этапам'!$L:$L,'4.БКВ'!$A12,'2.3.Спецификации по этапам'!$M:$M,'4.БКВ'!AB$62,'2.3.Спецификации по этапам'!$N:$N,"Децентр")*($E$3+100%) -> 0 | AC12: =SUMIFS('2.3.Спецификации по этапам'!$H:$H,'2.3.Спецификации по этапам'!$L:$L,'4.БКВ'!$A12,'2.3.Спецификации по этапам'!$M:$M,'4.БКВ'!AC$62,'2.3.Спецификации по этапам'!$N:$N,"Центр")*($E$2+100%)+SUMIFS('2.3.Спецификации по этапам'!$H:$H,'2.3.Спецификации по этапам'!$L:$L,'4.БКВ'!$A12,'2.3.Спецификации по этапам'!$M:$M,'4.БКВ'!AC$62,'2.3.Спецификации по этапам'!$N:$N,"Децентр")*($E$3+100%) -> 0 | AD12: =SUMIFS('2.3.Спецификации по этапам'!$H:$H,'2.3.Спецификации по этапам'!$L:$L,'4.БКВ'!$A12,'2.3.Спецификации по этапам'!$M:$M,'4.БКВ'!AD$62,'2.3.Спецификации по этапам'!$N:$N,"Центр")*($E$2+100%)+SUMIFS('2.3.Спецификации по этапам'!$H:$H,'2.3.Спецификации по этапам'!$L:$L,'4.БКВ'!$A12,'2.3.Спецификации по этапам'!$M:$M,'4.БКВ'!AD$62,'2.3.Спецификации по этапам'!$N:$N,"Децентр")*($E$3+100%) -> 0 | AE12: =SUMIFS('2.3.Спецификации по этапам'!$H:$H,'2.3.Спецификации по этапам'!$L:$L,'4.БКВ'!$A12,'2.3.Спецификации по этапам'!$M:$M,'4.БКВ'!AE$62,'2.3.Спецификации по этапам'!$N:$N,"Центр")*($E$2+100%)+SUMIFS('2.3.Спецификации по этапам'!$H:$H,'2.3.Спецификации по этапам'!$L:$L,'4.БКВ'!$A12,'2.3.Спецификации по этапам'!$M:$M,'4.БКВ'!AE$62,'2.3.Спецификации по этапам'!$N:$N,"Децентр")*($E$3+100%) -> 0 | AF12: =SUMIFS('2.3.Спецификации по этапам'!$H:$H,'2.3.Спецификации по этапам'!$L:$L,'4.БКВ'!$A12,'2.3.Спецификации по этапам'!$M:$M,'4.БКВ'!AF$62,'2.3.Спецификации по этапам'!$N:$N,"Центр")*($E$2+100%)+SUMIFS('2.3.Спецификации по этапам'!$H:$H,'2.3.Спецификации по этапам'!$L:$L,'4.БКВ'!$A12,'2.3.Спецификации по этапам'!$M:$M,'4.БКВ'!AF$62,'2.3.Спецификации по этапам'!$N:$N,"Децентр")*($E$3+100%) -> 0 | AG12: =SUMIFS('2.3.Спецификации по этапам'!$H:$H,'2.3.Спецификации по этапам'!$L:$L,'4.БКВ'!$A12,'2.3.Спецификации по этапам'!$M:$M,'4.БКВ'!AG$62,'2.3.Спецификации по этапам'!$N:$N,"Центр")*($E$2+100%)+SUMIFS('2.3.Спецификации по этапам'!$H:$H,'2.3.Спецификации по этапам'!$L:$L,'4.БКВ'!$A12,'2.3.Спецификации по этапам'!$M:$M,'4.БКВ'!AG$62,'2.3.Спецификации по этапам'!$N:$N,"Децентр")*($E$3+100%) -> 0 | AH12: =SUMIFS('2.3.Спецификации по этапам'!$H:$H,'2.3.Спецификации по этапам'!$L:$L,'4.БКВ'!$A12,'2.3.Спецификации по этапам'!$M:$M,'4.БКВ'!AH$62,'2.3.Спецификации по этапам'!$N:$N,"Центр")*($E$2+100%)+SUMIFS('2.3.Спецификации по этапам'!$H:$H,'2.3.Спецификации по этапам'!$L:$L,'4.БКВ'!$A12,'2.3.Спецификации по этапам'!$M:$M,'4.БКВ'!AH$62,'2.3.Спецификации по этапам'!$N:$N,"Децентр")*($E$3+100%) -> 0 | AI12: =SUMIFS('2.3.Спецификации по этапам'!$H:$H,'2.3.Спецификации по этапам'!$L:$L,'4.БКВ'!$A12,'2.3.Спецификации по этапам'!$M:$M,'4.БКВ'!AI$62,'2.3.Спецификации по этапам'!$N:$N,"Центр")*($E$2+100%)+SUMIFS('2.3.Спецификации по этапам'!$H:$H,'2.3.Спецификации по этапам'!$L:$L,'4.БКВ'!$A12,'2.3.Спецификации по этапам'!$M:$M,'4.БКВ'!AI$62,'2.3.Спецификации по этапам'!$N:$N,"Децентр")*($E$3+100%) -> 0 | AJ12: =SUMIFS('2.3.Спецификации по этапам'!$H:$H,'2.3.Спецификации по этапам'!$L:$L,'4.БКВ'!$A12,'2.3.Спецификации по этапам'!$M:$M,'4.БКВ'!AJ$62,'2.3.Спецификации по этапам'!$N:$N,"Центр")*($E$2+100%)+SUMIFS('2.3.Спецификации по этапам'!$H:$H,'2.3.Спецификации по этапам'!$L:$L,'4.БКВ'!$A12,'2.3.Спецификации по этапам'!$M:$M,'4.БКВ'!AJ$62,'2.3.Спецификации по этапам'!$N:$N,"Децентр")*($E$3+100%) -> 0 | AK12: =SUMIFS('2.3.Спецификации по этапам'!$H:$H,'2.3.Спецификации по этапам'!$L:$L,'4.БКВ'!$A12,'2.3.Спецификации по этапам'!$M:$M,'4.БКВ'!AK$62,'2.3.Спецификации по этапам'!$N:$N,"Центр")*($E$2+100%)+SUMIFS('2.3.Спецификации по этапам'!$H:$H,'2.3.Спецификации по этапам'!$L:$L,'4.БКВ'!$A12,'2.3.Спецификации по этапам'!$M:$M,'4.БКВ'!AK$62,'2.3.Спецификации по этапам'!$N:$N,"Децентр")*($E$3+100%) -> 0 | AL12: =SUMIFS('2.3.Спецификации по этапам'!$H:$H,'2.3.Спецификации по этапам'!$L:$L,'4.БКВ'!$A12,'2.3.Спецификации по этапам'!$M:$M,'4.БКВ'!AL$62,'2.3.Спецификации по этапам'!$N:$N,"Центр")*($E$2+100%)+SUMIFS('2.3.Спецификации по этапам'!$H:$H,'2.3.Спецификации по этапам'!$L:$L,'4.БКВ'!$A12,'2.3.Спецификации по этапам'!$M:$M,'4.БКВ'!AL$62,'2.3.Спецификации по этапам'!$N:$N,"Децентр")*($E$3+100%) -> 0 | AM12: =SUMIFS('2.3.Спецификации по этапам'!$H:$H,'2.3.Спецификации по этапам'!$L:$L,'4.БКВ'!$A12,'2.3.Спецификации по этапам'!$M:$M,'4.БКВ'!AM$62,'2.3.Спецификации по этапам'!$N:$N,"Центр")*($E$2+100%)+SUMIFS('2.3.Спецификации по этапам'!$H:$H,'2.3.Спецификации по этапам'!$L:$L,'4.БКВ'!$A12,'2.3.Спецификации по этапам'!$M:$M,'4.БКВ'!AM$62,'2.3.Спецификации по этапам'!$N:$N,"Децентр")*($E$3+100%) -> 0 | AN12: =SUMIFS('2.3.Спецификации по этапам'!$H:$H,'2.3.Спецификации по этапам'!$L:$L,'4.БКВ'!$A12,'2.3.Спецификации по этапам'!$M:$M,'4.БКВ'!AN$62,'2.3.Спецификации по этапам'!$N:$N,"Центр")*($E$2+100%)+SUMIFS('2.3.Спецификации по этапам'!$H:$H,'2.3.Спецификации по этапам'!$L:$L,'4.БКВ'!$A12,'2.3.Спецификации по этапам'!$M:$M,'4.БКВ'!AN$62,'2.3.Спецификации по этапам'!$N:$N,"Децентр")*($E$3+100%) -> 0 | AO12: =SUMIFS('2.3.Спецификации по этапам'!$H:$H,'2.3.Спецификации по этапам'!$L:$L,'4.БКВ'!$A12,'2.3.Спецификации по этапам'!$M:$M,'4.БКВ'!AO$62,'2.3.Спецификации по этапам'!$N:$N,"Центр")*($E$2+100%)+SUMIFS('2.3.Спецификации по этапам'!$H:$H,'2.3.Спецификации по этапам'!$L:$L,'4.БКВ'!$A12,'2.3.Спецификации по этапам'!$M:$M,'4.БКВ'!AO$62,'2.3.Спецификации по этапам'!$N:$N,"Децентр")*($E$3+100%) -> 0 | AP12: =SUMIFS('2.3.Спецификации по этапам'!$H:$H,'2.3.Спецификации по этапам'!$L:$L,'4.БКВ'!$A12,'2.3.Спецификации по этапам'!$M:$M,'4.БКВ'!AP$62,'2.3.Спецификации по этапам'!$N:$N,"Центр")*($E$2+100%)+SUMIFS('2.3.Спецификации по этапам'!$H:$H,'2.3.Спецификации по этапам'!$L:$L,'4.БКВ'!$A12,'2.3.Спецификации по этапам'!$M:$M,'4.БКВ'!AP$62,'2.3.Спецификации по этапам'!$N:$N,"Децентр")*($E$3+100%) -> 0 | AQ12: =SUMIFS('2.3.Спецификации по этапам'!$H:$H,'2.3.Спецификации по этапам'!$L:$L,'4.БКВ'!$A12,'2.3.Спецификации по этапам'!$M:$M,'4.БКВ'!AQ$62,'2.3.Спецификации по этапам'!$N:$N,"Центр")*($E$2+100%)+SUMIFS('2.3.Спецификации по этапам'!$H:$H,'2.3.Спецификации по этапам'!$L:$L,'4.БКВ'!$A12,'2.3.Спецификации по этапам'!$M:$M,'4.БКВ'!AQ$62,'2.3.Спецификации по этапам'!$N:$N,"Децентр")*($E$3+100%) -> 0 | AR12: =SUMIFS('2.3.Спецификации по этапам'!$H:$H,'2.3.Спецификации по этапам'!$L:$L,'4.БКВ'!$A12,'2.3.Спецификации по этапам'!$M:$M,'4.БКВ'!AR$62,'2.3.Спецификации по этапам'!$N:$N,"Центр")*($E$2+100%)+SUMIFS('2.3.Спецификации по этапам'!$H:$H,'2.3.Спецификации по этапам'!$L:$L,'4.БКВ'!$A12,'2.3.Спецификации по этапам'!$M:$M,'4.БКВ'!AR$62,'2.3.Спецификации по этапам'!$N:$N,"Децентр")*($E$3+100%) -> 0 | AS12: =SUMIFS('2.3.Спецификации по этапам'!$H:$H,'2.3.Спецификации по этапам'!$L:$L,'4.БКВ'!$A12,'2.3.Спецификации по этапам'!$M:$M,'4.БКВ'!AS$62,'2.3.Спецификации по этапам'!$N:$N,"Центр")*($E$2+100%)+SUMIFS('2.3.Спецификации по этапам'!$H:$H,'2.3.Спецификации по этапам'!$L:$L,'4.БКВ'!$A12,'2.3.Спецификации по этапам'!$M:$M,'4.БКВ'!AS$62,'2.3.Спецификации по этапам'!$N:$N,"Децентр")*($E$3+100%) -> 0 | AT12: =SUMIFS('2.3.Спецификации по этапам'!$H:$H,'2.3.Спецификации по этапам'!$L:$L,'4.БКВ'!$A12,'2.3.Спецификации по этапам'!$M:$M,'4.БКВ'!AT$62,'2.3.Спецификации по этапам'!$N:$N,"Центр")*($E$2+100%)+SUMIFS('2.3.Спецификации по этапам'!$H:$H,'2.3.Спецификации по этапам'!$L:$L,'4.БКВ'!$A12,'2.3.Спецификации по этапам'!$M:$M,'4.БКВ'!AT$62,'2.3.Спецификации по этапам'!$N:$N,"Децентр")*($E$3+100%) -> 0 | AU12: =SUMIFS('2.3.Спецификации по этапам'!$H:$H,'2.3.Спецификации по этапам'!$L:$L,'4.БКВ'!$A12,'2.3.Спецификации по этапам'!$M:$M,'4.БКВ'!AU$62,'2.3.Спецификации по этапам'!$N:$N,"Центр")*($E$2+100%)+SUMIFS('2.3.Спецификации по этапам'!$H:$H,'2.3.Спецификации по этапам'!$L:$L,'4.БКВ'!$A12,'2.3.Спецификации по этапам'!$M:$M,'4.БКВ'!AU$62,'2.3.Спецификации по этапам'!$N:$N,"Децентр")*($E$3+100%) -> 0 | AV12: =SUMIFS('2.3.Спецификации по этапам'!$H:$H,'2.3.Спецификации по этапам'!$L:$L,'4.БКВ'!$A12,'2.3.Спецификации по этапам'!$M:$M,'4.БКВ'!AV$62,'2.3.Спецификации по этапам'!$N:$N,"Центр")*($E$2+100%)+SUMIFS('2.3.Спецификации по этапам'!$H:$H,'2.3.Спецификации по этапам'!$L:$L,'4.БКВ'!$A12,'2.3.Спецификации по этапам'!$M:$M,'4.БКВ'!AV$62,'2.3.Спецификации по этапам'!$N:$N,"Децентр")*($E$3+100%) -> 0 | AW12: 0 | AX12: 0 | AY12: 0 | AZ12: 0 | BA12: 0 | BB12: 0 | BC12: 0 | BD12: 0 | BE12: 0 | BF12: 0 | BG12: 0 | BH12: 0
A13: Оборудование, ПО и лицензии (срок службы 7 лет) | B13: ='3.Входные данные'!$E$29 -> в тыс. тенге | C13: 196,728 | E13: =SUMIFS('2.3.Спецификации по этапам'!$H:$H,'2.3.Спецификации по этапам'!$L:$L,'4.БКВ'!$A13,'2.3.Спецификации по этапам'!$M:$M,'4.БКВ'!E$62,'2.3.Спецификации по этапам'!$N:$N,"Центр")*($E$2+100%)+SUMIFS('2.3.Спецификации по этапам'!$H:$H,'2.3.Спецификации по этапам'!$L:$L,'4.БКВ'!$A13,'2.3.Спецификации по этапам'!$M:$M,'4.БКВ'!E$62,'2.3.Спецификации по этапам'!$N:$N,"Децентр")*($E$3+100%) -> 0 | F13: =SUMIFS('2.3.Спецификации по этапам'!$H:$H,'2.3.Спецификации по этапам'!$L:$L,'4.БКВ'!$A13,'2.3.Спецификации по этапам'!$M:$M,'4.БКВ'!F$62,'2.3.Спецификации по этапам'!$N:$N,"Центр")*($E$2+100%)+SUMIFS('2.3.Спецификации по этапам'!$H:$H,'2.3.Спецификации по этапам'!$L:$L,'4.БКВ'!$A13,'2.3.Спецификации по этапам'!$M:$M,'4.БКВ'!F$62,'2.3.Спецификации по этапам'!$N:$N,"Децентр")*($E$3+100%) -> 0 | G13: =SUMIFS('2.3.Спецификации по этапам'!$H:$H,'2.3.Спецификации по этапам'!$L:$L,'4.БКВ'!$A13,'2.3.Спецификации по этапам'!$M:$M,'4.БКВ'!G$62,'2.3.Спецификации по этапам'!$N:$N,"Центр")*($E$2+100%)+SUMIFS('2.3.Спецификации по этапам'!$H:$H,'2.3.Спецификации по этапам'!$L:$L,'4.БКВ'!$A13,'2.3.Спецификации по этапам'!$M:$M,'4.БКВ'!G$62,'2.3.Спецификации по этапам'!$N:$N,"Децентр")*($E$3+100%) -> 0 | H13: =SUMIFS('2.3.Спецификации по этапам'!$H:$H,'2.3.Спецификации по этапам'!$L:$L,'4.БКВ'!$A13,'2.3.Спецификации по этапам'!$M:$M,'4.БКВ'!H$62,'2.3.Спецификации по этапам'!$N:$N,"Центр")*($E$2+100%)+SUMIFS('2.3.Спецификации по этапам'!$H:$H,'2.3.Спецификации по этапам'!$L:$L,'4.БКВ'!$A13,'2.3.Спецификации по этапам'!$M:$M,'4.БКВ'!H$62,'2.3.Спецификации по этапам'!$N:$N,"Децентр")*($E$3+100%) -> 0 | I13: =SUMIFS('2.3.Спецификации по этапам'!$H:$H,'2.3.Спецификации по этапам'!$L:$L,'4.БКВ'!$A13,'2.3.Спецификации по этапам'!$M:$M,'4.БКВ'!I$62,'2.3.Спецификации по этапам'!$N:$N,"Центр")*($E$2+100%)+SUMIFS('2.3.Спецификации по этапам'!$H:$H,'2.3.Спецификации по этапам'!$L:$L,'4.БКВ'!$A13,'2.3.Спецификации по этапам'!$M:$M,'4.БКВ'!I$62,'2.3.Спецификации по этапам'!$N:$N,"Децентр")*($E$3+100%) -> 0 | J13: =SUMIFS('2.3.Спецификации по этапам'!$H:$H,'2.3.Спецификации по этапам'!$L:$L,'4.БКВ'!$A13,'2.3.Спецификации по этапам'!$M:$M,'4.БКВ'!J$62,'2.3.Спецификации по этапам'!$N:$N,"Центр")*($E$2+100%)+SUMIFS('2.3.Спецификации по этапам'!$H:$H,'2.3.Спецификации по этапам'!$L:$L,'4.БКВ'!$A13,'2.3.Спецификации по этапам'!$M:$M,'4.БКВ'!J$62,'2.3.Спецификации по этапам'!$N:$N,"Децентр")*($E$3+100%) -> 0 | K13: =SUMIFS('2.3.Спецификации по этапам'!$H:$H,'2.3.Спецификации по этапам'!$L:$L,'4.БКВ'!$A13,'2.3.Спецификации по этапам'!$M:$M,'4.БКВ'!K$62,'2.3.Спецификации по этапам'!$N:$N,"Центр")*($E$2+100%)+SUMIFS('2.3.Спецификации по этапам'!$H:$H,'2.3.Спецификации по этапам'!$L:$L,'4.БКВ'!$A13,'2.3.Спецификации по этапам'!$M:$M,'4.БКВ'!K$62,'2.3.Спецификации по этапам'!$N:$N,"Децентр")*($E$3+100%) -> 196,728 | L13: =SUMIFS('2.3.Спецификации по этапам'!$H:$H,'2.3.Спецификации по этапам'!$L:$L,'4.БКВ'!$A13,'2.3.Спецификации по этапам'!$M:$M,'4.БКВ'!L$62,'2.3.Спецификации по этапам'!$N:$N,"Центр")*($E$2+100%)+SUMIFS('2.3.Спецификации по этапам'!$H:$H,'2.3.Спецификации по этапам'!$L:$L,'4.БКВ'!$A13,'2.3.Спецификации по этапам'!$M:$M,'4.БКВ'!L$62,'2.3.Спецификации по этапам'!$N:$N,"Децентр")*($E$3+100%) -> 0 | M13: =SUMIFS('2.3.Спецификации по этапам'!$H:$H,'2.3.Спецификации по этапам'!$L:$L,'4.БКВ'!$A13,'2.3.Спецификации по этапам'!$M:$M,'4.БКВ'!M$62,'2.3.Спецификации по этапам'!$N:$N,"Центр")*($E$2+100%)+SUMIFS('2.3.Спецификации по этапам'!$H:$H,'2.3.Спецификации по этапам'!$L:$L,'4.БКВ'!$A13,'2.3.Спецификации по этапам'!$M:$M,'4.БКВ'!M$62,'2.3.Спецификации по этапам'!$N:$N,"Децентр")*($E$3+100%) -> 0 | N13: =SUMIFS('2.3.Спецификации по этапам'!$H:$H,'2.3.Спецификации по этапам'!$L:$L,'4.БКВ'!$A13,'2.3.Спецификации по этапам'!$M:$M,'4.БКВ'!N$62,'2.3.Спецификации по этапам'!$N:$N,"Центр")*($E$2+100%)+SUMIFS('2.3.Спецификации по этапам'!$H:$H,'2.3.Спецификации по этапам'!$L:$L,'4.БКВ'!$A13,'2.3.Спецификации по этапам'!$M:$M,'4.БКВ'!N$62,'2.3.Спецификации по этапам'!$N:$N,"Децентр")*($E$3+100%) -> 0 | O13: =SUMIFS('2.3.Спецификации по этапам'!$H:$H,'2.3.Спецификации по этапам'!$L:$L,'4.БКВ'!$A13,'2.3.Спецификации по этапам'!$M:$M,'4.БКВ'!O$62,'2.3.Спецификации по этапам'!$N:$N,"Центр")*($E$2+100%)+SUMIFS('2.3.Спецификации по этапам'!$H:$H,'2.3.Спецификации по этапам'!$L:$L,'4.БКВ'!$A13,'2.3.Спецификации по этапам'!$M:$M,'4.БКВ'!O$62,'2.3.Спецификации по этапам'!$N:$N,"Децентр")*($E$3+100%) -> 0 | P13: =SUMIFS('2.3.Спецификации по этапам'!$H:$H,'2.3.Спецификации по этапам'!$L:$L,'4.БКВ'!$A13,'2.3.Спецификации по этапам'!$M:$M,'4.БКВ'!P$62,'2.3.Спецификации по этапам'!$N:$N,"Центр")*($E$2+100%)+SUMIFS('2.3.Спецификации по этапам'!$H:$H,'2.3.Спецификации по этапам'!$L:$L,'4.БКВ'!$A13,'2.3.Спецификации по этапам'!$M:$M,'4.БКВ'!P$62,'2.3.Спецификации по этапам'!$N:$N,"Децентр")*($E$3+100%) -> 0 | Q13: =SUMIFS('2.3.Спецификации по этапам'!$H:$H,'2.3.Спецификации по этапам'!$L:$L,'4.БКВ'!$A13,'2.3.Спецификации по этапам'!$M:$M,'4.БКВ'!Q$62,'2.3.Спецификации по этапам'!$N:$N,"Центр")*($E$2+100%)+SUMIFS('2.3.Спецификации по этапам'!$H:$H,'2.3.Спецификации по этапам'!$L:$L,'4.БКВ'!$A13,'2.3.Спецификации по этапам'!$M:$M,'4.БКВ'!Q$62,'2.3.Спецификации по этапам'!$N:$N,"Децентр")*($E$3+100%) -> 0 | R13: =SUMIFS('2.3.Спецификации по этапам'!$H:$H,'2.3.Спецификации по этапам'!$L:$L,'4.БКВ'!$A13,'2.3.Спецификации по этапам'!$M:$M,'4.БКВ'!R$62,'2.3.Спецификации по этапам'!$N:$N,"Центр")*($E$2+100%)+SUMIFS('2.3.Спецификации по этапам'!$H:$H,'2.3.Спецификации по этапам'!$L:$L,'4.БКВ'!$A13,'2.3.Спецификации по этапам'!$M:$M,'4.БКВ'!R$62,'2.3.Спецификации по этапам'!$N:$N,"Децентр")*($E$3+100%) -> 0 | S13: =SUMIFS('2.3.Спецификации по этапам'!$H:$H,'2.3.Спецификации по этапам'!$L:$L,'4.БКВ'!$A13,'2.3.Спецификации по этапам'!$M:$M,'4.БКВ'!S$62,'2.3.Спецификации по этапам'!$N:$N,"Центр")*($E$2+100%)+SUMIFS('2.3.Спецификации по этапам'!$H:$H,'2.3.Спецификации по этапам'!$L:$L,'4.БКВ'!$A13,'2.3.Спецификации по этапам'!$M:$M,'4.БКВ'!S$62,'2.3.Спецификации по этапам'!$N:$N,"Децентр")*($E$3+100%) -> 0 | T13: =SUMIFS('2.3.Спецификации по этапам'!$H:$H,'2.3.Спецификации по этапам'!$L:$L,'4.БКВ'!$A13,'2.3.Спецификации по этапам'!$M:$M,'4.БКВ'!T$62,'2.3.Спецификации по этапам'!$N:$N,"Центр")*($E$2+100%)+SUMIFS('2.3.Спецификации по этапам'!$H:$H,'2.3.Спецификации по этапам'!$L:$L,'4.БКВ'!$A13,'2.3.Спецификации по этапам'!$M:$M,'4.БКВ'!T$62,'2.3.Спецификации по этапам'!$N:$N,"Децентр")*($E$3+100%) -> 0 | U13: =SUMIFS('2.3.Спецификации по этапам'!$H:$H,'2.3.Спецификации по этапам'!$L:$L,'4.БКВ'!$A13,'2.3.Спецификации по этапам'!$M:$M,'4.БКВ'!U$62,'2.3.Спецификации по этапам'!$N:$N,"Центр")*($E$2+100%)+SUMIFS('2.3.Спецификации по этапам'!$H:$H,'2.3.Спецификации по этапам'!$L:$L,'4.БКВ'!$A13,'2.3.Спецификации по этапам'!$M:$M,'4.БКВ'!U$62,'2.3.Спецификации по этапам'!$N:$N,"Децентр")*($E$3+100%) -> 0 | V13: =SUMIFS('2.3.Спецификации по этапам'!$H:$H,'2.3.Спецификации по этапам'!$L:$L,'4.БКВ'!$A13,'2.3.Спецификации по этапам'!$M:$M,'4.БКВ'!V$62,'2.3.Спецификации по этапам'!$N:$N,"Центр")*($E$2+100%)+SUMIFS('2.3.Спецификации по этапам'!$H:$H,'2.3.Спецификации по этапам'!$L:$L,'4.БКВ'!$A13,'2.3.Спецификации по этапам'!$M:$M,'4.БКВ'!V$62,'2.3.Спецификации по этапам'!$N:$N,"Децентр")*($E$3+100%) -> 0 | W13: =SUMIFS('2.3.Спецификации по этапам'!$H:$H,'2.3.Спецификации по этапам'!$L:$L,'4.БКВ'!$A13,'2.3.Спецификации по этапам'!$M:$M,'4.БКВ'!W$62,'2.3.Спецификации по этапам'!$N:$N,"Центр")*($E$2+100%)+SUMIFS('2.3.Спецификации по этапам'!$H:$H,'2.3.Спецификации по этапам'!$L:$L,'4.БКВ'!$A13,'2.3.Спецификации по этапам'!$M:$M,'4.БКВ'!W$62,'2.3.Спецификации по этапам'!$N:$N,"Децентр")*($E$3+100%) -> 0 | X13: =SUMIFS('2.3.Спецификации по этапам'!$H:$H,'2.3.Спецификации по этапам'!$L:$L,'4.БКВ'!$A13,'2.3.Спецификации по этапам'!$M:$M,'4.БКВ'!X$62,'2.3.Спецификации по этапам'!$N:$N,"Центр")*($E$2+100%)+SUMIFS('2.3.Спецификации по этапам'!$H:$H,'2.3.Спецификации по этапам'!$L:$L,'4.БКВ'!$A13,'2.3.Спецификации по этапам'!$M:$M,'4.БКВ'!X$62,'2.3.Спецификации по этапам'!$N:$N,"Децентр")*($E$3+100%) -> 0 | Y13: =SUMIFS('2.3.Спецификации по этапам'!$H:$H,'2.3.Спецификации по этапам'!$L:$L,'4.БКВ'!$A13,'2.3.Спецификации по этапам'!$M:$M,'4.БКВ'!Y$62,'2.3.Спецификации по этапам'!$N:$N,"Центр")*($E$2+100%)+SUMIFS('2.3.Спецификации по этапам'!$H:$H,'2.3.Спецификации по этапам'!$L:$L,'4.БКВ'!$A13,'2.3.Спецификации по этапам'!$M:$M,'4.БКВ'!Y$62,'2.3.Спецификации по этапам'!$N:$N,"Децентр")*($E$3+100%) -> 0 | Z13: =SUMIFS('2.3.Спецификации по этапам'!$H:$H,'2.3.Спецификации по этапам'!$L:$L,'4.БКВ'!$A13,'2.3.Спецификации по этапам'!$M:$M,'4.БКВ'!Z$62,'2.3.Спецификации по этапам'!$N:$N,"Центр")*($E$2+100%)+SUMIFS('2.3.Спецификации по этапам'!$H:$H,'2.3.Спецификации по этапам'!$L:$L,'4.БКВ'!$A13,'2.3.Спецификации по этапам'!$M:$M,'4.БКВ'!Z$62,'2.3.Спецификации по этапам'!$N:$N,"Децентр")*($E$3+100%) -> 0 | AA13: =SUMIFS('2.3.Спецификации по этапам'!$H:$H,'2.3.Спецификации по этапам'!$L:$L,'4.БКВ'!$A13,'2.3.Спецификации по этапам'!$M:$M,'4.БКВ'!AA$62,'2.3.Спецификации по этапам'!$N:$N,"Центр")*($E$2+100%)+SUMIFS('2.3.Спецификации по этапам'!$H:$H,'2.3.Спецификации по этапам'!$L:$L,'4.БКВ'!$A13,'2.3.Спецификации по этапам'!$M:$M,'4.БКВ'!AA$62,'2.3.Спецификации по этапам'!$N:$N,"Децентр")*($E$3+100%) -> 0 | AB13: =SUMIFS('2.3.Спецификации по этапам'!$H:$H,'2.3.Спецификации по этапам'!$L:$L,'4.БКВ'!$A13,'2.3.Спецификации по этапам'!$M:$M,'4.БКВ'!AB$62,'2.3.Спецификации по этапам'!$N:$N,"Центр")*($E$2+100%)+SUMIFS('2.3.Спецификации по этапам'!$H:$H,'2.3.Спецификации по этапам'!$L:$L,'4.БКВ'!$A13,'2.3.Спецификации по этапам'!$M:$M,'4.БКВ'!AB$62,'2.3.Спецификации по этапам'!$N:$N,"Децентр")*($E$3+100%) -> 0 | AC13: =SUMIFS('2.3.Спецификации по этапам'!$H:$H,'2.3.Спецификации по этапам'!$L:$L,'4.БКВ'!$A13,'2.3.Спецификации по этапам'!$M:$M,'4.БКВ'!AC$62,'2.3.Спецификации по этапам'!$N:$N,"Центр")*($E$2+100%)+SUMIFS('2.3.Спецификации по этапам'!$H:$H,'2.3.Спецификации по этапам'!$L:$L,'4.БКВ'!$A13,'2.3.Спецификации по этапам'!$M:$M,'4.БКВ'!AC$62,'2.3.Спецификации по этапам'!$N:$N,"Децентр")*($E$3+100%) -> 0 | AD13: =SUMIFS('2.3.Спецификации по этапам'!$H:$H,'2.3.Спецификации по этапам'!$L:$L,'4.БКВ'!$A13,'2.3.Спецификации по этапам'!$M:$M,'4.БКВ'!AD$62,'2.3.Спецификации по этапам'!$N:$N,"Центр")*($E$2+100%)+SUMIFS('2.3.Спецификации по этапам'!$H:$H,'2.3.Спецификации по этапам'!$L:$L,'4.БКВ'!$A13,'2.3.Спецификации по этапам'!$M:$M,'4.БКВ'!AD$62,'2.3.Спецификации по этапам'!$N:$N,"Децентр")*($E$3+100%) -> 0 | AE13: =SUMIFS('2.3.Спецификации по этапам'!$H:$H,'2.3.Спецификации по этапам'!$L:$L,'4.БКВ'!$A13,'2.3.Спецификации по этапам'!$M:$M,'4.БКВ'!AE$62,'2.3.Спецификации по этапам'!$N:$N,"Центр")*($E$2+100%)+SUMIFS('2.3.Спецификации по этапам'!$H:$H,'2.3.Спецификации по этапам'!$L:$L,'4.БКВ'!$A13,'2.3.Спецификации по этапам'!$M:$M,'4.БКВ'!AE$62,'2.3.Спецификации по этапам'!$N:$N,"Децентр")*($E$3+100%) -> 0 | AF13: =SUMIFS('2.3.Спецификации по этапам'!$H:$H,'2.3.Спецификации по этапам'!$L:$L,'4.БКВ'!$A13,'2.3.Спецификации по этапам'!$M:$M,'4.БКВ'!AF$62,'2.3.Спецификации по этапам'!$N:$N,"Центр")*($E$2+100%)+SUMIFS('2.3.Спецификации по этапам'!$H:$H,'2.3.Спецификации по этапам'!$L:$L,'4.БКВ'!$A13,'2.3.Спецификации по этапам'!$M:$M,'4.БКВ'!AF$62,'2.3.Спецификации по этапам'!$N:$N,"Децентр")*($E$3+100%) -> 0 | AG13: =SUMIFS('2.3.Спецификации по этапам'!$H:$H,'2.3.Спецификации по этапам'!$L:$L,'4.БКВ'!$A13,'2.3.Спецификации по этапам'!$M:$M,'4.БКВ'!AG$62,'2.3.Спецификации по этапам'!$N:$N,"Центр")*($E$2+100%)+SUMIFS('2.3.Спецификации по этапам'!$H:$H,'2.3.Спецификации по этапам'!$L:$L,'4.БКВ'!$A13,'2.3.Спецификации по этапам'!$M:$M,'4.БКВ'!AG$62,'2.3.Спецификации по этапам'!$N:$N,"Децентр")*($E$3+100%) -> 0 | AH13: =SUMIFS('2.3.Спецификации по этапам'!$H:$H,'2.3.Спецификации по этапам'!$L:$L,'4.БКВ'!$A13,'2.3.Спецификации по этапам'!$M:$M,'4.БКВ'!AH$62,'2.3.Спецификации по этапам'!$N:$N,"Центр")*($E$2+100%)+SUMIFS('2.3.Спецификации по этапам'!$H:$H,'2.3.Спецификации по этапам'!$L:$L,'4.БКВ'!$A13,'2.3.Спецификации по этапам'!$M:$M,'4.БКВ'!AH$62,'2.3.Спецификации по этапам'!$N:$N,"Децентр")*($E$3+100%) -> 0 | AI13: =SUMIFS('2.3.Спецификации по этапам'!$H:$H,'2.3.Спецификации по этапам'!$L:$L,'4.БКВ'!$A13,'2.3.Спецификации по этапам'!$M:$M,'4.БКВ'!AI$62,'2.3.Спецификации по этапам'!$N:$N,"Центр")*($E$2+100%)+SUMIFS('2.3.Спецификации по этапам'!$H:$H,'2.3.Спецификации по этапам'!$L:$L,'4.БКВ'!$A13,'2.3.Спецификации по этапам'!$M:$M,'4.БКВ'!AI$62,'2.3.Спецификации по этапам'!$N:$N,"Децентр")*($E$3+100%) -> 0 | AJ13: =SUMIFS('2.3.Спецификации по этапам'!$H:$H,'2.3.Спецификации по этапам'!$L:$L,'4.БКВ'!$A13,'2.3.Спецификации по этапам'!$M:$M,'4.БКВ'!AJ$62,'2.3.Спецификации по этапам'!$N:$N,"Центр")*($E$2+100%)+SUMIFS('2.3.Спецификации по этапам'!$H:$H,'2.3.Спецификации по этапам'!$L:$L,'4.БКВ'!$A13,'2.3.Спецификации по этапам'!$M:$M,'4.БКВ'!AJ$62,'2.3.Спецификации по этапам'!$N:$N,"Децентр")*($E$3+100%) -> 0 | AK13: =SUMIFS('2.3.Спецификации по этапам'!$H:$H,'2.3.Спецификации по этапам'!$L:$L,'4.БКВ'!$A13,'2.3.Спецификации по этапам'!$M:$M,'4.БКВ'!AK$62,'2.3.Спецификации по этапам'!$N:$N,"Центр")*($E$2+100%)+SUMIFS('2.3.Спецификации по этапам'!$H:$H,'2.3.Спецификации по этапам'!$L:$L,'4.БКВ'!$A13,'2.3.Спецификации по этапам'!$M:$M,'4.БКВ'!AK$62,'2.3.Спецификации по этапам'!$N:$N,"Децентр")*($E$3+100%) -> 0 | AL13: =SUMIFS('2.3.Спецификации по этапам'!$H:$H,'2.3.Спецификации по этапам'!$L:$L,'4.БКВ'!$A13,'2.3.Спецификации по этапам'!$M:$M,'4.БКВ'!AL$62,'2.3.Спецификации по этапам'!$N:$N,"Центр")*($E$2+100%)+SUMIFS('2.3.Спецификации по этапам'!$H:$H,'2.3.Спецификации по этапам'!$L:$L,'4.БКВ'!$A13,'2.3.Спецификации по этапам'!$M:$M,'4.БКВ'!AL$62,'2.3.Спецификации по этапам'!$N:$N,"Децентр")*($E$3+100%) -> 0 | AM13: =SUMIFS('2.3.Спецификации по этапам'!$H:$H,'2.3.Спецификации по этапам'!$L:$L,'4.БКВ'!$A13,'2.3.Спецификации по этапам'!$M:$M,'4.БКВ'!AM$62,'2.3.Спецификации по этапам'!$N:$N,"Центр")*($E$2+100%)+SUMIFS('2.3.Спецификации по этапам'!$H:$H,'2.3.Спецификации по этапам'!$L:$L,'4.БКВ'!$A13,'2.3.Спецификации по этапам'!$M:$M,'4.БКВ'!AM$62,'2.3.Спецификации по этапам'!$N:$N,"Децентр")*($E$3+100%) -> 0 | AN13: =SUMIFS('2.3.Спецификации по этапам'!$H:$H,'2.3.Спецификации по этапам'!$L:$L,'4.БКВ'!$A13,'2.3.Спецификации по этапам'!$M:$M,'4.БКВ'!AN$62,'2.3.Спецификации по этапам'!$N:$N,"Центр")*($E$2+100%)+SUMIFS('2.3.Спецификации по этапам'!$H:$H,'2.3.Спецификации по этапам'!$L:$L,'4.БКВ'!$A13,'2.3.Спецификации по этапам'!$M:$M,'4.БКВ'!AN$62,'2.3.Спецификации по этапам'!$N:$N,"Децентр")*($E$3+100%) -> 0 | AO13: =SUMIFS('2.3.Спецификации по этапам'!$H:$H,'2.3.Спецификации по этапам'!$L:$L,'4.БКВ'!$A13,'2.3.Спецификации по этапам'!$M:$M,'4.БКВ'!AO$62,'2.3.Спецификации по этапам'!$N:$N,"Центр")*($E$2+100%)+SUMIFS('2.3.Спецификации по этапам'!$H:$H,'2.3.Спецификации по этапам'!$L:$L,'4.БКВ'!$A13,'2.3.Спецификации по этапам'!$M:$M,'4.БКВ'!AO$62,'2.3.Спецификации по этапам'!$N:$N,"Децентр")*($E$3+100%) -> 0 | AP13: =SUMIFS('2.3.Спецификации по этапам'!$H:$H,'2.3.Спецификации по этапам'!$L:$L,'4.БКВ'!$A13,'2.3.Спецификации по этапам'!$M:$M,'4.БКВ'!AP$62,'2.3.Спецификации по этапам'!$N:$N,"Центр")*($E$2+100%)+SUMIFS('2.3.Спецификации по этапам'!$H:$H,'2.3.Спецификации по этапам'!$L:$L,'4.БКВ'!$A13,'2.3.Спецификации по этапам'!$M:$M,'4.БКВ'!AP$62,'2.3.Спецификации по этапам'!$N:$N,"Децентр")*($E$3+100%) -> 0 | AQ13: =SUMIFS('2.3.Спецификации по этапам'!$H:$H,'2.3.Спецификации по этапам'!$L:$L,'4.БКВ'!$A13,'2.3.Спецификации по этапам'!$M:$M,'4.БКВ'!AQ$62,'2.3.Спецификации по этапам'!$N:$N,"Центр")*($E$2+100%)+SUMIFS('2.3.Спецификации по этапам'!$H:$H,'2.3.Спецификации по этапам'!$L:$L,'4.БКВ'!$A13,'2.3.Спецификации по этапам'!$M:$M,'4.БКВ'!AQ$62,'2.3.Спецификации по этапам'!$N:$N,"Децентр")*($E$3+100%) -> 0 | AR13: =SUMIFS('2.3.Спецификации по этапам'!$H:$H,'2.3.Спецификации по этапам'!$L:$L,'4.БКВ'!$A13,'2.3.Спецификации по этапам'!$M:$M,'4.БКВ'!AR$62,'2.3.Спецификации по этапам'!$N:$N,"Центр")*($E$2+100%)+SUMIFS('2.3.Спецификации по этапам'!$H:$H,'2.3.Спецификации по этапам'!$L:$L,'4.БКВ'!$A13,'2.3.Спецификации по этапам'!$M:$M,'4.БКВ'!AR$62,'2.3.Спецификации по этапам'!$N:$N,"Децентр")*($E$3+100%) -> 0 | AS13: =SUMIFS('2.3.Спецификации по этапам'!$H:$H,'2.3.Спецификации по этапам'!$L:$L,'4.БКВ'!$A13,'2.3.Спецификации по этапам'!$M:$M,'4.БКВ'!AS$62,'2.3.Спецификации по этапам'!$N:$N,"Центр")*($E$2+100%)+SUMIFS('2.3.Спецификации по этапам'!$H:$H,'2.3.Спецификации по этапам'!$L:$L,'4.БКВ'!$A13,'2.3.Спецификации по этапам'!$M:$M,'4.БКВ'!AS$62,'2.3.Спецификации по этапам'!$N:$N,"Децентр")*($E$3+100%) -> 0 | AT13: =SUMIFS('2.3.Спецификации по этапам'!$H:$H,'2.3.Спецификации по этапам'!$L:$L,'4.БКВ'!$A13,'2.3.Спецификации по этапам'!$M:$M,'4.БКВ'!AT$62,'2.3.Спецификации по этапам'!$N:$N,"Центр")*($E$2+100%)+SUMIFS('2.3.Спецификации по этапам'!$H:$H,'2.3.Спецификации по этапам'!$L:$L,'4.БКВ'!$A13,'2.3.Спецификации по этапам'!$M:$M,'4.БКВ'!AT$62,'2.3.Спецификации по этапам'!$N:$N,"Децентр")*($E$3+100%) -> 0 | AU13: =SUMIFS('2.3.Спецификации по этапам'!$H:$H,'2.3.Спецификации по этапам'!$L:$L,'4.БКВ'!$A13,'2.3.Спецификации по этапам'!$M:$M,'4.БКВ'!AU$62,'2.3.Спецификации по этапам'!$N:$N,"Центр")*($E$2+100%)+SUMIFS('2.3.Спецификации по этапам'!$H:$H,'2.3.Спецификации по этапам'!$L:$L,'4.БКВ'!$A13,'2.3.Спецификации по этапам'!$M:$M,'4.БКВ'!AU$62,'2.3.Спецификации по этапам'!$N:$N,"Децентр")*($E$3+100%) -> 0 | AV13: =SUMIFS('2.3.Спецификации по этапам'!$H:$H,'2.3.Спецификации по этапам'!$L:$L,'4.БКВ'!$A13,'2.3.Спецификации по этапам'!$M:$M,'4.БКВ'!AV$62,'2.3.Спецификации по этапам'!$N:$N,"Центр")*($E$2+100%)+SUMIFS('2.3.Спецификации по этапам'!$H:$H,'2.3.Спецификации по этапам'!$L:$L,'4.БКВ'!$A13,'2.3.Спецификации по этапам'!$M:$M,'4.БКВ'!AV$62,'2.3.Спецификации по этапам'!$N:$N,"Децентр")*($E$3+100%) -> 0 | AW13: 0 | AX13: 196,728 | AY13: 0 | AZ13: 0 | BA13: 0 | BB13: 0 | BC13: 0 | BD13: 0 | BE13: 0 | BF13: 0 | BG13: 0 | BH13: 196,728
A14: Оборудование и ПО (срок службы 8 лет) | B14: ='3.Входные данные'!$E$29 -> в тыс. тенге | C14: =SUM(AW14:BG14) -> 0 | E14: =SUMIFS('2.3.Спецификации по этапам'!$H:$H,'2.3.Спецификации по этапам'!$L:$L,'4.БКВ'!$A14,'2.3.Спецификации по этапам'!$M:$M,'4.БКВ'!E$62,'2.3.Спецификации по этапам'!$N:$N,"Центр")*($E$2+100%)+SUMIFS('2.3.Спецификации по этапам'!$H:$H,'2.3.Спецификации по этапам'!$L:$L,'4.БКВ'!$A14,'2.3.Спецификации по этапам'!$M:$M,'4.БКВ'!E$62,'2.3.Спецификации по этапам'!$N:$N,"Децентр")*($E$3+100%) -> 0 | F14: =SUMIFS('2.3.Спецификации по этапам'!$H:$H,'2.3.Спецификации по этапам'!$L:$L,'4.БКВ'!$A14,'2.3.Спецификации по этапам'!$M:$M,'4.БКВ'!F$62,'2.3.Спецификации по этапам'!$N:$N,"Центр")*($E$2+100%)+SUMIFS('2.3.Спецификации по этапам'!$H:$H,'2.3.Спецификации по этапам'!$L:$L,'4.БКВ'!$A14,'2.3.Спецификации по этапам'!$M:$M,'4.БКВ'!F$62,'2.3.Спецификации по этапам'!$N:$N,"Децентр")*($E$3+100%) -> 0 | G14: =SUMIFS('2.3.Спецификации по этапам'!$H:$H,'2.3.Спецификации по этапам'!$L:$L,'4.БКВ'!$A14,'2.3.Спецификации по этапам'!$M:$M,'4.БКВ'!G$62,'2.3.Спецификации по этапам'!$N:$N,"Центр")*($E$2+100%)+SUMIFS('2.3.Спецификации по этапам'!$H:$H,'2.3.Спецификации по этапам'!$L:$L,'4.БКВ'!$A14,'2.3.Спецификации по этапам'!$M:$M,'4.БКВ'!G$62,'2.3.Спецификации по этапам'!$N:$N,"Децентр")*($E$3+100%) -> 0 | H14: =SUMIFS('2.3.Спецификации по этапам'!$H:$H,'2.3.Спецификации по этапам'!$L:$L,'4.БКВ'!$A14,'2.3.Спецификации по этапам'!$M:$M,'4.БКВ'!H$62,'2.3.Спецификации по этапам'!$N:$N,"Центр")*($E$2+100%)+SUMIFS('2.3.Спецификации по этапам'!$H:$H,'2.3.Спецификации по этапам'!$L:$L,'4.БКВ'!$A14,'2.3.Спецификации по этапам'!$M:$M,'4.БКВ'!H$62,'2.3.Спецификации по этапам'!$N:$N,"Децентр")*($E$3+100%) -> 0 | I14: =SUMIFS('2.3.Спецификации по этапам'!$H:$H,'2.3.Спецификации по этапам'!$L:$L,'4.БКВ'!$A14,'2.3.Спецификации по этапам'!$M:$M,'4.БКВ'!I$62,'2.3.Спецификации по этапам'!$N:$N,"Центр")*($E$2+100%)+SUMIFS('2.3.Спецификации по этапам'!$H:$H,'2.3.Спецификации по этапам'!$L:$L,'4.БКВ'!$A14,'2.3.Спецификации по этапам'!$M:$M,'4.БКВ'!I$62,'2.3.Спецификации по этапам'!$N:$N,"Децентр")*($E$3+100%) -> 0 | J14: =SUMIFS('2.3.Спецификации по этапам'!$H:$H,'2.3.Спецификации по этапам'!$L:$L,'4.БКВ'!$A14,'2.3.Спецификации по этапам'!$M:$M,'4.БКВ'!J$62,'2.3.Спецификации по этапам'!$N:$N,"Центр")*($E$2+100%)+SUMIFS('2.3.Спецификации по этапам'!$H:$H,'2.3.Спецификации по этапам'!$L:$L,'4.БКВ'!$A14,'2.3.Спецификации по этапам'!$M:$M,'4.БКВ'!J$62,'2.3.Спецификации по этапам'!$N:$N,"Децентр")*($E$3+100%) -> 0 | K14: =SUMIFS('2.3.Спецификации по этапам'!$H:$H,'2.3.Спецификации по этапам'!$L:$L,'4.БКВ'!$A14,'2.3.Спецификации по этапам'!$M:$M,'4.БКВ'!K$62,'2.3.Спецификации по этапам'!$N:$N,"Центр")*($E$2+100%)+SUMIFS('2.3.Спецификации по этапам'!$H:$H,'2.3.Спецификации по этапам'!$L:$L,'4.БКВ'!$A14,'2.3.Спецификации по этапам'!$M:$M,'4.БКВ'!K$62,'2.3.Спецификации по этапам'!$N:$N,"Децентр")*($E$3+100%) -> 0 | L14: =SUMIFS('2.3.Спецификации по этапам'!$H:$H,'2.3.Спецификации по этапам'!$L:$L,'4.БКВ'!$A14,'2.3.Спецификации по этапам'!$M:$M,'4.БКВ'!L$62,'2.3.Спецификации по этапам'!$N:$N,"Центр")*($E$2+100%)+SUMIFS('2.3.Спецификации по этапам'!$H:$H,'2.3.Спецификации по этапам'!$L:$L,'4.БКВ'!$A14,'2.3.Спецификации по этапам'!$M:$M,'4.БКВ'!L$62,'2.3.Спецификации по этапам'!$N:$N,"Децентр")*($E$3+100%) -> 0 | M14: =SUMIFS('2.3.Спецификации по этапам'!$H:$H,'2.3.Спецификации по этапам'!$L:$L,'4.БКВ'!$A14,'2.3.Спецификации по этапам'!$M:$M,'4.БКВ'!M$62,'2.3.Спецификации по этапам'!$N:$N,"Центр")*($E$2+100%)+SUMIFS('2.3.Спецификации по этапам'!$H:$H,'2.3.Спецификации по этапам'!$L:$L,'4.БКВ'!$A14,'2.3.Спецификации по этапам'!$M:$M,'4.БКВ'!M$62,'2.3.Спецификации по этапам'!$N:$N,"Децентр")*($E$3+100%) -> 0 | N14: =SUMIFS('2.3.Спецификации по этапам'!$H:$H,'2.3.Спецификации по этапам'!$L:$L,'4.БКВ'!$A14,'2.3.Спецификации по этапам'!$M:$M,'4.БКВ'!N$62,'2.3.Спецификации по этапам'!$N:$N,"Центр")*($E$2+100%)+SUMIFS('2.3.Спецификации по этапам'!$H:$H,'2.3.Спецификации по этапам'!$L:$L,'4.БКВ'!$A14,'2.3.Спецификации по этапам'!$M:$M,'4.БКВ'!N$62,'2.3.Спецификации по этапам'!$N:$N,"Децентр")*($E$3+100%) -> 0 | O14: =SUMIFS('2.3.Спецификации по этапам'!$H:$H,'2.3.Спецификации по этапам'!$L:$L,'4.БКВ'!$A14,'2.3.Спецификации по этапам'!$M:$M,'4.БКВ'!O$62,'2.3.Спецификации по этапам'!$N:$N,"Центр")*($E$2+100%)+SUMIFS('2.3.Спецификации по этапам'!$H:$H,'2.3.Спецификации по этапам'!$L:$L,'4.БКВ'!$A14,'2.3.Спецификации по этапам'!$M:$M,'4.БКВ'!O$62,'2.3.Спецификации по этапам'!$N:$N,"Децентр")*($E$3+100%) -> 0 | P14: =SUMIFS('2.3.Спецификации по этапам'!$H:$H,'2.3.Спецификации по этапам'!$L:$L,'4.БКВ'!$A14,'2.3.Спецификации по этапам'!$M:$M,'4.БКВ'!P$62,'2.3.Спецификации по этапам'!$N:$N,"Центр")*($E$2+100%)+SUMIFS('2.3.Спецификации по этапам'!$H:$H,'2.3.Спецификации по этапам'!$L:$L,'4.БКВ'!$A14,'2.3.Спецификации по этапам'!$M:$M,'4.БКВ'!P$62,'2.3.Спецификации по этапам'!$N:$N,"Децентр")*($E$3+100%) -> 0 | Q14: =SUMIFS('2.3.Спецификации по этапам'!$H:$H,'2.3.Спецификации по этапам'!$L:$L,'4.БКВ'!$A14,'2.3.Спецификации по этапам'!$M:$M,'4.БКВ'!Q$62,'2.3.Спецификации по этапам'!$N:$N,"Центр")*($E$2+100%)+SUMIFS('2.3.Спецификации по этапам'!$H:$H,'2.3.Спецификации по этапам'!$L:$L,'4.БКВ'!$A14,'2.3.Спецификации по этапам'!$M:$M,'4.БКВ'!Q$62,'2.3.Спецификации по этапам'!$N:$N,"Децентр")*($E$3+100%) -> 0 | R14: =SUMIFS('2.3.Спецификации по этапам'!$H:$H,'2.3.Спецификации по этапам'!$L:$L,'4.БКВ'!$A14,'2.3.Спецификации по этапам'!$M:$M,'4.БКВ'!R$62,'2.3.Спецификации по этапам'!$N:$N,"Центр")*($E$2+100%)+SUMIFS('2.3.Спецификации по этапам'!$H:$H,'2.3.Спецификации по этапам'!$L:$L,'4.БКВ'!$A14,'2.3.Спецификации по этапам'!$M:$M,'4.БКВ'!R$62,'2.3.Спецификации по этапам'!$N:$N,"Децентр")*($E$3+100%) -> 0 | S14: =SUMIFS('2.3.Спецификации по этапам'!$H:$H,'2.3.Спецификации по этапам'!$L:$L,'4.БКВ'!$A14,'2.3.Спецификации по этапам'!$M:$M,'4.БКВ'!S$62,'2.3.Спецификации по этапам'!$N:$N,"Центр")*($E$2+100%)+SUMIFS('2.3.Спецификации по этапам'!$H:$H,'2.3.Спецификации по этапам'!$L:$L,'4.БКВ'!$A14,'2.3.Спецификации по этапам'!$M:$M,'4.БКВ'!S$62,'2.3.Спецификации по этапам'!$N:$N,"Децентр")*($E$3+100%) -> 0 | T14: =SUMIFS('2.3.Спецификации по этапам'!$H:$H,'2.3.Спецификации по этапам'!$L:$L,'4.БКВ'!$A14,'2.3.Спецификации по этапам'!$M:$M,'4.БКВ'!T$62,'2.3.Спецификации по этапам'!$N:$N,"Центр")*($E$2+100%)+SUMIFS('2.3.Спецификации по этапам'!$H:$H,'2.3.Спецификации по этапам'!$L:$L,'4.БКВ'!$A14,'2.3.Спецификации по этапам'!$M:$M,'4.БКВ'!T$62,'2.3.Спецификации по этапам'!$N:$N,"Децентр")*($E$3+100%) -> 0 | U14: =SUMIFS('2.3.Спецификации по этапам'!$H:$H,'2.3.Спецификации по этапам'!$L:$L,'4.БКВ'!$A14,'2.3.Спецификации по этапам'!$M:$M,'4.БКВ'!U$62,'2.3.Спецификации по этапам'!$N:$N,"Центр")*($E$2+100%)+SUMIFS('2.3.Спецификации по этапам'!$H:$H,'2.3.Спецификации по этапам'!$L:$L,'4.БКВ'!$A14,'2.3.Спецификации по этапам'!$M:$M,'4.БКВ'!U$62,'2.3.Спецификации по этапам'!$N:$N,"Децентр")*($E$3+100%) -> 0 | V14: =SUMIFS('2.3.Спецификации по этапам'!$H:$H,'2.3.Спецификации по этапам'!$L:$L,'4.БКВ'!$A14,'2.3.Спецификации по этапам'!$M:$M,'4.БКВ'!V$62,'2.3.Спецификации по этапам'!$N:$N,"Центр")*($E$2+100%)+SUMIFS('2.3.Спецификации по этапам'!$H:$H,'2.3.Спецификации по этапам'!$L:$L,'4.БКВ'!$A14,'2.3.Спецификации по этапам'!$M:$M,'4.БКВ'!V$62,'2.3.Спецификации по этапам'!$N:$N,"Децентр")*($E$3+100%) -> 0 | W14: =SUMIFS('2.3.Спецификации по этапам'!$H:$H,'2.3.Спецификации по этапам'!$L:$L,'4.БКВ'!$A14,'2.3.Спецификации по этапам'!$M:$M,'4.БКВ'!W$62,'2.3.Спецификации по этапам'!$N:$N,"Центр")*($E$2+100%)+SUMIFS('2.3.Спецификации по этапам'!$H:$H,'2.3.Спецификации по этапам'!$L:$L,'4.БКВ'!$A14,'2.3.Спецификации по этапам'!$M:$M,'4.БКВ'!W$62,'2.3.Спецификации по этапам'!$N:$N,"Децентр")*($E$3+100%) -> 0 | X14: =SUMIFS('2.3.Спецификации по этапам'!$H:$H,'2.3.Спецификации по этапам'!$L:$L,'4.БКВ'!$A14,'2.3.Спецификации по этапам'!$M:$M,'4.БКВ'!X$62,'2.3.Спецификации по этапам'!$N:$N,"Центр")*($E$2+100%)+SUMIFS('2.3.Спецификации по этапам'!$H:$H,'2.3.Спецификации по этапам'!$L:$L,'4.БКВ'!$A14,'2.3.Спецификации по этапам'!$M:$M,'4.БКВ'!X$62,'2.3.Спецификации по этапам'!$N:$N,"Децентр")*($E$3+100%) -> 0 | Y14: =SUMIFS('2.3.Спецификации по этапам'!$H:$H,'2.3.Спецификации по этапам'!$L:$L,'4.БКВ'!$A14,'2.3.Спецификации по этапам'!$M:$M,'4.БКВ'!Y$62,'2.3.Спецификации по этапам'!$N:$N,"Центр")*($E$2+100%)+SUMIFS('2.3.Спецификации по этапам'!$H:$H,'2.3.Спецификации по этапам'!$L:$L,'4.БКВ'!$A14,'2.3.Спецификации по этапам'!$M:$M,'4.БКВ'!Y$62,'2.3.Спецификации по этапам'!$N:$N,"Децентр")*($E$3+100%) -> 0 | Z14: =SUMIFS('2.3.Спецификации по этапам'!$H:$H,'2.3.Спецификации по этапам'!$L:$L,'4.БКВ'!$A14,'2.3.Спецификации по этапам'!$M:$M,'4.БКВ'!Z$62,'2.3.Спецификации по этапам'!$N:$N,"Центр")*($E$2+100%)+SUMIFS('2.3.Спецификации по этапам'!$H:$H,'2.3.Спецификации по этапам'!$L:$L,'4.БКВ'!$A14,'2.3.Спецификации по этапам'!$M:$M,'4.БКВ'!Z$62,'2.3.Спецификации по этапам'!$N:$N,"Децентр")*($E$3+100%) -> 0 | AA14: =SUMIFS('2.3.Спецификации по этапам'!$H:$H,'2.3.Спецификации по этапам'!$L:$L,'4.БКВ'!$A14,'2.3.Спецификации по этапам'!$M:$M,'4.БКВ'!AA$62,'2.3.Спецификации по этапам'!$N:$N,"Центр")*($E$2+100%)+SUMIFS('2.3.Спецификации по этапам'!$H:$H,'2.3.Спецификации по этапам'!$L:$L,'4.БКВ'!$A14,'2.3.Спецификации по этапам'!$M:$M,'4.БКВ'!AA$62,'2.3.Спецификации по этапам'!$N:$N,"Децентр")*($E$3+100%) -> 0 | AB14: =SUMIFS('2.3.Спецификации по этапам'!$H:$H,'2.3.Спецификации по этапам'!$L:$L,'4.БКВ'!$A14,'2.3.Спецификации по этапам'!$M:$M,'4.БКВ'!AB$62,'2.3.Спецификации по этапам'!$N:$N,"Центр")*($E$2+100%)+SUMIFS('2.3.Спецификации по этапам'!$H:$H,'2.3.Спецификации по этапам'!$L:$L,'4.БКВ'!$A14,'2.3.Спецификации по этапам'!$M:$M,'4.БКВ'!AB$62,'2.3.Спецификации по этапам'!$N:$N,"Децентр")*($E$3+100%) -> 0 | AC14: =SUMIFS('2.3.Спецификации по этапам'!$H:$H,'2.3.Спецификации по этапам'!$L:$L,'4.БКВ'!$A14,'2.3.Спецификации по этапам'!$M:$M,'4.БКВ'!AC$62,'2.3.Спецификации по этапам'!$N:$N,"Центр")*($E$2+100%)+SUMIFS('2.3.Спецификации по этапам'!$H:$H,'2.3.Спецификации по этапам'!$L:$L,'4.БКВ'!$A14,'2.3.Спецификации по этапам'!$M:$M,'4.БКВ'!AC$62,'2.3.Спецификации по этапам'!$N:$N,"Децентр")*($E$3+100%) -> 0 | AD14: =SUMIFS('2.3.Спецификации по этапам'!$H:$H,'2.3.Спецификации по этапам'!$L:$L,'4.БКВ'!$A14,'2.3.Спецификации по этапам'!$M:$M,'4.БКВ'!AD$62,'2.3.Спецификации по этапам'!$N:$N,"Центр")*($E$2+100%)+SUMIFS('2.3.Спецификации по этапам'!$H:$H,'2.3.Спецификации по этапам'!$L:$L,'4.БКВ'!$A14,'2.3.Спецификации по этапам'!$M:$M,'4.БКВ'!AD$62,'2.3.Спецификации по этапам'!$N:$N,"Децентр")*($E$3+100%) -> 0 | AE14: =SUMIFS('2.3.Спецификации по этапам'!$H:$H,'2.3.Спецификации по этапам'!$L:$L,'4.БКВ'!$A14,'2.3.Спецификации по этапам'!$M:$M,'4.БКВ'!AE$62,'2.3.Спецификации по этапам'!$N:$N,"Центр")*($E$2+100%)+SUMIFS('2.3.Спецификации по этапам'!$H:$H,'2.3.Спецификации по этапам'!$L:$L,'4.БКВ'!$A14,'2.3.Спецификации по этапам'!$M:$M,'4.БКВ'!AE$62,'2.3.Спецификации по этапам'!$N:$N,"Децентр")*($E$3+100%) -> 0 | AF14: =SUMIFS('2.3.Спецификации по этапам'!$H:$H,'2.3.Спецификации по этапам'!$L:$L,'4.БКВ'!$A14,'2.3.Спецификации по этапам'!$M:$M,'4.БКВ'!AF$62,'2.3.Спецификации по этапам'!$N:$N,"Центр")*($E$2+100%)+SUMIFS('2.3.Спецификации по этапам'!$H:$H,'2.3.Спецификации по этапам'!$L:$L,'4.БКВ'!$A14,'2.3.Спецификации по этапам'!$M:$M,'4.БКВ'!AF$62,'2.3.Спецификации по этапам'!$N:$N,"Децентр")*($E$3+100%) -> 0 | AG14: =SUMIFS('2.3.Спецификации по этапам'!$H:$H,'2.3.Спецификации по этапам'!$L:$L,'4.БКВ'!$A14,'2.3.Спецификации по этапам'!$M:$M,'4.БКВ'!AG$62,'2.3.Спецификации по этапам'!$N:$N,"Центр")*($E$2+100%)+SUMIFS('2.3.Спецификации по этапам'!$H:$H,'2.3.Спецификации по этапам'!$L:$L,'4.БКВ'!$A14,'2.3.Спецификации по этапам'!$M:$M,'4.БКВ'!AG$62,'2.3.Спецификации по этапам'!$N:$N,"Децентр")*($E$3+100%) -> 0 | AH14: =SUMIFS('2.3.Спецификации по этапам'!$H:$H,'2.3.Спецификации по этапам'!$L:$L,'4.БКВ'!$A14,'2.3.Спецификации по этапам'!$M:$M,'4.БКВ'!AH$62,'2.3.Спецификации по этапам'!$N:$N,"Центр")*($E$2+100%)+SUMIFS('2.3.Спецификации по этапам'!$H:$H,'2.3.Спецификации по этапам'!$L:$L,'4.БКВ'!$A14,'2.3.Спецификации по этапам'!$M:$M,'4.БКВ'!AH$62,'2.3.Спецификации по этапам'!$N:$N,"Децентр")*($E$3+100%) -> 0 | AI14: =SUMIFS('2.3.Спецификации по этапам'!$H:$H,'2.3.Спецификации по этапам'!$L:$L,'4.БКВ'!$A14,'2.3.Спецификации по этапам'!$M:$M,'4.БКВ'!AI$62,'2.3.Спецификации по этапам'!$N:$N,"Центр")*($E$2+100%)+SUMIFS('2.3.Спецификации по этапам'!$H:$H,'2.3.Спецификации по этапам'!$L:$L,'4.БКВ'!$A14,'2.3.Спецификации по этапам'!$M:$M,'4.БКВ'!AI$62,'2.3.Спецификации по этапам'!$N:$N,"Децентр")*($E$3+100%) -> 0 | AJ14: =SUMIFS('2.3.Спецификации по этапам'!$H:$H,'2.3.Спецификации по этапам'!$L:$L,'4.БКВ'!$A14,'2.3.Спецификации по этапам'!$M:$M,'4.БКВ'!AJ$62,'2.3.Спецификации по этапам'!$N:$N,"Центр")*($E$2+100%)+SUMIFS('2.3.Спецификации по этапам'!$H:$H,'2.3.Спецификации по этапам'!$L:$L,'4.БКВ'!$A14,'2.3.Спецификации по этапам'!$M:$M,'4.БКВ'!AJ$62,'2.3.Спецификации по этапам'!$N:$N,"Децентр")*($E$3+100%) -> 0 | AK14: =SUMIFS('2.3.Спецификации по этапам'!$H:$H,'2.3.Спецификации по этапам'!$L:$L,'4.БКВ'!$A14,'2.3.Спецификации по этапам'!$M:$M,'4.БКВ'!AK$62,'2.3.Спецификации по этапам'!$N:$N,"Центр")*($E$2+100%)+SUMIFS('2.3.Спецификации по этапам'!$H:$H,'2.3.Спецификации по этапам'!$L:$L,'4.БКВ'!$A14,'2.3.Спецификации по этапам'!$M:$M,'4.БКВ'!AK$62,'2.3.Спецификации по этапам'!$N:$N,"Децентр")*($E$3+100%) -> 0 | AL14: =SUMIFS('2.3.Спецификации по этапам'!$H:$H,'2.3.Спецификации по этапам'!$L:$L,'4.БКВ'!$A14,'2.3.Спецификации по этапам'!$M:$M,'4.БКВ'!AL$62,'2.3.Спецификации по этапам'!$N:$N,"Центр")*($E$2+100%)+SUMIFS('2.3.Спецификации по этапам'!$H:$H,'2.3.Спецификации по этапам'!$L:$L,'4.БКВ'!$A14,'2.3.Спецификации по этапам'!$M:$M,'4.БКВ'!AL$62,'2.3.Спецификации по этапам'!$N:$N,"Децентр")*($E$3+100%) -> 0 | AM14: =SUMIFS('2.3.Спецификации по этапам'!$H:$H,'2.3.Спецификации по этапам'!$L:$L,'4.БКВ'!$A14,'2.3.Спецификации по этапам'!$M:$M,'4.БКВ'!AM$62,'2.3.Спецификации по этапам'!$N:$N,"Центр")*($E$2+100%)+SUMIFS('2.3.Спецификации по этапам'!$H:$H,'2.3.Спецификации по этапам'!$L:$L,'4.БКВ'!$A14,'2.3.Спецификации по этапам'!$M:$M,'4.БКВ'!AM$62,'2.3.Спецификации по этапам'!$N:$N,"Децентр")*($E$3+100%) -> 0 | AN14: =SUMIFS('2.3.Спецификации по этапам'!$H:$H,'2.3.Спецификации по этапам'!$L:$L,'4.БКВ'!$A14,'2.3.Спецификации по этапам'!$M:$M,'4.БКВ'!AN$62,'2.3.Спецификации по этапам'!$N:$N,"Центр")*($E$2+100%)+SUMIFS('2.3.Спецификации по этапам'!$H:$H,'2.3.Спецификации по этапам'!$L:$L,'4.БКВ'!$A14,'2.3.Спецификации по этапам'!$M:$M,'4.БКВ'!AN$62,'2.3.Спецификации по этапам'!$N:$N,"Децентр")*($E$3+100%) -> 0 | AO14: =SUMIFS('2.3.Спецификации по этапам'!$H:$H,'2.3.Спецификации по этапам'!$L:$L,'4.БКВ'!$A14,'2.3.Спецификации по этапам'!$M:$M,'4.БКВ'!AO$62,'2.3.Спецификации по этапам'!$N:$N,"Центр")*($E$2+100%)+SUMIFS('2.3.Спецификации по этапам'!$H:$H,'2.3.Спецификации по этапам'!$L:$L,'4.БКВ'!$A14,'2.3.Спецификации по этапам'!$M:$M,'4.БКВ'!AO$62,'2.3.Спецификации по этапам'!$N:$N,"Децентр")*($E$3+100%) -> 0 | AP14: =SUMIFS('2.3.Спецификации по этапам'!$H:$H,'2.3.Спецификации по этапам'!$L:$L,'4.БКВ'!$A14,'2.3.Спецификации по этапам'!$M:$M,'4.БКВ'!AP$62,'2.3.Спецификации по этапам'!$N:$N,"Центр")*($E$2+100%)+SUMIFS('2.3.Спецификации по этапам'!$H:$H,'2.3.Спецификации по этапам'!$L:$L,'4.БКВ'!$A14,'2.3.Спецификации по этапам'!$M:$M,'4.БКВ'!AP$62,'2.3.Спецификации по этапам'!$N:$N,"Децентр")*($E$3+100%) -> 0 | AQ14: =SUMIFS('2.3.Спецификации по этапам'!$H:$H,'2.3.Спецификации по этапам'!$L:$L,'4.БКВ'!$A14,'2.3.Спецификации по этапам'!$M:$M,'4.БКВ'!AQ$62,'2.3.Спецификации по этапам'!$N:$N,"Центр")*($E$2+100%)+SUMIFS('2.3.Спецификации по этапам'!$H:$H,'2.3.Спецификации по этапам'!$L:$L,'4.БКВ'!$A14,'2.3.Спецификации по этапам'!$M:$M,'4.БКВ'!AQ$62,'2.3.Спецификации по этапам'!$N:$N,"Децентр")*($E$3+100%) -> 0 | AR14: =SUMIFS('2.3.Спецификации по этапам'!$H:$H,'2.3.Спецификации по этапам'!$L:$L,'4.БКВ'!$A14,'2.3.Спецификации по этапам'!$M:$M,'4.БКВ'!AR$62,'2.3.Спецификации по этапам'!$N:$N,"Центр")*($E$2+100%)+SUMIFS('2.3.Спецификации по этапам'!$H:$H,'2.3.Спецификации по этапам'!$L:$L,'4.БКВ'!$A14,'2.3.Спецификации по этапам'!$M:$M,'4.БКВ'!AR$62,'2.3.Спецификации по этапам'!$N:$N,"Децентр")*($E$3+100%) -> 0 | AS14: =SUMIFS('2.3.Спецификации по этапам'!$H:$H,'2.3.Спецификации по этапам'!$L:$L,'4.БКВ'!$A14,'2.3.Спецификации по этапам'!$M:$M,'4.БКВ'!AS$62,'2.3.Спецификации по этапам'!$N:$N,"Центр")*($E$2+100%)+SUMIFS('2.3.Спецификации по этапам'!$H:$H,'2.3.Спецификации по этапам'!$L:$L,'4.БКВ'!$A14,'2.3.Спецификации по этапам'!$M:$M,'4.БКВ'!AS$62,'2.3.Спецификации по этапам'!$N:$N,"Децентр")*($E$3+100%) -> 0 | AT14: =SUMIFS('2.3.Спецификации по этапам'!$H:$H,'2.3.Спецификации по этапам'!$L:$L,'4.БКВ'!$A14,'2.3.Спецификации по этапам'!$M:$M,'4.БКВ'!AT$62,'2.3.Спецификации по этапам'!$N:$N,"Центр")*($E$2+100%)+SUMIFS('2.3.Спецификации по этапам'!$H:$H,'2.3.Спецификации по этапам'!$L:$L,'4.БКВ'!$A14,'2.3.Спецификации по этапам'!$M:$M,'4.БКВ'!AT$62,'2.3.Спецификации по этапам'!$N:$N,"Децентр")*($E$3+100%) -> 0 | AU14: =SUMIFS('2.3.Спецификации по этапам'!$H:$H,'2.3.Спецификации по этапам'!$L:$L,'4.БКВ'!$A14,'2.3.Спецификации по этапам'!$M:$M,'4.БКВ'!AU$62,'2.3.Спецификации по этапам'!$N:$N,"Центр")*($E$2+100%)+SUMIFS('2.3.Спецификации по этапам'!$H:$H,'2.3.Спецификации по этапам'!$L:$L,'4.БКВ'!$A14,'2.3.Спецификации по этапам'!$M:$M,'4.БКВ'!AU$62,'2.3.Спецификации по этапам'!$N:$N,"Децентр")*($E$3+100%) -> 0 | AV14: =SUMIFS('2.3.Спецификации по этапам'!$H:$H,'2.3.Спецификации по этапам'!$L:$L,'4.БКВ'!$A14,'2.3.Спецификации по этапам'!$M:$M,'4.БКВ'!AV$62,'2.3.Спецификации по этапам'!$N:$N,"Центр")*($E$2+100%)+SUMIFS('2.3.Спецификации по этапам'!$H:$H,'2.3.Спецификации по этапам'!$L:$L,'4.БКВ'!$A14,'2.3.Спецификации по этапам'!$M:$M,'4.БКВ'!AV$62,'2.3.Спецификации по этапам'!$N:$N,"Децентр")*($E$3+100%) -> 0 | AW14: =SUM(E14:H14) -> 0 | AX14: =SUM(I14:L14) -> 0 | AY14: =SUM(M14:P14) -> 0 | AZ14: =SUM(Q14:T14) -> 0 | BA14: =SUM(U14:X14) -> 0 | BB14: =SUM(Y14:AB14) -> 0 | BC14: =SUM(AC14:AF14) -> 0 | BD14: =SUM(AG14:AJ14) -> 0 | BE14: =SUM(AK14:AN14) -> 0 | BF14: =SUM(AO14:AR14) -> 0 | BG14: =SUM(AS14:AV14) -> 0 | BH14: =SUM(AW14:BG14) -> 0
A15: Оборудование и ПО (срок службы 9 лет) | B15: ='3.Входные данные'!$E$29 -> в тыс. тенге | C15: =SUM(AW15:BG15) -> 0 | E15: =SUMIFS('2.3.Спецификации по этапам'!$H:$H,'2.3.Спецификации по этапам'!$L:$L,'4.БКВ'!$A15,'2.3.Спецификации по этапам'!$M:$M,'4.БКВ'!E$62,'2.3.Спецификации по этапам'!$N:$N,"Центр")*($E$2+100%)+SUMIFS('2.3.Спецификации по этапам'!$H:$H,'2.3.Спецификации по этапам'!$L:$L,'4.БКВ'!$A15,'2.3.Спецификации по этапам'!$M:$M,'4.БКВ'!E$62,'2.3.Спецификации по этапам'!$N:$N,"Децентр")*($E$3+100%) -> 0 | F15: =SUMIFS('2.3.Спецификации по этапам'!$H:$H,'2.3.Спецификации по этапам'!$L:$L,'4.БКВ'!$A15,'2.3.Спецификации по этапам'!$M:$M,'4.БКВ'!F$62,'2.3.Спецификации по этапам'!$N:$N,"Центр")*($E$2+100%)+SUMIFS('2.3.Спецификации по этапам'!$H:$H,'2.3.Спецификации по этапам'!$L:$L,'4.БКВ'!$A15,'2.3.Спецификации по этапам'!$M:$M,'4.БКВ'!F$62,'2.3.Спецификации по этапам'!$N:$N,"Децентр")*($E$3+100%) -> 0 | G15: =SUMIFS('2.3.Спецификации по этапам'!$H:$H,'2.3.Спецификации по этапам'!$L:$L,'4.БКВ'!$A15,'2.3.Спецификации по этапам'!$M:$M,'4.БКВ'!G$62,'2.3.Спецификации по этапам'!$N:$N,"Центр")*($E$2+100%)+SUMIFS('2.3.Спецификации по этапам'!$H:$H,'2.3.Спецификации по этапам'!$L:$L,'4.БКВ'!$A15,'2.3.Спецификации по этапам'!$M:$M,'4.БКВ'!G$62,'2.3.Спецификации по этапам'!$N:$N,"Децентр")*($E$3+100%) -> 0 | H15: =SUMIFS('2.3.Спецификации по этапам'!$H:$H,'2.3.Спецификации по этапам'!$L:$L,'4.БКВ'!$A15,'2.3.Спецификации по этапам'!$M:$M,'4.БКВ'!H$62,'2.3.Спецификации по этапам'!$N:$N,"Центр")*($E$2+100%)+SUMIFS('2.3.Спецификации по этапам'!$H:$H,'2.3.Спецификации по этапам'!$L:$L,'4.БКВ'!$A15,'2.3.Спецификации по этапам'!$M:$M,'4.БКВ'!H$62,'2.3.Спецификации по этапам'!$N:$N,"Децентр")*($E$3+100%) -> 0 | I15: =SUMIFS('2.3.Спецификации по этапам'!$H:$H,'2.3.Спецификации по этапам'!$L:$L,'4.БКВ'!$A15,'2.3.Спецификации по этапам'!$M:$M,'4.БКВ'!I$62,'2.3.Спецификации по этапам'!$N:$N,"Центр")*($E$2+100%)+SUMIFS('2.3.Спецификации по этапам'!$H:$H,'2.3.Спецификации по этапам'!$L:$L,'4.БКВ'!$A15,'2.3.Спецификации по этапам'!$M:$M,'4.БКВ'!I$62,'2.3.Спецификации по этапам'!$N:$N,"Децентр")*($E$3+100%) -> 0 | J15: =SUMIFS('2.3.Спецификации по этапам'!$H:$H,'2.3.Спецификации по этапам'!$L:$L,'4.БКВ'!$A15,'2.3.Спецификации по этапам'!$M:$M,'4.БКВ'!J$62,'2.3.Спецификации по этапам'!$N:$N,"Центр")*($E$2+100%)+SUMIFS('2.3.Спецификации по этапам'!$H:$H,'2.3.Спецификации по этапам'!$L:$L,'4.БКВ'!$A15,'2.3.Спецификации по этапам'!$M:$M,'4.БКВ'!J$62,'2.3.Спецификации по этапам'!$N:$N,"Децентр")*($E$3+100%) -> 0 | K15: =SUMIFS('2.3.Спецификации по этапам'!$H:$H,'2.3.Спецификации по этапам'!$L:$L,'4.БКВ'!$A15,'2.3.Спецификации по этапам'!$M:$M,'4.БКВ'!K$62,'2.3.Спецификации по этапам'!$N:$N,"Центр")*($E$2+100%)+SUMIFS('2.3.Спецификации по этапам'!$H:$H,'2.3.Спецификации по этапам'!$L:$L,'4.БКВ'!$A15,'2.3.Спецификации по этапам'!$M:$M,'4.БКВ'!K$62,'2.3.Спецификации по этапам'!$N:$N,"Децентр")*($E$3+100%) -> 0 | L15: =SUMIFS('2.3.Спецификации по этапам'!$H:$H,'2.3.Спецификации по этапам'!$L:$L,'4.БКВ'!$A15,'2.3.Спецификации по этапам'!$M:$M,'4.БКВ'!L$62,'2.3.Спецификации по этапам'!$N:$N,"Центр")*($E$2+100%)+SUMIFS('2.3.Спецификации по этапам'!$H:$H,'2.3.Спецификации по этапам'!$L:$L,'4.БКВ'!$A15,'2.3.Спецификации по этапам'!$M:$M,'4.БКВ'!L$62,'2.3.Спецификации по этапам'!$N:$N,"Децентр")*($E$3+100%) -> 0 | M15: =SUMIFS('2.3.Спецификации по этапам'!$H:$H,'2.3.Спецификации по этапам'!$L:$L,'4.БКВ'!$A15,'2.3.Спецификации по этапам'!$M:$M,'4.БКВ'!M$62,'2.3.Спецификации по этапам'!$N:$N,"Центр")*($E$2+100%)+SUMIFS('2.3.Спецификации по этапам'!$H:$H,'2.3.Спецификации по этапам'!$L:$L,'4.БКВ'!$A15,'2.3.Спецификации по этапам'!$M:$M,'4.БКВ'!M$62,'2.3.Спецификации по этапам'!$N:$N,"Децентр")*($E$3+100%) -> 0 | N15: =SUMIFS('2.3.Спецификации по этапам'!$H:$H,'2.3.Спецификации по этапам'!$L:$L,'4.БКВ'!$A15,'2.3.Спецификации по этапам'!$M:$M,'4.БКВ'!N$62,'2.3.Спецификации по этапам'!$N:$N,"Центр")*($E$2+100%)+SUMIFS('2.3.Спецификации по этапам'!$H:$H,'2.3.Спецификации по этапам'!$L:$L,'4.БКВ'!$A15,'2.3.Спецификации по этапам'!$M:$M,'4.БКВ'!N$62,'2.3.Спецификации по этапам'!$N:$N,"Децентр")*($E$3+100%) -> 0 | O15: =SUMIFS('2.3.Спецификации по этапам'!$H:$H,'2.3.Спецификации по этапам'!$L:$L,'4.БКВ'!$A15,'2.3.Спецификации по этапам'!$M:$M,'4.БКВ'!O$62,'2.3.Спецификации по этапам'!$N:$N,"Центр")*($E$2+100%)+SUMIFS('2.3.Спецификации по этапам'!$H:$H,'2.3.Спецификации по этапам'!$L:$L,'4.БКВ'!$A15,'2.3.Спецификации по этапам'!$M:$M,'4.БКВ'!O$62,'2.3.Спецификации по этапам'!$N:$N,"Децентр")*($E$3+100%) -> 0 | P15: =SUMIFS('2.3.Спецификации по этапам'!$H:$H,'2.3.Спецификации по этапам'!$L:$L,'4.БКВ'!$A15,'2.3.Спецификации по этапам'!$M:$M,'4.БКВ'!P$62,'2.3.Спецификации по этапам'!$N:$N,"Центр")*($E$2+100%)+SUMIFS('2.3.Спецификации по этапам'!$H:$H,'2.3.Спецификации по этапам'!$L:$L,'4.БКВ'!$A15,'2.3.Спецификации по этапам'!$M:$M,'4.БКВ'!P$62,'2.3.Спецификации по этапам'!$N:$N,"Децентр")*($E$3+100%) -> 0 | Q15: =SUMIFS('2.3.Спецификации по этапам'!$H:$H,'2.3.Спецификации по этапам'!$L:$L,'4.БКВ'!$A15,'2.3.Спецификации по этапам'!$M:$M,'4.БКВ'!Q$62,'2.3.Спецификации по этапам'!$N:$N,"Центр")*($E$2+100%)+SUMIFS('2.3.Спецификации по этапам'!$H:$H,'2.3.Спецификации по этапам'!$L:$L,'4.БКВ'!$A15,'2.3.Спецификации по этапам'!$M:$M,'4.БКВ'!Q$62,'2.3.Спецификации по этапам'!$N:$N,"Децентр")*($E$3+100%) -> 0 | R15: =SUMIFS('2.3.Спецификации по этапам'!$H:$H,'2.3.Спецификации по этапам'!$L:$L,'4.БКВ'!$A15,'2.3.Спецификации по этапам'!$M:$M,'4.БКВ'!R$62,'2.3.Спецификации по этапам'!$N:$N,"Центр")*($E$2+100%)+SUMIFS('2.3.Спецификации по этапам'!$H:$H,'2.3.Спецификации по этапам'!$L:$L,'4.БКВ'!$A15,'2.3.Спецификации по этапам'!$M:$M,'4.БКВ'!R$62,'2.3.Спецификации по этапам'!$N:$N,"Децентр")*($E$3+100%) -> 0 | S15: =SUMIFS('2.3.Спецификации по этапам'!$H:$H,'2.3.Спецификации по этапам'!$L:$L,'4.БКВ'!$A15,'2.3.Спецификации по этапам'!$M:$M,'4.БКВ'!S$62,'2.3.Спецификации по этапам'!$N:$N,"Центр")*($E$2+100%)+SUMIFS('2.3.Спецификации по этапам'!$H:$H,'2.3.Спецификации по этапам'!$L:$L,'4.БКВ'!$A15,'2.3.Спецификации по этапам'!$M:$M,'4.БКВ'!S$62,'2.3.Спецификации по этапам'!$N:$N,"Децентр")*($E$3+100%) -> 0 | T15: =SUMIFS('2.3.Спецификации по этапам'!$H:$H,'2.3.Спецификации по этапам'!$L:$L,'4.БКВ'!$A15,'2.3.Спецификации по этапам'!$M:$M,'4.БКВ'!T$62,'2.3.Спецификации по этапам'!$N:$N,"Центр")*($E$2+100%)+SUMIFS('2.3.Спецификации по этапам'!$H:$H,'2.3.Спецификации по этапам'!$L:$L,'4.БКВ'!$A15,'2.3.Спецификации по этапам'!$M:$M,'4.БКВ'!T$62,'2.3.Спецификации по этапам'!$N:$N,"Децентр")*($E$3+100%) -> 0 | U15: =SUMIFS('2.3.Спецификации по этапам'!$H:$H,'2.3.Спецификации по этапам'!$L:$L,'4.БКВ'!$A15,'2.3.Спецификации по этапам'!$M:$M,'4.БКВ'!U$62,'2.3.Спецификации по этапам'!$N:$N,"Центр")*($E$2+100%)+SUMIFS('2.3.Спецификации по этапам'!$H:$H,'2.3.Спецификации по этапам'!$L:$L,'4.БКВ'!$A15,'2.3.Спецификации по этапам'!$M:$M,'4.БКВ'!U$62,'2.3.Спецификации по этапам'!$N:$N,"Децентр")*($E$3+100%) -> 0 | V15: =SUMIFS('2.3.Спецификации по этапам'!$H:$H,'2.3.Спецификации по этапам'!$L:$L,'4.БКВ'!$A15,'2.3.Спецификации по этапам'!$M:$M,'4.БКВ'!V$62,'2.3.Спецификации по этапам'!$N:$N,"Центр")*($E$2+100%)+SUMIFS('2.3.Спецификации по этапам'!$H:$H,'2.3.Спецификации по этапам'!$L:$L,'4.БКВ'!$A15,'2.3.Спецификации по этапам'!$M:$M,'4.БКВ'!V$62,'2.3.Спецификации по этапам'!$N:$N,"Децентр")*($E$3+100%) -> 0 | W15: =SUMIFS('2.3.Спецификации по этапам'!$H:$H,'2.3.Спецификации по этапам'!$L:$L,'4.БКВ'!$A15,'2.3.Спецификации по этапам'!$M:$M,'4.БКВ'!W$62,'2.3.Спецификации по этапам'!$N:$N,"Центр")*($E$2+100%)+SUMIFS('2.3.Спецификации по этапам'!$H:$H,'2.3.Спецификации по этапам'!$L:$L,'4.БКВ'!$A15,'2.3.Спецификации по этапам'!$M:$M,'4.БКВ'!W$62,'2.3.Спецификации по этапам'!$N:$N,"Децентр")*($E$3+100%) -> 0 | X15: =SUMIFS('2.3.Спецификации по этапам'!$H:$H,'2.3.Спецификации по этапам'!$L:$L,'4.БКВ'!$A15,'2.3.Спецификации по этапам'!$M:$M,'4.БКВ'!X$62,'2.3.Спецификации по этапам'!$N:$N,"Центр")*($E$2+100%)+SUMIFS('2.3.Спецификации по этапам'!$H:$H,'2.3.Спецификации по этапам'!$L:$L,'4.БКВ'!$A15,'2.3.Спецификации по этапам'!$M:$M,'4.БКВ'!X$62,'2.3.Спецификации по этапам'!$N:$N,"Децентр")*($E$3+100%) -> 0 | Y15: =SUMIFS('2.3.Спецификации по этапам'!$H:$H,'2.3.Спецификации по этапам'!$L:$L,'4.БКВ'!$A15,'2.3.Спецификации по этапам'!$M:$M,'4.БКВ'!Y$62,'2.3.Спецификации по этапам'!$N:$N,"Центр")*($E$2+100%)+SUMIFS('2.3.Спецификации по этапам'!$H:$H,'2.3.Спецификации по этапам'!$L:$L,'4.БКВ'!$A15,'2.3.Спецификации по этапам'!$M:$M,'4.БКВ'!Y$62,'2.3.Спецификации по этапам'!$N:$N,"Децентр")*($E$3+100%) -> 0 | Z15: =SUMIFS('2.3.Спецификации по этапам'!$H:$H,'2.3.Спецификации по этапам'!$L:$L,'4.БКВ'!$A15,'2.3.Спецификации по этапам'!$M:$M,'4.БКВ'!Z$62,'2.3.Спецификации по этапам'!$N:$N,"Центр")*($E$2+100%)+SUMIFS('2.3.Спецификации по этапам'!$H:$H,'2.3.Спецификации по этапам'!$L:$L,'4.БКВ'!$A15,'2.3.Спецификации по этапам'!$M:$M,'4.БКВ'!Z$62,'2.3.Спецификации по этапам'!$N:$N,"Децентр")*($E$3+100%) -> 0 | AA15: =SUMIFS('2.3.Спецификации по этапам'!$H:$H,'2.3.Спецификации по этапам'!$L:$L,'4.БКВ'!$A15,'2.3.Спецификации по этапам'!$M:$M,'4.БКВ'!AA$62,'2.3.Спецификации по этапам'!$N:$N,"Центр")*($E$2+100%)+SUMIFS('2.3.Спецификации по этапам'!$H:$H,'2.3.Спецификации по этапам'!$L:$L,'4.БКВ'!$A15,'2.3.Спецификации по этапам'!$M:$M,'4.БКВ'!AA$62,'2.3.Спецификации по этапам'!$N:$N,"Децентр")*($E$3+100%) -> 0 | AB15: =SUMIFS('2.3.Спецификации по этапам'!$H:$H,'2.3.Спецификации по этапам'!$L:$L,'4.БКВ'!$A15,'2.3.Спецификации по этапам'!$M:$M,'4.БКВ'!AB$62,'2.3.Спецификации по этапам'!$N:$N,"Центр")*($E$2+100%)+SUMIFS('2.3.Спецификации по этапам'!$H:$H,'2.3.Спецификации по этапам'!$L:$L,'4.БКВ'!$A15,'2.3.Спецификации по этапам'!$M:$M,'4.БКВ'!AB$62,'2.3.Спецификации по этапам'!$N:$N,"Децентр")*($E$3+100%) -> 0 | AC15: =SUMIFS('2.3.Спецификации по этапам'!$H:$H,'2.3.Спецификации по этапам'!$L:$L,'4.БКВ'!$A15,'2.3.Спецификации по этапам'!$M:$M,'4.БКВ'!AC$62,'2.3.Спецификации по этапам'!$N:$N,"Центр")*($E$2+100%)+SUMIFS('2.3.Спецификации по этапам'!$H:$H,'2.3.Спецификации по этапам'!$L:$L,'4.БКВ'!$A15,'2.3.Спецификации по этапам'!$M:$M,'4.БКВ'!AC$62,'2.3.Спецификации по этапам'!$N:$N,"Децентр")*($E$3+100%) -> 0 | AD15: =SUMIFS('2.3.Спецификации по этапам'!$H:$H,'2.3.Спецификации по этапам'!$L:$L,'4.БКВ'!$A15,'2.3.Спецификации по этапам'!$M:$M,'4.БКВ'!AD$62,'2.3.Спецификации по этапам'!$N:$N,"Центр")*($E$2+100%)+SUMIFS('2.3.Спецификации по этапам'!$H:$H,'2.3.Спецификации по этапам'!$L:$L,'4.БКВ'!$A15,'2.3.Спецификации по этапам'!$M:$M,'4.БКВ'!AD$62,'2.3.Спецификации по этапам'!$N:$N,"Децентр")*($E$3+100%) -> 0 | AE15: =SUMIFS('2.3.Спецификации по этапам'!$H:$H,'2.3.Спецификации по этапам'!$L:$L,'4.БКВ'!$A15,'2.3.Спецификации по этапам'!$M:$M,'4.БКВ'!AE$62,'2.3.Спецификации по этапам'!$N:$N,"Центр")*($E$2+100%)+SUMIFS('2.3.Спецификации по этапам'!$H:$H,'2.3.Спецификации по этапам'!$L:$L,'4.БКВ'!$A15,'2.3.Спецификации по этапам'!$M:$M,'4.БКВ'!AE$62,'2.3.Спецификации по этапам'!$N:$N,"Децентр")*($E$3+100%) -> 0 | AF15: =SUMIFS('2.3.Спецификации по этапам'!$H:$H,'2.3.Спецификации по этапам'!$L:$L,'4.БКВ'!$A15,'2.3.Спецификации по этапам'!$M:$M,'4.БКВ'!AF$62,'2.3.Спецификации по этапам'!$N:$N,"Центр")*($E$2+100%)+SUMIFS('2.3.Спецификации по этапам'!$H:$H,'2.3.Спецификации по этапам'!$L:$L,'4.БКВ'!$A15,'2.3.Спецификации по этапам'!$M:$M,'4.БКВ'!AF$62,'2.3.Спецификации по этапам'!$N:$N,"Децентр")*($E$3+100%) -> 0 | AG15: =SUMIFS('2.3.Спецификации по этапам'!$H:$H,'2.3.Спецификации по этапам'!$L:$L,'4.БКВ'!$A15,'2.3.Спецификации по этапам'!$M:$M,'4.БКВ'!AG$62,'2.3.Спецификации по этапам'!$N:$N,"Центр")*($E$2+100%)+SUMIFS('2.3.Спецификации по этапам'!$H:$H,'2.3.Спецификации по этапам'!$L:$L,'4.БКВ'!$A15,'2.3.Спецификации по этапам'!$M:$M,'4.БКВ'!AG$62,'2.3.Спецификации по этапам'!$N:$N,"Децентр")*($E$3+100%) -> 0 | AH15: =SUMIFS('2.3.Спецификации по этапам'!$H:$H,'2.3.Спецификации по этапам'!$L:$L,'4.БКВ'!$A15,'2.3.Спецификации по этапам'!$M:$M,'4.БКВ'!AH$62,'2.3.Спецификации по этапам'!$N:$N,"Центр")*($E$2+100%)+SUMIFS('2.3.Спецификации по этапам'!$H:$H,'2.3.Спецификации по этапам'!$L:$L,'4.БКВ'!$A15,'2.3.Спецификации по этапам'!$M:$M,'4.БКВ'!AH$62,'2.3.Спецификации по этапам'!$N:$N,"Децентр")*($E$3+100%) -> 0 | AI15: =SUMIFS('2.3.Спецификации по этапам'!$H:$H,'2.3.Спецификации по этапам'!$L:$L,'4.БКВ'!$A15,'2.3.Спецификации по этапам'!$M:$M,'4.БКВ'!AI$62,'2.3.Спецификации по этапам'!$N:$N,"Центр")*($E$2+100%)+SUMIFS('2.3.Спецификации по этапам'!$H:$H,'2.3.Спецификации по этапам'!$L:$L,'4.БКВ'!$A15,'2.3.Спецификации по этапам'!$M:$M,'4.БКВ'!AI$62,'2.3.Спецификации по этапам'!$N:$N,"Децентр")*($E$3+100%) -> 0 | AJ15: =SUMIFS('2.3.Спецификации по этапам'!$H:$H,'2.3.Спецификации по этапам'!$L:$L,'4.БКВ'!$A15,'2.3.Спецификации по этапам'!$M:$M,'4.БКВ'!AJ$62,'2.3.Спецификации по этапам'!$N:$N,"Центр")*($E$2+100%)+SUMIFS('2.3.Спецификации по этапам'!$H:$H,'2.3.Спецификации по этапам'!$L:$L,'4.БКВ'!$A15,'2.3.Спецификации по этапам'!$M:$M,'4.БКВ'!AJ$62,'2.3.Спецификации по этапам'!$N:$N,"Децентр")*($E$3+100%) -> 0 | AK15: =SUMIFS('2.3.Спецификации по этапам'!$H:$H,'2.3.Спецификации по этапам'!$L:$L,'4.БКВ'!$A15,'2.3.Спецификации по этапам'!$M:$M,'4.БКВ'!AK$62,'2.3.Спецификации по этапам'!$N:$N,"Центр")*($E$2+100%)+SUMIFS('2.3.Спецификации по этапам'!$H:$H,'2.3.Спецификации по этапам'!$L:$L,'4.БКВ'!$A15,'2.3.Спецификации по этапам'!$M:$M,'4.БКВ'!AK$62,'2.3.Спецификации по этапам'!$N:$N,"Децентр")*($E$3+100%) -> 0 | AL15: =SUMIFS('2.3.Спецификации по этапам'!$H:$H,'2.3.Спецификации по этапам'!$L:$L,'4.БКВ'!$A15,'2.3.Спецификации по этапам'!$M:$M,'4.БКВ'!AL$62,'2.3.Спецификации по этапам'!$N:$N,"Центр")*($E$2+100%)+SUMIFS('2.3.Спецификации по этапам'!$H:$H,'2.3.Спецификации по этапам'!$L:$L,'4.БКВ'!$A15,'2.3.Спецификации по этапам'!$M:$M,'4.БКВ'!AL$62,'2.3.Спецификации по этапам'!$N:$N,"Децентр")*($E$3+100%) -> 0 | AM15: =SUMIFS('2.3.Спецификации по этапам'!$H:$H,'2.3.Спецификации по этапам'!$L:$L,'4.БКВ'!$A15,'2.3.Спецификации по этапам'!$M:$M,'4.БКВ'!AM$62,'2.3.Спецификации по этапам'!$N:$N,"Центр")*($E$2+100%)+SUMIFS('2.3.Спецификации по этапам'!$H:$H,'2.3.Спецификации по этапам'!$L:$L,'4.БКВ'!$A15,'2.3.Спецификации по этапам'!$M:$M,'4.БКВ'!AM$62,'2.3.Спецификации по этапам'!$N:$N,"Децентр")*($E$3+100%) -> 0 | AN15: =SUMIFS('2.3.Спецификации по этапам'!$H:$H,'2.3.Спецификации по этапам'!$L:$L,'4.БКВ'!$A15,'2.3.Спецификации по этапам'!$M:$M,'4.БКВ'!AN$62,'2.3.Спецификации по этапам'!$N:$N,"Центр")*($E$2+100%)+SUMIFS('2.3.Спецификации по этапам'!$H:$H,'2.3.Спецификации по этапам'!$L:$L,'4.БКВ'!$A15,'2.3.Спецификации по этапам'!$M:$M,'4.БКВ'!AN$62,'2.3.Спецификации по этапам'!$N:$N,"Децентр")*($E$3+100%) -> 0 | AO15: =SUMIFS('2.3.Спецификации по этапам'!$H:$H,'2.3.Спецификации по этапам'!$L:$L,'4.БКВ'!$A15,'2.3.Спецификации по этапам'!$M:$M,'4.БКВ'!AO$62,'2.3.Спецификации по этапам'!$N:$N,"Центр")*($E$2+100%)+SUMIFS('2.3.Спецификации по этапам'!$H:$H,'2.3.Спецификации по этапам'!$L:$L,'4.БКВ'!$A15,'2.3.Спецификации по этапам'!$M:$M,'4.БКВ'!AO$62,'2.3.Спецификации по этапам'!$N:$N,"Децентр")*($E$3+100%) -> 0 | AP15: =SUMIFS('2.3.Спецификации по этапам'!$H:$H,'2.3.Спецификации по этапам'!$L:$L,'4.БКВ'!$A15,'2.3.Спецификации по этапам'!$M:$M,'4.БКВ'!AP$62,'2.3.Спецификации по этапам'!$N:$N,"Центр")*($E$2+100%)+SUMIFS('2.3.Спецификации по этапам'!$H:$H,'2.3.Спецификации по этапам'!$L:$L,'4.БКВ'!$A15,'2.3.Спецификации по этапам'!$M:$M,'4.БКВ'!AP$62,'2.3.Спецификации по этапам'!$N:$N,"Децентр")*($E$3+100%) -> 0 | AQ15: =SUMIFS('2.3.Спецификации по этапам'!$H:$H,'2.3.Спецификации по этапам'!$L:$L,'4.БКВ'!$A15,'2.3.Спецификации по этапам'!$M:$M,'4.БКВ'!AQ$62,'2.3.Спецификации по этапам'!$N:$N,"Центр")*($E$2+100%)+SUMIFS('2.3.Спецификации по этапам'!$H:$H,'2.3.Спецификации по этапам'!$L:$L,'4.БКВ'!$A15,'2.3.Спецификации по этапам'!$M:$M,'4.БКВ'!AQ$62,'2.3.Спецификации по этапам'!$N:$N,"Децентр")*($E$3+100%) -> 0 | AR15: =SUMIFS('2.3.Спецификации по этапам'!$H:$H,'2.3.Спецификации по этапам'!$L:$L,'4.БКВ'!$A15,'2.3.Спецификации по этапам'!$M:$M,'4.БКВ'!AR$62,'2.3.Спецификации по этапам'!$N:$N,"Центр")*($E$2+100%)+SUMIFS('2.3.Спецификации по этапам'!$H:$H,'2.3.Спецификации по этапам'!$L:$L,'4.БКВ'!$A15,'2.3.Спецификации по этапам'!$M:$M,'4.БКВ'!AR$62,'2.3.Спецификации по этапам'!$N:$N,"Децентр")*($E$3+100%) -> 0 | AS15: =SUMIFS('2.3.Спецификации по этапам'!$H:$H,'2.3.Спецификации по этапам'!$L:$L,'4.БКВ'!$A15,'2.3.Спецификации по этапам'!$M:$M,'4.БКВ'!AS$62,'2.3.Спецификации по этапам'!$N:$N,"Центр")*($E$2+100%)+SUMIFS('2.3.Спецификации по этапам'!$H:$H,'2.3.Спецификации по этапам'!$L:$L,'4.БКВ'!$A15,'2.3.Спецификации по этапам'!$M:$M,'4.БКВ'!AS$62,'2.3.Спецификации по этапам'!$N:$N,"Децентр")*($E$3+100%) -> 0 | AT15: =SUMIFS('2.3.Спецификации по этапам'!$H:$H,'2.3.Спецификации по этапам'!$L:$L,'4.БКВ'!$A15,'2.3.Спецификации по этапам'!$M:$M,'4.БКВ'!AT$62,'2.3.Спецификации по этапам'!$N:$N,"Центр")*($E$2+100%)+SUMIFS('2.3.Спецификации по этапам'!$H:$H,'2.3.Спецификации по этапам'!$L:$L,'4.БКВ'!$A15,'2.3.Спецификации по этапам'!$M:$M,'4.БКВ'!AT$62,'2.3.Спецификации по этапам'!$N:$N,"Децентр")*($E$3+100%) -> 0 | AU15: =SUMIFS('2.3.Спецификации по этапам'!$H:$H,'2.3.Спецификации по этапам'!$L:$L,'4.БКВ'!$A15,'2.3.Спецификации по этапам'!$M:$M,'4.БКВ'!AU$62,'2.3.Спецификации по этапам'!$N:$N,"Центр")*($E$2+100%)+SUMIFS('2.3.Спецификации по этапам'!$H:$H,'2.3.Спецификации по этапам'!$L:$L,'4.БКВ'!$A15,'2.3.Спецификации по этапам'!$M:$M,'4.БКВ'!AU$62,'2.3.Спецификации по этапам'!$N:$N,"Децентр")*($E$3+100%) -> 0 | AV15: =SUMIFS('2.3.Спецификации по этапам'!$H:$H,'2.3.Спецификации по этапам'!$L:$L,'4.БКВ'!$A15,'2.3.Спецификации по этапам'!$M:$M,'4.БКВ'!AV$62,'2.3.Спецификации по этапам'!$N:$N,"Центр")*($E$2+100%)+SUMIFS('2.3.Спецификации по этапам'!$H:$H,'2.3.Спецификации по этапам'!$L:$L,'4.БКВ'!$A15,'2.3.Спецификации по этапам'!$M:$M,'4.БКВ'!AV$62,'2.3.Спецификации по этапам'!$N:$N,"Децентр")*($E$3+100%) -> 0 | AW15: =SUM(E15:H15) -> 0 | AX15: =SUM(I15:L15) -> 0 | AY15: =SUM(M15:P15) -> 0 | AZ15: =SUM(Q15:T15) -> 0 | BA15: =SUM(U15:X15) -> 0 | BB15: =SUM(Y15:AB15) -> 0 | BC15: =SUM(AC15:AF15) -> 0 | BD15: =SUM(AG15:AJ15) -> 0 | BE15: =SUM(AK15:AN15) -> 0 | BF15: =SUM(AO15:AR15) -> 0 | BG15: =SUM(AS15:AV15) -> 0 | BH15: =SUM(AW15:BG15) -> 0
A16: Оборудование, ПО и лицензии (срок службы 10 лет) | B16: ='3.Входные данные'!$E$29 -> в тыс. тенге | C16: =SUM(AW16:BG16) -> 119,069 | E16: =SUMIFS('2.3.Спецификации по этапам'!$H:$H,'2.3.Спецификации по этапам'!$L:$L,'4.БКВ'!$A16,'2.3.Спецификации по этапам'!$M:$M,'4.БКВ'!E$62,'2.3.Спецификации по этапам'!$N:$N,"Центр")*($E$2+100%)+SUMIFS('2.3.Спецификации по этапам'!$H:$H,'2.3.Спецификации по этапам'!$L:$L,'4.БКВ'!$A16,'2.3.Спецификации по этапам'!$M:$M,'4.БКВ'!E$62,'2.3.Спецификации по этапам'!$N:$N,"Децентр")*($E$3+100%) -> 0 | F16: =SUMIFS('2.3.Спецификации по этапам'!$H:$H,'2.3.Спецификации по этапам'!$L:$L,'4.БКВ'!$A16,'2.3.Спецификации по этапам'!$M:$M,'4.БКВ'!F$62,'2.3.Спецификации по этапам'!$N:$N,"Центр")*($E$2+100%)+SUMIFS('2.3.Спецификации по этапам'!$H:$H,'2.3.Спецификации по этапам'!$L:$L,'4.БКВ'!$A16,'2.3.Спецификации по этапам'!$M:$M,'4.БКВ'!F$62,'2.3.Спецификации по этапам'!$N:$N,"Децентр")*($E$3+100%) -> 0 | G16: =SUMIFS('2.3.Спецификации по этапам'!$H:$H,'2.3.Спецификации по этапам'!$L:$L,'4.БКВ'!$A16,'2.3.Спецификации по этапам'!$M:$M,'4.БКВ'!G$62,'2.3.Спецификации по этапам'!$N:$N,"Центр")*($E$2+100%)+SUMIFS('2.3.Спецификации по этапам'!$H:$H,'2.3.Спецификации по этапам'!$L:$L,'4.БКВ'!$A16,'2.3.Спецификации по этапам'!$M:$M,'4.БКВ'!G$62,'2.3.Спецификации по этапам'!$N:$N,"Децентр")*($E$3+100%) -> 0 | H16: =SUMIFS('2.3.Спецификации по этапам'!$H:$H,'2.3.Спецификации по этапам'!$L:$L,'4.БКВ'!$A16,'2.3.Спецификации по этапам'!$M:$M,'4.БКВ'!H$62,'2.3.Спецификации по этапам'!$N:$N,"Центр")*($E$2+100%)+SUMIFS('2.3.Спецификации по этапам'!$H:$H,'2.3.Спецификации по этапам'!$L:$L,'4.БКВ'!$A16,'2.3.Спецификации по этапам'!$M:$M,'4.БКВ'!H$62,'2.3.Спецификации по этапам'!$N:$N,"Децентр")*($E$3+100%) -> 119,069 | I16: =SUMIFS('2.3.Спецификации по этапам'!$H:$H,'2.3.Спецификации по этапам'!$L:$L,'4.БКВ'!$A16,'2.3.Спецификации по этапам'!$M:$M,'4.БКВ'!I$62,'2.3.Спецификации по этапам'!$N:$N,"Центр")*($E$2+100%)+SUMIFS('2.3.Спецификации по этапам'!$H:$H,'2.3.Спецификации по этапам'!$L:$L,'4.БКВ'!$A16,'2.3.Спецификации по этапам'!$M:$M,'4.БКВ'!I$62,'2.3.Спецификации по этапам'!$N:$N,"Децентр")*($E$3+100%) -> 0 | J16: =SUMIFS('2.3.Спецификации по этапам'!$H:$H,'2.3.Спецификации по этапам'!$L:$L,'4.БКВ'!$A16,'2.3.Спецификации по этапам'!$M:$M,'4.БКВ'!J$62,'2.3.Спецификации по этапам'!$N:$N,"Центр")*($E$2+100%)+SUMIFS('2.3.Спецификации по этапам'!$H:$H,'2.3.Спецификации по этапам'!$L:$L,'4.БКВ'!$A16,'2.3.Спецификации по этапам'!$M:$M,'4.БКВ'!J$62,'2.3.Спецификации по этапам'!$N:$N,"Децентр")*($E$3+100%) -> 0 | K16: =SUMIFS('2.3.Спецификации по этапам'!$H:$H,'2.3.Спецификации по этапам'!$L:$L,'4.БКВ'!$A16,'2.3.Спецификации по этапам'!$M:$M,'4.БКВ'!K$62,'2.3.Спецификации по этапам'!$N:$N,"Центр")*($E$2+100%)+SUMIFS('2.3.Спецификации по этапам'!$H:$H,'2.3.Спецификации по этапам'!$L:$L,'4.БКВ'!$A16,'2.3.Спецификации по этапам'!$M:$M,'4.БКВ'!K$62,'2.3.Спецификации по этапам'!$N:$N,"Децентр")*($E$3+100%) -> 0 | L16: =SUMIFS('2.3.Спецификации по этапам'!$H:$H,'2.3.Спецификации по этапам'!$L:$L,'4.БКВ'!$A16,'2.3.Спецификации по этапам'!$M:$M,'4.БКВ'!L$62,'2.3.Спецификации по этапам'!$N:$N,"Центр")*($E$2+100%)+SUMIFS('2.3.Спецификации по этапам'!$H:$H,'2.3.Спецификации по этапам'!$L:$L,'4.БКВ'!$A16,'2.3.Спецификации по этапам'!$M:$M,'4.БКВ'!L$62,'2.3.Спецификации по этапам'!$N:$N,"Децентр")*($E$3+100%) -> 0 | M16: =SUMIFS('2.3.Спецификации по этапам'!$H:$H,'2.3.Спецификации по этапам'!$L:$L,'4.БКВ'!$A16,'2.3.Спецификации по этапам'!$M:$M,'4.БКВ'!M$62,'2.3.Спецификации по этапам'!$N:$N,"Центр")*($E$2+100%)+SUMIFS('2.3.Спецификации по этапам'!$H:$H,'2.3.Спецификации по этапам'!$L:$L,'4.БКВ'!$A16,'2.3.Спецификации по этапам'!$M:$M,'4.БКВ'!M$62,'2.3.Спецификации по этапам'!$N:$N,"Децентр")*($E$3+100%) -> 0 | N16: =SUMIFS('2.3.Спецификации по этапам'!$H:$H,'2.3.Спецификации по этапам'!$L:$L,'4.БКВ'!$A16,'2.3.Спецификации по этапам'!$M:$M,'4.БКВ'!N$62,'2.3.Спецификации по этапам'!$N:$N,"Центр")*($E$2+100%)+SUMIFS('2.3.Спецификации по этапам'!$H:$H,'2.3.Спецификации по этапам'!$L:$L,'4.БКВ'!$A16,'2.3.Спецификации по этапам'!$M:$M,'4.БКВ'!N$62,'2.3.Спецификации по этапам'!$N:$N,"Децентр")*($E$3+100%) -> 0 | O16: =SUMIFS('2.3.Спецификации по этапам'!$H:$H,'2.3.Спецификации по этапам'!$L:$L,'4.БКВ'!$A16,'2.3.Спецификации по этапам'!$M:$M,'4.БКВ'!O$62,'2.3.Спецификации по этапам'!$N:$N,"Центр")*($E$2+100%)+SUMIFS('2.3.Спецификации по этапам'!$H:$H,'2.3.Спецификации по этапам'!$L:$L,'4.БКВ'!$A16,'2.3.Спецификации по этапам'!$M:$M,'4.БКВ'!O$62,'2.3.Спецификации по этапам'!$N:$N,"Децентр")*($E$3+100%) -> 0 | P16: =SUMIFS('2.3.Спецификации по этапам'!$H:$H,'2.3.Спецификации по этапам'!$L:$L,'4.БКВ'!$A16,'2.3.Спецификации по этапам'!$M:$M,'4.БКВ'!P$62,'2.3.Спецификации по этапам'!$N:$N,"Центр")*($E$2+100%)+SUMIFS('2.3.Спецификации по этапам'!$H:$H,'2.3.Спецификации по этапам'!$L:$L,'4.БКВ'!$A16,'2.3.Спецификации по этапам'!$M:$M,'4.БКВ'!P$62,'2.3.Спецификации по этапам'!$N:$N,"Децентр")*($E$3+100%) -> 0 | Q16: =SUMIFS('2.3.Спецификации по этапам'!$H:$H,'2.3.Спецификации по этапам'!$L:$L,'4.БКВ'!$A16,'2.3.Спецификации по этапам'!$M:$M,'4.БКВ'!Q$62,'2.3.Спецификации по этапам'!$N:$N,"Центр")*($E$2+100%)+SUMIFS('2.3.Спецификации по этапам'!$H:$H,'2.3.Спецификации по этапам'!$L:$L,'4.БКВ'!$A16,'2.3.Спецификации по этапам'!$M:$M,'4.БКВ'!Q$62,'2.3.Спецификации по этапам'!$N:$N,"Децентр")*($E$3+100%) -> 0 | R16: =SUMIFS('2.3.Спецификации по этапам'!$H:$H,'2.3.Спецификации по этапам'!$L:$L,'4.БКВ'!$A16,'2.3.Спецификации по этапам'!$M:$M,'4.БКВ'!R$62,'2.3.Спецификации по этапам'!$N:$N,"Центр")*($E$2+100%)+SUMIFS('2.3.Спецификации по этапам'!$H:$H,'2.3.Спецификации по этапам'!$L:$L,'4.БКВ'!$A16,'2.3.Спецификации по этапам'!$M:$M,'4.БКВ'!R$62,'2.3.Спецификации по этапам'!$N:$N,"Децентр")*($E$3+100%) -> 0 | S16: =SUMIFS('2.3.Спецификации по этапам'!$H:$H,'2.3.Спецификации по этапам'!$L:$L,'4.БКВ'!$A16,'2.3.Спецификации по этапам'!$M:$M,'4.БКВ'!S$62,'2.3.Спецификации по этапам'!$N:$N,"Центр")*($E$2+100%)+SUMIFS('2.3.Спецификации по этапам'!$H:$H,'2.3.Спецификации по этапам'!$L:$L,'4.БКВ'!$A16,'2.3.Спецификации по этапам'!$M:$M,'4.БКВ'!S$62,'2.3.Спецификации по этапам'!$N:$N,"Децентр")*($E$3+100%) -> 0 | T16: =SUMIFS('2.3.Спецификации по этапам'!$H:$H,'2.3.Спецификации по этапам'!$L:$L,'4.БКВ'!$A16,'2.3.Спецификации по этапам'!$M:$M,'4.БКВ'!T$62,'2.3.Спецификации по этапам'!$N:$N,"Центр")*($E$2+100%)+SUMIFS('2.3.Спецификации по этапам'!$H:$H,'2.3.Спецификации по этапам'!$L:$L,'4.БКВ'!$A16,'2.3.Спецификации по этапам'!$M:$M,'4.БКВ'!T$62,'2.3.Спецификации по этапам'!$N:$N,"Децентр")*($E$3+100%) -> 0 | U16: =SUMIFS('2.3.Спецификации по этапам'!$H:$H,'2.3.Спецификации по этапам'!$L:$L,'4.БКВ'!$A16,'2.3.Спецификации по этапам'!$M:$M,'4.БКВ'!U$62,'2.3.Спецификации по этапам'!$N:$N,"Центр")*($E$2+100%)+SUMIFS('2.3.Спецификации по этапам'!$H:$H,'2.3.Спецификации по этапам'!$L:$L,'4.БКВ'!$A16,'2.3.Спецификации по этапам'!$M:$M,'4.БКВ'!U$62,'2.3.Спецификации по этапам'!$N:$N,"Децентр")*($E$3+100%) -> 0 | V16: =SUMIFS('2.3.Спецификации по этапам'!$H:$H,'2.3.Спецификации по этапам'!$L:$L,'4.БКВ'!$A16,'2.3.Спецификации по этапам'!$M:$M,'4.БКВ'!V$62,'2.3.Спецификации по этапам'!$N:$N,"Центр")*($E$2+100%)+SUMIFS('2.3.Спецификации по этапам'!$H:$H,'2.3.Спецификации по этапам'!$L:$L,'4.БКВ'!$A16,'2.3.Спецификации по этапам'!$M:$M,'4.БКВ'!V$62,'2.3.Спецификации по этапам'!$N:$N,"Децентр")*($E$3+100%) -> 0 | W16: =SUMIFS('2.3.Спецификации по этапам'!$H:$H,'2.3.Спецификации по этапам'!$L:$L,'4.БКВ'!$A16,'2.3.Спецификации по этапам'!$M:$M,'4.БКВ'!W$62,'2.3.Спецификации по этапам'!$N:$N,"Центр")*($E$2+100%)+SUMIFS('2.3.Спецификации по этапам'!$H:$H,'2.3.Спецификации по этапам'!$L:$L,'4.БКВ'!$A16,'2.3.Спецификации по этапам'!$M:$M,'4.БКВ'!W$62,'2.3.Спецификации по этапам'!$N:$N,"Децентр")*($E$3+100%) -> 0 | X16: =SUMIFS('2.3.Спецификации по этапам'!$H:$H,'2.3.Спецификации по этапам'!$L:$L,'4.БКВ'!$A16,'2.3.Спецификации по этапам'!$M:$M,'4.БКВ'!X$62,'2.3.Спецификации по этапам'!$N:$N,"Центр")*($E$2+100%)+SUMIFS('2.3.Спецификации по этапам'!$H:$H,'2.3.Спецификации по этапам'!$L:$L,'4.БКВ'!$A16,'2.3.Спецификации по этапам'!$M:$M,'4.БКВ'!X$62,'2.3.Спецификации по этапам'!$N:$N,"Децентр")*($E$3+100%) -> 0 | Y16: =SUMIFS('2.3.Спецификации по этапам'!$H:$H,'2.3.Спецификации по этапам'!$L:$L,'4.БКВ'!$A16,'2.3.Спецификации по этапам'!$M:$M,'4.БКВ'!Y$62,'2.3.Спецификации по этапам'!$N:$N,"Центр")*($E$2+100%)+SUMIFS('2.3.Спецификации по этапам'!$H:$H,'2.3.Спецификации по этапам'!$L:$L,'4.БКВ'!$A16,'2.3.Спецификации по этапам'!$M:$M,'4.БКВ'!Y$62,'2.3.Спецификации по этапам'!$N:$N,"Децентр")*($E$3+100%) -> 0 | Z16: =SUMIFS('2.3.Спецификации по этапам'!$H:$H,'2.3.Спецификации по этапам'!$L:$L,'4.БКВ'!$A16,'2.3.Спецификации по этапам'!$M:$M,'4.БКВ'!Z$62,'2.3.Спецификации по этапам'!$N:$N,"Центр")*($E$2+100%)+SUMIFS('2.3.Спецификации по этапам'!$H:$H,'2.3.Спецификации по этапам'!$L:$L,'4.БКВ'!$A16,'2.3.Спецификации по этапам'!$M:$M,'4.БКВ'!Z$62,'2.3.Спецификации по этапам'!$N:$N,"Децентр")*($E$3+100%) -> 0 | AA16: =SUMIFS('2.3.Спецификации по этапам'!$H:$H,'2.3.Спецификации по этапам'!$L:$L,'4.БКВ'!$A16,'2.3.Спецификации по этапам'!$M:$M,'4.БКВ'!AA$62,'2.3.Спецификации по этапам'!$N:$N,"Центр")*($E$2+100%)+SUMIFS('2.3.Спецификации по этапам'!$H:$H,'2.3.Спецификации по этапам'!$L:$L,'4.БКВ'!$A16,'2.3.Спецификации по этапам'!$M:$M,'4.БКВ'!AA$62,'2.3.Спецификации по этапам'!$N:$N,"Децентр")*($E$3+100%) -> 0 | AB16: =SUMIFS('2.3.Спецификации по этапам'!$H:$H,'2.3.Спецификации по этапам'!$L:$L,'4.БКВ'!$A16,'2.3.Спецификации по этапам'!$M:$M,'4.БКВ'!AB$62,'2.3.Спецификации по этапам'!$N:$N,"Центр")*($E$2+100%)+SUMIFS('2.3.Спецификации по этапам'!$H:$H,'2.3.Спецификации по этапам'!$L:$L,'4.БКВ'!$A16,'2.3.Спецификации по этапам'!$M:$M,'4.БКВ'!AB$62,'2.3.Спецификации по этапам'!$N:$N,"Децентр")*($E$3+100%) -> 0 | AC16: =SUMIFS('2.3.Спецификации по этапам'!$H:$H,'2.3.Спецификации по этапам'!$L:$L,'4.БКВ'!$A16,'2.3.Спецификации по этапам'!$M:$M,'4.БКВ'!AC$62,'2.3.Спецификации по этапам'!$N:$N,"Центр")*($E$2+100%)+SUMIFS('2.3.Спецификации по этапам'!$H:$H,'2.3.Спецификации по этапам'!$L:$L,'4.БКВ'!$A16,'2.3.Спецификации по этапам'!$M:$M,'4.БКВ'!AC$62,'2.3.Спецификации по этапам'!$N:$N,"Децентр")*($E$3+100%) -> 0 | AD16: =SUMIFS('2.3.Спецификации по этапам'!$H:$H,'2.3.Спецификации по этапам'!$L:$L,'4.БКВ'!$A16,'2.3.Спецификации по этапам'!$M:$M,'4.БКВ'!AD$62,'2.3.Спецификации по этапам'!$N:$N,"Центр")*($E$2+100%)+SUMIFS('2.3.Спецификации по этапам'!$H:$H,'2.3.Спецификации по этапам'!$L:$L,'4.БКВ'!$A16,'2.3.Спецификации по этапам'!$M:$M,'4.БКВ'!AD$62,'2.3.Спецификации по этапам'!$N:$N,"Децентр")*($E$3+100%) -> 0 | AE16: =SUMIFS('2.3.Спецификации по этапам'!$H:$H,'2.3.Спецификации по этапам'!$L:$L,'4.БКВ'!$A16,'2.3.Спецификации по этапам'!$M:$M,'4.БКВ'!AE$62,'2.3.Спецификации по этапам'!$N:$N,"Центр")*($E$2+100%)+SUMIFS('2.3.Спецификации по этапам'!$H:$H,'2.3.Спецификации по этапам'!$L:$L,'4.БКВ'!$A16,'2.3.Спецификации по этапам'!$M:$M,'4.БКВ'!AE$62,'2.3.Спецификации по этапам'!$N:$N,"Децентр")*($E$3+100%) -> 0 | AF16: =SUMIFS('2.3.Спецификации по этапам'!$H:$H,'2.3.Спецификации по этапам'!$L:$L,'4.БКВ'!$A16,'2.3.Спецификации по этапам'!$M:$M,'4.БКВ'!AF$62,'2.3.Спецификации по этапам'!$N:$N,"Центр")*($E$2+100%)+SUMIFS('2.3.Спецификации по этапам'!$H:$H,'2.3.Спецификации по этапам'!$L:$L,'4.БКВ'!$A16,'2.3.Спецификации по этапам'!$M:$M,'4.БКВ'!AF$62,'2.3.Спецификации по этапам'!$N:$N,"Децентр")*($E$3+100%) -> 0 | AG16: =SUMIFS('2.3.Спецификации по этапам'!$H:$H,'2.3.Спецификации по этапам'!$L:$L,'4.БКВ'!$A16,'2.3.Спецификации по этапам'!$M:$M,'4.БКВ'!AG$62,'2.3.Спецификации по этапам'!$N:$N,"Центр")*($E$2+100%)+SUMIFS('2.3.Спецификации по этапам'!$H:$H,'2.3.Спецификации по этапам'!$L:$L,'4.БКВ'!$A16,'2.3.Спецификации по этапам'!$M:$M,'4.БКВ'!AG$62,'2.3.Спецификации по этапам'!$N:$N,"Децентр")*($E$3+100%) -> 0 | AH16: =SUMIFS('2.3.Спецификации по этапам'!$H:$H,'2.3.Спецификации по этапам'!$L:$L,'4.БКВ'!$A16,'2.3.Спецификации по этапам'!$M:$M,'4.БКВ'!AH$62,'2.3.Спецификации по этапам'!$N:$N,"Центр")*($E$2+100%)+SUMIFS('2.3.Спецификации по этапам'!$H:$H,'2.3.Спецификации по этапам'!$L:$L,'4.БКВ'!$A16,'2.3.Спецификации по этапам'!$M:$M,'4.БКВ'!AH$62,'2.3.Спецификации по этапам'!$N:$N,"Децентр")*($E$3+100%) -> 0 | AI16: =SUMIFS('2.3.Спецификации по этапам'!$H:$H,'2.3.Спецификации по этапам'!$L:$L,'4.БКВ'!$A16,'2.3.Спецификации по этапам'!$M:$M,'4.БКВ'!AI$62,'2.3.Спецификации по этапам'!$N:$N,"Центр")*($E$2+100%)+SUMIFS('2.3.Спецификации по этапам'!$H:$H,'2.3.Спецификации по этапам'!$L:$L,'4.БКВ'!$A16,'2.3.Спецификации по этапам'!$M:$M,'4.БКВ'!AI$62,'2.3.Спецификации по этапам'!$N:$N,"Децентр")*($E$3+100%) -> 0 | AJ16: =SUMIFS('2.3.Спецификации по этапам'!$H:$H,'2.3.Спецификации по этапам'!$L:$L,'4.БКВ'!$A16,'2.3.Спецификации по этапам'!$M:$M,'4.БКВ'!AJ$62,'2.3.Спецификации по этапам'!$N:$N,"Центр")*($E$2+100%)+SUMIFS('2.3.Спецификации по этапам'!$H:$H,'2.3.Спецификации по этапам'!$L:$L,'4.БКВ'!$A16,'2.3.Спецификации по этапам'!$M:$M,'4.БКВ'!AJ$62,'2.3.Спецификации по этапам'!$N:$N,"Децентр")*($E$3+100%) -> 0 | AK16: =SUMIFS('2.3.Спецификации по этапам'!$H:$H,'2.3.Спецификации по этапам'!$L:$L,'4.БКВ'!$A16,'2.3.Спецификации по этапам'!$M:$M,'4.БКВ'!AK$62,'2.3.Спецификации по этапам'!$N:$N,"Центр")*($E$2+100%)+SUMIFS('2.3.Спецификации по этапам'!$H:$H,'2.3.Спецификации по этапам'!$L:$L,'4.БКВ'!$A16,'2.3.Спецификации по этапам'!$M:$M,'4.БКВ'!AK$62,'2.3.Спецификации по этапам'!$N:$N,"Децентр")*($E$3+100%) -> 0 | AL16: =SUMIFS('2.3.Спецификации по этапам'!$H:$H,'2.3.Спецификации по этапам'!$L:$L,'4.БКВ'!$A16,'2.3.Спецификации по этапам'!$M:$M,'4.БКВ'!AL$62,'2.3.Спецификации по этапам'!$N:$N,"Центр")*($E$2+100%)+SUMIFS('2.3.Спецификации по этапам'!$H:$H,'2.3.Спецификации по этапам'!$L:$L,'4.БКВ'!$A16,'2.3.Спецификации по этапам'!$M:$M,'4.БКВ'!AL$62,'2.3.Спецификации по этапам'!$N:$N,"Децентр")*($E$3+100%) -> 0 | AM16: =SUMIFS('2.3.Спецификации по этапам'!$H:$H,'2.3.Спецификации по этапам'!$L:$L,'4.БКВ'!$A16,'2.3.Спецификации по этапам'!$M:$M,'4.БКВ'!AM$62,'2.3.Спецификации по этапам'!$N:$N,"Центр")*($E$2+100%)+SUMIFS('2.3.Спецификации по этапам'!$H:$H,'2.3.Спецификации по этапам'!$L:$L,'4.БКВ'!$A16,'2.3.Спецификации по этапам'!$M:$M,'4.БКВ'!AM$62,'2.3.Спецификации по этапам'!$N:$N,"Децентр")*($E$3+100%) -> 0 | AN16: =SUMIFS('2.3.Спецификации по этапам'!$H:$H,'2.3.Спецификации по этапам'!$L:$L,'4.БКВ'!$A16,'2.3.Спецификации по этапам'!$M:$M,'4.БКВ'!AN$62,'2.3.Спецификации по этапам'!$N:$N,"Центр")*($E$2+100%)+SUMIFS('2.3.Спецификации по этапам'!$H:$H,'2.3.Спецификации по этапам'!$L:$L,'4.БКВ'!$A16,'2.3.Спецификации по этапам'!$M:$M,'4.БКВ'!AN$62,'2.3.Спецификации по этапам'!$N:$N,"Децентр")*($E$3+100%) -> 0 | AO16: =SUMIFS('2.3.Спецификации по этапам'!$H:$H,'2.3.Спецификации по этапам'!$L:$L,'4.БКВ'!$A16,'2.3.Спецификации по этапам'!$M:$M,'4.БКВ'!AO$62,'2.3.Спецификации по этапам'!$N:$N,"Центр")*($E$2+100%)+SUMIFS('2.3.Спецификации по этапам'!$H:$H,'2.3.Спецификации по этапам'!$L:$L,'4.БКВ'!$A16,'2.3.Спецификации по этапам'!$M:$M,'4.БКВ'!AO$62,'2.3.Спецификации по этапам'!$N:$N,"Децентр")*($E$3+100%) -> 0 | AP16: =SUMIFS('2.3.Спецификации по этапам'!$H:$H,'2.3.Спецификации по этапам'!$L:$L,'4.БКВ'!$A16,'2.3.Спецификации по этапам'!$M:$M,'4.БКВ'!AP$62,'2.3.Спецификации по этапам'!$N:$N,"Центр")*($E$2+100%)+SUMIFS('2.3.Спецификации по этапам'!$H:$H,'2.3.Спецификации по этапам'!$L:$L,'4.БКВ'!$A16,'2.3.Спецификации по этапам'!$M:$M,'4.БКВ'!AP$62,'2.3.Спецификации по этапам'!$N:$N,"Децентр")*($E$3+100%) -> 0 | AQ16: =SUMIFS('2.3.Спецификации по этапам'!$H:$H,'2.3.Спецификации по этапам'!$L:$L,'4.БКВ'!$A16,'2.3.Спецификации по этапам'!$M:$M,'4.БКВ'!AQ$62,'2.3.Спецификации по этапам'!$N:$N,"Центр")*($E$2+100%)+SUMIFS('2.3.Спецификации по этапам'!$H:$H,'2.3.Спецификации по этапам'!$L:$L,'4.БКВ'!$A16,'2.3.Спецификации по этапам'!$M:$M,'4.БКВ'!AQ$62,'2.3.Спецификации по этапам'!$N:$N,"Децентр")*($E$3+100%) -> 0 | AR16: =SUMIFS('2.3.Спецификации по этапам'!$H:$H,'2.3.Спецификации по этапам'!$L:$L,'4.БКВ'!$A16,'2.3.Спецификации по этапам'!$M:$M,'4.БКВ'!AR$62,'2.3.Спецификации по этапам'!$N:$N,"Центр")*($E$2+100%)+SUMIFS('2.3.Спецификации по этапам'!$H:$H,'2.3.Спецификации по этапам'!$L:$L,'4.БКВ'!$A16,'2.3.Спецификации по этапам'!$M:$M,'4.БКВ'!AR$62,'2.3.Спецификации по этапам'!$N:$N,"Децентр")*($E$3+100%) -> 0 | AS16: =SUMIFS('2.3.Спецификации по этапам'!$H:$H,'2.3.Спецификации по этапам'!$L:$L,'4.БКВ'!$A16,'2.3.Спецификации по этапам'!$M:$M,'4.БКВ'!AS$62,'2.3.Спецификации по этапам'!$N:$N,"Центр")*($E$2+100%)+SUMIFS('2.3.Спецификации по этапам'!$H:$H,'2.3.Спецификации по этапам'!$L:$L,'4.БКВ'!$A16,'2.3.Спецификации по этапам'!$M:$M,'4.БКВ'!AS$62,'2.3.Спецификации по этапам'!$N:$N,"Децентр")*($E$3+100%) -> 0 | AT16: =SUMIFS('2.3.Спецификации по этапам'!$H:$H,'2.3.Спецификации по этапам'!$L:$L,'4.БКВ'!$A16,'2.3.Спецификации по этапам'!$M:$M,'4.БКВ'!AT$62,'2.3.Спецификации по этапам'!$N:$N,"Центр")*($E$2+100%)+SUMIFS('2.3.Спецификации по этапам'!$H:$H,'2.3.Спецификации по этапам'!$L:$L,'4.БКВ'!$A16,'2.3.Спецификации по этапам'!$M:$M,'4.БКВ'!AT$62,'2.3.Спецификации по этапам'!$N:$N,"Децентр")*($E$3+100%) -> 0 | AU16: =SUMIFS('2.3.Спецификации по этапам'!$H:$H,'2.3.Спецификации по этапам'!$L:$L,'4.БКВ'!$A16,'2.3.Спецификации по этапам'!$M:$M,'4.БКВ'!AU$62,'2.3.Спецификации по этапам'!$N:$N,"Центр")*($E$2+100%)+SUMIFS('2.3.Спецификации по этапам'!$H:$H,'2.3.Спецификации по этапам'!$L:$L,'4.БКВ'!$A16,'2.3.Спецификации по этапам'!$M:$M,'4.БКВ'!AU$62,'2.3.Спецификации по этапам'!$N:$N,"Децентр")*($E$3+100%) -> 0 | AV16: =SUMIFS('2.3.Спецификации по этапам'!$H:$H,'2.3.Спецификации по этапам'!$L:$L,'4.БКВ'!$A16,'2.3.Спецификации по этапам'!$M:$M,'4.БКВ'!AV$62,'2.3.Спецификации по этапам'!$N:$N,"Центр")*($E$2+100%)+SUMIFS('2.3.Спецификации по этапам'!$H:$H,'2.3.Спецификации по этапам'!$L:$L,'4.БКВ'!$A16,'2.3.Спецификации по этапам'!$M:$M,'4.БКВ'!AV$62,'2.3.Спецификации по этапам'!$N:$N,"Децентр")*($E$3+100%) -> 0 | AW16: 119,069 | AX16: 0 | AY16: 0 | AZ16: 0 | BA16: 0 | BB16: 0 | BC16: 0 | BD16: 0 | BE16: 0 | BF16: 0 | BG16: 0 | BH16: 119,069
